{"text_format":"1","workbook":"xlsx","n_sheets":32,"sheets":["Configurador","Portada_E","O365_Empresa_E","O365_Premium_E","O365_Essentials_E","O365_E1E3E5_E","Azure_10_E","Azure_50_E","Azure_100_E","Azure_Custom_E","Server_E","BusApps_Generica_E","Dynamics_E","Dynamics_Sales_E","Add-in_E","Surface_Generica_E","SurfacePro_E","SurfaceBook_E","SurfaceGo_E","SurfaceLaptop_E","Accesorios_E","HardwareOEM_E","PartnerPM_E","PartnerSG_E","Resumen_E","Legales_E","LN_Surface","LN_Partner","LN_OEM","LN_Server","Impresion","Versiones"],"not_rendered":{"charts":0,"images":94,"macros":1,"external_links":4,"defined_names":156,"comments":0,"pivot_tables":0},"unopened":[],"bounds":{"document_bytes":16777216,"sheet_cells":100000,"rows_first":2000,"rows_last":500,"rows_between":2000,"halvings":0,"cell_chars":16384,"cell_head_chars":4096},"cells_cut":0,"cells_raw":0,"read":"whole","date_system":"1900"}

{"sheet":"Configurador","index":0,"n_rows":177,"n_cols":49,"rows_kept":177,"cut":false,"hidden":false,"merged":[[72,17,72,18],[55,17,55,18],[175,1,175,3],[174,4,174,12],[176,4,176,12],[174,1,174,3],[119,17,119,18],[120,17,120,18],[121,17,121,18],[122,17,122,18],[138,17,138,18],[121,3,121,4],[122,3,122,4],[136,17,136,18],[130,17,130,18],[131,1,131,2],[131,17,131,18],[128,1,128,2],[87,1,87,3],[88,1,88,3],[89,1,89,3],[89,13,89,14],[90,13,90,14],[78,13,78,15],[12,17,12,19],[6,9,6,12],[10,2,10,5],[10,9,10,12],[12,2,12,5],[12,9,12,12],[28,1,28,3],[28,4,28,7],[28,11,28,12],[28,13,28,14],[6,2,6,5],[29,1,29,3],[29,4,29,7],[30,13,30,14],[31,11,31,12],[31,13,31,14],[14,2,14,5],[14,9,14,12],[16,2,16,5],[16,9,16,12],[20,2,20,5],[20,9,20,12],[30,10,33,10],[55,4,55,10],[55,11,55,12],[62,1,63,3],[62,4,67,10],[62,11,64,12],[49,1,49,3],[49,4,49,7],[36,13,36,14],[37,11,37,12],[37,13,37,14],[49,11,49,16],[46,1,46,3],[46,4,46,7],[46,11,46,12],[46,13,46,14],[47,1,47,3],[47,4,47,7],[47,11,47,12],[38,4,38,7],[36,11,36,12],[48,1,48,3],[48,4,48,7],[55,1,55,3],[55,13,55,14],[74,1,74,3],[74,13,74,14],[77,1,77,3],[77,4,77,10],[74,4,74,12],[62,15,64,15],[62,16,64,16],[56,4,61,10],[71,11,73,12],[71,13,73,14],[71,15,73,15],[71,16,73,16],[59,11,61,12],[56,11,58,12],[59,13,61,14],[59,15,61,15],[59,16,61,16],[65,11,67,12],[65,15,67,15],[65,16,67,16],[92,1,92,3],[102,6,102,7],[79,4,79,10],[78,1,78,3],[79,1,79,3],[77,11,77,12],[78,11,78,12],[79,11,79,12],[78,4,78,10],[92,8,92,12],[79,13,79,15],[77,13,77,15],[101,1,101,25],[107,6,107,7],[110,7,110,8],[111,7,111,8],[96,1,96,12],[85,1,85,3],[85,4,85,7],[85,8,85,12],[85,13,85,14],[86,1,86,3],[86,4,86,7],[86,8,86,12],[86,13,86,14],[90,1,90,3],[91,1,91,3],[89,4,89,7],[90,4,90,7],[91,4,91,7],[89,8,89,12],[90,8,90,12],[91,8,91,12],[93,1,93,3],[102,39,102,43],[102,45,102,46],[109,1,109,8],[102,47,102,48],[150,1,150,2],[148,1,148,2],[149,1,149,2],[146,1,146,2],[147,1,147,2],[144,1,144,2],[132,1,132,2],[134,1,134,2],[145,1,145,2],[140,1,140,2],[141,1,141,2],[142,1,142,2],[143,1,143,2],[112,7,112,8],[113,7,113,8],[114,7,114,8],[119,5,119,7],[117,13,117,14],[118,9,118,10],[119,9,119,10],[163,1,163,3],[164,1,164,3],[159,1,159,3],[157,4,157,8],[159,4,159,8],[160,4,160,8],[161,4,161,8],[162,4,162,8],[163,4,163,8],[164,4,164,8],[157,1,157,3],[160,1,160,3],[158,1,158,3],[158,4,158,8],[161,1,161,3],[162,1,162,3],[87,13,87,14],[87,8,87,12],[87,4,87,7],[88,13,88,14],[88,8,88,12],[88,4,88,7],[91,13,91,14],[92,13,92,14],[93,13,93,14],[92,4,92,7],[120,13,120,14],[128,13,128,14],[128,3,128,12],[129,3,129,12],[93,8,93,12],[93,4,93,7],[102,13,102,14],[103,6,103,7],[104,6,104,7],[105,6,105,7],[106,6,106,7],[103,13,103,14],[104,13,104,14],[105,13,105,14],[118,5,118,7],[110,5,110,6],[111,5,111,6],[112,5,112,6],[108,13,108,14],[117,9,117,10],[107,13,107,14],[56,30,58,30],[59,30,61,30],[62,30,64,30],[65,30,67,30],[68,30,70,30],[68,23,70,23],[68,24,70,24],[70,17,70,18],[68,16,70,16],[68,17,68,18],[68,29,70,29],[59,22,61,22],[62,22,64,22],[65,22,67,22],[68,22,70,22],[39,20,41,20],[42,20,44,20],[68,11,70,12],[68,13,70,14],[68,15,70,15],[62,13,64,14],[65,13,67,14],[56,13,58,14],[56,15,58,15],[56,16,58,16],[47,13,47,14],[48,11,48,16],[59,17,59,18],[39,19,41,19],[42,19,44,19],[31,29,33,29],[35,29,37,29],[65,17,65,18],[69,17,69,18],[66,17,66,18],[56,22,58,22],[56,17,56,18],[58,17,58,18],[71,17,71,18],[56,29,58,29],[59,29,61,29],[62,29,64,29],[65,29,67,29],[63,17,63,18],[56,23,58,23],[56,24,58,24],[59,23,61,23],[59,24,61,24],[62,23,64,23],[62,24,64,24],[65,23,67,23],[65,24,67,24],[61,17,61,18],[57,17,57,18],[71,22,73,22],[164,13,164,14],[165,13,165,14],[157,13,157,14],[158,13,158,14],[74,17,74,21],[73,17,73,18],[60,17,60,18],[67,17,67,18],[64,17,64,18],[62,17,62,18],[134,17,134,18],[135,17,135,18],[128,17,128,18],[118,13,118,14],[119,13,119,14],[129,13,129,14],[130,13,130,14],[131,13,131,14],[137,17,137,18],[159,13,159,14],[160,13,160,14],[161,13,161,14],[162,13,162,14],[156,1,156,3],[71,30,73,30],[118,17,118,18],[117,17,117,18],[106,13,106,14],[116,1,116,24],[132,17,132,18],[133,17,133,18],[129,17,129,18],[94,1,94,3],[94,4,94,7],[94,8,94,12],[94,13,94,14],[117,3,117,4],[117,5,117,7],[118,3,118,4],[119,3,119,4],[71,1,71,3],[68,4,73,10],[71,29,73,29],[71,23,73,23],[71,24,73,24],[135,1,135,2],[113,5,113,6],[140,3,140,12],[141,3,141,12],[142,3,142,12],[143,3,143,12],[144,3,144,12],[141,13,141,14],[142,13,142,14],[143,13,143,14],[144,13,144,14],[163,13,163,14],[155,13,155,14],[148,13,148,14],[149,13,149,14],[145,13,145,14],[146,13,146,14],[147,13,147,14],[150,13,150,14],[65,1,65,3],[68,1,69,3],[137,13,137,14],[122,5,122,7],[121,13,121,14],[122,13,122,14],[130,3,130,12],[131,3,131,12],[132,3,132,12],[137,1,137,2],[114,5,114,6],[136,1,136,2],[120,5,120,7],[120,9,120,10],[120,3,120,4],[129,1,129,2],[135,13,135,14],[136,13,136,14],[133,1,133,2],[130,1,130,2],[121,9,121,10],[29,11,29,12],[29,13,29,14],[38,1,38,3],[38,11,38,12],[38,13,38,14],[41,11,41,12],[41,13,41,14],[56,1,57,3],[59,1,59,3],[45,1,45,3],[45,4,45,7],[45,11,45,12],[45,13,45,14],[30,4,33,7],[30,8,33,8],[30,9,33,9],[133,3,133,12],[121,5,121,7],[122,9,122,10],[39,9,41,9],[39,10,41,10],[39,11,39,12],[40,11,40,12],[39,13,39,14],[40,13,40,14],[156,4,156,8],[156,13,156,14],[149,3,149,12],[150,3,150,12],[134,3,134,12],[135,3,135,12],[136,3,136,12],[137,3,137,12],[140,13,140,14],[145,3,145,12],[146,3,146,12],[147,3,147,12],[148,3,148,12],[155,1,155,3],[155,4,155,8],[132,13,132,14],[133,13,133,14],[134,13,134,14],[42,1,44,3],[42,4,44,7],[42,8,44,8],[30,11,30,12],[35,11,35,12],[33,11,33,12],[33,13,33,14],[30,17,33,17],[30,18,33,18],[42,9,44,9],[42,10,44,10],[42,11,42,12],[43,11,43,12],[42,13,42,14],[43,13,43,14],[39,17,41,17],[39,18,41,18],[42,17,44,17],[42,18,44,18],[44,11,44,12],[44,13,44,14],[39,1,41,3],[39,4,41,7],[39,8,41,8],[30,19,33,19],[30,20,33,20],[30,1,33,3],[34,11,34,12],[34,13,34,14],[34,17,37,17],[34,18,37,18],[34,19,37,19],[34,20,37,20],[34,1,37,3],[34,4,37,7],[34,8,37,8],[34,9,37,9],[34,10,37,10],[32,11,32,12],[32,13,32,14],[35,13,35,14]]}
[]
[]
[null,"Datos de cliente, partner y oferta a presentar"]
[]
[null,"Cliente",null,null,null,null,null,null,"Partner",null,null,null,null,null,null,"Oferta"]
[]
[null,"Empresa *",null,null,null,null,null,null,"Partner *",null,null,null,null,null,null,"Fecha de presentación *"]
[]
[null,"CIF *",null,null,null,null,null,null,"CIF",null,null,null,null,null,null,"Es válida hasta el día *"]
[]
[null,"Dirección *",null,null,null,null,null,null,"Dirección",null,null,null,null,null,null,"Fecha de firma"]
[]
[null,"Ciudad *",null,null,null,null,null,null,"Ciudad",null,null,null,null,null,null,"Lugar de firma"]
[]
[null,"Provincia *",null,null,null,null,null,null,"Provincia"]
[]
[null,"Apoderado *",null,null,null,null,null,null,"Contacto *",null,null,null,null,null,null,"Logo del partner"]
[]
[null,"Teléfono *",null,null,null,null,null,null,"Teléfono *"]
[]
[null,"Email *",null,null,null,null,null,null,"Email *",null,null,null,null,null,null,"Idioma de la propuesta",null,"Castellano",null,"Imprimir:"]
[]
[null,null,"(*) Campos obligatorios.",null,null,null,null,null,null,null,null,null,null,null,null,"Los precios NO incluyen IVA"]
[null,"Productos a ofertar"]
[]
[null,"Modernización del puesto de trabajo"]
[]
[]
[null,"Necesidad del cliente",null,null,"Producto",null,null,null,"Cuota por usuario","Usuarios","Descuento","Recomendamos",null,"Cuota por usuario",null,"Usuarios","Descuento","Total mensual","Total descuento mensual","Total anual","Total descuento anual",null,null,null,null,null,null,null,null,"Pgo mensual"]
[null,"Modernización del puesto de trabajo completa",null,null,"Microsoft 365 Empresa",null,null,null,16.899999999999999,null,null,"AIP",null,{"$f":"I46","v":3.4},null,null,null,{"$f":"I30*(1-K30)*J30+N30*(1-Q30)*P30","v":0},{"$f":"((I30*J30)+(N30*P30))-R30","v":0},{"$f":"R30*12","v":0},{"$f":"V30-T30","v":0},{"$f":"(I30*J30)*12+(N30*P30)*12","v":0},null,null,null,null,null,null,null,{"$f":"I30*J30+N30*P30","v":0}]
[null,"Colaboración, Correo y Productividad con Office",null,null,"O365 Empresa Premium",null,null,null,10.5,null,null,"AIP",null,{"$f":"I46","v":3.4},null,null,null,{"$f":"$I$31*(1-$K$31)*$J$31+N31*(1-Q31)*P31+N32*(1-Q32)*P32+N33*(1-Q33)*P33+N34*(1-Q34)*P34","v":0},{"$f":"I31*J31+SUMPRODUCT(N31:N34,P31:P34)-R31","v":0},{"$f":"R31*12","v":0},{"$f":"V32-T31","v":0}]
[null,null,null,null,null,null,null,null,null,null,null,"ATP",null,{"$f":"I47","v":1.69},null,null,null,null,null,null,null,{"$f":"(I31*J31+SUMPRODUCT(N31:N34,P31:P34))*12","v":0},null,null,null,null,null,null,null,{"$f":"I31*J32+N31*P31+N32*P32+N33*P33+N34*P34","v":0}]
[null,null,null,null,null,null,null,null,null,null,null,"EMS",null,{"$f":"I48","v":7.4}]
[null,null,null,null,null,null,null,null,null,null,null,"ATP+EMS",null,{"$f":"I47+I48","v":9.09}]
[null,"Colaboración y Correo",null,null,"O365 Empresa Essentials",null,null,null,4.2,null,null,"AIP",null,{"$f":"I46","v":3.4},null,null,null,{"$f":"$I$35*(1-$K$35)*$J$35+N35*(1-Q35)*P35+N36*(1-Q36)*P36+N37*(1-Q37)*P37+N38*(1-Q38)*P38","v":0},{"$f":"I35*J35+SUMPRODUCT(N35:N38,P35:P38)-R35","v":0},{"$f":"R35*12","v":0},{"$f":"V36-T35","v":0}]
[null,null,null,null,null,null,null,null,null,null,null,"ATP",null,{"$f":"I47","v":1.69},null,null,null,null,null,null,null,{"$f":"(I35*J35+SUMPRODUCT(N35:N38,P35:P38))*12","v":0},null,null,null,null,null,null,null,{"$f":"I35*J36+N35*P35+N36*P36+N37*P37+N38*P38","v":0}]
[null,null,null,null,null,null,null,null,null,null,null,"EMS",null,{"$f":"I48","v":7.4}]
[null,null,null,null,null,null,null,null,null,null,null,{"$f":"L34","v":"ATP+EMS"},null,{"$f":"I47+I48","v":9.09}]
[null,"Suite completa de productividad y colaboración empresarial con funcionalidades de voz",null,null,"Office 365 E5",null,null,null,34.4,null,null,"AIP",null,{"$f":"I46","v":3.4},null,null,null,{"$f":"I39*(1-K39)*J39+N39*(1-Q39)*P39","v":0},{"$f":"((I39*J39)+(N39*P39))-R39","v":0},{"$f":"R39*12","v":0},{"$f":"V39-T39","v":0},{"$f":"(I39*J39)*12+(N39*P39)*12","v":0},"Permite simplificar tu infraestructura con una sola plataforma para llamadas, conferencias, videos y uso compartido de las aplicaciones de Office que ya conoces.",null,null,null,null,null,null,{"$f":"I39*J39+N39*P39","v":0}]
[null,"Suite de productividad y colaboración empresarial ",null,null,"Office 365 E3",null,null,null,19.7,null,null,"AIP",null,{"$f":"I46","v":3.4},null,null,null,{"$f":"$I$40*(1-$K$40)*$J$40+N40*(1-Q40)*P40+N41*(1-Q41)*P41+N42*(1-Q42)*P42","v":0},{"$f":"I40*J40+SUMPRODUCT(N40:N42,P40:P42)-R40","v":0},{"$f":"R40*12","v":0},{"$f":"V41-T40","v":0}]
[null,null,null,null,null,null,null,null,null,null,null,"ATP",null,{"$f":"I47","v":1.69},null,null,null,null,null,null,null,{"$f":"(I40*J40+SUMPRODUCT(N40:N42,P40:P42))*12","v":0},"Incluye las aplicaciones móviles y de escritorio de Office más recientes, así como sus servicios de colaboración integrados",null,null,null,null,null,null,{"$f":"I40*J40+N40*P40+N41*P41+N42*P42","v":0}]
[null,null,null,null,null,null,null,null,null,null,null,"EMS",null,{"$f":"I48","v":7.4}]
[null,"Servicios empresariales de colaboración y correo",null,null,"Office 365 E1",null,null,null,6.7,null,null,"AIP",null,{"$f":"I46","v":3.4},null,null,null,{"$f":"$I$43*(1-$K$43)*$J$43+N43*(1-Q43)*P43+N44*(1-Q44)*P44+N45*(1-Q45)*P45","v":0},{"$f":"I43*J43+SUMPRODUCT(N43:N45,P43:P45)-R43","v":0},{"$f":"R43*12","v":0},{"$f":"V44-T43","v":0}]
[null,null,null,null,null,null,null,null,null,null,null,"ATP",null,{"$f":"I47","v":1.69},null,null,null,null,null,null,null,{"$f":"(I43*J43+SUMPRODUCT(N43:N45,P43:P45))*12","v":0},"Servicios empresariales y aplicaciones de Office basados en web. No se incluyen las aplicaciones de escritorio de Office.",null,null,null,null,null,null,{"$f":"I43*J43+N43*P43+N44*P44+N45*P45","v":0}]
[null,null,null,null,null,null,null,null,null,null,null,"EMS",null,{"$f":"I48","v":7.4}]
[null,"Herramienta de protección y clasificación del dato",null,null,"Azure Information Protection.  Plan 2 ",null,null,null,3.4,null,null,"-----",null,"-----",null,"-----","-----",{"$f":"I46*(1-K46)*J46","v":0},{"$f":"I46*J46-R46","v":0},{"$f":"R46*12","v":0},{"$f":"V46-T46","v":0},{"$f":"(I46*J46)*12","v":0},null,null,null,null,null,null,null,{"$f":"I46*J46","v":0}]
[null,"Seguridad en el correo electrónico",null,null,"O365 Advanced Threat Protection",null,null,null,1.69,null,null,"-----",null,"-----",null,"-----","-----",{"$f":"I47*(1-K47)*J47","v":0},{"$f":"I47*J47-R47","v":0},0,{"$f":"V47-T47","v":0},{"$f":"(I47*J47)*12","v":0},null,null,null,null,null,null,null,{"$f":"I47*J47","v":0}]
[null,"Seguridad y gestión de dispositivos móviles y aplicaciones",null,null,"Enterprise Mobility and Security",null,null,null,7.4,null,null,"-----",null,"-----",null,"-----","-----",{"$f":"I48*(1-K48)*J48","v":0},{"$f":"I48*J48-R48","v":0},0,{"$f":"V48-T48","v":0},{"$f":"(I48*J48)*12","v":0},null,null,null,null,null,null,null,{"$f":"I48*J48","v":0}]
[null,"A medida",null,null,null,null,null,null,null,null,null,null,null,null,null,null,null,{"$f":"I49*(1-K49)*J49","v":0},{"$f":"I49*J49-R49","v":0},0,{"$f":"V49-T49","v":0},{"$f":"(I49*J49)*12","v":0},null,null,null,null,null,null,null,{"$f":"I49*J49","v":0}]
[null,"A medida",null,null,null,null,null,null,null,null,null,null,null,null,null,null,null,{"$f":"I50*(1-K50)*J50","v":0},{"$f":"I50*J50-R50","v":0},0,{"$f":"V50-T50","v":0},{"$f":"(I50*J50)*12","v":0},null,null,null,null,null,null,null,{"$f":"I50*J50","v":0}]
[null,null,null,null,null,null,null,null,null,{"$f":"SUM(J30:J50)","v":0},null,null,null,null,null,{"$f":"SUM(P30:P48)","v":0},null,{"$f":"SUM(R30:R50)","v":0},{"$f":"SUM(S30:S50)","v":0},0,{"$f":"SUM(U30:U50)","v":0},null,null,null,null,null,null,null,null,{"$f":"SUM(AD30:AD50)","v":0}]
[null,"Los precios NO incluyen IVA"]
[null,"Modernización de Servidores"]
[]
[]
[null,"Necesidad del cliente",null,null,"Descripción",null,null,null,null,null,null,"Producto",null,"Cuota mensual",null,"¿Contrata?","Descuento","Recomendamos",null,"Cuota por producto","¿Contrata?","Descuento","Total mensual","Total anual","Total descuento anual",null,null,null,null,null,"Pago Mensual"]
[null,"Escenario recomendado en base al número de usuarios de Office",null,null,"1 servidor virtual  con 2 CPUs virtuales, 8 GB RAM,  Sistema Operativo Windows con 1 disco duro de 1TB de almacenamiento (RD) y disponibilidad operativa 24 horas + Load Balancer incluido sin coste adicional + Virtual Network (100 GB transferencia de datos/mes) +  Directorio Activo Azure hasta 10 usuarios",null,null,null,null,null,null,"Sin compromiso, en pago por uso",null,209.51,null,null,null,"Backup",null,52.14,null,null,{"$f":"IF(P57>0,N57*(1-Q57)*P57+T57*(1-V57)*U57+T58*(1-V58)*U58+T59*(1-V59)*U59,0)","v":0},{"$f":"W57*12","v":0},{"$f":"IF(P57>0,12*(N57*P57+T57*U57+T58*U58+T59*U59)-X57,0)","v":0},null,null,null,null,{"$f":"IF(P57>0,N57-(N57*(1-Q57))+T57-(T57*(1-V57))+T58-(T58*(1-V58))+T59-(T59*(1-V59)),0)","v":0},{"$f":"IF(P57>0,N57*P57+T57*U57+T58*U58+T59*U59,0)","v":0}]
[null,null,null,null,null,null,null,null,null,null,null,null,null,null,null,null,null,"Disaster Recovery",null,21.09]
[null,null,null,null,null,null,null,null,null,null,null,null,null,null,null,null,null,"SQL Database Server",null,377]
[null,"Infraestructura cloud hasta 10 usuarios",null,null,null,null,null,null,null,null,null,"Con compromiso de 1 año",null,182.79,null,null,null,"Backup",null,52.14,null,null,{"$f":"IF(P60>0,N60*(1-Q60)*P60+T60*(1-V60)*U60+T61*(1-V61)*U61+T62*(1-V62)*U62,0)","v":0},{"$f":"W60*12","v":0},{"$f":"IF(P60>0,12*(N60*P60+T60*U60+T61*U61+T62*U62)-X60,0)","v":0},null,null,null,null,{"$f":"IF(P60>0,N60-(N60*(1-Q60))+T60-(T60*(1-V60))+T61-(T61*(1-V61))+T62-(T62*(1-V62)),0)","v":0},{"$f":"IF(P60>0,N60*P60+T60*U60+T61*U61+T62*U62,0)","v":0}]
[null,null,null,null,null,null,null,null,null,null,null,null,null,null,null,null,null,"Disaster Recovery",null,21.09]
[null,null,null,null,null,null,null,null,null,null,null,null,null,null,null,null,null,"SQL Database Server",null,350]
[null,"Escenario recomendado en base al número de usuarios de Office",null,null,"2 servidores virtuales  con 2 vCPUs, 8 GB RAM, Sistema Operativo Windows con 2 discos duros con 1TB de almacenamiento cada uno (RD)  y disponibilidad operativa 24 horas + Load Balancer incuido sin coste adicional+ Virtual Network(200 GB transferencia de datos/mes) +  Directorio Activo Azure hasta 50 usuarios ",null,null,null,null,null,null,"Sin compromiso, en pago por uso",null,459.9,null,null,null,"Backup",null,104,null,null,{"$f":"IF(P63>0,N63*(1-Q63)*P63+T63*(1-V63)*U63+T64*(1-V64)*U64+T65*(1-V65)*U65,0)","v":0},{"$f":"W63*12","v":0},{"$f":"IF(P63>0,12*(N63*P63+T63*U63+T64*U64+T65*U65)-X63,0)","v":0},null,null,null,null,{"$f":"IF(P63>0,N63-(N63*(1-Q63))+T63-(T63*(1-V63))+T64-(T64*(1-V64))+T65-(T65*(1-V65)),0)","v":0},{"$f":"IF(P63>0,N63*P63+T63*U63+T64*U64+T65*U65,0)","v":0}]
[null,null,null,null,null,null,null,null,null,null,null,null,null,null,null,null,null,"Disaster Recovery",null,21.09]
[null,null,null,null,null,null,null,null,null,null,null,null,null,null,null,null,null,"SQL Database Server",null,754]
[null,"Infraestructura cloud hasta 50 usuarios",null,null,null,null,null,null,null,null,null,"Con compromiso de 1 año",null,406.32,null,null,null,"Backup",null,104,null,null,{"$f":"IF(P66>0,N66*(1-Q66)*P66+T66*(1-V66)*U66+T67*(1-V67)*U67+T68*(1-V68)*U68,0)","v":0},{"$f":"W66*12","v":0},{"$f":"IF(P66>0,12*(N66*P66+T66*U66+T67*U67+T68*U68)-X66,0)","v":0},null,null,null,null,{"$f":"IF(P66>0,N66-(N66*(1-Q66))+T66-(T66*(1-V66))+T67-(T67*(1-V67))+T68-(T68*(1-V68)),0)","v":0},{"$f":"IF(P66>0,N66*P66+T66*U66+T67*U67+T68*U68,0)","v":0}]
[null,null,null,null,null,null,null,null,null,null,null,null,null,null,null,null,null,"Disaster Recovery",null,21.09]
[null,null,null,null,null,null,null,null,null,null,null,null,null,null,null,null,null,"SQL Database Server",null,700]
[null,"Escenario recomendado en base al número de usuarios de Office",null,null,"2 servidores virtuales  con 2 vCPUs, 8 GB RAM, Sistema Operativo Windows con 2 discos duros con 2TB de almacenamiento cada uno (RD)  y disponibilidad operativa 24 horas + Load Balancer incuido sin coste adicional+ Virtual Network (512 GB transferencia de datos/mes) +  Directorio Activo Azure hasta 100 usuarios ",null,null,null,null,null,null,"Sin compromiso, en pago por uso",null,1067.04,null,null,null,"Backup",null,191,null,null,{"$f":"IF(P69>0,N69*(1-Q69)*P69+T69*(1-V69)*U69+T70*(1-V70)*U70+T71*(1-V71)*U71,0)","v":0},{"$f":"W69*12","v":0},{"$f":"IF(P69>0,12*(N69*P69+T69*U69+T70*U70+T71*U71)-X69,0)","v":0},null,null,null,null,{"$f":"IF(P69>0,N69-(N69*(1-Q69))+T69-(T69*(1-V69))+T70-(T70*(1-V70))+T71-(T71*(1-V71)),0)","v":0},{"$f":"IF(P69>0,N69*P69+T69*U69+T70*U70+T71*U71,0)","v":0}]
[null,null,null,null,null,null,null,null,null,null,null,null,null,null,null,null,null,"Disaster Recovery",null,21.09]
[null,null,null,null,null,null,null,null,null,null,null,null,null,null,null,null,null,"SQL Database Server",null,1015]
[null,"Infraestructura cloud hasta 100 usuarios",null,null,null,null,null,null,null,null,null,"Con compromiso de 1 año",null,939.8,null,null,null,"Backup",null,104,null,null,{"$f":"IF(P72>0,N72*(1-Q72)*P72+T72*(1-V72)*U72+T73*(1-V73)*U73+T74*(1-V74)*U74,0)","v":0},{"$f":"W72*12","v":0},{"$f":"IF(P72>0,12*(N72*P72+T72*U72+T73*U73+T74*U74)-X72,0)","v":0},null,null,null,null,{"$f":"IF(P72>0,N72-(N72*(1-Q72))+T72-(T72*(1-V72))+T73-(T73*(1-V73))+T74-(T74*(1-V74)),0)","v":0},{"$f":"IF(P72>0,N72*P72+T72*U72+T73*U73+T74*U74,0)","v":0}]
[null,null,null,null,null,null,null,null,null,null,null,null,null,null,null,null,null,"Disaster Recovery",null,21.09]
[null,null,null,null,null,null,null,null,null,null,null,null,null,null,null,null,null,"SQL Database Server",null,907.22]
[null,"A medida",null,null,null,null,null,null,null,null,null,null,null,null,null,null,null,null,null,null,null,null,{"$f":"IF(P75>0,N75*(1-Q75)*P75+T75*(1-V75)*U75,0)","v":0},{"$f":"W75*12","v":0},{"$f":"IF(P75>0,12*(N75*P75+T75*U75)-X75,0)","v":0},null,null,null,null,{"$f":"N75-(N75*(1-Q75))","v":0},{"$f":"IF(P75>0,N75*P75+T75*U75,0)","v":0}]
[null,"* WS CALs tienen compromiso de permanencia de un año",null,null,null,null,null,null,null,null,null,null,null,null,null,{"$f":"SUM(P57:P75)","v":0},null,null,null,null,null,null,{"$f":"SUM(W57:W75)","v":0},{"$f":"W76*12","v":0},{"$f":"SUM(Y57:Y75)","v":0},null,null,null,null,{"$f":"SUM(AD57:AD75)","v":0},{"$f":"SUM(AE57:AE75)","v":0}]
[]
[null,"Necesidad del cliente",null,null,"Descripción",null,null,null,null,null,null,"Producto",null,"Tipo de licencia",null,null,"Duración del contrato","Precio Servidor","Unidades","Descuento en el precio del servidor","Windows Server CAL (usuarios)","Precio total","RDS CAL* (usuarios)\nOpcional","Precio total","Total"]
[{"$f":"CONCATENATE(L79,N79,Q79)","v":"SQL Server Standard Core (mínimo 4 cores)2 Core License Pack"}," Modernización BBDD OnPremise preparada para el Cloud",null,null,"Esta modalidad permite actualizar a la última versión su BBDD con los beneficios que conlleva y aprovechar la inversión para su implementación en nube cuando esté preparado sin necesidad de volver a invertir. Haga inversiones consistentes para su cloud híbrido.",null,null,null,null,null,null,"SQL Server Standard Core (mínimo 4 cores)",null,"2 Core License Pack",null,null,null,{"$f":"IF(Q79=\"1 año\",LN_Server!E4,IF(Q79=\"3 años\",LN_Server!E5,0))","v":0},null,null,"No aplica","No aplica","No aplica","No aplica",{"$f":"R79*S79*(1-T79)","v":0}]
[{"$f":"CONCATENATE(L80,N80,Q80)","v":"Windows Server Standard Core (mínimo 16 cores)8 Core License Pack"},"Modernización de Servidores OnPremise preparados para el Cloud",null,null,"Esta modalidad permite actualizar a la última versión su infraestructura de servidores con los beneficios que conlleva y aprovechar  la inversión para su implementación en nube cuando esté preparado si necesidad de volver a invertir. Haga inversiones consistentes para su cloud híbrido.",null,null,null,null,null,null,"Windows Server Standard Core (mínimo 16 cores)",null,"8 Core License Pack",null,null,null,{"$f":"IF(Q80=\"1 año\",LN_Server!E16,IF(Q80=\"3 años\",LN_Server!E17,0))","v":0},null,null,null,{"$f":"IF(Q80=\"1 año\",LN_Server!E8,IF(Q80=\"3 años\",LN_Server!E6,0))","v":0},null,{"$f":"IF(Q80=\"1 año\",LN_Server!E14,IF(Q80=\"3 años\",LN_Server!E13,0))","v":0},{"$f":"R80*S80*(1-T80)+U80*V80+W80*X80","v":0}]
[null,null,null,null,null,null,null,null,null,null,null,null,null,null,null,null,null,null,{"$f":"SUM(S79:S80)","v":0},null,null,null,null,null,{"$f":"SUM(Y79:Y80)","v":0}]
[null,"*Licencia que le permite publicar sus aplicaciones o servicios en remoto a través de RDS ( Remote Desktop Services)"]
[]
[null,"Aplicaciones de negocio"]
[]
[null,"Necesidad del cliente",null,null,"Producto",null,null,null,"Descripción",null,null,null,null,"Cuota por usuario/mes*",null,"Número de Usuarios","Descuento","Total mensual","Total anual","Total descuento anual",null,null,null,null,null,null,null,null,null,null,"Pago mensual","Dto","Pago anual"]
[null,"Gestión Avanzada de recursos empresariales",null,null,"Dynamics 365 \nBusiness Central Premium",null,null,null,"ERP completo: fabricación, gestión de servicios, contabilidad y finanzas, clientes, cadena de suministro y gestión de proyectos.",null,null,null,null,84.33,null,null,null,{"$f":"N87*(1-Q87)*P87","v":0},{"$f":"R87*12","v":0},{"$f":"AG87-S87","v":0},null,null,null,null,null,null,null,null,null,null,{"$f":"N87*P87","v":0},{"$f":"N87*P87*Q87","v":0},{"$f":"(P87*N87)*12","v":0}]
[null,"Gestión de recursos empresariales",null,null,"Dynamics 365 \nBusiness Central Essentials",null,null,null,"ERP que incluye contabilidad y finanzas, clientes, cadena de suministro y gestión de proyectos.",null,null,null,null,59.03,null,null,null,0,0,0,null,null,null,null,null,null,null,null,null,null,{"$f":"N88*P88","v":0},{"$f":"N88*P88*Q88","v":0},{"$f":"(P88*N88)*12","v":0}]
[null,"Proveer acceso a información básica de negocio a determinados usuarios de la organización",null,null,"Dynamics 365 \nBusiness Central Team Members",null,null,null,"Acceso de lectura y actualización de registros ya existentes en Business Central y realización de actividades sencillas ",null,null,null,null,6.76,null,null,null,0,0,0,null,null,null,null,null,null,null,null,null,null,{"$f":"N89*P89","v":0},{"$f":"N89*P89*Q89","v":0},{"$f":"(P89*N89)*12","v":0}]
[null,"Solución de automatización de fuerza de ventas",null,null,"Dynamics 365 for Sales Professional",null,null,null,"Solución CRM completamente integrada con Office 365 que facilita la automatización de procesos de ventas ",null,null,null,null,54.8,null,null,null,0,0,0,null,null,null,null,null,null,null,null,null,null,{"$f":"N90*P90","v":0},{"$f":"N90*P90*Q90","v":0},{"$f":"(P90*N90)*12","v":0}]
[null,"Solución de inteligencia de negocio",null,null,"Power BI",null,null,null,"Solución de visualización para análisis de datos que permite crear cuadros de mando gráficos que pueden ser compartidos con toda la organización, o estar embebidos en una amplicación o página web.",null,null,null,null,8.4,null,null,null,0,0,0,null,null,null,null,null,null,null,null,null,null,{"$f":"N91*P91","v":0},{"$f":"N91*P91*Q91","v":0},{"$f":"(P91*N91)*12","v":0}]
[null,"Entorno para construir aplicaciones de negocio sin necesidad de código",null,null,"Power Apps",null,null,null,"Conjunto de aplicaciones, servicios, conectores y plataforma de datos que proporciona un entorno de desarrollo rápido para crear aplicaciones sin o con poca necesidad de escribir código",null,null,null,null,"7,00 €  ***",null,null,null,{"$f":"AC92*(1-Q92)*P92","v":0},0,0,null,null,null,null,null,null,null,null,7,null,{"$f":"AC92*P92","v":0},{"$f":"AC92*P92*Q92","v":0},{"$f":"(P92*AC92)*12","v":0}]
[null,"Seguimiento de clientes",null,null,"Outlook Customer Manager (add in O365)",null,null,null,"Seguimiento de la actividad con los clientes integrado en Outlook",null,null,null,null,"Incluido con M365 Empresa y O365 Empresa Premium",null,null,"No aplica",0,0,0,null,null,null,null,null,null,null,null,null,null,0,0,0]
[null,"Organización del trabajo en equipo",null,null,"Planner (add in O365)",null,null,null,"Creación y gestión de planes de proyecto de forma visual y sencilla",null,null,null,null,"Incluido con M365 Empresa y O365 Empresa",null,null,"No aplica",0,0,0,null,null,null,null,null,null,null,null,null,null,0,0,0]
[null,"Gestión de citas online",null,null,"Bookings (add in O365)",null,null,null,"Aplicación web de gestión de citas, con notificaciones e integración en agendas",null,null,null,null,"Incluido con M365 Empresa y O365 Empresa Premium",null,null,"No aplica",0,0,0,null,null,null,null,null,null,null,null,null,null,0,0,0]
[null,"* Las cuotas indicadas sólo incluyen licencia. No incluye configuración y formación",null,null,null,null,null,null,null,null,null,null,null,null,null,{"$f":"SUM(P87:P95)","v":0},null,{"$f":"SUM(R87:R95)","v":0},{"$f":"R96*12","v":0},{"$f":"SUM(T87:T95)","v":0},null,null,null,null,null,null,null,null,null,null,{"$f":"SUM(AE87:AE95)","v":0},{"$f":"SUM(AF87:AF95)","v":0},{"$f":"SUM(AG87:AG95)","v":0}]
[null,"**Plan 1 Power Apps= Incluye derechos de uso del modelo común de datos de Dynamics 365 (20 MB de capacidad de BBDD), incluye conectores estándar, premium, a medida y en local. Incluye 4500 flujos de trabajo de Microsoft Flow"]
[null,"Consultar con mayorista los servicios de despliegue e itinerarios formativos",null,null,null,null,null,null,null,null,null,null,null,null,null,null,null,null,null,null,{"$f":"(Q98*N98)*12","v":0}]
[]
[null,"Hardware"]
[]
[null,"Surface"]
[null,"Equipo","Beneficio","Pantalla","Procesador","Memoria RAM (MB)","Disco duro (GB)",null,"Conectividad móvil (LTE)","Tipo de pago","Precio en pago único","Precio en cuota mensual","Descuento","Número de equipos",null,"Funda","Precio unitario","Descuento","Garantía","Precio unitario","Descuento","Total pago inicial","Total mensual","Total primer año","Total años sucesivos","Total descuento primer año",null,null,"Pago Inicial","Pago Mensual","Dto Pago Inicial","Dto Pago Mensuall","Pago Neto Anualizado",null,null,null,null,null,null,"Para desplegables",null,null,null,null,"Para precio","Para fundas",null,"Para garantías"]
[1,null,{"$f":"IF(ISERROR(VLOOKUP(B104,LN_Surface!$B$1:$C$5,2,FALSE)),\"\",VLOOKUP(B104,LN_Surface!$B$1:$C$5,2,FALSE))","v":""},null,null,null,null,null,null,null,{"$f":"IF(J104=\"Mensual\",0,IF(ISERROR(VLOOKUP(AS104,LN_Surface!$C$22:$I$47,7,FALSE)),\"No viable\",VLOOKUP(AS104,LN_Surface!$C$22:$I$47,7,FALSE)))","v":"No viable"},null,null,null,null,null,{"$f":"IFERROR(AU104,0)","v":0},null,null,{"$f":"AW104","v":0},null,{"$f":"IF(N104>0,N104*(K104*(1-M104)+Q104*(1-R104)+T104*(1-U104)),0)","v":0},{"$f":"L104*(1-M104)*N104","v":0},{"$f":"V104+W104*12","v":0},{"$f":"X104-V104","v":0},{"$f":"IF(N104>0,N104*(K104+Q104+T104)+L104*12*N104-X104,0)","v":0},null,null,{"$f":"IF(N104>0,N104*(K104+Q104+T104),0)","v":0},{"$f":"L104*N104","v":0},{"$f":"IF(K104=\"No Viable\",0,N104*((K104*M104)+(Q104*R104)+(T104*U104)))","v":0},{"$f":"L104*M104*N104","v":0},{"$f":"W104*12","v":0},null,null,null,null,null,null,{"$f":"VLOOKUP(B104,LN_Surface!$B$2:$D$5,3,FALSE)","v":{"$error":"#N/A"}},{"$f":"CONCATENATE(AN104,\"_\",D104*10)","v":{"$error":"#N/A"}},{"$f":"CONCATENATE(AO104,\"_\",IF(E104=LN_Surface!$E$39,\"Pentium_Gold_4415Y\",E104))","v":{"$error":"#N/A"}},{"$f":"CONCATENATE(AP104,\"_\",F104)","v":{"$error":"#N/A"}},{"$error":"#N/A"},{"$f":"CONCATENATE(AR104,\"_\",I104)","v":{"$error":"#N/A"}},{"$f":"IF(OR(N104=0,N104=\"\"),\"ND\",IF(AN104=\"SP\",\"SP_COVER\",IF(AN104=\"SG\",\"SG_COVER\",\"ND\")))","v":"ND"},{"$f":"IF(AT104=\"SP_COVER\",VLOOKUP(P104,LN_Surface!$K$22:$L$23,2,FALSE),IF(AT104=\"SG_COVER\",VLOOKUP(P104,LN_Surface!$K$24:$L$25,2,FALSE),0))","v":0},{"$f":"IF(OR(S104=\"\",N104=0,B104=\"\",S104=\"No disponible\"),0,IF(AN104=\"SP\",2,IF(AN104=\"SB\",3,IF(AN104=\"SG\",4,IF(AN104=\"SL\",5,0)))))","v":0},{"$f":"IF(AV104=0,0,VLOOKUP(S104,LN_Surface!$K$49:$O$52,Configurador!AV104,FALSE))","v":0}]
[2,null,{"$f":"IF(ISERROR(VLOOKUP(B105,LN_Surface!$B$1:$C$5,2,FALSE)),\"\",VLOOKUP(B105,LN_Surface!$B$1:$C$5,2,FALSE))","v":""},null,null,null,null,null,null,null,{"$f":"IF(J105=\"Mensual\",0,IF(ISERROR(VLOOKUP(AS105,LN_Surface!$C$22:$I$47,7,FALSE)),\"No viable\",VLOOKUP(AS105,LN_Surface!$C$22:$I$47,7,FALSE)))","v":"No viable"},null,null,null,null,null,{"$f":"IFERROR(AU105,0)","v":0},null,null,{"$f":"AW105","v":0},null,{"$f":"IF(N105>0,N105*(K105*(1-M105)+Q105*(1-R105)+T105*(1-U105)),0)","v":0},{"$f":"L105*(1-M105)*N105","v":0},{"$f":"V105+W105*12","v":0},{"$f":"X105-V105","v":0},{"$f":"IF(N105>0,N105*(K105+Q105+T105)+L105*12*N105-X105,0)","v":0},null,null,{"$f":"IF(N105>0,N105*(K105+Q105+T105),0)","v":0},{"$f":"L105*N105","v":0},{"$f":"IF(K105=\"No Viable\",0,N105*((K105*M105)+(Q105*R105)+(T105*U105)))","v":0},{"$f":"L105*M105*N105","v":0},{"$f":"W105*12","v":0},null,null,null,null,null,null,{"$f":"VLOOKUP(B105,LN_Surface!$B$2:$D$5,3,FALSE)","v":{"$error":"#N/A"}},{"$f":"CONCATENATE(AN105,\"_\",D105*10)","v":{"$error":"#N/A"}},{"$f":"CONCATENATE(AO105,\"_\",IF(E105=LN_Surface!$E$39,\"Pentium_Gold_4415Y\",E105))","v":{"$error":"#N/A"}},{"$error":"#N/A"},{"$error":"#N/A"},{"$f":"CONCATENATE(AR105,\"_\",I105)","v":{"$error":"#N/A"}},{"$f":"IF(OR(N105=0,N105=\"\"),\"ND\",IF(AN105=\"SP\",\"SP_COVER\",IF(AN105=\"SG\",\"SG_COVER\",\"ND\")))","v":"ND"},{"$f":"IF(AT105=\"SP_COVER\",VLOOKUP(P105,LN_Surface!$K$22:$L$23,2,FALSE),IF(AT105=\"SG_COVER\",VLOOKUP(P105,LN_Surface!$K$24:$L$25,2,FALSE),0))","v":0},{"$f":"IF(OR(S105=\"\",N105=0,B105=\"\",S105=\"No disponible\"),0,IF(AN105=\"SP\",2,IF(AN105=\"SB\",3,IF(AN105=\"SG\",4,IF(AN105=\"SL\",5,0)))))","v":0},{"$f":"IF(AV105=0,0,VLOOKUP(S105,LN_Surface!$K$49:$O$52,Configurador!AV105,FALSE))","v":0}]
[3,null,{"$f":"IF(ISERROR(VLOOKUP(B106,LN_Surface!$B$1:$C$5,2,FALSE)),\"\",VLOOKUP(B106,LN_Surface!$B$1:$C$5,2,FALSE))","v":""},null,null,null,null,null,null,null,{"$f":"IF(J106=\"Mensual\",0,IF(ISERROR(VLOOKUP(AS106,LN_Surface!$C$22:$I$47,7,FALSE)),\"No viable\",VLOOKUP(AS106,LN_Surface!$C$22:$I$47,7,FALSE)))","v":"No viable"},null,null,null,null,null,{"$f":"IFERROR(AU106,0)","v":0},null,null,{"$f":"AW106","v":0},null,{"$f":"IF(N106>0,N106*(K106*(1-M106)+Q106*(1-R106)+T106*(1-U106)),0)","v":0},{"$f":"L106*(1-M106)*N106","v":0},{"$f":"V106+W106*12","v":0},{"$f":"X106-V106","v":0},{"$f":"IF(N106>0,N106*(K106+Q106+T106)+L106*12*N106-X106,0)","v":0},null,null,{"$f":"IF(N106>0,N106*(K106+Q106+T106),0)","v":0},{"$f":"L106*N106","v":0},0,0,0,null,null,null,null,null,null,{"$f":"VLOOKUP(B106,LN_Surface!$B$2:$D$5,3,FALSE)","v":{"$error":"#N/A"}},{"$f":"CONCATENATE(AN106,\"_\",D106*10)","v":{"$error":"#N/A"}},{"$f":"CONCATENATE(AO106,\"_\",IF(E106=LN_Surface!$E$39,\"Pentium_Gold_4415Y\",E106))","v":{"$error":"#N/A"}},{"$error":"#N/A"},{"$error":"#N/A"},{"$f":"CONCATENATE(AR106,\"_\",I106)","v":{"$error":"#N/A"}},{"$f":"IF(OR(N106=0,N106=\"\"),\"ND\",IF(AN106=\"SP\",\"SP_COVER\",IF(AN106=\"SG\",\"SG_COVER\",\"ND\")))","v":"ND"},{"$f":"IF(AT106=\"SP_COVER\",VLOOKUP(P106,LN_Surface!$K$22:$L$23,2,FALSE),IF(AT106=\"SG_COVER\",VLOOKUP(P106,LN_Surface!$K$24:$L$25,2,FALSE),0))","v":0},{"$f":"IF(OR(S106=\"\",N106=0,B106=\"\",S106=\"No disponible\"),0,IF(AN106=\"SP\",2,IF(AN106=\"SB\",3,IF(AN106=\"SG\",4,IF(AN106=\"SL\",5,0)))))","v":0},{"$f":"IF(AV106=0,0,VLOOKUP(S106,LN_Surface!$K$49:$O$52,Configurador!AV106,FALSE))","v":0}]
[4,null,{"$f":"IF(ISERROR(VLOOKUP(B107,LN_Surface!$B$1:$C$5,2,FALSE)),\"\",VLOOKUP(B107,LN_Surface!$B$1:$C$5,2,FALSE))","v":""},null,null,null,null,null,null,null,{"$f":"IF(J107=\"Mensual\",0,IF(ISERROR(VLOOKUP(AS107,LN_Surface!$C$22:$I$47,7,FALSE)),\"No viable\",VLOOKUP(AS107,LN_Surface!$C$22:$I$47,7,FALSE)))","v":"No viable"},null,null,null,null,null,{"$f":"IFERROR(AU107,0)","v":0},null,null,{"$f":"AW107","v":0},null,{"$f":"IF(N107>0,N107*(K107*(1-M107)+Q107*(1-R107)+T107*(1-U107)),0)","v":0},{"$f":"L107*(1-M107)*N107","v":0},{"$f":"V107+W107*12","v":0},{"$f":"X107-V107","v":0},{"$f":"IF(N107>0,N107*(K107+Q107+T107)+L107*12*N107-X107,0)","v":0},null,null,{"$f":"IF(N107>0,N107*(K107+Q107+T107),0)","v":0},{"$f":"L107*(1-M107)*N107","v":0},0,0,0,null,null,null,null,null,null,{"$f":"VLOOKUP(B107,LN_Surface!$B$2:$D$5,3,FALSE)","v":{"$error":"#N/A"}},{"$f":"CONCATENATE(AN107,\"_\",D107*10)","v":{"$error":"#N/A"}},{"$f":"CONCATENATE(AO107,\"_\",IF(E107=LN_Surface!$E$39,\"Pentium_Gold_4415Y\",E107))","v":{"$error":"#N/A"}},{"$error":"#N/A"},{"$error":"#N/A"},{"$f":"CONCATENATE(AR107,\"_\",I107)","v":{"$error":"#N/A"}},{"$f":"IF(OR(N107=0,N107=\"\"),\"ND\",IF(AN107=\"SP\",\"SP_COVER\",IF(AN107=\"SG\",\"SG_COVER\",\"ND\")))","v":"ND"},{"$f":"IF(AT107=\"SP_COVER\",VLOOKUP(P107,LN_Surface!$K$22:$L$23,2,FALSE),IF(AT107=\"SG_COVER\",VLOOKUP(P107,LN_Surface!$K$24:$L$25,2,FALSE),0))","v":0},{"$f":"IF(OR(S107=\"\",N107=0,B107=\"\",S107=\"No disponible\"),0,IF(AN107=\"SP\",2,IF(AN107=\"SB\",3,IF(AN107=\"SG\",4,IF(AN107=\"SL\",5,0)))))","v":0},{"$f":"IF(AV107=0,0,VLOOKUP(S107,LN_Surface!$K$49:$O$52,Configurador!AV107,FALSE))","v":0}]
[5,null,{"$f":"IF(ISERROR(VLOOKUP(B108,LN_Surface!$B$1:$C$5,2,FALSE)),\"\",VLOOKUP(B108,LN_Surface!$B$1:$C$5,2,FALSE))","v":""},null,null,null,null,null,null,null,{"$f":"IF(J108=\"Mensual\",0,IF(ISERROR(VLOOKUP(AS108,LN_Surface!$C$22:$I$47,7,FALSE)),\"No viable\",VLOOKUP(AS108,LN_Surface!$C$22:$I$47,7,FALSE)))","v":"No viable"},null,null,null,null,null,{"$f":"IFERROR(AU108,0)","v":0},null,null,{"$f":"AW108","v":0},null,{"$f":"IF(N108>0,N108*(K108*(1-M108)+Q108*(1-R108)+T108*(1-U108)),0)","v":0},{"$f":"L108*(1-M108)*N108","v":0},{"$f":"V108+W108*12","v":0},{"$f":"X108-V108","v":0},{"$f":"IF(N108>0,N108*(K108+Q108+T108)+L108*12*N108-X108,0)","v":0},null,null,{"$f":"IF(N108>0,N108*(K108+Q108+T108),0)","v":0},{"$f":"L108*N108","v":0},0,0,0,null,null,null,null,null,null,{"$f":"VLOOKUP(B108,LN_Surface!$B$2:$D$5,3,FALSE)","v":{"$error":"#N/A"}},{"$f":"CONCATENATE(AN108,\"_\",D108*10)","v":{"$error":"#N/A"}},{"$f":"CONCATENATE(AO108,\"_\",IF(E108=LN_Surface!$E$39,\"Pentium_Gold_4415Y\",E108))","v":{"$error":"#N/A"}},{"$error":"#N/A"},{"$error":"#N/A"},{"$f":"CONCATENATE(AR108,\"_\",I108)","v":{"$error":"#N/A"}},{"$f":"IF(OR(N108=0,N108=\"\"),\"ND\",IF(AN108=\"SP\",\"SP_COVER\",IF(AN108=\"SG\",\"SG_COVER\",\"ND\")))","v":"ND"},{"$f":"IF(AT108=\"SP_COVER\",VLOOKUP(P108,LN_Surface!$K$22:$L$23,2,FALSE),IF(AT108=\"SG_COVER\",VLOOKUP(P108,LN_Surface!$K$24:$L$25,2,FALSE),0))","v":0},{"$f":"IF(OR(S108=\"\",N108=0,B108=\"\",S108=\"No disponible\"),0,IF(AN108=\"SP\",2,IF(AN108=\"SB\",3,IF(AN108=\"SG\",4,IF(AN108=\"SL\",5,0)))))","v":0},{"$f":"IF(AV108=0,0,VLOOKUP(S108,LN_Surface!$K$49:$O$52,Configurador!AV108,FALSE))","v":0}]
[null,null,null,null,null,null,null,null,null,null,null,null,null,{"$f":"SUM(N104:O108)","v":0},null,null,null,null,null,null,null,{"$f":"SUM(V104:V108)","v":0},{"$f":"SUM(W104:W108)","v":0},{"$f":"SUM(X104:X108)","v":0},{"$f":"SUM(Y104:Y108)","v":0},{"$f":"SUM(Z104:Z108)","v":0},null,null,{"$f":"SUM(AC104:AC108)","v":0},{"$f":"SUM(AD104:AD108)","v":0},{"$f":"SUM(AE104:AE108)","v":0},{"$f":"SUM(AF104:AF108)","v":0},{"$f":"SUM(AG104:AG108)","v":0}]
[null,"Accesorios Surface"]
[null,"Accesorio","Unidades","Precio unitario","Descuento","Precio total",null,"Descuento",null,null,null,null,null,null,null,null,null,null,null,null,null,null,null,null,null,null,null,null,"Pago Inicial","Pago Mensual","Dto Pago Inicial","Dto Pago Mensuall","Pago Neto Anualizado"]
[null,{"$f":"LN_Surface!K26","v":"Surface Pen Stylus"},null,{"$f":"LN_Surface!L26","v":88.7},null,{"$f":"C112*D112*(1-E112)","v":0},null,{"$f":"C112*D112*E112","v":0},null,null,null,null,null,null,null,null,null,null,null,null,null,null,null,null,null,null,null,null,{"$f":"C112*D112","v":0},null,{"$f":"C112*D112*E112","v":0}]
[null,{"$f":"LN_Surface!K27","v":"Surface Arc Mouse Bluetooth"},null,{"$f":"LN_Surface!L27","v":71.989999999999995},null,{"$f":"C113*D113*(1-E113)","v":0},null,{"$f":"C113*D113*E113","v":0},null,null,null,null,null,null,null,null,null,null,null,null,null,null,null,null,null,null,null,null,{"$f":"C113*D113","v":0},null,{"$f":"C113*D113*E113","v":0}]
[null,{"$f":"LN_Surface!K28","v":"Surface Docking"},null,{"$f":"LN_Surface!L28","v":189.48},null,{"$f":"C114*D114*(1-E114)","v":0},null,{"$f":"C114*D114*E114","v":0},null,null,null,null,null,null,null,null,null,null,null,null,null,null,null,null,null,null,null,null,0,null,0]
[null,null,{"$f":"SUM(C112:C114)","v":0},null,null,{"$f":"SUM(F112:F114)","v":0},null,{"$f":"SUM(H112:H114)","v":0},null,null,null,null,null,null,null,null,null,null,null,null,null,null,null,null,null,null,null,null,{"$f":"SUM(AC112:AC114)","v":0},null,{"$f":"SUM(AE112:AE114)","v":0}]
[]
[null,"Otros equipos Windows 10 PRO"]
[null,"Fabricante","Tipo de usuario","Equipo",null,"SKU",null,null,"Tipo de equipo","Especificaciones",null,"Tipo de pago","Precio en pago único","Precio en cuota mensual",null,"Descuento","Número de equipos","Monitor",null,"Precio en pago único","Descuento","Total en pago único","Total  mensual","Total  primer año","Total descuento año 1",null,null,null,"Pago Inicial","Pago Mensual","Dto Pago Inicial","Dto Pago Mensuall","Pago Neto Anualizado"]
[null,null,null,null,null,{"$f":"IF(ISERROR(VLOOKUP(D119,LN_OEM!$D$4:$N$26,LN_OEM!$E$1,FALSE)),\"\",VLOOKUP(D119,LN_OEM!$D$4:$N$26,LN_OEM!$E$1,FALSE))","v":""},null,null,{"$f":"IF(ISERROR(VLOOKUP(D119,LN_OEM!$D$4:$N$26,LN_OEM!$M$1,FALSE)),\"\",VLOOKUP(D119,LN_OEM!$D$4:$N$26,LN_OEM!$M$1,FALSE))","v":""},{"$f":"IF(ISERROR(VLOOKUP(D119,LN_OEM!$D$4:$N$26,LN_OEM!$N$1,FALSE)),\"\",VLOOKUP(D119,LN_OEM!$D$4:$N$26,LN_OEM!$N$1,FALSE))","v":""},null,null,{"$f":"IF(AND(D119<>\"\",L119=\"Único\"),IF(ISERROR(VLOOKUP(D119,LN_OEM!$D$4:$N$26,LN_OEM!$I$1,FALSE)),\"\",VLOOKUP(D119,LN_OEM!$D$4:$N$26,LN_OEM!$I$1,FALSE)),0)","v":0},{"$f":"IF(AND(D119<>\"\",L119=\"Renting 36m\"),IF(ISERROR(VLOOKUP(D119,LN_OEM!$D$4:$N$26,LN_OEM!$J$1,FALSE)),\"\",VLOOKUP(D119,LN_OEM!$D$4:$N$26,LN_OEM!$J$1,FALSE)),IF(AND(D119<>\"\",L119=\"Leasing 36m\"),IF(ISERROR(VLOOKUP(D119,LN_OEM!$D$4:$N$26,LN_OEM!$K$1,FALSE)),\"\",VLOOKUP(D119,LN_OEM!$D$4:$N$26,LN_OEM!$K$1,FALSE)),0))","v":0},null,null,null,null,null,{"$f":"IF(AND(R119<>\"\",R119<>\"No aplica\"),IF(ISERROR(VLOOKUP(R119,LN_OEM!$D$30:$N$32,LN_OEM!$I$1,FALSE)),\"\",VLOOKUP(R119,LN_OEM!$D$30:$N$32,LN_OEM!$I$1,FALSE)),0)","v":0},null,{"$f":"(M119*(1-$P119)+T119*(1-$U119))*$Q119","v":0},{"$f":"N119*(1-$P119)*$Q119","v":0},{"$f":"V119+W119*12","v":0},{"$f":"Q119*(M119+N119*12+T119)-X119","v":0},null,null,null,{"$f":"IF(Q119>0,M119*Q119,0)","v":0},{"$f":"IF(Q119>0,N119*Q119,0)","v":0},{"$f":"Q119*M119*P119","v":0},{"$f":"Q119*N119*P119","v":0},{"$f":"(AD119-AF119)*12","v":0}]
[null,null,null,null,null,{"$f":"IF(ISERROR(VLOOKUP(D120,LN_OEM!$D$4:$N$26,LN_OEM!$E$1,FALSE)),\"\",VLOOKUP(D120,LN_OEM!$D$4:$N$26,LN_OEM!$E$1,FALSE))","v":""},null,null,{"$f":"IF(ISERROR(VLOOKUP(D120,LN_OEM!$D$4:$N$26,LN_OEM!$M$1,FALSE)),\"\",VLOOKUP(D120,LN_OEM!$D$4:$N$26,LN_OEM!$M$1,FALSE))","v":""},{"$f":"IF(ISERROR(VLOOKUP(D120,LN_OEM!$D$4:$N$26,LN_OEM!$N$1,FALSE)),\"\",VLOOKUP(D120,LN_OEM!$D$4:$N$26,LN_OEM!$N$1,FALSE))","v":""},null,null,{"$f":"IF(AND(D120<>\"\",L120=\"Único\"),IF(ISERROR(VLOOKUP(D120,LN_OEM!$D$4:$N$26,LN_OEM!$I$1,FALSE)),\"\",VLOOKUP(D120,LN_OEM!$D$4:$N$26,LN_OEM!$I$1,FALSE)),0)","v":0},{"$f":"IF(AND(D120<>\"\",L120=\"Renting 36m\"),IF(ISERROR(VLOOKUP(D120,LN_OEM!$D$4:$N$26,LN_OEM!$J$1,FALSE)),\"\",VLOOKUP(D120,LN_OEM!$D$4:$N$26,LN_OEM!$J$1,FALSE)),IF(AND(D120<>\"\",L120=\"Leasing 36m\"),IF(ISERROR(VLOOKUP(D120,LN_OEM!$D$4:$N$26,LN_OEM!$K$1,FALSE)),\"\",VLOOKUP(D120,LN_OEM!$D$4:$N$26,LN_OEM!$K$1,FALSE)),0))","v":0},null,null,null,null,null,{"$f":"IF(AND(R120<>\"\",R120<>\"No aplica\"),IF(ISERROR(VLOOKUP(R120,LN_OEM!$D$30:$N$32,LN_OEM!$I$1,FALSE)),\"\",VLOOKUP(R120,LN_OEM!$D$30:$N$32,LN_OEM!$I$1,FALSE)),0)","v":0},null,{"$f":"(M120*(1-P120)+T120*(1-U120))*Q120","v":0},{"$f":"N120*(1-$P120)*$Q120","v":0},{"$f":"V120+W120*12","v":0},{"$f":"Q120*(M120+N120*12+T120)-X120","v":0},null,null,null,{"$f":"IF(Q120>0,M120*Q120,0)","v":0},{"$f":"IF(Q120>0,N120*Q120,0)","v":0},{"$f":"Q120*M120*P120","v":0},{"$f":"Q120*N120*P120","v":0},{"$f":"(AD120-AF120)*12","v":0}]
[null,null,null,null,null,{"$f":"IF(ISERROR(VLOOKUP(D121,LN_OEM!$D$4:$N$26,LN_OEM!$E$1,FALSE)),\"\",VLOOKUP(D121,LN_OEM!$D$4:$N$26,LN_OEM!$E$1,FALSE))","v":""},null,null,{"$f":"IF(ISERROR(VLOOKUP(D121,LN_OEM!$D$4:$N$26,LN_OEM!$M$1,FALSE)),\"\",VLOOKUP(D121,LN_OEM!$D$4:$N$26,LN_OEM!$M$1,FALSE))","v":""},{"$f":"IF(ISERROR(VLOOKUP(D121,LN_OEM!$D$4:$N$26,LN_OEM!$N$1,FALSE)),\"\",VLOOKUP(D121,LN_OEM!$D$4:$N$26,LN_OEM!$N$1,FALSE))","v":""},null,null,{"$f":"IF(AND(D121<>\"\",L121=\"Único\"),IF(ISERROR(VLOOKUP(D121,LN_OEM!$D$4:$N$26,LN_OEM!$I$1,FALSE)),\"\",VLOOKUP(D121,LN_OEM!$D$4:$N$26,LN_OEM!$I$1,FALSE)),0)","v":0},{"$f":"IF(AND(D121<>\"\",L121=\"Renting 36m\"),IF(ISERROR(VLOOKUP(D121,LN_OEM!$D$4:$N$26,LN_OEM!$J$1,FALSE)),\"\",VLOOKUP(D121,LN_OEM!$D$4:$N$26,LN_OEM!$J$1,FALSE)),IF(AND(D121<>\"\",L121=\"Leasing 36m\"),IF(ISERROR(VLOOKUP(D121,LN_OEM!$D$4:$N$26,LN_OEM!$K$1,FALSE)),\"\",VLOOKUP(D121,LN_OEM!$D$4:$N$26,LN_OEM!$K$1,FALSE)),0))","v":0},null,null,null,null,null,{"$f":"IF(AND(R121<>\"\",R121<>\"No aplica\"),IF(ISERROR(VLOOKUP(R121,LN_OEM!$D$30:$N$32,LN_OEM!$I$1,FALSE)),\"\",VLOOKUP(R121,LN_OEM!$D$30:$N$32,LN_OEM!$I$1,FALSE)),0)","v":0},null,{"$f":"(M121*(1-P121)+T121*(1-U121))*Q121","v":0},{"$f":"N121*(1-$P121)*$Q121","v":0},{"$f":"V121+W121*12","v":0},{"$f":"Q121*(M121+N121*12+T121)-X121","v":0},null,null,null,0,0,0,0,0]
[null,null,null,null,null,{"$f":"IF(ISERROR(VLOOKUP(D122,LN_OEM!$D$4:$N$26,LN_OEM!$E$1,FALSE)),\"\",VLOOKUP(D122,LN_OEM!$D$4:$N$26,LN_OEM!$E$1,FALSE))","v":""},null,null,{"$f":"IF(ISERROR(VLOOKUP(D122,LN_OEM!$D$4:$N$26,LN_OEM!$M$1,FALSE)),\"\",VLOOKUP(D122,LN_OEM!$D$4:$N$26,LN_OEM!$M$1,FALSE))","v":""},{"$f":"IF(ISERROR(VLOOKUP(D122,LN_OEM!$D$4:$N$26,LN_OEM!$N$1,FALSE)),\"\",VLOOKUP(D122,LN_OEM!$D$4:$N$26,LN_OEM!$N$1,FALSE))","v":""},null,null,{"$f":"IF(AND(D122<>\"\",L122=\"Único\"),IF(ISERROR(VLOOKUP(D122,LN_OEM!$D$4:$N$26,LN_OEM!$I$1,FALSE)),\"\",VLOOKUP(D122,LN_OEM!$D$4:$N$26,LN_OEM!$I$1,FALSE)),0)","v":0},{"$f":"IF(AND(D122<>\"\",L122=\"Renting 36m\"),IF(ISERROR(VLOOKUP(D122,LN_OEM!$D$4:$N$26,LN_OEM!$J$1,FALSE)),\"\",VLOOKUP(D122,LN_OEM!$D$4:$N$26,LN_OEM!$J$1,FALSE)),IF(AND(D122<>\"\",L122=\"Leasing 36m\"),IF(ISERROR(VLOOKUP(D122,LN_OEM!$D$4:$N$26,LN_OEM!$K$1,FALSE)),\"\",VLOOKUP(D122,LN_OEM!$D$4:$N$26,LN_OEM!$K$1,FALSE)),0))","v":0},null,null,null,null,null,{"$f":"IF(AND(R122<>\"\",R122<>\"No aplica\"),IF(ISERROR(VLOOKUP(R122,LN_OEM!$D$30:$N$32,LN_OEM!$I$1,FALSE)),\"\",VLOOKUP(R122,LN_OEM!$D$30:$N$32,LN_OEM!$I$1,FALSE)),0)","v":0},null,{"$f":"(M122*(1-P122)+T122*(1-U122))*Q122","v":0},{"$f":"N122*(1-$P122)*$Q122","v":0},{"$f":"V122+W122*12","v":0},{"$f":"Q122*(M122+N122*12+T122)-X122","v":0},null,null,null,0,0,0,0,0]
[null,null,null,null,null,{"$f":"IF(ISERROR(VLOOKUP(D123,LN_OEM!$D$4:$N$26,LN_OEM!$E$1,FALSE)),\"\",VLOOKUP(D123,LN_OEM!$D$4:$N$26,LN_OEM!$E$1,FALSE))","v":""},null,null,{"$f":"IF(ISERROR(VLOOKUP(D123,LN_OEM!$D$4:$N$26,LN_OEM!$M$1,FALSE)),\"\",VLOOKUP(D123,LN_OEM!$D$4:$N$26,LN_OEM!$M$1,FALSE))","v":""},{"$f":"IF(ISERROR(VLOOKUP(D123,LN_OEM!$D$4:$N$26,LN_OEM!$N$1,FALSE)),\"\",VLOOKUP(D123,LN_OEM!$D$4:$N$26,LN_OEM!$N$1,FALSE))","v":""},null,null,{"$f":"IF(AND(D123<>\"\",L123=\"Único\"),IF(ISERROR(VLOOKUP(D123,LN_OEM!$D$4:$N$26,LN_OEM!$I$1,FALSE)),\"\",VLOOKUP(D123,LN_OEM!$D$4:$N$26,LN_OEM!$I$1,FALSE)),0)","v":0},{"$f":"IF(AND(D123<>\"\",L123=\"Renting 36m\"),IF(ISERROR(VLOOKUP(D123,LN_OEM!$D$4:$N$26,LN_OEM!$J$1,FALSE)),\"\",VLOOKUP(D123,LN_OEM!$D$4:$N$26,LN_OEM!$J$1,FALSE)),IF(AND(D123<>\"\",L123=\"Leasing 36m\"),IF(ISERROR(VLOOKUP(D123,LN_OEM!$D$4:$N$26,LN_OEM!$K$1,FALSE)),\"\",VLOOKUP(D123,LN_OEM!$D$4:$N$26,LN_OEM!$K$1,FALSE)),0))","v":0},null,null,null,null,null,{"$f":"IF(AND(R123<>\"\",R123<>\"No aplica\"),IF(ISERROR(VLOOKUP(R123,LN_OEM!$D$30:$N$32,LN_OEM!$I$1,FALSE)),\"\",VLOOKUP(R123,LN_OEM!$D$30:$N$32,LN_OEM!$I$1,FALSE)),0)","v":0},null,{"$f":"(M123*(1-P123)+T123*(1-U123))*Q123","v":0},{"$f":"N123*(1-$P123)*$Q123","v":0},{"$f":"V123+W123*12","v":0},{"$f":"Q123*(M123+N123*12+T123)-X123","v":0},null,null,null,0,0,0,0,0]
[null,{"$f":"IF(ISERROR(FIND(\"*\",CONCATENATE(M119,M120,M121,M122,M123))),\"\",\"*Precio aproximado\")","v":""},null,null,null,null,null,null,null,null,null,null,null,null,null,null,{"$f":"SUM(Q119:Q123)","v":0},null,null,null,null,{"$f":"SUM(V119:V123)","v":0},{"$f":"SUM(W119:W123)","v":0},{"$f":"SUM(X119:X123)","v":0},{"$f":"SUM(Y119:Y123)","v":0},null,null,null,{"$f":"SUM(AC119:AC123)","v":0},{"$f":"SUM(AD119:AD123)","v":0},{"$f":"SUM(AE119:AE123)","v":0},0,0]
[null,null,null,null,null,null,null,null,null,null,null,null,null,null,null,null,null,null,null,null,null,null,null,null,null,null,null,null,null,null,{"$f":"AC124-AE124","v":0}]
[null,"Servicios del partner"]
[]
[]
[null,"Servicios de puesta en marcha",null,"Descripción",null,null,null,null,null,null,null,null,null,"Pago único",null,"Número de servicios","Descuento","Total",null,"Total descuento",null,null,null,null,null,null,null,null,"Pago Inicial","Pago Mensual","Dto Pago Inicial","Dto Pago Mensuall","Pago Neto Anualizado"]
[1,"Servicios de Migración ​",null,null,null,null,null,null,null,null,null,null,null,null,null,null,null,{"$f":"N130*(1-Q130)*P130","v":0},null,{"$f":"U130-R130","v":0},{"$f":"N130*P130","v":0},null,{"$f":"1600-LEN(D130)","v":1600},null,null,null,null,null,{"$f":"IF(P130>0,N130*P130,0)","v":0},null,{"$f":"IF(P130>0,N130*P130*Q130,0)","v":0}]
[2,"Consultoría  ",null,null,null,null,null,null,null,null,null,null,null,null,null,null,null,0,null,0,0,null,{"$f":"1600-LEN(D131)","v":1600},null,null,null,null,null,0,null,0]
[3,"Formación",null,null,null,null,null,null,null,null,null,null,null,null,null,null,null,0,null,0,0,null,{"$f":"1600-LEN(D132)","v":1600},null,null,null,null,null,0,null,0]
[4,"Personalizable 1",null,null,null,null,null,null,null,null,null,null,null,null,null,null,null,0,null,0,0,null,{"$f":"1600-LEN(D133)","v":1600},null,null,null,null,null,0,null,0]
[5,"Personalizable 2",null,null,null,null,null,null,null,null,null,null,null,null,null,null,null,0,null,0,0,null,{"$f":"1600-LEN(D134)","v":1600},null,null,null,null,null,0,null,0]
[6,"Formación​ Inicial Productividad",null,null,null,null,null,null,null,null,null,null,null,null,null,null,null,0,null,0,0,null,{"$f":"605-LEN(D135)","v":605},null,null,null,null,null,0,null,0]
[7,"Formación​ Inicial Seguridad",null,null,null,null,null,null,null,null,null,null,null,null,null,null,null,0,null,0,0,null,605,null,null,null,null,null,0,null,0]
[8,"Hello 1",null,null,null,null,null,null,null,null,null,null,null,null,null,null,null,0,null,0,0,null,{"$f":"718-LEN(D137)","v":718},null,null,null,null,null,0,null,0]
[9,"Hello2",null,null,null,null,null,null,null,null,null,null,null,null,null,null,null,0,null,0,0,null,{"$f":"860-LEN(D138)","v":860},null,null,null,null,null,0,null,0]
[null,null,null,{"$f":"IF(OR(W138<0,W137<0,W136<0,W135<0,W134<0,W133<0,W132<0,W131<0,W130<0),\"Se ha sobrepasado longitud máxima del texto\",\"\")","v":""},null,null,null,null,null,null,null,null,null,null,null,{"$f":"SUM(P130:P138)","v":0},null,{"$f":"SUM(R130:S138)","v":0},null,{"$f":"SUM(T130:T138)","v":0},null,null,null,null,null,null,null,null,{"$f":"SUM(AC130:AC138)","v":0},{"$f":"SUM(AD130:AD138)","v":0},0,0,0,0]
[]
[null,"Servicios gestionados",null,"Descripción",null,null,null,null,null,null,null,null,null,"Cuota mensual",null,"Número de servicios","Descuento","Total mensual","Total anual","Total descuento",null,null,null,null,null,null,null,null,"Pago Inicial","Pago Mensual","Dto Pago Inicial","Dto Pago Mensuall","Pago Neto Anualizado"]
[1,"Servicios Profesionales​",null,null,null,null,null,null,null,null,null,null,null,null,null,null,null,{"$f":"N142*(1-Q142)*P142","v":0},{"$f":"R142*12","v":0},{"$f":"U142-S142","v":0},{"$f":"N142*P142*12","v":0},null,{"$f":"1455-LEN(D142)","v":1455},null,null,null,null,null,null,{"$f":"IF(P142>0,N142*P142,0)","v":0},null,{"$f":"IF(P142>0,N142*P142*Q142,0)","v":0},{"$f":"IF(P142>0,P142*N142*(1-Q142)*12,0)","v":0}]
[2,"Servicios Gestionados Azure",null,null,null,null,null,null,null,null,null,null,null,null,null,null,null,0,0,0,0,{"$f":"LEN(D143)","v":0},1455,null,null,null,null,null,null,0,null,0,0]
[3,"Help Desk ",null,null,null,null,null,null,null,null,null,null,null,null,null,null,null,0,0,0,0,{"$f":"LEN(D144)","v":0},1455,null,null,null,null,null,null,0,null,0,0]
[4,"Adopción",null,null,null,null,null,null,null,null,null,null,null,null,null,null,null,0,0,0,0,0,1455,null,null,null,null,null,null,0,null,0,0]
[5,"Personalizable 3",null,null,null,null,null,null,null,null,null,null,null,null,null,null,null,0,0,0,0,0,1455,null,null,null,null,null,null,0,null,0,0]
[6,"Personalizable 4",null,null,null,null,null,null,null,null,null,null,null,null,null,null,null,0,0,0,0,0,1455,null,null,null,null,null,null,0,null,0,0]
[7,null,null,null,null,null,null,null,null,null,null,null,null,null,null,null,null,0,0,0,0,0,{"$f":"610-LEN(D148)","v":610},null,null,null,null,null,null,0,null,0,0]
[8,null,null,null,null,null,null,null,null,null,null,null,null,null,null,null,null,0,0,0,0,0,610,null,null,null,null,null,null,0,null,0,0]
[9,null,null,null,null,null,null,null,null,null,null,null,null,null,null,null,null,0,0,0,0,0,{"$f":"750-LEN(D150)","v":750},null,null,null,null,null,null,0,null,0,0]
[10,null,null,null,null,null,null,null,null,null,null,null,null,null,null,null,null,0,0,0,0,0,{"$f":"860-LEN(D151)","v":860},null,null,null,null,null,null,0,null,0,0]
[null,null,null,{"$f":"IF(OR(W151<0,W150<0,W149<0,W148<0,W147<0,W146<0,W145<0,W144<0,W143<0,W142<0),\"Se ha sobrepasado longitud máxima del texto\",\"\")","v":""},null,null,null,null,null,null,null,null,null,null,null,{"$f":"SUM(P142:P151)","v":0},null,{"$f":"SUM(R142:R151)","v":0},0,{"$f":"SUM(T142:T151)","v":0},null,null,null,null,null,null,null,null,null,{"$f":"SUM(AD142:AD151)","v":0},{"$f":"SUM(AE142:AE151)","v":0},0,0]
[]
[null,"Resumen de productos y servicios"]
[]
[null,"Categoría de producto o servicio",null,null,"Número de productos o servicios",null,null,null,null,"Pago (*)  inicial","Pago (*)   mensual","Descuento (**)\nPago inicial","Descuento (**)\nPago mensual","Neto (**)\nPago inicial",null,"Neto (**)\nPago mensual","Neto   (**/***)\nPago anualizado"]
[null,{"$f":"B26","v":"Modernización del puesto de trabajo"},null,null,{"$f":"IF(J51>0,CONCATENATE(J51,\" licencias de usuario\"),\"No contrata\")","v":"No contrata"},null,null,null,null,0,{"$f":"AD51","v":0},0,{"$f":"S51","v":0},0,null,{"$f":"R51","v":0},{"$f":"T51","v":0}]
[null,"Modernización de servidores en cloud",null,null,{"$f":"IF(SUM(P57:P62)>0,B60,IF(SUM(P63:P68)>0,B66,IF(SUM(P69:P74)>0,B72,IF(P75>0,B75,\"No contrata\"))))","v":"No contrata"},null,null,null,null,0,{"$f":"AE76","v":0},0,{"$f":"AD76","v":0},0,null,{"$f":"W76","v":0},{"$f":"X76","v":0}]
[null,"Windows y SQL Server",null,null,{"$f":"IF(S81>0,CONCATENATE(S81,\" licencias de servidor\"),\"No contrata\")","v":"No contrata"},null,null,null,null,0,0,0,0,0,null,0,{"$f":"Y81","v":0}]
[null,{"$f":"B84","v":"Aplicaciones de negocio"},null,null,{"$f":"IF(P96>0,CONCATENATE(P96,\" licencias de aplicaciones de negocio\"),\"No contrata\")","v":"No contrata"},null,null,null,null,0,{"$f":"AE96","v":0},0,{"$f":"AF96","v":0},0,null,{"$f":"R96","v":0},{"$f":"S96","v":0}]
[null,{"$f":"B102","v":"Surface"},null,null,{"$f":"IF(N109>0,CONCATENATE(N109,\" equipos Surface\"),\"No contrata\")","v":"No contrata"},null,null,null,null,{"$f":"AC109","v":0},{"$f":"AD109","v":0},{"$f":"AE109","v":0},{"$f":"AF109","v":0},{"$f":"V109","v":0},null,{"$f":"W109","v":0},{"$f":"AG109","v":0}]
[null,{"$f":"B110","v":"Accesorios Surface"},null,null,{"$f":"IF(C115>0,CONCATENATE(C115,\" accesorios (bolígrafo, ratón, dock) para Surface\"),\"No contrata\")","v":"No contrata"},null,null,null,null,{"$f":"AC115","v":0},0,{"$f":"AE115","v":0},0,{"$f":"F115","v":0},null,0,0]
[null,{"$f":"B117","v":"Otros equipos Windows 10 PRO"},null,null,{"$f":"IF(Q124>0,CONCATENATE(Q124,\" equipos de terceros\"),\"No contrata\")","v":"No contrata"},null,null,null,null,{"$f":"AC124","v":0},{"$f":"AD124","v":0},{"$f":"AE124","v":0},{"$f":"AF124","v":0},{"$f":"V124","v":0},null,{"$f":"W124","v":0},{"$f":"AG124","v":0}]
[null,{"$f":"B129","v":"Servicios de puesta en marcha"},null,null,{"$f":"IF(P139>0,CONCATENATE(P139,\" servicios para la puesta en marcha\"),\"No contrata\")","v":"No contrata"},null,null,null,null,{"$f":"AC139","v":0},0,{"$f":"AE139","v":0},0,{"$f":"R139","v":0},null,0,0]
[null,{"$f":"B141","v":"Servicios gestionados"},null,null,{"$f":"IF(P152>0,CONCATENATE(P152,\" servicios gestionados\"),\"No contrata\")","v":"No contrata"},null,null,null,null,0,{"$f":"AD152","v":0},0,{"$f":"AF152","v":0},0,null,{"$f":"R152","v":0},{"$f":"S152","v":0}]
[null,null,null,null,null,null,null,null,null,{"$f":"SUM(J157:J165)","v":0},{"$f":"SUM(K157:K165)","v":0},{"$f":"SUM(L157:L165)","v":0},{"$f":"SUM(M157:M165)","v":0},{"$f":"SUM(N157:O165)","v":0},null,{"$f":"SUM(P157:P165)","v":0},{"$f":"SUM(Q157:Q165)","v":0}]
[]
[null,"    * Los precios indicados son PVPs recomendados por Microsoft y no incluyen impuestos indirectos (IVA, IGIC, etc.)"]
[null,{"$f":"CONCATENATE(\"  ** Los descuentos y precios netos son ofertados por \", $J$7)","v":"  ** Los descuentos y precios netos son ofertados por "}]
[null,"*** El valor Neto Pago anualizado del apartado Windows y SQL Server corresponde con el pago anual o trienal en función del modelo de suscripción por 1 ó 3 años."]
[]
[]
[null,"Forma de Pago"]
[]
[null,"Facturación:"]
[]
[null,"Forma de Pago:"]

{"sheet":"Portada_E","index":1,"n_rows":31,"n_cols":14,"rows_kept":31,"cut":false,"hidden":false,"merged":[[1,5,3,6]]}
[]
[null,null,null,null,null,{"$f":"CONCATENATE(\"Propuesta comercial de productos Microsoft para \",Configurador!C7,\" presentada por \",Configurador!J7)","v":"Propuesta comercial de productos Microsoft para  presentada por "}]
[]
[]
[]
[]
[]
[]
[null,"Cliente:",{"$f":"Configurador!C7","v":0}]
[null,"CIF:",{"$f":"Configurador!C9","v":0}]
[null,"Dirección:",{"$f":"Configurador!C11","v":0}]
[null,"Ciudad:",{"$f":"Configurador!C13","v":0}]
[null,"Provincia:",{"$f":"Configurador!C15","v":0}]
[null,"Apoderado:",{"$f":"Configurador!C17","v":0}]
[null,"Teléfono: ",{"$f":"Configurador!C19","v":0}]
[null,"Email:",{"$f":"Configurador!C21","v":0}]
[]
[null,"Presentada por:",{"$f":"Configurador!J7","v":0}]
[null,null,{"$f":"Configurador!J9","v":0}]
[null,null,{"$f":"CONCATENATE(Configurador!J11,\" (\",Configurador!J13,\", \",Configurador!J15,\")\")","v":" (, )"}]
[]
[null,"Contacto:",{"$f":"Configurador!J17","v":0}]
[null,null,{"$f":"CONCATENATE(Configurador!J21,\" / \",Configurador!J19)","v":" / "}]
[]
[null,"Fecha:",{"$f":"Configurador!R7","v":"00:00:00"}]
[null,"Validez hasta: ",{"$f":"Configurador!R9","v":"00:00:00"}]
[]
[]
[]
[]
[null,null,null,null,null,null,null,null,null,null,null,null,null,{"$f":"Impresion!E2","v":"Página 1 de 7"}]

{"sheet":"O365_Empresa_E","index":2,"n_rows":38,"n_cols":15,"rows_kept":38,"cut":false,"hidden":false,"merged":[[9,2,9,3],[9,7,9,10],[10,2,10,3],[10,7,10,10],[13,1,13,9],[6,14,8,14],[6,11,8,11],[6,13,8,13],[6,4,8,4],[6,6,8,6],[6,5,8,5],[6,12,8,12],[6,9,8,9],[6,10,8,10],[6,1,8,1],[5,2,5,3],[6,2,8,3],[6,7,8,7],[6,8,8,8]]}
[]
[]
[null,"Modernización del espacio de trabajo para"]
[null,{"$f":"Configurador!C7","v":0}]
[]
[null,"Necesidad del cliente","Producto",null,"Cuota por usuario (*)","Usuarios","Descuento","Opciones","Cuota por usuario","Usuarios","Dcto.","Total mensual","Total dcto. mensual","Total anual","Total dcto. anual"]
[null,{"$f":"Configurador!B30","v":"Modernización del puesto de trabajo completa"},{"$f":"Configurador!E30","v":"Microsoft 365 Empresa"},null,{"$f":"Configurador!I30","v":16.899999999999999},{"$f":"Configurador!J30","v":0},{"$f":"Configurador!K30","v":0},{"$f":"Configurador!L30","v":"AIP"},{"$f":"Configurador!I46","v":3.4},{"$f":"Configurador!P30","v":0},{"$f":"Configurador!Q30","v":0},{"$f":"Configurador!R30","v":0},{"$f":"Configurador!S30","v":0},{"$f":"Configurador!T30","v":0},{"$f":"Configurador!U30","v":0}]
[]
[]
[null,{"$f":"IF(Configurador!J49>0,Configurador!B49,\"\")","v":""},{"$f":"IF(Configurador!J49>0,Configurador!E49,\"\")","v":""},null,{"$f":"IF(Configurador!J49>0,Configurador!I49,\"\")","v":""},{"$f":"IF(Configurador!J49>0,Configurador!J49,\"\")","v":""},{"$f":"IF(Configurador!J49>0,Configurador!K49,\"\")","v":""},{"$f":"IF(Configurador!J49>0,Configurador!L49,\"\")","v":""},null,null,null,{"$f":"IF(Configurador!$J$49>0,Configurador!R49,\"\")","v":""},{"$f":"IF(Configurador!$J$49>0,Configurador!S49,\"\")","v":""},{"$f":"IF(Configurador!$J$49>0,Configurador!T49,\"\")","v":""},{"$f":"IF(Configurador!$J$49>0,Configurador!U49,\"\")","v":""}]
[null,{"$f":"IF(Configurador!J50>0,Configurador!B50,\"\")","v":""},{"$f":"IF(Configurador!J50>0,Configurador!E50,\"\")","v":""},null,{"$f":"IF(Configurador!J50>0,Configurador!I50,\"\")","v":""},{"$f":"IF(Configurador!J50>0,Configurador!J50,\"\")","v":""},{"$f":"IF(Configurador!J50>0,Configurador!K50,\"\")","v":""},{"$f":"IF(Configurador!J50>0,Configurador!L50,\"\")","v":""},null,null,null,{"$f":"IF(Configurador!$J$50>0,Configurador!R50,\"\")","v":""},{"$f":"IF(Configurador!$J$50>0,Configurador!S50,\"\")","v":""},{"$f":"IF(Configurador!$J$50>0,Configurador!T50,\"\")","v":""},{"$f":"IF(Configurador!$J$50>0,Configurador!U50,\"\")","v":""}]
[null,{"$f":"CONCATENATE(\"*Los precios indicados en cuota por usuario son PVPs recomendados por Microsoft y no incluyen impuestos indirectos (IVA, IGIC, etc.). Todos los descuentos son ofertados por  \",Configurador!J7)","v":"*Los precios indicados en cuota por usuario son PVPs recomendados por Microsoft y no incluyen impuestos indirectos (IVA, IGIC, etc.). Todos los descuentos son ofertados por  "},null,null,null,null,null,null,null,null,null,{"$f":"IF(J7=0,\"Te recomendamos Azure Information Protection. Plan 2\",\"Azure Information Protection. Plan 2\")","v":"Te recomendamos Azure Information Protection. Plan 2"}]
[null,null,null,null,null,null,null,null,null,null,{"$f":"IF(AND(J7=0,J9=0),\"Te recomendamos Advanced Threat Protection\",\"Advanced Threat Protection\")","v":"Te recomendamos Advanced Threat Protection"}]
[null,"Modernización del puesto de trabajo completa con Microsoft 365"]
[]
[]
[]
[]
[]
[]
[]
[]
[]
[]
[]
[]
[]
[]
[]
[]
[]
[]
[]
[]
[]
[]
[]
[null,null,null,null,null,null,null,null,null,null,null,null,null,null,{"$f":"Impresion!E3","v":"Página 2 de 7"}]

{"sheet":"O365_Premium_E","index":3,"n_rows":39,"n_cols":15,"rows_kept":39,"cut":false,"hidden":false,"merged":[[6,14,9,14],[5,1,5,2],[12,1,12,2],[12,7,12,10],[16,1,16,13],[6,1,9,2],[6,3,9,3],[6,4,9,4],[6,5,9,5],[6,6,9,6],[6,11,9,11],[6,12,9,12],[10,1,10,2],[11,1,11,2],[6,13,9,13]]}
[]
[]
[null,"Modernización del espacio de trabajo para"]
[null,{"$f":"Configurador!C7","v":0}]
[]
[null,"Necesidad del cliente",null,"Producto","Cuota por usuario (*)","Usuarios","Dcto.","Opciones","Cuota por usuario","Usuarios","Dcto.","Total mensual","Total dcto. mensual","Total anual","Total dcto. anual"]
[null,{"$f":"Configurador!B31","v":"Colaboración, Correo y Productividad con Office"},null,{"$f":"Configurador!E31","v":"O365 Empresa Premium"},{"$f":"Configurador!I31","v":10.5},{"$f":"Configurador!J31","v":0},{"$f":"Configurador!K31","v":0},{"$f":"Configurador!L30","v":"AIP"},{"$f":"Configurador!N30","v":3.4},{"$f":"Configurador!P31","v":0},{"$f":"Configurador!Q30","v":0},{"$f":"Configurador!R31","v":0},{"$f":"Configurador!S31","v":0},{"$f":"Configurador!T31","v":0},{"$f":"Configurador!U30","v":0}]
[null,null,null,null,null,null,null,{"$f":"Configurador!L32","v":"ATP"},{"$f":"Configurador!N31","v":3.4},{"$f":"Configurador!P32","v":0},{"$f":"Configurador!Q31","v":0}]
[null,null,null,null,null,null,null,{"$f":"Configurador!L33","v":"EMS"},{"$f":"Configurador!N32","v":1.69},{"$f":"Configurador!P33","v":0},{"$f":"Configurador!Q32","v":0}]
[null,null,null,null,null,null,null,{"$f":"Configurador!L34","v":"ATP+EMS"},{"$f":"Configurador!N33","v":7.4},{"$f":"Configurador!P34","v":0},{"$f":"Configurador!Q33","v":0}]
[{"$f":"Configurador!J37+Configurador!J38","v":0},{"$f":"IF(OR(Configurador!J46>0,Configurador!J47>0,Configurador!$J$48>0),Configurador!B46,\"\")","v":""},null,{"$f":"IF(OR(Configurador!J46>0,Configurador!J47>0,Configurador!$J$48>0),Configurador!E46,\"\")","v":""},{"$f":"IF(OR(Configurador!J46>0,Configurador!J47>0,Configurador!$J$48>0),Configurador!I46,\"\")","v":""},{"$f":"IF(OR(Configurador!J46>0,Configurador!J47>0,Configurador!$J$48>0),Configurador!J46,\"\")","v":""},{"$f":"IF(OR(Configurador!J46>0,Configurador!J47>0,Configurador!$J$48>0),Configurador!K46,\"\")","v":""},{"$f":"IF(OR(Configurador!J46>0,Configurador!J47>0,Configurador!$J$48>0),Configurador!L46,\"\")","v":""},{"$f":"IF(OR(Configurador!J46>0,Configurador!J47>0,Configurador!$J$48>0),Configurador!N46,\"\")","v":""},{"$f":"IF(OR(Configurador!J46>0,Configurador!J47>0,Configurador!$J$48>0),Configurador!P46,\"\")","v":""},{"$f":"IF(OR(Configurador!J46>0,Configurador!J47>0,Configurador!$J$48>0),Configurador!Q46,\"\")","v":""},{"$f":"IF(OR(Configurador!J46>0,Configurador!J46>0,Configurador!$J$48>0),Configurador!R46,\"\")","v":""},{"$f":"IF(OR(Configurador!J46>0,Configurador!J47>0,Configurador!$J$48>0),Configurador!S46,\"\")","v":""},{"$f":"IF(OR(Configurador!J46>0,Configurador!J47>0,Configurador!$J$48>0),Configurador!T46,\"\")","v":""},{"$f":"IF(OR(Configurador!J46>0,Configurador!J47>0,Configurador!$J$48>0),Configurador!U46,\"\")","v":""}]
[null,{"$f":"IF(OR(Configurador!J47>0,Configurador!$J$48>0),Configurador!B47,\"\")","v":""},null,{"$f":"IF(OR(Configurador!J47>0,Configurador!$J$48>0),Configurador!E47,\"\")","v":""},{"$f":"IF(OR(Configurador!J47>0,Configurador!$J$48>0),Configurador!I47,\"\")","v":""},{"$f":"IF(OR(Configurador!J47>0,Configurador!$J$48>0),Configurador!J47,\"\")","v":""},{"$f":"IF(OR(Configurador!J47>0,Configurador!$J$48>0),Configurador!K47,\"\")","v":""},{"$f":"IF(OR(Configurador!J47>0,Configurador!$J$48>0),Configurador!L47,\"\")","v":""},{"$f":"IF(OR(Configurador!J47>0,Configurador!$J$48>0),Configurador!N47,\"\")","v":""},{"$f":"IF(OR(Configurador!J47>0,Configurador!$J$48>0),Configurador!P47,\"\")","v":""},{"$f":"IF(OR(Configurador!J47>0,Configurador!$J$48>0),Configurador!Q47,\"\")","v":""},{"$f":"IF(OR(Configurador!J47>0,Configurador!$J$48>0),Configurador!R47,\"\")","v":""},{"$f":"IF(OR(Configurador!J47>0,Configurador!$J$48>0),Configurador!S47,\"\")","v":""},{"$f":"IF(OR(Configurador!J47>0,Configurador!$J$48>0),Configurador!T47,\"\")","v":""},{"$f":"IF(OR(Configurador!J47>0,Configurador!$J$48>0),Configurador!U47,\"\")","v":""}]
[null,{"$f":"IF(AND(Configurador!J30=0,Configurador!J49>0),Configurador!B49,\"\")","v":""},null,{"$f":"IF(AND(Configurador!J30=0,Configurador!J49>0),Configurador!E49,\"\")","v":""},{"$f":"IF(AND(Configurador!J30=0,Configurador!J49>0),Configurador!I49,\"\")","v":""},{"$f":"IF(AND(Configurador!J30=0,Configurador!J49>0),Configurador!J49,\"\")","v":""},{"$f":"IF(AND(Configurador!J30=0,Configurador!J49>0),Configurador!K49,\"\")","v":""},{"$f":"IF(AND(Configurador!J30=0,Configurador!J49>0),Configurador!L49,\"\")","v":""},null,null,null,{"$f":"IF(AND(Configurador!J30=0,Configurador!J49>0),Configurador!R49,\"\")","v":""},{"$f":"IF(AND(Configurador!J30=0,Configurador!J49>0),Configurador!S49,\"\")","v":""},{"$f":"IF(AND(Configurador!J30=0,Configurador!J49>0),Configurador!T49,\"\")","v":""},{"$f":"IF(AND(Configurador!J30=0,Configurador!J49>0),Configurador!U49,\"\")","v":""}]
[]
[null,{"$f":"CONCATENATE(\"* Los precios indicados en cuota por usuario son PVPs recomendados por Microsoft y no incluyen impuestos indirectos (IVA, IGIC, etc.). Todos los descuentos son ofertados por  \",Configurador!J7)","v":"* Los precios indicados en cuota por usuario son PVPs recomendados por Microsoft y no incluyen impuestos indirectos (IVA, IGIC, etc.). Todos los descuentos son ofertados por  "}]
[null,null,null,null,null,null,null,null,null,null,null,{"$f":"IF(J7=0,\"Te recomendamos Azure Information Protection. Plan 2 \",\"Azure Information Protection. Plan 2 \")","v":"Te recomendamos Azure Information Protection. Plan 2 "}]
[null,{"$f":"IF(J10>0,\"Productividad y seguridad con Office 365 Premium, Enterprise Mobility and Security y Advanced Threat Protection\",IF(J8>0,\"Productividad y seguridad con Office 365 Premium y Advanced Threat Protection\",IF(J9>0,\"Productividad y seguridad con Office 365 Premium y Enterprise Mobility and Security\",\"Productividad y seguridad con Office 365 Premium\")))","v":"Productividad y seguridad con Office 365 Premium"}]
[null,null,null,null,null,null,null,null,{"$f":"IF(AND(J9=0,J10=0),\"Te recomendamos Enterprise Mobility and Security\",\"Enterprise Mobility and Security\")","v":"Te recomendamos Enterprise Mobility and Security"}," ",null,null,{"$f":"IF(AND(J8=0,J10=0),\"Te recomendamos Advanced Threat Protection\",\"Advanced Threat Protection\")","v":"Te recomendamos Advanced Threat Protection"}]
[]
[]
[]
[]
[]
[]
[]
[]
[]
[]
[]
[]
[]
[]
[]
[]
[]
[]
[]
[]
[null,null,null,null,null,null,null,null,null,null,null,null,null,null,{"$f":"Impresion!E4","v":""}]

{"sheet":"O365_Essentials_E","index":4,"n_rows":37,"n_cols":15,"rows_kept":37,"cut":false,"hidden":false,"merged":[[13,1,13,13],[10,2,10,3],[10,7,10,10],[6,4,9,4],[6,6,9,6],[6,5,9,5],[6,1,9,1],[5,2,5,3],[6,2,9,3],[6,14,9,14],[6,12,9,12],[6,11,9,11],[6,13,9,13]]}
[]
[]
[null,"Modernización del espacio de trabajo para"]
[null,{"$f":"Configurador!C7","v":0}]
[]
[null,"Necesidad del cliente","Producto",null,"Cuota por usuario (*)","Usuarios","Dcto.","Opciones","Cuota por usuario","Usuarios","Dcto.","Total mensual","Total dcto. mensual","Total anual","Total dcto. anual"]
[null,{"$f":"Configurador!B35","v":"Colaboración y Correo"},{"$f":"Configurador!E35","v":"O365 Empresa Essentials"},null,{"$f":"Configurador!I35","v":4.2},{"$f":"Configurador!J36","v":0},{"$f":"Configurador!K36","v":0},{"$f":"Configurador!L35","v":"AIP"},{"$f":"Configurador!I46","v":3.4},{"$f":"Configurador!P35","v":0},{"$f":"Configurador!Q35","v":0},{"$f":"Configurador!R35","v":0},{"$f":"Configurador!S35","v":0},{"$f":"Configurador!T35","v":0},{"$f":"Configurador!U35","v":0}]
[null,null,null,null,null,null,null,{"$f":"Configurador!L36","v":"ATP"},{"$f":"Configurador!I47","v":1.69},{"$f":"Configurador!P36","v":0},{"$f":"Configurador!Q36","v":0}]
[null,null,null,null,null,null,null,{"$f":"Configurador!L37","v":"EMS"},{"$f":"Configurador!N37","v":7.4},{"$f":"Configurador!P37","v":0},{"$f":"Configurador!Q37","v":0}]
[null,null,null,null,null,null,null,{"$f":"Configurador!L38","v":"ATP+EMS"},{"$f":"Configurador!N38","v":9.09},{"$f":"Configurador!P38","v":0},{"$f":"Configurador!Q38","v":0}]
[null,{"$f":"IF(AND(Configurador!J30=0,Configurador!J31=0,Configurador!J49>0),Configurador!B49,\"\")","v":""},{"$f":"IF(AND(Configurador!J30=0,Configurador!J31=0,Configurador!J49>0),Configurador!E49,\"\")","v":""},null,{"$f":"IF(AND(Configurador!J30=0,Configurador!J31=0,Configurador!J49>0),Configurador!I49,\"\")","v":""},{"$f":"IF(AND(Configurador!J30=0,Configurador!J31=0,Configurador!J49>0),Configurador!J49,\"\")","v":""},{"$f":"IF(AND(Configurador!J30=0,Configurador!J31=0,Configurador!J49>0),Configurador!K49,\"\")","v":""},{"$f":"IF(AND(Configurador!J30=0,Configurador!J31=0,Configurador!J49>0),Configurador!L49,\"\")","v":""},null,null,null,{"$f":"IF(AND(Configurador!J30=0,Configurador!J31=0,Configurador!J49>0),Configurador!R49,\"\")","v":""},{"$f":"IF(AND(Configurador!J30=0,Configurador!J31=0,Configurador!J49>0),Configurador!S49,\"\")","v":""},{"$f":"IF(AND(Configurador!J30=0,Configurador!J31=0,Configurador!J49>0),Configurador!T49,\"\")","v":""},{"$f":"IF(AND(Configurador!J30=0,Configurador!J31=0,Configurador!J49>0),Configurador!U49,\"\")","v":""}]
[null,{"$f":"CONCATENATE(\"* Los precios indicados en cuota por usuario son PVPs recomendados por Microsoft y no incluyen impuestos indirectos (IVA, IGIC, etc.). Todos los descuentos son ofertados por  \",Configurador!J7)","v":"* Los precios indicados en cuota por usuario son PVPs recomendados por Microsoft y no incluyen impuestos indirectos (IVA, IGIC, etc.). Todos los descuentos son ofertados por  "}]
[null,null,null,null,null,null,null,null,null,{"$f":"IF(AND(J9=0,J10=0),\"Te recomendamos Enterprise Mobility and Security\",\"Enterprise Mobility and Security\")","v":"Te recomendamos Enterprise Mobility and Security"},{"$f":"IF(AND(J8=0,J10=0),\"Te recomendamos Advanced Threat Protection\",\"Advanced Threat Protection\")","v":"Te recomendamos Advanced Threat Protection"},{"$f":"IF(J7=0,\"Te recomendamos Azure Information Protection. Plan 2 \",\"Azure Information Protection. Plan 2 \")","v":"Te recomendamos Azure Information Protection. Plan 2 "}]
[null,{"$f":"IF(J10>0,\"Colaboración, correo y seguridad con Office 365 Essentials, Enterprise Mobility and Security y Advanced Threat Protection\",IF(J7>0,\"Colaboración, correo y seguridad con Office 365 Essentials y Advanced Threat Protection\",IF(J9>0,\"Colaboración, correo y seguridad con Office 365 Essentials y Enterprise Mobility and Security\",\"Colaboración y correo con Office 365 Essentials\")))","v":"Colaboración y correo con Office 365 Essentials"}]
[]
[]
[]
[]
[]
[]
[]
[]
[]
[]
[]
[]
[]
[]
[]
[]
[]
[]
[]
[]
[]
[]
[null,null,null,null,null,null,null,null,null,null,null,null,null,null,{"$f":"Impresion!E5","v":""}]

{"sheet":"O365_E1E3E5_E","index":5,"n_rows":53,"n_cols":15,"rows_kept":53,"cut":false,"hidden":false,"merged":[[6,14,8,14],[5,2,5,3],[6,2,8,3],[6,4,8,4],[6,5,8,5],[6,6,8,6],[6,11,8,11],[6,12,8,12],[6,13,8,13],[6,7,8,7],[6,8,8,8],[6,9,8,9],[6,10,8,10],[9,14,11,14],[12,11,14,11],[12,12,14,12],[12,13,14,13],[12,14,14,14],[9,11,11,11],[9,12,11,12],[9,13,11,13],[9,6,11,6],[6,1,8,1],[9,1,11,1],[9,2,11,3],[9,4,11,4],[9,5,11,5],[22,1,22,14],[32,1,32,14],[16,2,16,3],[20,1,20,13],[49,1,49,13],[12,1,14,1],[12,2,14,3],[12,4,14,4],[12,5,14,5],[12,6,14,6]]}
[]
[]
[null,"Modernización del espacio de trabajo para"]
[null,{"$f":"Configurador!C7","v":0}]
[]
[null,"Necesidad del cliente","Producto",null,"Cuota por usuario (*)","Usuarios","Descuento","Opciones","Cuota por usuario","Usuarios","Dcto.","Total mensual","Total dcto. mensual","Total anual","Total dcto. anual"]
[null,{"$f":"Configurador!B39","v":"Suite completa de productividad y colaboración empresarial con funcionalidades de voz"},{"$f":"Configurador!E39","v":"Office 365 E5"},null,{"$f":"Configurador!I39","v":34.4},{"$f":"Configurador!J39","v":0},{"$f":"IF(Configurador!J39>0,Configurador!K39,\"0%\")","v":"0%"},{"$f":"Configurador!L30","v":"AIP"},{"$f":"Configurador!I46","v":3.4},{"$f":"Configurador!P39","v":0},{"$f":"IF(Configurador!P39>0,Configurador!Q39,\"0%\")","v":"0%"},{"$f":"Configurador!R39","v":0},{"$f":"Configurador!S39","v":0},{"$f":"Configurador!T39","v":0},{"$f":"Configurador!U39","v":0}]
[]
[]
[null,{"$f":"Configurador!B40","v":"Suite de productividad y colaboración empresarial "},{"$f":"Configurador!E40","v":"Office 365 E3"},null,{"$f":"Configurador!I40","v":19.7},{"$f":"Configurador!J40","v":0},{"$f":"IF(Configurador!J40>0,Configurador!K40,\"0%\")","v":"0%"},{"$f":"Configurador!L40","v":"AIP"},{"$f":"Configurador!N40","v":3.4},{"$f":"Configurador!P40","v":0},{"$f":"IF(Configurador!P40>0,Configurador!Q40,\"0%\")","v":"0%"},{"$f":"Configurador!R40","v":0},{"$f":"Configurador!S40","v":0},{"$f":"Configurador!T40","v":0},{"$f":"Configurador!U40","v":0}]
[null,null,null,null,null,null,null,{"$f":"Configurador!L41","v":"ATP"},{"$f":"Configurador!N41","v":1.69},{"$f":"Configurador!P41","v":0},{"$f":"IF(Configurador!P41>0,Configurador!Q41,\"0%\")","v":"0%"}]
[null,null,null,null,null,null,null,{"$f":"Configurador!L42","v":"EMS"},{"$f":"Configurador!N42","v":7.4},{"$f":"Configurador!P42","v":0},{"$f":"IF(Configurador!P42>0,Configurador!Q42,\"0%\")","v":"0%"}]
[null,{"$f":"Configurador!B43","v":"Servicios empresariales de colaboración y correo"},{"$f":"Configurador!E43","v":"Office 365 E1"},null,{"$f":"Configurador!I43","v":6.7},{"$f":"Configurador!J43","v":0},{"$f":"IF(Configurador!J43>0,Configurador!K43,\"0%\")","v":"0%"},{"$f":"Configurador!L43","v":"AIP"},{"$f":"Configurador!N43","v":3.4},{"$f":"Configurador!P43","v":0},{"$f":"IF(Configurador!P43>0,Configurador!Q43,\"0%\")","v":"0%"},{"$f":"Configurador!R43","v":0},{"$f":"Configurador!S43","v":0},{"$f":"Configurador!T43","v":0},{"$f":"Configurador!U43","v":0}]
[null,null,null,null,null,null,null,{"$f":"Configurador!L44","v":"ATP"},{"$f":"Configurador!N44","v":1.69},{"$f":"Configurador!P44","v":0},{"$f":"IF(Configurador!P44>0,Configurador!Q44,\"0%\")","v":"0%"}]
[null,null,null,null,null,null,null,{"$f":"Configurador!L45","v":"EMS"},{"$f":"Configurador!N45","v":7.4},{"$f":"Configurador!P45","v":0},{"$f":"IF(Configurador!P45>0,Configurador!Q45,\"0%\")","v":"0%"}]
[]
[]
[]
[null,{"$f":"CONCATENATE(\"*Los precios indicados en cuota por usuario son PVPs recomendados por Microsoft y no incluyen impuestos indirectos (IVA, IGIC, etc.). Todos los descuentos son ofertados por  \",Configurador!J5)","v":"*Los precios indicados en cuota por usuario son PVPs recomendados por Microsoft y no incluyen impuestos indirectos (IVA, IGIC, etc.). Todos los descuentos son ofertados por  "},null,null,null,null,null,null,null,null,{"$f":"IF(AND(J7=0,J9=0),\"Te recomendamos Advanced Threat Protection\",\"Advanced Threat Protection\")","v":"Te recomendamos Advanced Threat Protection"}]
[]
[null,"Ofrece los mejores recursos a los empleados con Office 365 ( E1, E3, E5)"]
[]
[null,"Herramientas para el área de trabajo moderna, que permiten conectar y ofrecer recursos a todos los empleados, desde los que trabajan en la oficina hasta los que forman parte de la Firstline Workforce. Transforma tu área de trabajo con una completa solución inteligente que reúne Office 365, Windows 10 y Enterprise Mobility + Security.    E5 incluye todas las características de E3,  y   E3 incluye todas las características de E1.      "]
[]
[]
[]
[]
[]
[]
[]
[]
[]
[]
[]
[]
[]
[]
[]
[]
[]
[]
[]
[]
[]
[]
[]
[]
[]
[null,"(A)  La disponibilidad de las aplicaciones móviles varía según el país o la región. Conoce cuáles están disponibles en tu país o región."]
[null,"(B) Almacenamiento ilimitado de OneDrive para suscripciones de cinco o más usuarios. Microsoft proporcionará un espacio de almacenamiento inicial de OneDrive de 5 TB por usuario. Los clientes que quieran almacenamiento de OneDrive adicional pueden solicitarlo si es necesario poniéndose en contacto con el soporte técnico de Microsoft. Las suscripciones de menos de cinco usuarios reciben un espacio de almacenamiento de OneDrive de 1 TB por usuario"]
[null,"(C) La disponibilidad de las aplicaciones móviles varía según el país o la región. Obtén información sobre lo que está disponible actualmente en tu país o región."]
[null,"(D) La disponibilidad del plan de llamadas varía según la región. Consulta la Disponibilidad internacional actual."]
[null,"Para ampliar información en  https://www.microsoft.com/es-es/microsoft-365/business/compare-more-office-365-for-business-plans",null,null,null,null,null,null,null,null,null,null,null,null,{"$f":"Impresion!E6","v":""}]

{"sheet":"Azure_10_E","index":6,"n_rows":39,"n_cols":14,"rows_kept":39,"cut":false,"hidden":false,"merged":[[15,1,15,13],[5,1,5,2],[5,6,5,7],[6,1,8,2],[6,3,8,3],[6,4,8,4],[6,5,8,5],[6,6,6,7],[6,11,8,11],[6,12,8,12],[6,13,8,13],[7,6,7,7],[8,6,8,7],[11,7,11,8],[12,7,12,8],[11,9,11,10],[11,1,11,5],[12,1,12,5],[12,9,12,10],[11,11,11,12],[12,11,12,12]]}
[]
[]
[null,"Modernización de servidores para"]
[null,{"$f":"Configurador!C7","v":0}]
[]
[null,"Necesidad del cliente y producto",null,"Cuota mensual (*/**)","Contrata","Descuento","Opciones recomendadas",null,"Cuota por producto (**)","Unidades","Descuento","Total mensual","Total anual","Descuento anual"]
[{"$f":"IF(Configurador!P57>0,1,IF(Configurador!P60>0,2,0))","v":0},{"$f":"IF(A7=1,CONCATENATE(Configurador!B60,\". \",Configurador!L57),IF(A7=2,CONCATENATE(Configurador!B60,\" \",Configurador!L60),\"Referencia:  Infraestructura cloud hasta 10 usuarios\"))","v":"Referencia:  Infraestructura cloud hasta 10 usuarios"},null,{"$f":"IF($A$7=1,Configurador!N57,IF($A$7=2,Configurador!N60,\"185,00€  (compromiso 1 año)\"))","v":"185,00€  (compromiso 1 año)"},{"$f":"IF($A$7=1,Configurador!P57,IF($A$7=2,Configurador!P60,0))","v":0},{"$f":"IF($A$7=1,Configurador!Q57,IF($A$7=2,Configurador!Q60,0))","v":0},{"$f":"IF($A$7=1,Configurador!R57,IF($A$7=2,Configurador!R60,0))","v":0},null,{"$f":"IF($A$7=1,Configurador!T57,IF($A$7=2,Configurador!T60,0))","v":0},{"$f":"IF($A$7=1,Configurador!U57,IF($A$7=2,Configurador!U60,0))","v":0},{"$f":"IF($A$7=1,Configurador!V57,IF($A$7=2,Configurador!V60,0))","v":0},{"$f":"IF($A$7=1,Configurador!W57,IF($A$7=2,Configurador!W60,0))","v":0},{"$f":"IF($A$7=1,Configurador!X57,IF($A$7=2,Configurador!X60,0))","v":0},{"$f":"IF($A$7=1,Configurador!Y57,IF($A$7=2,Configurador!Y60,0))","v":0}]
[null,null,null,null,null,null,{"$f":"IF($A$7=1,Configurador!R58,IF($A$7=2,Configurador!R61,0))","v":0},null,{"$f":"IF($A$7=1,Configurador!T58,IF($A$7=2,Configurador!T61,0))","v":0},{"$f":"IF($A$7=1,Configurador!U58,IF($A$7=2,Configurador!U61,0))","v":0},{"$f":"IF($A$7=1,Configurador!V58,IF($A$7=2,Configurador!V61,0))","v":0}]
[null,null,null,null,null,null,{"$f":"IF($A$7=1,Configurador!R59,IF($A$7=2,Configurador!R62,0))","v":0},null,{"$f":"IF($A$7=1,Configurador!T59,IF($A$7=2,Configurador!T62,0))","v":0},{"$f":"IF($A$7=1,Configurador!U59,IF($A$7=2,Configurador!U62,0))","v":0},{"$f":"IF($A$7=1,Configurador!V59,IF($A$7=2,Configurador!V62,0))","v":0}]
[null,"* El precio indicado supone disponibilidad 24h de las Máquinas Virtuales. En caso de no ser necesaria esta disponibilidad, pueden ser apagadas, resultando un menor precio."]
[]
[]
[]
[null,{"$f":"CONCATENATE(\"** Los precios indicados en cuota mensual y cuota por producto son PVPs recomendados por Microsoft y no incluyen impuestos indirectos (IVA, IGIC, etc.). Todos los descuentos son ofertados por  \",Configurador!J7)","v":"** Los precios indicados en cuota mensual y cuota por producto son PVPs recomendados por Microsoft y no incluyen impuestos indirectos (IVA, IGIC, etc.). Todos los descuentos son ofertados por  "}]
[null,null,null,null,null,null,null,null,null,null,{"$f":"IF(J7>0,\"Backup\",\"Te recomendamos Backup\")","v":"Te recomendamos Backup"},{"$f":"IF(J8>0,\"Disaster Recovery\",\"Te recomendamos Disaster Recovery\")","v":"Te recomendamos Disaster Recovery"},{"$f":"IF(J9>0,\"SQL Server\",\"Te recomendamos SQL Server\")","v":"Te recomendamos SQL Server"}]
[null,"Modernización de servidores con infrestructura cloud dimensionada hasta 10 usuarios"]
[]
[]
[]
[]
[]
[]
[]
[]
[]
[]
[]
[]
[]
[]
[]
[]
[]
[]
[]
[]
[]
[]
[null,null,null,null,null,null,null,null,null,null,null,null,null,{"$f":"Impresion!E7","v":"Página 3 de 7"}]

{"sheet":"Azure_50_E","index":7,"n_rows":39,"n_cols":14,"rows_kept":39,"cut":false,"hidden":false,"merged":[[12,11,12,12],[11,1,11,5],[11,7,11,8],[12,7,12,8],[12,1,12,5],[15,1,15,13],[5,1,5,2],[5,6,5,7],[6,1,8,2],[6,3,8,3],[6,4,8,4],[6,5,8,5],[6,6,6,7],[6,11,8,11],[6,12,8,12],[6,13,8,13],[7,6,7,7],[8,6,8,7],[11,9,11,10],[12,9,12,10],[11,11,11,12]]}
[]
[]
[null,"Modernización de servidores para"]
[null,{"$f":"Configurador!C7","v":0}]
[]
[null,"Necesidad del cliente y producto",null,"Cuota mensual (*/ **)","Contrata","Descuento","Opciones recomendadas",null,"Cuota por producto (**)","Unidades","Descuento","Total mensual","Total anual","Descuento anual"]
[{"$f":"IF(Configurador!P63>0,1,IF(Configurador!P66>0,2,0))","v":0},{"$f":"IF(A7=1,CONCATENATE(Configurador!B66,\". \",Configurador!L63),IF(A7=2,CONCATENATE(Configurador!B66,\" \",Configurador!L66),\"\"))","v":""},null,{"$f":"IF($A$7=1,Configurador!N63,IF($A$7=2,Configurador!N66,0))","v":0},{"$f":"IF($A$7=1,Configurador!P63,IF($A$7=2,Configurador!P66,0))","v":0},{"$f":"IF($A$7=1,Configurador!Q63,IF($A$7=2,Configurador!Q66,0))","v":0},{"$f":"IF($A$7=1,Configurador!R63,IF($A$7=2,Configurador!R66,0))","v":0},null,{"$f":"IF($A$7=1,Configurador!T63,IF($A$7=2,Configurador!T66,0))","v":0},{"$f":"IF($A$7=1,Configurador!U63,IF($A$7=2,Configurador!U66,0))","v":0},{"$f":"IF($A$7=1,Configurador!V63,IF($A$7=2,Configurador!V66,0))","v":0},{"$f":"IF($A$7=1,Configurador!W63,IF($A$7=2,Configurador!W66,0))","v":0},{"$f":"IF($A$7=1,Configurador!X63,IF($A$7=2,Configurador!X66,0))","v":0},{"$f":"IF($A$7=1,Configurador!Y63,IF($A$7=2,Configurador!Y66,0))","v":0}]
[null,null,null,null,null,null,{"$f":"IF($A$7=1,Configurador!R64,IF($A$7=2,Configurador!R67,0))","v":0},null,{"$f":"IF($A$7=1,Configurador!T64,IF($A$7=2,Configurador!T67,0))","v":0},{"$f":"IF($A$7=1,Configurador!U64,IF($A$7=2,Configurador!U67,0))","v":0},{"$f":"IF($A$7=1,Configurador!V64,IF($A$7=2,Configurador!V67,0))","v":0}]
[null,null,null,null,null,null,{"$f":"IF($A$7=1,Configurador!R65,IF($A$7=2,Configurador!R68,0))","v":0},null,{"$f":"IF($A$7=1,Configurador!T65,IF($A$7=2,Configurador!T68,0))","v":0},{"$f":"IF($A$7=1,Configurador!U65,IF($A$7=2,Configurador!U68,0))","v":0},{"$f":"IF($A$7=1,Configurador!V65,IF($A$7=2,Configurador!V68,0))","v":0}]
[null,"* El precio indicado supone disponibilidad 24h de las Máquinas Virtuales. En caso de no ser necesaria esta disponibilidad, pueden ser apagadas, resultando un menor precio."]
[]
[null,"Licencias de usuario (WS CALs)",null,null,null,null,"Unidades","Cuota mensual unitaria (compromiso anual)",null,"Total mensual",null,"Total anual"]
[null,"Licencia necesaria para conectar con el servidor de Windows",null,null,null,null,{"$f":"IF(A7=1,Configurador!#REF!,IF(A7=2,Configurador!#REF!,0))","v":0},{"$f":"IF(A7=1,Configurador!#REF!,IF(A7=2,Configurador!#REF!,0))","v":0},null,{"$f":"G13*H13","v":0},null,{"$f":"J13*12","v":0}]
[null,{"$f":"CONCATENATE(\"**Los precios indicados en cuota mensual y cuota por producto son PVPs recomendados por Microsoft y no incluyen impuestos indirectos (IVA, IGIC, etc.). Todos los descuentos son ofertados por  \",Configurador!J7)","v":"**Los precios indicados en cuota mensual y cuota por producto son PVPs recomendados por Microsoft y no incluyen impuestos indirectos (IVA, IGIC, etc.). Todos los descuentos son ofertados por  "}]
[null,null,null,null,null,null,null,null,null,null,{"$f":"IF(J7>0,\"Backup\",\"Te recomendamos Backup\")","v":"Te recomendamos Backup"},{"$f":"IF(J8>0,\"Disaster Recovery\",\"Te recomendamos Disaster Recovery\")","v":"Te recomendamos Disaster Recovery"},{"$f":"IF(J9>0,\"SQL Server\",\"Te recomendamos SQL Server\")","v":"Te recomendamos SQL Server"}]
[null,"Modernización de servidores con infrestructura cloud dimensionada hasta 50 usuarios"]
[]
[]
[]
[]
[]
[]
[]
[]
[]
[]
[]
[]
[]
[]
[]
[]
[]
[]
[]
[]
[]
[]
[null,null,null,null,null,null,null,null,null,null,null,null,null,{"$f":"Impresion!E8","v":""}]

{"sheet":"Azure_100_E","index":8,"n_rows":39,"n_cols":14,"rows_kept":39,"cut":false,"hidden":false,"merged":[[12,11,12,12],[11,1,11,5],[11,7,11,8],[12,7,12,8],[12,1,12,5],[15,1,15,13],[5,1,5,2],[5,6,5,7],[6,1,8,2],[6,3,8,3],[6,4,8,4],[6,5,8,5],[6,6,6,7],[6,11,8,11],[6,12,8,12],[6,13,8,13],[7,6,7,7],[8,6,8,7],[11,9,11,10],[12,9,12,10],[11,11,11,12]]}
[]
[]
[null,"Modernización de servidores para"]
[null,{"$f":"Configurador!C7","v":0}]
[]
[null,"Necesidad del cliente y producto",null,"Cuota mensual (*/**)","Unidades","Descuento","Opciones recomendadas",null,"Cuota por producto (**)","Unidades","Descuento","Total mensual","Total anual","Descuento anual"]
[{"$f":"IF(Configurador!P69>0,1,IF(Configurador!P72>0,2,0))","v":0},{"$f":"IF(A7=1,CONCATENATE(Configurador!B72,\". \",Configurador!L69),IF(A7=2,CONCATENATE(Configurador!B72,\" \",Configurador!L72),\"\"))","v":""},null,{"$f":"IF($A$7=1,Configurador!N69,IF($A$7=2,Configurador!N72,0))","v":0},{"$f":"IF($A$7=1,Configurador!P69,IF($A$7=2,Configurador!P72,0))","v":0},{"$f":"IF($A$7=1,Configurador!Q69,IF($A$7=2,Configurador!Q72,0))","v":0},{"$f":"IF($A$7=1,Configurador!R69,IF($A$7=2,Configurador!R72,0))","v":0},null,{"$f":"IF($A$7=1,Configurador!T69,IF($A$7=2,Configurador!T72,0))","v":0},{"$f":"IF($A$7=1,Configurador!U69,IF($A$7=2,Configurador!U72,0))","v":0},{"$f":"IF($A$7=1,Configurador!V69,IF($A$7=2,Configurador!V72,0))","v":0},{"$f":"IF($A$7=1,Configurador!W69,IF($A$7=2,Configurador!W72,0))","v":0},{"$f":"IF($A$7=1,Configurador!X69,IF($A$7=2,Configurador!X72,0))","v":0},{"$f":"IF($A$7=1,Configurador!Y69,IF($A$7=2,Configurador!Y72,0))","v":0}]
[null,null,null,null,null,null,{"$f":"IF($A$7=1,Configurador!R70,IF($A$7=2,Configurador!R73,0))","v":0},null,{"$f":"IF($A$7=1,Configurador!T70,IF($A$7=2,Configurador!T73,0))","v":0},{"$f":"IF($A$7=1,Configurador!U70,IF($A$7=2,Configurador!U72,0))","v":0},{"$f":"IF($A$7=1,Configurador!V70,IF($A$7=2,Configurador!V73,0))","v":0}]
[null,null,null,null,null,null,{"$f":"IF($A$7=1,Configurador!R71,IF($A$7=2,Configurador!R74,0))","v":0},null,{"$f":"IF($A$7=1,Configurador!T71,IF($A$7=2,Configurador!T74,0))","v":0},{"$f":"IF($A$7=1,Configurador!U71,IF($A$7=2,Configurador!U74,0))","v":0},{"$f":"IF($A$7=1,Configurador!V71,IF($A$7=2,Configurador!V74,0))","v":0}]
[null,"* El precio indicado supone disponibilidad 24h de las Máquinas Virtuales. En caso de no ser necesaria esta disponibilidad, pueden ser apagadas, resultando un menor precio."]
[null,{"$f":"CONCATENATE(\"**Los precios indicados en cuota mensual y cuota por producto son PVPs recomendados por Microsoft y no incluyen impuestos indirectos (IVA, IGIC, etc.). Todos los descuentos son ofertados por  \",Configurador!J7)","v":"**Los precios indicados en cuota mensual y cuota por producto son PVPs recomendados por Microsoft y no incluyen impuestos indirectos (IVA, IGIC, etc.). Todos los descuentos son ofertados por  "}]
[null,"Licencias de usuario (WS CALs)",null,null,null,null,"Unidades","Cuota mensual unitaria (compromiso anual)",null,"Total mensual",null,"Total anual"]
[null,"Licencia necesaria para conectar con el servidor de Windows",null,null,null,null,{"$f":"IF(A7=1,Configurador!#REF!,IF(A7=2,Configurador!#REF!,0))","v":0},{"$f":"IF(A7=1,Configurador!#REF!,IF(A7=2,Configurador!#REF!,0))","v":0},null,{"$f":"G13*H13","v":0},null,{"$f":"J13*12","v":0}]
[]
[null,null,null,null,null,null,null,null,null,null,{"$f":"IF(J7>0,\"Backup\",\"Te recomendamos Backup\")","v":"Te recomendamos Backup"},{"$f":"IF(J8>0,\"Disaster Recovery\",\"Te recomendamos Disaster Recovery\")","v":"Te recomendamos Disaster Recovery"},{"$f":"IF(J9>0,\"SQL Server\",\"Te recomendamos SQL Server\")","v":"Te recomendamos SQL Server"}]
[null,"Modernización de servidores con infrestructura cloud dimensionada para 100 usuarios"]
[]
[]
[]
[]
[]
[]
[]
[]
[]
[]
[]
[]
[]
[]
[]
[]
[]
[]
[]
[]
[]
[]
[null,null,null,null,null,null,null,null,null,null,null,null,null,{"$f":"Impresion!E9","v":""}]

{"sheet":"Azure_Custom_E","index":9,"n_rows":38,"n_cols":14,"rows_kept":38,"cut":false,"hidden":false,"merged":[[5,1,5,8],[6,11,8,11],[6,12,8,12],[6,13,8,13],[14,1,14,13],[6,1,8,8],[6,9,8,9],[6,10,8,10],[10,1,10,5],[11,1,11,5],[10,7,10,8],[11,7,11,8],[10,9,10,10],[11,9,11,10],[10,11,10,12],[11,11,11,12]]}
[]
[]
[null,"Modernización de servidores para"]
[null,{"$f":"Configurador!C7","v":0}]
[]
[null,"Descripción de la configuración demandada",null,null,null,null,null,null,null,"Cuota mensual (*)","Descuento","Total mensual","Total anual","Descuento anual"]
[null,{"$f":"Configurador!E75","v":0},null,null,null,null,null,null,null,{"$f":"Configurador!N75","v":0},{"$f":"Configurador!Q75","v":0},{"$f":"Configurador!W75","v":0},{"$f":"Configurador!X75","v":0},{"$f":"Configurador!Y75","v":0}]
[]
[]
[]
[null,"Licencias de usuario (WS CALs)",null,null,null,null,"Unidades","Cuota mensual unitaria (compromiso anual)",null,"Total mensual",null,"Total anual"]
[null,"Licencia necesaria para conectar con el servidor de Windows",null,null,null,null,{"$f":"Configurador!#REF!","v":{"$error":"#REF!"}},{"$f":"Configurador!#REF!","v":{"$error":"#REF!"}},null,{"$f":"G12*H12","v":{"$error":"#REF!"}},null,{"$f":"J12*12","v":{"$error":"#REF!"}}]
[null,{"$f":"CONCATENATE(\"*Los precios indicados en cuota mensual  no incluyen impuestos indirectos (IVA, IGIC, etc.). Todos los descuentos son ofertados por  \",Configurador!J7)","v":"*Los precios indicados en cuota mensual  no incluyen impuestos indirectos (IVA, IGIC, etc.). Todos los descuentos son ofertados por  "}]
[]
[null,"Arquitectura de servidores solicitada"]
[]
[]
[]
[]
[]
[]
[]
[]
[]
[]
[]
[]
[]
[]
[]
[]
[]
[]
[]
[]
[]
[]
[null,null,null,null,null,null,null,null,null,null,null,null,null,{"$f":"Impresion!E10","v":""}]

{"sheet":"Server_E","index":10,"n_rows":35,"n_cols":18,"rows_kept":35,"cut":false,"hidden":false,"merged":[[5,6,5,7],[6,6,6,7],[7,6,7,7],[8,1,8,8],[12,1,12,17],[6,1,6,2],[7,1,7,2],[5,3,5,5],[6,3,6,5],[7,3,7,5],[5,1,5,2],[10,1,10,8]]}
[]
[]
[null,"Modernización de servidores para"]
[null,{"$f":"Configurador!C7","v":0}]
[]
[null,"Necesidad del cliente",null,"Descripción",null,null,"Producto",null,"Tipo de licencia","Duración","Precio total (*)","Uds.","Dcto.","WS CAL","Precio unitario (*)","RDS CAL (**)\n(opcional)","Precio unitario (*)","Total"]
[null,{"$f":"Configurador!B79","v":" Modernización BBDD OnPremise preparada para el Cloud"},null,{"$f":"Configurador!E79","v":"Esta modalidad permite actualizar a la última versión su BBDD con los beneficios que conlleva y aprovechar la inversión para su implementación en nube cuando esté preparado sin necesidad de volver a invertir. Haga inversiones consistentes para su cloud híbrido."},null,null,{"$f":"Configurador!L79","v":"SQL Server Standard Core (mínimo 4 cores)"},null,{"$f":"Configurador!N79","v":"2 Core License Pack"},{"$f":"Configurador!Q79","v":0},{"$f":"Configurador!R79","v":0},{"$f":"Configurador!S79","v":0},{"$f":"Configurador!T79","v":0},{"$f":"Configurador!U79","v":"No aplica"},{"$f":"Configurador!V79","v":"No aplica"},{"$f":"Configurador!W79","v":"No aplica"},{"$f":"Configurador!X79","v":"No aplica"},{"$f":"Configurador!Y79","v":0}]
[null,{"$f":"Configurador!B80","v":"Modernización de Servidores OnPremise preparados para el Cloud"},null,{"$f":"Configurador!E80","v":"Esta modalidad permite actualizar a la última versión su infraestructura de servidores con los beneficios que conlleva y aprovechar  la inversión para su implementación en nube cuando esté preparado si necesidad de volver a invertir. Haga inversiones consistentes para su cloud híbrido."},null,null,{"$f":"Configurador!L80","v":"Windows Server Standard Core (mínimo 16 cores)"},null,{"$f":"Configurador!N80","v":"8 Core License Pack"},{"$f":"Configurador!Q80","v":0},{"$f":"Configurador!R80","v":0},{"$f":"Configurador!S80","v":0},{"$f":"Configurador!T80","v":0},{"$f":"Configurador!U80","v":0},{"$f":"Configurador!V80","v":0},{"$f":"Configurador!W80","v":0},{"$f":"Configurador!X80","v":0},{"$f":"Configurador!Y80","v":0}]
[null,null,null,null,null,null,null,null,null,null,null,{"$f":"SUM(L7:L8)","v":0},null,{"$f":"SUM(N7:N8)","v":0},null,{"$f":"SUM(P7:P8)","v":0},null,{"$f":"SUM(R7:R8)","v":0}]
[null,{"$f":"CONCATENATE(\"*Los precios indicados en Precio total y Precio unitario son PVPs recomendados por Microsoft y no incluyen impuestos indirectos (IVA, IGIC, etc.). Todos los descuentos son ofertados por  \",Configurador!J7)","v":"*Los precios indicados en Precio total y Precio unitario son PVPs recomendados por Microsoft y no incluyen impuestos indirectos (IVA, IGIC, etc.). Todos los descuentos son ofertados por  "}]
[null,"**Licencia que le permite publicar sus aplicaciones o servicios en remoto a través de RDS ( Remote Desktop Services)"]
[]
[null,"Modernización de servidores Windows y SQL"]
[]
[]
[]
[]
[]
[]
[]
[]
[]
[]
[]
[]
[]
[]
[]
[]
[]
[]
[]
[]
[]
[null,null,null,null,null,null,null,null,null,null,null,null,null,null,null,null,null,{"$f":"Impresion!E11","v":""}]

{"sheet":"BusApps_Generica_E","index":11,"n_rows":43,"n_cols":14,"rows_kept":43,"cut":false,"hidden":false,"merged":[[23,1,23,13],[13,6,13,10],[6,1,6,13],[2,1,4,10]]}
[]
[]
[null,"Le recomendamos las aplicaciones de negocio de Microsoft para simplificar y conectar los procesos empresariales, mejorar las interacciones con los clientes y facilitar el crecimiento"]
[]
[]
[]
[null,"Dynamics 365 Business Central: el ERP adaptado a las necesidades de las Pymes"]
[]
[]
[]
[]
[null,null,null,null,null,null,null,null,null,null,{"$f":"IF(AND(L7=0,L9=0),\"Te recomendamos Advanced Threat Protection\",\"Advanced Threat Protection\")","v":"Te recomendamos Advanced Threat Protection"}]
[]
[]
[]
[]
[]
[]
[]
[]
[]
[]
[]
[null,"Aplicaciones de negocio integradas con Office 365"]
[]
[]
[]
[]
[]
[]
[]
[]
[]
[]
[]
[]
[]
[]
[]
[]
[]
[]
[null,null,null,null,null,null,null,null,null,null,null,null,null,{"$f":"Impresion!E12","v":"Página 4 de 7"}]

{"sheet":"Dynamics_E","index":12,"n_rows":41,"n_cols":14,"rows_kept":41,"cut":false,"hidden":false,"merged":[[8,1,8,4],[8,5,8,7],[34,1,34,13],[35,1,35,13],[13,1,13,13],[5,1,5,4],[5,5,5,7],[6,1,6,4],[6,5,6,7],[7,1,7,4],[7,5,7,7]]}
[]
[]
[null,"Dynamics 365 Business Central para"]
[null,{"$f":"Configurador!C7","v":0}]
[]
[null,"Necesidad del cliente",null,null,null,"Producto",null,null,"Cuota ususario / mes  (*/**)","Usuarios","Descuento","Total mensual","Total anual","Total dto. anual"]
[null,{"$f":"Configurador!B87","v":"Gestión Avanzada de recursos empresariales"},null,null,null,{"$f":"Configurador!E87","v":"Dynamics 365 \nBusiness Central Premium"},null,null,{"$f":"Configurador!N87","v":84.33},{"$f":"Configurador!P87","v":0},{"$f":"Configurador!Q87","v":0},{"$f":"Configurador!R87","v":0},{"$f":"Configurador!S87","v":0},{"$f":"Configurador!T87","v":0}]
[null,{"$f":"Configurador!B88","v":"Gestión de recursos empresariales"},null,null,null,{"$f":"Configurador!E88","v":"Dynamics 365 \nBusiness Central Essentials"},null,null,{"$f":"Configurador!N88","v":59.03},{"$f":"Configurador!P88","v":0},{"$f":"Configurador!Q88","v":0},{"$f":"Configurador!R88","v":0},{"$f":"Configurador!S88","v":0},{"$f":"Configurador!T88","v":0}]
[null,{"$f":"Configurador!B89","v":"Proveer acceso a información básica de negocio a determinados usuarios de la organización"},null,null,null,{"$f":"Configurador!E89","v":"Dynamics 365 \nBusiness Central Team Members"},null,null,{"$f":"Configurador!N89","v":6.76},{"$f":"Configurador!P89","v":0},{"$f":"Configurador!Q89","v":0},{"$f":"Configurador!R89","v":0},{"$f":"Configurador!S89","v":0},{"$f":"Configurador!T89","v":0}]
[]
[null,"* Las cuotas indicadas sólo incluyen licencia. No incluye configuración y formación"]
[null,{"$f":"CONCATENATE(\"**Los precios indicados en cuota por usuario/mes son PVPs recomendados por Microsoft y no incluyen impuestos indirectos (IVA, IGIC, etc.). Todos los descuentos son ofertados por  \",Configurador!J7)","v":"**Los precios indicados en cuota por usuario/mes son PVPs recomendados por Microsoft y no incluyen impuestos indirectos (IVA, IGIC, etc.). Todos los descuentos son ofertados por  "}]
[]
[null,"Funcionalidades disponibles en todos los productos"]
[]
[]
[]
[]
[]
[]
[]
[]
[]
[]
[]
[]
[]
[]
[]
[]
[]
[]
[]
[]
[null,"(1) Uso de Power BI con Microsoft Dynamics 365: https://docs.microsoft.com/es-es/previous-versions/dynamicscrm-2016/administering-dynamics-365/dn708055(v=crm.8) "]
[null,"(2) Power Apps: Plataforma para crear aplicaciones para publicar en la Web, iOS, Android y Windows 10 de forma muy rápida con plantillas o con un lienzo en blanco. Más información en: https://powerapps.microsoft.com/es-es/ "]
[null,"(3) Flow: Crear flujos de trabajo automatizados entre sus aplicaciones y servicios favoritos para obtener notificaciones, sincronizar archivos, recopilar datos y mucho más. Más información en: https://flow.microsoft.com/es-es/ "]
[]
[null,"Enlace a más información sobre Microsoft Dynamics 365 Business Central: https://dynamics.microsoft.com/es-es/business-central/overview/ "]
[]
[null,null,null,null,null,null,null,null,null,null,null,null,null,{"$f":"Impresion!E13","v":""}]

{"sheet":"Dynamics_Sales_E","index":13,"n_rows":49,"n_cols":14,"rows_kept":49,"cut":false,"hidden":false,"merged":[[2,1,2,10],[41,1,41,13],[40,1,40,13],[5,1,5,4],[5,5,5,7],[6,1,6,4],[6,5,6,7],[7,1,7,4],[7,5,7,7],[8,1,8,4],[8,5,8,7],[13,1,13,13],[11,1,11,13]]}
[]
[]
[null,"Le recomendamos las aplicaciones de negocio de Microsoft para para simplificar y conectar los procesos empresariales, mejorar las interacciones con los clientes y facilitar el crecimiento"]
[null,{"$f":"Configurador!C7","v":0}]
[]
[null,"Necesidad del cliente",null,null,null,"Producto",null,null,"Cuota ususario / mes  (*/**)","Usuarios","Descuento","Total mensual","Total anual","Total dto. anual"]
[null,{"$f":"Configurador!B90","v":"Solución de automatización de fuerza de ventas"},null,null,null,{"$f":"Configurador!E90","v":"Dynamics 365 for Sales Professional"},null,null,{"$f":"Configurador!N90","v":54.8},{"$f":"Configurador!P90","v":0},{"$f":"Configurador!Q90","v":0},{"$f":"Configurador!R90","v":0},{"$f":"Configurador!S90","v":0},{"$f":"Configurador!T90","v":0}]
[null,{"$f":"Configurador!B91","v":"Solución de inteligencia de negocio"},null,null,null,{"$f":"Configurador!E91","v":"Power BI"},null,null,{"$f":"Configurador!N91","v":8.4},{"$f":"Configurador!P91","v":0},{"$f":"Configurador!Q91","v":0},{"$f":"Configurador!R91","v":0},{"$f":"Configurador!S91","v":0},{"$f":"Configurador!T91","v":0}]
[null,{"$f":"Configurador!B92","v":"Entorno para construir aplicaciones de negocio sin necesidad de código"},null,null,null,{"$f":"Configurador!E92","v":"Power Apps"},null,null,{"$f":"Configurador!N92","v":"7,00 €  ***"},{"$f":"Configurador!P92","v":0},{"$f":"Configurador!Q92","v":0},{"$f":"Configurador!R92","v":0},{"$f":"Configurador!S92","v":0},{"$f":"Configurador!T92","v":0}]
[]
[null,{"$f":"CONCATENATE(\"   * Los precios indicados en cuota usuario/mes son PVPs recomendados por Microsoft y no incluyen impuestos indirectos (IVA, IGIC, etc.). Todos los descuentos son ofertados por  \",Configurador!J7)","v":"   * Los precios indicados en cuota usuario/mes son PVPs recomendados por Microsoft y no incluyen impuestos indirectos (IVA, IGIC, etc.). Todos los descuentos son ofertados por  "}]
[null,"  ** Las cuotas indicadas sólo incluyen licencia. No incluye configuración y formación\n*** Plan 1 Power Apps= Incluye derechos de uso del modelo común de datos de Dynamcis 365 (20 MS de capacidad de BBDD), incluye conectores estándar, premium, a medida y en local. Incluye 4500 flujos de trabajo de Microsoft Flow"]
[]
[null,"Aplicaciones de negocio inteligentes"]
[]
[]
[]
[]
[]
[]
[]
[]
[]
[]
[]
[]
[]
[]
[]
[]
[]
[]
[]
[]
[]
[]
[]
[]
[]
[]
[null,"(1) Dynamics 365 for Sales Professional. Más información en: https://dynamics.microsoft.com/es-es/sales/professional/"]
[null,"(2) Power BI. Más información en: https://powerbi.microsoft.com/es-es/"]
[null,"(3) Power Apps. Más información en: https://powerapps.microsoft.com/es-es/"]
[]
[]
[]
[]
[]
[null,null,null,null,null,null,null,null,null,null,null,null,null,{"$f":"Impresion!E14","v":""}]

{"sheet":"Add-in_E","index":14,"n_rows":40,"n_cols":15,"rows_kept":40,"cut":false,"hidden":false,"merged":[[8,1,8,4],[8,5,8,7],[12,1,12,13],[5,1,5,4],[5,5,5,7],[6,1,6,4],[6,5,6,7],[7,1,7,4],[7,5,7,7]]}
[]
[]
[null,"Aplicaciones de negocio integradas con Office para"]
[null,{"$f":"Configurador!C7","v":0}]
[]
[null,"Necesidad del cliente",null,null,null,"Producto",null,null,"Cuota ususario / mes  (*/**)","Usuarios","Descuento","Total mensual","Total anual","Total dto. anual"]
[null,{"$f":"Configurador!B93","v":"Seguimiento de clientes"},null,null,null,{"$f":"Configurador!E93","v":"Outlook Customer Manager (add in O365)"},null,null,{"$f":"Configurador!N93","v":"Incluido con M365 Empresa y O365 Empresa Premium"},{"$f":"Configurador!P93","v":0},{"$f":"Configurador!Q93","v":"No aplica"},{"$f":"Configurador!R93","v":0},{"$f":"Configurador!T93","v":0},{"$f":"Configurador!T87","v":0}]
[null,{"$f":"Configurador!B94","v":"Organización del trabajo en equipo"},null,null,null,{"$f":"Configurador!E94","v":"Planner (add in O365)"},null,null,{"$f":"Configurador!N94","v":"Incluido con M365 Empresa y O365 Empresa"},{"$f":"Configurador!P94","v":0},{"$f":"Configurador!Q94","v":"No aplica"},{"$f":"Configurador!R94","v":0},{"$f":"Configurador!T94","v":0},{"$f":"Configurador!T88","v":0}]
[null,{"$f":"Configurador!B95","v":"Gestión de citas online"},null,null,null,{"$f":"Configurador!E95","v":"Bookings (add in O365)"},null,null,{"$f":"Configurador!N95","v":"Incluido con M365 Empresa y O365 Empresa Premium"},{"$f":"Configurador!P95","v":0},{"$f":"Configurador!Q95","v":"No aplica"},{"$f":"Configurador!R95","v":0},{"$f":"Configurador!T95","v":0},{"$f":"Configurador!T89","v":0}]
[]
[null,"* Las cuotas indicadas sólo incluyen licencia. No incluye configuración y formación"]
[null,{"$f":"CONCATENATE(\"**Los precios indicados en cuota usuario/mes son PVPs recomendados por Microsoft y no incluyen impuestos indirectos (IVA, IGIC, etc.). Todos los descuentos son ofertados por  \",Configurador!J7)","v":"**Los precios indicados en cuota usuario/mes son PVPs recomendados por Microsoft y no incluyen impuestos indirectos (IVA, IGIC, etc.). Todos los descuentos son ofertados por  "}]
[null,"Aplicaciones de negocio integradas con Office 365"]
[]
[]
[]
[]
[]
[]
[]
[]
[]
[]
[]
[]
[]
[]
[null,null,null,null,null,null,null,null,null,null,null,null,null,null,"+"]
[]
[]
[]
[]
[]
[]
[]
[]
[]
[]
[]
[null,null,null,null,null,null,null,null,null,null,null,null,null,{"$f":"Impresion!E15","v":""}]

{"sheet":"Surface_Generica_E","index":15,"n_rows":42,"n_cols":16,"rows_kept":42,"cut":false,"hidden":false,"merged":[[2,2,3,11]]}
[]
[]
[null,null,"Le recomendamos los dispositivos Surface para mejorar la productividad de su negocio"]
[]
[]
[]
[]
[]
[]
[null,null,null,null,null,null,null,null,null,null,null,{"$f":"IF(AND(L8=0,L9=0),\"Te recomendamos Enterprise Mobility and Security\",\"Enterprise Mobility and Security\")","v":"Te recomendamos Enterprise Mobility and Security"}]
[]
[]
[]
[]
[]
[]
[]
[]
[]
[]
[]
[]
[]
[]
[]
[]
[]
[]
[]
[]
[]
[]
[]
[]
[]
[]
[]
[]
[]
[]
[]
[null,null,null,null,null,null,null,null,null,null,null,null,null,null,null,{"$f":"Impresion!E16","v":"Página 5 de 7"}]

{"sheet":"SurfacePro_E","index":16,"n_rows":38,"n_cols":17,"rows_kept":38,"cut":false,"hidden":false,"merged":[[24,1,24,3],[25,1,26,3],[25,6,26,6],[25,7,26,7],[25,12,26,12],[25,14,26,14],[27,1,28,3],[27,6,28,6],[27,7,28,7],[27,12,28,12],[27,13,28,13],[27,14,28,14],[25,13,26,13],[31,1,32,3],[31,6,32,6],[31,7,32,7],[31,12,32,12],[29,1,30,3],[29,6,30,6],[29,7,30,7],[33,1,34,3],[33,6,34,6],[33,7,34,7],[33,12,34,12],[33,13,34,13],[31,16,32,16],[33,14,34,14],[25,4,26,4],[25,5,26,5],[25,8,26,8],[25,15,26,15],[25,16,26,16],[27,4,28,4],[27,5,28,5],[29,4,30,4],[29,5,30,5],[31,13,32,13],[31,14,32,14],[29,12,30,12],[29,13,30,13],[29,14,30,14],[5,1,5,16],[33,15,34,15],[33,16,34,16],[27,8,28,8],[29,8,30,8],[31,8,32,8],[33,8,34,8],[31,4,32,4],[31,5,32,5],[33,4,34,4],[33,5,34,5],[27,15,28,15],[27,16,28,16],[29,15,30,15],[29,16,30,16],[31,15,32,15]]}
[]
[]
[null,"Dispositivos Surface Pro para:"]
[null,{"$f":"Configurador!C7","v":0}]
[]
[null,"Surface Pro: un equipo versátil, 2 en 1 en potencia y movilidad, para usar en el puesto de trabajo o llevar consigo"]
[]
[]
[]
[null,null,null,null,null,null,null,null,null,null,{"$f":"IF(AND(K8=0,K9=0),\"Te recomendamos Enterprise Mobility and Security\",\"Enterprise Mobility and Security\")","v":"Te recomendamos Enterprise Mobility and Security"}]
[]
[]
[]
[]
[]
[]
[]
[]
[]
[]
[]
[]
[]
[]
[null,"Pantalla/Procesador/ Memoria/Disco duro/LTE",null,null,"Tipo de pago","Precio en pago único","Precio en cuota mensual","Dcto.","Nº Equipos","Accesorios -\nGarantía","Precio unitario","Dcto.","Total pago inicial","Total mensual","Total primer año","Total años sucesivos","Total dto. primer año"]
[1,{"$f":"IF(ISERROR(VLOOKUP($A26,LN_Surface!$C$62:$Y$66,LN_Surface!I$70,FALSE)),\"\",VLOOKUP($A26,LN_Surface!$C$62:$Y$66,LN_Surface!I$70,FALSE))","v":""},null,null,{"$f":"IF(ISERROR(VLOOKUP($A26,LN_Surface!$C$62:$Y$66,LN_Surface!J$70,FALSE)),\"\",VLOOKUP($A26,LN_Surface!$C$62:$Y$66,LN_Surface!J$70,FALSE))","v":""},{"$f":"IF(ISERROR(VLOOKUP($A26,LN_Surface!$C$62:$Y$66,LN_Surface!K$70,FALSE)),\"\",VLOOKUP($A26,LN_Surface!$C$62:$Y$66,LN_Surface!K$70,FALSE))","v":""},{"$f":"IF(ISERROR(VLOOKUP($A26,LN_Surface!$C$62:$Y$66,LN_Surface!L$70,FALSE)),\"\",VLOOKUP($A26,LN_Surface!$C$62:$Y$66,LN_Surface!L$70,FALSE))","v":""},{"$f":"IF(ISERROR(VLOOKUP($A26,LN_Surface!$C$62:$Y$66,LN_Surface!M$70,FALSE)),\"\",VLOOKUP($A26,LN_Surface!$C$62:$Y$66,LN_Surface!M$70,FALSE))","v":""},{"$f":"IF(ISERROR(VLOOKUP($A26,LN_Surface!$C$62:$Y$66,LN_Surface!N$70,FALSE)),\"\",VLOOKUP($A26,LN_Surface!$C$62:$Y$66,LN_Surface!N$70,FALSE))","v":""},{"$f":"IF(ISERROR(VLOOKUP($A26,LN_Surface!$C$62:$Y$66,LN_Surface!O$70,FALSE)),\"\",VLOOKUP($A26,LN_Surface!$C$62:$Y$66,LN_Surface!O$70,FALSE))","v":""},{"$f":"IF(ISERROR(VLOOKUP($A26,LN_Surface!$C$62:$Y$66,LN_Surface!P$70,FALSE)),\"\",VLOOKUP($A26,LN_Surface!$C$62:$Y$66,LN_Surface!P$70,FALSE))","v":""},{"$f":"IF(ISERROR(VLOOKUP($A26,LN_Surface!$C$62:$Y$66,LN_Surface!Q$70,FALSE)),\"\",VLOOKUP($A26,LN_Surface!$C$62:$Y$66,LN_Surface!Q$70,FALSE))","v":""},{"$f":"IF(ISERROR(VLOOKUP($A26,LN_Surface!$C$62:$Y$66,LN_Surface!U$70,FALSE)),\"\",VLOOKUP($A26,LN_Surface!$C$62:$Y$66,LN_Surface!U$70,FALSE))","v":""},{"$f":"IF(ISERROR(VLOOKUP($A26,LN_Surface!$C$62:$Y$66,LN_Surface!V$70,FALSE)),\"\",VLOOKUP($A26,LN_Surface!$C$62:$Y$66,LN_Surface!V$70,FALSE))","v":""},{"$f":"IF(ISERROR(VLOOKUP($A26,LN_Surface!$C$62:$Y$66,LN_Surface!W$70,FALSE)),\"\",VLOOKUP($A26,LN_Surface!$C$62:$Y$66,LN_Surface!W$70,FALSE))","v":""},{"$f":"IF(ISERROR(VLOOKUP($A26,LN_Surface!$C$62:$Y$66,LN_Surface!X$70,FALSE)),\"\",VLOOKUP($A26,LN_Surface!$C$62:$Y$66,LN_Surface!X$70,FALSE))","v":""},{"$f":"IF(ISERROR(VLOOKUP($A26,LN_Surface!$C$62:$Y$66,LN_Surface!Y$70,FALSE)),\"\",VLOOKUP($A26,LN_Surface!$C$62:$Y$66,LN_Surface!Y$70,FALSE))","v":""}]
[null,null,null,null,null,null,null,null,null,{"$f":"IF((IF(ISERROR(VLOOKUP($A26,LN_Surface!$C$62:$Y$66,LN_Surface!R$70,FALSE)),\"\",VLOOKUP($A26,LN_Surface!$C$62:$Y$66,LN_Surface!R$70,FALSE)))=0,\"Estándar\",IF(ISERROR(VLOOKUP($A26,LN_Surface!$C$62:$Y$66,LN_Surface!R$70,FALSE)),\"\",VLOOKUP($A26,LN_Surface!$C$62:$Y$66,LN_Surface!R$70,FALSE)))","v":""},{"$f":"IF(ISERROR(VLOOKUP($A26,LN_Surface!$C$62:$Y$66,LN_Surface!S$70,FALSE)),\"\",VLOOKUP($A26,LN_Surface!$C$62:$Y$66,LN_Surface!S$70,FALSE))","v":""},{"$f":"IF(ISERROR(VLOOKUP($A26,LN_Surface!$C$62:$Y$66,LN_Surface!T$70,FALSE)),\"\",VLOOKUP($A26,LN_Surface!$C$62:$Y$66,LN_Surface!T$70,FALSE))","v":""}]
[2,{"$f":"IF(ISERROR(VLOOKUP($A28,LN_Surface!$C$62:$Y$66,LN_Surface!I$70,FALSE)),\"\",VLOOKUP($A28,LN_Surface!$C$62:$Y$66,LN_Surface!I$70,FALSE))","v":""},null,null,{"$f":"IF(ISERROR(VLOOKUP($A28,LN_Surface!$C$62:$Y$66,LN_Surface!J$70,FALSE)),\"\",VLOOKUP($A28,LN_Surface!$C$62:$Y$66,LN_Surface!J$70,FALSE))","v":""},{"$f":"IF(ISERROR(VLOOKUP($A28,LN_Surface!$C$62:$Y$66,LN_Surface!K$70,FALSE)),\"\",VLOOKUP($A28,LN_Surface!$C$62:$Y$66,LN_Surface!K$70,FALSE))","v":""},{"$f":"IF(ISERROR(VLOOKUP($A28,LN_Surface!$C$62:$Y$66,LN_Surface!L$70,FALSE)),\"\",VLOOKUP($A28,LN_Surface!$C$62:$Y$66,LN_Surface!L$70,FALSE))","v":""},{"$f":"IF(ISERROR(VLOOKUP($A28,LN_Surface!$C$62:$Y$66,LN_Surface!M$70,FALSE)),\"\",VLOOKUP($A28,LN_Surface!$C$62:$Y$66,LN_Surface!M$70,FALSE))","v":""},{"$f":"IF(ISERROR(VLOOKUP($A28,LN_Surface!$C$62:$Y$66,LN_Surface!N$70,FALSE)),\"\",VLOOKUP($A28,LN_Surface!$C$62:$Y$66,LN_Surface!N$70,FALSE))","v":""},{"$f":"IF(ISERROR(VLOOKUP($A28,LN_Surface!$C$62:$Y$66,LN_Surface!O$70,FALSE)),\"\",VLOOKUP($A28,LN_Surface!$C$62:$Y$66,LN_Surface!O$70,FALSE))","v":""},{"$f":"IF(ISERROR(VLOOKUP($A28,LN_Surface!$C$62:$Y$66,LN_Surface!P$70,FALSE)),\"\",VLOOKUP($A28,LN_Surface!$C$62:$Y$66,LN_Surface!P$70,FALSE))","v":""},{"$f":"IF(ISERROR(VLOOKUP($A28,LN_Surface!$C$62:$Y$66,LN_Surface!Q$70,FALSE)),\"\",VLOOKUP($A28,LN_Surface!$C$62:$Y$66,LN_Surface!Q$70,FALSE))","v":""},{"$f":"IF(ISERROR(VLOOKUP($A28,LN_Surface!$C$62:$Y$66,LN_Surface!U$70,FALSE)),\"\",VLOOKUP($A28,LN_Surface!$C$62:$Y$66,LN_Surface!U$70,FALSE))","v":""},{"$f":"IF(ISERROR(VLOOKUP($A28,LN_Surface!$C$62:$Y$66,LN_Surface!V$70,FALSE)),\"\",VLOOKUP($A28,LN_Surface!$C$62:$Y$66,LN_Surface!V$70,FALSE))","v":""},{"$f":"IF(ISERROR(VLOOKUP($A28,LN_Surface!$C$62:$Y$66,LN_Surface!W$70,FALSE)),\"\",VLOOKUP($A28,LN_Surface!$C$62:$Y$66,LN_Surface!W$70,FALSE))","v":""},{"$f":"IF(ISERROR(VLOOKUP($A28,LN_Surface!$C$62:$Y$66,LN_Surface!X$70,FALSE)),\"\",VLOOKUP($A28,LN_Surface!$C$62:$Y$66,LN_Surface!X$70,FALSE))","v":""},{"$f":"IF(ISERROR(VLOOKUP($A28,LN_Surface!$C$62:$Y$66,LN_Surface!Y$70,FALSE)),\"\",VLOOKUP($A28,LN_Surface!$C$62:$Y$66,LN_Surface!Y$70,FALSE))","v":""}]
[null,null,null,null,null,null,null,null,null,{"$f":"IF((IF(ISERROR(VLOOKUP($A28,LN_Surface!$C$62:$Y$66,LN_Surface!R$70,FALSE)),\"\",VLOOKUP($A28,LN_Surface!$C$62:$Y$66,LN_Surface!R$70,FALSE)))=0,\"Estándar\",IF(ISERROR(VLOOKUP($A28,LN_Surface!$C$62:$Y$66,LN_Surface!R$70,FALSE)),\"\",VLOOKUP($A28,LN_Surface!$C$62:$Y$66,LN_Surface!R$70,FALSE)))","v":""},{"$f":"IF(ISERROR(VLOOKUP($A28,LN_Surface!$C$62:$Y$66,LN_Surface!S$70,FALSE)),\"\",VLOOKUP($A28,LN_Surface!$C$62:$Y$66,LN_Surface!S$70,FALSE))","v":""},{"$f":"IF(ISERROR(VLOOKUP($A28,LN_Surface!$C$62:$Y$66,LN_Surface!T$70,FALSE)),\"\",VLOOKUP($A28,LN_Surface!$C$62:$Y$66,LN_Surface!T$70,FALSE))","v":""}]
[3,{"$f":"IF(ISERROR(VLOOKUP($A30,LN_Surface!$C$62:$Y$66,LN_Surface!I$70,FALSE)),\"\",VLOOKUP($A30,LN_Surface!$C$62:$Y$66,LN_Surface!I$70,FALSE))","v":""},null,null,{"$f":"IF(ISERROR(VLOOKUP($A30,LN_Surface!$C$62:$Y$66,LN_Surface!J$70,FALSE)),\"\",VLOOKUP($A30,LN_Surface!$C$62:$Y$66,LN_Surface!J$70,FALSE))","v":""},{"$f":"IF(ISERROR(VLOOKUP($A30,LN_Surface!$C$62:$Y$66,LN_Surface!K$70,FALSE)),\"\",VLOOKUP($A30,LN_Surface!$C$62:$Y$66,LN_Surface!K$70,FALSE))","v":""},{"$f":"IF(ISERROR(VLOOKUP($A30,LN_Surface!$C$62:$Y$66,LN_Surface!L$70,FALSE)),\"\",VLOOKUP($A30,LN_Surface!$C$62:$Y$66,LN_Surface!L$70,FALSE))","v":""},{"$f":"IF(ISERROR(VLOOKUP($A30,LN_Surface!$C$62:$Y$66,LN_Surface!M$70,FALSE)),\"\",VLOOKUP($A30,LN_Surface!$C$62:$Y$66,LN_Surface!M$70,FALSE))","v":""},{"$f":"IF(ISERROR(VLOOKUP($A30,LN_Surface!$C$62:$Y$66,LN_Surface!N$70,FALSE)),\"\",VLOOKUP($A30,LN_Surface!$C$62:$Y$66,LN_Surface!N$70,FALSE))","v":""},{"$f":"IF(ISERROR(VLOOKUP($A30,LN_Surface!$C$62:$Y$66,LN_Surface!O$70,FALSE)),\"\",VLOOKUP($A30,LN_Surface!$C$62:$Y$66,LN_Surface!O$70,FALSE))","v":""},{"$f":"IF(ISERROR(VLOOKUP($A30,LN_Surface!$C$62:$Y$66,LN_Surface!P$70,FALSE)),\"\",VLOOKUP($A30,LN_Surface!$C$62:$Y$66,LN_Surface!P$70,FALSE))","v":""},{"$f":"IF(ISERROR(VLOOKUP($A30,LN_Surface!$C$62:$Y$66,LN_Surface!Q$70,FALSE)),\"\",VLOOKUP($A30,LN_Surface!$C$62:$Y$66,LN_Surface!Q$70,FALSE))","v":""},{"$f":"IF(ISERROR(VLOOKUP($A30,LN_Surface!$C$62:$Y$66,LN_Surface!U$70,FALSE)),\"\",VLOOKUP($A30,LN_Surface!$C$62:$Y$66,LN_Surface!U$70,FALSE))","v":""},{"$f":"IF(ISERROR(VLOOKUP($A30,LN_Surface!$C$62:$Y$66,LN_Surface!V$70,FALSE)),\"\",VLOOKUP($A30,LN_Surface!$C$62:$Y$66,LN_Surface!V$70,FALSE))","v":""},{"$f":"IF(ISERROR(VLOOKUP($A30,LN_Surface!$C$62:$Y$66,LN_Surface!W$70,FALSE)),\"\",VLOOKUP($A30,LN_Surface!$C$62:$Y$66,LN_Surface!W$70,FALSE))","v":""},{"$f":"IF(ISERROR(VLOOKUP($A30,LN_Surface!$C$62:$Y$66,LN_Surface!X$70,FALSE)),\"\",VLOOKUP($A30,LN_Surface!$C$62:$Y$66,LN_Surface!X$70,FALSE))","v":""},{"$f":"IF(ISERROR(VLOOKUP($A30,LN_Surface!$C$62:$Y$66,LN_Surface!Y$70,FALSE)),\"\",VLOOKUP($A30,LN_Surface!$C$62:$Y$66,LN_Surface!Y$70,FALSE))","v":""}]
[null,null,null,null,null,null,null,null,null,{"$f":"IF((IF(ISERROR(VLOOKUP($A30,LN_Surface!$C$62:$Y$66,LN_Surface!R$70,FALSE)),\"\",VLOOKUP($A30,LN_Surface!$C$62:$Y$66,LN_Surface!R$70,FALSE)))=0,\"Estándar\",IF(ISERROR(VLOOKUP($A30,LN_Surface!$C$62:$Y$66,LN_Surface!R$70,FALSE)),\"\",VLOOKUP($A30,LN_Surface!$C$62:$Y$66,LN_Surface!R$70,FALSE)))","v":""},{"$f":"IF(ISERROR(VLOOKUP($A30,LN_Surface!$C$62:$Y$66,LN_Surface!S$70,FALSE)),\"\",VLOOKUP($A30,LN_Surface!$C$62:$Y$66,LN_Surface!S$70,FALSE))","v":""},{"$f":"IF(ISERROR(VLOOKUP($A30,LN_Surface!$C$62:$Y$66,LN_Surface!T$70,FALSE)),\"\",VLOOKUP($A30,LN_Surface!$C$62:$Y$66,LN_Surface!T$70,FALSE))","v":""}]
[4,{"$f":"IF(ISERROR(VLOOKUP($A32,LN_Surface!$C$62:$Y$66,LN_Surface!I$70,FALSE)),\"\",VLOOKUP($A32,LN_Surface!$C$62:$Y$66,LN_Surface!I$70,FALSE))","v":""},null,null,{"$f":"IF(ISERROR(VLOOKUP($A32,LN_Surface!$C$62:$Y$66,LN_Surface!J$70,FALSE)),\"\",VLOOKUP($A32,LN_Surface!$C$62:$Y$66,LN_Surface!J$70,FALSE))","v":""},{"$f":"IF(ISERROR(VLOOKUP($A32,LN_Surface!$C$62:$Y$66,LN_Surface!K$70,FALSE)),\"\",VLOOKUP($A32,LN_Surface!$C$62:$Y$66,LN_Surface!K$70,FALSE))","v":""},{"$f":"IF(ISERROR(VLOOKUP($A32,LN_Surface!$C$62:$Y$66,LN_Surface!L$70,FALSE)),\"\",VLOOKUP($A32,LN_Surface!$C$62:$Y$66,LN_Surface!L$70,FALSE))","v":""},{"$f":"IF(ISERROR(VLOOKUP($A32,LN_Surface!$C$62:$Y$66,LN_Surface!M$70,FALSE)),\"\",VLOOKUP($A32,LN_Surface!$C$62:$Y$66,LN_Surface!M$70,FALSE))","v":""},{"$f":"IF(ISERROR(VLOOKUP($A32,LN_Surface!$C$62:$Y$66,LN_Surface!N$70,FALSE)),\"\",VLOOKUP($A32,LN_Surface!$C$62:$Y$66,LN_Surface!N$70,FALSE))","v":""},{"$f":"IF(ISERROR(VLOOKUP($A32,LN_Surface!$C$62:$Y$66,LN_Surface!O$70,FALSE)),\"\",VLOOKUP($A32,LN_Surface!$C$62:$Y$66,LN_Surface!O$70,FALSE))","v":""},{"$f":"IF(ISERROR(VLOOKUP($A32,LN_Surface!$C$62:$Y$66,LN_Surface!P$70,FALSE)),\"\",VLOOKUP($A32,LN_Surface!$C$62:$Y$66,LN_Surface!P$70,FALSE))","v":""},{"$f":"IF(ISERROR(VLOOKUP($A32,LN_Surface!$C$62:$Y$66,LN_Surface!Q$70,FALSE)),\"\",VLOOKUP($A32,LN_Surface!$C$62:$Y$66,LN_Surface!Q$70,FALSE))","v":""},{"$f":"IF(ISERROR(VLOOKUP($A32,LN_Surface!$C$62:$Y$66,LN_Surface!U$70,FALSE)),\"\",VLOOKUP($A32,LN_Surface!$C$62:$Y$66,LN_Surface!U$70,FALSE))","v":""},{"$f":"IF(ISERROR(VLOOKUP($A32,LN_Surface!$C$62:$Y$66,LN_Surface!V$70,FALSE)),\"\",VLOOKUP($A32,LN_Surface!$C$62:$Y$66,LN_Surface!V$70,FALSE))","v":""},{"$f":"IF(ISERROR(VLOOKUP($A32,LN_Surface!$C$62:$Y$66,LN_Surface!W$70,FALSE)),\"\",VLOOKUP($A32,LN_Surface!$C$62:$Y$66,LN_Surface!W$70,FALSE))","v":""},{"$f":"IF(ISERROR(VLOOKUP($A32,LN_Surface!$C$62:$Y$66,LN_Surface!X$70,FALSE)),\"\",VLOOKUP($A32,LN_Surface!$C$62:$Y$66,LN_Surface!X$70,FALSE))","v":""},{"$f":"IF(ISERROR(VLOOKUP($A32,LN_Surface!$C$62:$Y$66,LN_Surface!Y$70,FALSE)),\"\",VLOOKUP($A32,LN_Surface!$C$62:$Y$66,LN_Surface!Y$70,FALSE))","v":""}]
[null,null,null,null,null,null,null,null,null,{"$f":"IF((IF(ISERROR(VLOOKUP($A32,LN_Surface!$C$62:$Y$66,LN_Surface!R$70,FALSE)),\"\",VLOOKUP($A32,LN_Surface!$C$62:$Y$66,LN_Surface!R$70,FALSE)))=0,\"Estándar\",IF(ISERROR(VLOOKUP($A32,LN_Surface!$C$62:$Y$66,LN_Surface!R$70,FALSE)),\"\",VLOOKUP($A32,LN_Surface!$C$62:$Y$66,LN_Surface!R$70,FALSE)))","v":""},{"$f":"IF(ISERROR(VLOOKUP($A32,LN_Surface!$C$62:$Y$66,LN_Surface!S$70,FALSE)),\"\",VLOOKUP($A32,LN_Surface!$C$62:$Y$66,LN_Surface!S$70,FALSE))","v":""},{"$f":"IF(ISERROR(VLOOKUP($A32,LN_Surface!$C$62:$Y$66,LN_Surface!T$70,FALSE)),\"\",VLOOKUP($A32,LN_Surface!$C$62:$Y$66,LN_Surface!T$70,FALSE))","v":""}]
[5,{"$f":"IF(ISERROR(VLOOKUP($A34,LN_Surface!$C$62:$Y$66,LN_Surface!I$70,FALSE)),\"\",VLOOKUP($A34,LN_Surface!$C$62:$Y$66,LN_Surface!I$70,FALSE))","v":""},null,null,{"$f":"IF(ISERROR(VLOOKUP($A34,LN_Surface!$C$62:$Y$66,LN_Surface!J$70,FALSE)),\"\",VLOOKUP($A34,LN_Surface!$C$62:$Y$66,LN_Surface!J$70,FALSE))","v":""},{"$f":"IF(ISERROR(VLOOKUP($A34,LN_Surface!$C$62:$Y$66,LN_Surface!K$70,FALSE)),\"\",VLOOKUP($A34,LN_Surface!$C$62:$Y$66,LN_Surface!K$70,FALSE))","v":""},{"$f":"IF(ISERROR(VLOOKUP($A34,LN_Surface!$C$62:$Y$66,LN_Surface!L$70,FALSE)),\"\",VLOOKUP($A34,LN_Surface!$C$62:$Y$66,LN_Surface!L$70,FALSE))","v":""},{"$f":"IF(ISERROR(VLOOKUP($A34,LN_Surface!$C$62:$Y$66,LN_Surface!M$70,FALSE)),\"\",VLOOKUP($A34,LN_Surface!$C$62:$Y$66,LN_Surface!M$70,FALSE))","v":""},{"$f":"IF(ISERROR(VLOOKUP($A34,LN_Surface!$C$62:$Y$66,LN_Surface!N$70,FALSE)),\"\",VLOOKUP($A34,LN_Surface!$C$62:$Y$66,LN_Surface!N$70,FALSE))","v":""},{"$f":"IF(ISERROR(VLOOKUP($A34,LN_Surface!$C$62:$Y$66,LN_Surface!O$70,FALSE)),\"\",VLOOKUP($A34,LN_Surface!$C$62:$Y$66,LN_Surface!O$70,FALSE))","v":""},{"$f":"IF(ISERROR(VLOOKUP($A34,LN_Surface!$C$62:$Y$66,LN_Surface!P$70,FALSE)),\"\",VLOOKUP($A34,LN_Surface!$C$62:$Y$66,LN_Surface!P$70,FALSE))","v":""},{"$f":"IF(ISERROR(VLOOKUP($A34,LN_Surface!$C$62:$Y$66,LN_Surface!Q$70,FALSE)),\"\",VLOOKUP($A34,LN_Surface!$C$62:$Y$66,LN_Surface!Q$70,FALSE))","v":""},{"$f":"IF(ISERROR(VLOOKUP($A34,LN_Surface!$C$62:$Y$66,LN_Surface!U$70,FALSE)),\"\",VLOOKUP($A34,LN_Surface!$C$62:$Y$66,LN_Surface!U$70,FALSE))","v":""},{"$f":"IF(ISERROR(VLOOKUP($A34,LN_Surface!$C$62:$Y$66,LN_Surface!V$70,FALSE)),\"\",VLOOKUP($A34,LN_Surface!$C$62:$Y$66,LN_Surface!V$70,FALSE))","v":""},{"$f":"IF(ISERROR(VLOOKUP($A34,LN_Surface!$C$62:$Y$66,LN_Surface!W$70,FALSE)),\"\",VLOOKUP($A34,LN_Surface!$C$62:$Y$66,LN_Surface!W$70,FALSE))","v":""},{"$f":"IF(ISERROR(VLOOKUP($A34,LN_Surface!$C$62:$Y$66,LN_Surface!X$70,FALSE)),\"\",VLOOKUP($A34,LN_Surface!$C$62:$Y$66,LN_Surface!X$70,FALSE))","v":""},{"$f":"IF(ISERROR(VLOOKUP($A34,LN_Surface!$C$62:$Y$66,LN_Surface!Y$70,FALSE)),\"\",VLOOKUP($A34,LN_Surface!$C$62:$Y$66,LN_Surface!Y$70,FALSE))","v":""}]
[null,null,null,null,null,null,null,null,null,{"$f":"IF((IF(ISERROR(VLOOKUP($A34,LN_Surface!$C$62:$Y$66,LN_Surface!R$70,FALSE)),\"\",VLOOKUP($A34,LN_Surface!$C$62:$Y$66,LN_Surface!R$70,FALSE)))=0,\"Estándar\",IF(ISERROR(VLOOKUP($A34,LN_Surface!$C$62:$Y$66,LN_Surface!R$70,FALSE)),\"\",VLOOKUP($A34,LN_Surface!$C$62:$Y$66,LN_Surface!R$70,FALSE)))","v":""},{"$f":"IF(ISERROR(VLOOKUP($A34,LN_Surface!$C$62:$Y$66,LN_Surface!S$70,FALSE)),\"\",VLOOKUP($A34,LN_Surface!$C$62:$Y$66,LN_Surface!S$70,FALSE))","v":""},{"$f":"IF(ISERROR(VLOOKUP($A34,LN_Surface!$C$62:$Y$66,LN_Surface!T$70,FALSE)),\"\",VLOOKUP($A34,LN_Surface!$C$62:$Y$66,LN_Surface!T$70,FALSE))","v":""}]
[null,{"$f":"CONCATENATE(\"Los precios indicados son PVPs recomendados por Microsoft y no incluyen impuestos indirectos (IVA, IGIC, etc.). Todos los descuentos son ofertados por  \",Configurador!J7)","v":"Los precios indicados son PVPs recomendados por Microsoft y no incluyen impuestos indirectos (IVA, IGIC, etc.). Todos los descuentos son ofertados por  "}]
[]
[null,null,null,null,null,null,null,null,null,null,null,null,null,null,null,null,{"$f":"Impresion!E17","v":""}]

{"sheet":"SurfaceBook_E","index":17,"n_rows":39,"n_cols":17,"rows_kept":39,"cut":false,"hidden":false,"merged":[[27,16,28,16],[27,15,28,15],[5,1,5,16],[24,1,24,3],[25,1,26,3],[25,4,26,4],[25,5,26,5],[25,6,26,6],[25,7,26,7],[25,8,26,8],[25,12,26,12],[25,13,26,13],[25,14,26,14],[25,15,26,15],[25,16,26,16],[27,8,28,8],[27,12,28,12],[27,13,28,13],[27,14,28,14],[29,1,30,3],[29,4,30,4],[29,5,30,5],[29,6,30,6],[29,7,30,7],[27,7,28,7],[27,1,28,3],[27,4,28,4],[27,5,28,5],[27,6,28,6],[31,1,32,3],[31,4,32,4],[31,5,32,5],[31,6,32,6],[31,7,32,7],[31,15,32,15],[31,16,32,16],[29,12,30,12],[29,13,30,13],[29,14,30,14],[29,15,30,15],[29,16,30,16],[31,8,32,8],[31,12,32,12],[31,13,32,13],[31,14,32,14],[29,8,30,8],[33,12,34,12],[33,13,34,13],[33,14,34,14],[33,15,34,15],[33,16,34,16],[33,8,34,8],[33,1,34,3],[33,4,34,4],[33,5,34,5],[33,6,34,6],[33,7,34,7]]}
[]
[]
[null,"Dispositivos Surface Book 2 para:"]
[null,{"$f":"Configurador!C7","v":0}]
[]
[null,"Surface Book 2: un equipo potente con alto rendimiento gráfico, orientado a edición gráfica, audiovisual e ingeniería"]
[]
[]
[]
[null,null,null,null,null,null,null,null,null,null,{"$f":"IF(AND(K8=0,K9=0),\"Te recomendamos Enterprise Mobility and Security\",\"Enterprise Mobility and Security\")","v":"Te recomendamos Enterprise Mobility and Security"}]
[]
[]
[]
[]
[]
[]
[]
[]
[]
[]
[]
[]
[]
[]
[null,"Pantalla/Procesador/ Memoria/Disco duro/LTE",null,null,"Tipo de pago","Precio en pago único","Precio en cuota mensual","Dcto.","Nº Equipos","Accesorios -\nGarantía","Precio unitario","Dcto.","Total pago inicial","Total mensual","Total primer año","Total años sucesivos","Total dto. primer año"]
[1,{"$f":"IF(ISERROR(VLOOKUP($A26,LN_Surface!$C$74:$Y$78,LN_Surface!I$70,FALSE)),\"\",VLOOKUP($A26,LN_Surface!$C$74:$Y$78,LN_Surface!I$70,FALSE))","v":""},null,null,{"$f":"IF(ISERROR(VLOOKUP($A26,LN_Surface!$C$74:$Y$78,LN_Surface!J$70,FALSE)),\"\",VLOOKUP($A26,LN_Surface!$C$74:$Y$78,LN_Surface!J$70,FALSE))","v":""},{"$f":"IF(ISERROR(VLOOKUP($A26,LN_Surface!$C$74:$Y$78,LN_Surface!K$70,FALSE)),\"\",VLOOKUP($A26,LN_Surface!$C$74:$Y$78,LN_Surface!K$70,FALSE))","v":""},{"$f":"IF(ISERROR(VLOOKUP($A26,LN_Surface!$C$74:$Y$78,LN_Surface!L$70,FALSE)),\"\",VLOOKUP($A26,LN_Surface!$C$74:$Y$78,LN_Surface!L$70,FALSE))","v":""},{"$f":"IF(ISERROR(VLOOKUP($A26,LN_Surface!$C$74:$Y$78,LN_Surface!M$70,FALSE)),\"\",VLOOKUP($A26,LN_Surface!$C$74:$Y$78,LN_Surface!M$70,FALSE))","v":""},{"$f":"IF(ISERROR(VLOOKUP($A26,LN_Surface!$C$74:$Y$78,LN_Surface!N$70,FALSE)),\"\",VLOOKUP($A26,LN_Surface!$C$74:$Y$78,LN_Surface!N$70,FALSE))","v":""},{"$f":"IF(ISERROR(VLOOKUP($A26,LN_Surface!$C$74:$Y$78,LN_Surface!O$70,FALSE)),\"\",VLOOKUP($A26,LN_Surface!$C$74:$Y$78,LN_Surface!O$70,FALSE))","v":""},{"$f":"IF(ISERROR(VLOOKUP($A26,LN_Surface!$C$74:$Y$78,LN_Surface!P$70,FALSE)),\"\",VLOOKUP($A26,LN_Surface!$C$74:$Y$78,LN_Surface!P$70,FALSE))","v":""},{"$f":"IF(ISERROR(VLOOKUP($A26,LN_Surface!$C$74:$Y$78,LN_Surface!Q$70,FALSE)),\"\",VLOOKUP($A26,LN_Surface!$C$74:$Y$78,LN_Surface!Q$70,FALSE))","v":""},{"$f":"IF(ISERROR(VLOOKUP($A26,LN_Surface!$C$74:$Y$78,LN_Surface!U$70,FALSE)),\"\",VLOOKUP($A26,LN_Surface!$C$74:$Y$78,LN_Surface!U$70,FALSE))","v":""},{"$f":"IF(ISERROR(VLOOKUP($A26,LN_Surface!$C$74:$Y$78,LN_Surface!V$70,FALSE)),\"\",VLOOKUP($A26,LN_Surface!$C$74:$Y$78,LN_Surface!V$70,FALSE))","v":""},{"$f":"IF(ISERROR(VLOOKUP($A26,LN_Surface!$C$74:$Y$78,LN_Surface!W$70,FALSE)),\"\",VLOOKUP($A26,LN_Surface!$C$74:$Y$78,LN_Surface!W$70,FALSE))","v":""},{"$f":"IF(ISERROR(VLOOKUP($A26,LN_Surface!$C$74:$Y$78,LN_Surface!X$70,FALSE)),\"\",VLOOKUP($A26,LN_Surface!$C$74:$Y$78,LN_Surface!X$70,FALSE))","v":""},{"$f":"IF(ISERROR(VLOOKUP($A26,LN_Surface!$C$74:$Y$78,LN_Surface!Y$70,FALSE)),\"\",VLOOKUP($A26,LN_Surface!$C$74:$Y$78,LN_Surface!Y$70,FALSE))","v":""}]
[null,null,null,null,null,null,null,null,null,{"$f":"IF((IF(ISERROR(VLOOKUP($A26,LN_Surface!$C$74:$Y$78,LN_Surface!R$70,FALSE)),\"\",VLOOKUP($A26,LN_Surface!$C$74:$Y$78,LN_Surface!R$70,FALSE)))=0,\"Estándar\",IF(ISERROR(VLOOKUP($A26,LN_Surface!$C$74:$Y$78,LN_Surface!R$70,FALSE)),\"\",VLOOKUP($A26,LN_Surface!$C$74:$Y$78,LN_Surface!R$70,FALSE)))","v":""},{"$f":"IF(ISERROR(VLOOKUP($A26,LN_Surface!$C$74:$Y$78,LN_Surface!S$70,FALSE)),\"\",VLOOKUP($A26,LN_Surface!$C$74:$Y$78,LN_Surface!S$70,FALSE))","v":""},{"$f":"IF(ISERROR(VLOOKUP($A26,LN_Surface!$C$74:$Y$78,LN_Surface!T$70,FALSE)),\"\",VLOOKUP($A26,LN_Surface!$C$74:$Y$78,LN_Surface!T$70,FALSE))","v":""}]
[2,{"$f":"IF(ISERROR(VLOOKUP($A28,LN_Surface!$C$74:$Y$78,LN_Surface!I$70,FALSE)),\"\",VLOOKUP($A28,LN_Surface!$C$74:$Y$78,LN_Surface!I$70,FALSE))","v":""},null,null,{"$f":"IF(ISERROR(VLOOKUP($A28,LN_Surface!$C$74:$Y$78,LN_Surface!J$70,FALSE)),\"\",VLOOKUP($A28,LN_Surface!$C$74:$Y$78,LN_Surface!J$70,FALSE))","v":""},{"$f":"IF(ISERROR(VLOOKUP($A28,LN_Surface!$C$74:$Y$78,LN_Surface!K$70,FALSE)),\"\",VLOOKUP($A28,LN_Surface!$C$74:$Y$78,LN_Surface!K$70,FALSE))","v":""},{"$f":"IF(ISERROR(VLOOKUP($A28,LN_Surface!$C$74:$Y$78,LN_Surface!L$70,FALSE)),\"\",VLOOKUP($A28,LN_Surface!$C$74:$Y$78,LN_Surface!L$70,FALSE))","v":""},{"$f":"IF(ISERROR(VLOOKUP($A28,LN_Surface!$C$74:$Y$78,LN_Surface!M$70,FALSE)),\"\",VLOOKUP($A28,LN_Surface!$C$74:$Y$78,LN_Surface!M$70,FALSE))","v":""},{"$f":"IF(ISERROR(VLOOKUP($A28,LN_Surface!$C$74:$Y$78,LN_Surface!N$70,FALSE)),\"\",VLOOKUP($A28,LN_Surface!$C$74:$Y$78,LN_Surface!N$70,FALSE))","v":""},{"$f":"IF(ISERROR(VLOOKUP($A28,LN_Surface!$C$74:$Y$78,LN_Surface!O$70,FALSE)),\"\",VLOOKUP($A28,LN_Surface!$C$74:$Y$78,LN_Surface!O$70,FALSE))","v":""},{"$f":"IF(ISERROR(VLOOKUP($A28,LN_Surface!$C$74:$Y$78,LN_Surface!P$70,FALSE)),\"\",VLOOKUP($A28,LN_Surface!$C$74:$Y$78,LN_Surface!P$70,FALSE))","v":""},{"$f":"IF(ISERROR(VLOOKUP($A28,LN_Surface!$C$74:$Y$78,LN_Surface!Q$70,FALSE)),\"\",VLOOKUP($A28,LN_Surface!$C$74:$Y$78,LN_Surface!Q$70,FALSE))","v":""},{"$f":"IF(ISERROR(VLOOKUP($A28,LN_Surface!$C$74:$Y$78,LN_Surface!U$70,FALSE)),\"\",VLOOKUP($A28,LN_Surface!$C$74:$Y$78,LN_Surface!U$70,FALSE))","v":""},{"$f":"IF(ISERROR(VLOOKUP($A28,LN_Surface!$C$74:$Y$78,LN_Surface!V$70,FALSE)),\"\",VLOOKUP($A28,LN_Surface!$C$74:$Y$78,LN_Surface!V$70,FALSE))","v":""},{"$f":"IF(ISERROR(VLOOKUP($A28,LN_Surface!$C$74:$Y$78,LN_Surface!W$70,FALSE)),\"\",VLOOKUP($A28,LN_Surface!$C$74:$Y$78,LN_Surface!W$70,FALSE))","v":""},{"$f":"IF(ISERROR(VLOOKUP($A28,LN_Surface!$C$74:$Y$78,LN_Surface!X$70,FALSE)),\"\",VLOOKUP($A28,LN_Surface!$C$74:$Y$78,LN_Surface!X$70,FALSE))","v":""},{"$f":"IF(ISERROR(VLOOKUP($A28,LN_Surface!$C$74:$Y$78,LN_Surface!Y$70,FALSE)),\"\",VLOOKUP($A28,LN_Surface!$C$74:$Y$78,LN_Surface!Y$70,FALSE))","v":""}]
[null,null,null,null,null,null,null,null,null,{"$f":"IF((IF(ISERROR(VLOOKUP($A28,LN_Surface!$C$74:$Y$78,LN_Surface!R$70,FALSE)),\"\",VLOOKUP($A28,LN_Surface!$C$74:$Y$78,LN_Surface!R$70,FALSE)))=0,\"Estándar\",IF(ISERROR(VLOOKUP($A28,LN_Surface!$C$74:$Y$78,LN_Surface!R$70,FALSE)),\"\",VLOOKUP($A28,LN_Surface!$C$74:$Y$78,LN_Surface!R$70,FALSE)))","v":""},{"$f":"IF(ISERROR(VLOOKUP($A28,LN_Surface!$C$74:$Y$78,LN_Surface!S$70,FALSE)),\"\",VLOOKUP($A28,LN_Surface!$C$74:$Y$78,LN_Surface!S$70,FALSE))","v":""},{"$f":"IF(ISERROR(VLOOKUP($A28,LN_Surface!$C$74:$Y$78,LN_Surface!T$70,FALSE)),\"\",VLOOKUP($A28,LN_Surface!$C$74:$Y$78,LN_Surface!T$70,FALSE))","v":""}]
[3,{"$f":"IF(ISERROR(VLOOKUP($A30,LN_Surface!$C$74:$Y$78,LN_Surface!I$70,FALSE)),\"\",VLOOKUP($A30,LN_Surface!$C$74:$Y$78,LN_Surface!I$70,FALSE))","v":""},null,null,{"$f":"IF(ISERROR(VLOOKUP($A30,LN_Surface!$C$74:$Y$78,LN_Surface!J$70,FALSE)),\"\",VLOOKUP($A30,LN_Surface!$C$74:$Y$78,LN_Surface!J$70,FALSE))","v":""},{"$f":"IF(ISERROR(VLOOKUP($A30,LN_Surface!$C$74:$Y$78,LN_Surface!K$70,FALSE)),\"\",VLOOKUP($A30,LN_Surface!$C$74:$Y$78,LN_Surface!K$70,FALSE))","v":""},{"$f":"IF(ISERROR(VLOOKUP($A30,LN_Surface!$C$74:$Y$78,LN_Surface!L$70,FALSE)),\"\",VLOOKUP($A30,LN_Surface!$C$74:$Y$78,LN_Surface!L$70,FALSE))","v":""},{"$f":"IF(ISERROR(VLOOKUP($A30,LN_Surface!$C$74:$Y$78,LN_Surface!M$70,FALSE)),\"\",VLOOKUP($A30,LN_Surface!$C$74:$Y$78,LN_Surface!M$70,FALSE))","v":""},{"$f":"IF(ISERROR(VLOOKUP($A30,LN_Surface!$C$74:$Y$78,LN_Surface!N$70,FALSE)),\"\",VLOOKUP($A30,LN_Surface!$C$74:$Y$78,LN_Surface!N$70,FALSE))","v":""},{"$f":"IF(ISERROR(VLOOKUP($A30,LN_Surface!$C$74:$Y$78,LN_Surface!O$70,FALSE)),\"\",VLOOKUP($A30,LN_Surface!$C$74:$Y$78,LN_Surface!O$70,FALSE))","v":""},{"$f":"IF(ISERROR(VLOOKUP($A30,LN_Surface!$C$74:$Y$78,LN_Surface!P$70,FALSE)),\"\",VLOOKUP($A30,LN_Surface!$C$74:$Y$78,LN_Surface!P$70,FALSE))","v":""},{"$f":"IF(ISERROR(VLOOKUP($A30,LN_Surface!$C$74:$Y$78,LN_Surface!Q$70,FALSE)),\"\",VLOOKUP($A30,LN_Surface!$C$74:$Y$78,LN_Surface!Q$70,FALSE))","v":""},{"$f":"IF(ISERROR(VLOOKUP($A30,LN_Surface!$C$74:$Y$78,LN_Surface!U$70,FALSE)),\"\",VLOOKUP($A30,LN_Surface!$C$74:$Y$78,LN_Surface!U$70,FALSE))","v":""},{"$f":"IF(ISERROR(VLOOKUP($A30,LN_Surface!$C$74:$Y$78,LN_Surface!V$70,FALSE)),\"\",VLOOKUP($A30,LN_Surface!$C$74:$Y$78,LN_Surface!V$70,FALSE))","v":""},{"$f":"IF(ISERROR(VLOOKUP($A30,LN_Surface!$C$74:$Y$78,LN_Surface!W$70,FALSE)),\"\",VLOOKUP($A30,LN_Surface!$C$74:$Y$78,LN_Surface!W$70,FALSE))","v":""},{"$f":"IF(ISERROR(VLOOKUP($A30,LN_Surface!$C$74:$Y$78,LN_Surface!X$70,FALSE)),\"\",VLOOKUP($A30,LN_Surface!$C$74:$Y$78,LN_Surface!X$70,FALSE))","v":""},{"$f":"IF(ISERROR(VLOOKUP($A30,LN_Surface!$C$74:$Y$78,LN_Surface!Y$70,FALSE)),\"\",VLOOKUP($A30,LN_Surface!$C$74:$Y$78,LN_Surface!Y$70,FALSE))","v":""}]
[null,null,null,null,null,null,null,null,null,{"$f":"IF((IF(ISERROR(VLOOKUP($A30,LN_Surface!$C$74:$Y$78,LN_Surface!R$70,FALSE)),\"\",VLOOKUP($A30,LN_Surface!$C$74:$Y$78,LN_Surface!R$70,FALSE)))=0,\"Estándar\",IF(ISERROR(VLOOKUP($A30,LN_Surface!$C$74:$Y$78,LN_Surface!R$70,FALSE)),\"\",VLOOKUP($A30,LN_Surface!$C$74:$Y$78,LN_Surface!R$70,FALSE)))","v":""},{"$f":"IF(ISERROR(VLOOKUP($A30,LN_Surface!$C$74:$Y$78,LN_Surface!S$70,FALSE)),\"\",VLOOKUP($A30,LN_Surface!$C$74:$Y$78,LN_Surface!S$70,FALSE))","v":""},{"$f":"IF(ISERROR(VLOOKUP($A30,LN_Surface!$C$74:$Y$78,LN_Surface!T$70,FALSE)),\"\",VLOOKUP($A30,LN_Surface!$C$74:$Y$78,LN_Surface!T$70,FALSE))","v":""}]
[4,{"$f":"IF(ISERROR(VLOOKUP($A32,LN_Surface!$C$74:$Y$78,LN_Surface!I$70,FALSE)),\"\",VLOOKUP($A32,LN_Surface!$C$74:$Y$78,LN_Surface!I$70,FALSE))","v":""},null,null,{"$f":"IF(ISERROR(VLOOKUP($A32,LN_Surface!$C$74:$Y$78,LN_Surface!J$70,FALSE)),\"\",VLOOKUP($A32,LN_Surface!$C$74:$Y$78,LN_Surface!J$70,FALSE))","v":""},{"$f":"IF(ISERROR(VLOOKUP($A32,LN_Surface!$C$74:$Y$78,LN_Surface!K$70,FALSE)),\"\",VLOOKUP($A32,LN_Surface!$C$74:$Y$78,LN_Surface!K$70,FALSE))","v":""},{"$f":"IF(ISERROR(VLOOKUP($A32,LN_Surface!$C$74:$Y$78,LN_Surface!L$70,FALSE)),\"\",VLOOKUP($A32,LN_Surface!$C$74:$Y$78,LN_Surface!L$70,FALSE))","v":""},{"$f":"IF(ISERROR(VLOOKUP($A32,LN_Surface!$C$74:$Y$78,LN_Surface!M$70,FALSE)),\"\",VLOOKUP($A32,LN_Surface!$C$74:$Y$78,LN_Surface!M$70,FALSE))","v":""},{"$f":"IF(ISERROR(VLOOKUP($A32,LN_Surface!$C$74:$Y$78,LN_Surface!N$70,FALSE)),\"\",VLOOKUP($A32,LN_Surface!$C$74:$Y$78,LN_Surface!N$70,FALSE))","v":""},{"$f":"IF(ISERROR(VLOOKUP($A32,LN_Surface!$C$74:$Y$78,LN_Surface!O$70,FALSE)),\"\",VLOOKUP($A32,LN_Surface!$C$74:$Y$78,LN_Surface!O$70,FALSE))","v":""},{"$f":"IF(ISERROR(VLOOKUP($A32,LN_Surface!$C$74:$Y$78,LN_Surface!P$70,FALSE)),\"\",VLOOKUP($A32,LN_Surface!$C$74:$Y$78,LN_Surface!P$70,FALSE))","v":""},{"$f":"IF(ISERROR(VLOOKUP($A32,LN_Surface!$C$74:$Y$78,LN_Surface!Q$70,FALSE)),\"\",VLOOKUP($A32,LN_Surface!$C$74:$Y$78,LN_Surface!Q$70,FALSE))","v":""},{"$f":"IF(ISERROR(VLOOKUP($A32,LN_Surface!$C$74:$Y$78,LN_Surface!U$70,FALSE)),\"\",VLOOKUP($A32,LN_Surface!$C$74:$Y$78,LN_Surface!U$70,FALSE))","v":""},{"$f":"IF(ISERROR(VLOOKUP($A32,LN_Surface!$C$74:$Y$78,LN_Surface!V$70,FALSE)),\"\",VLOOKUP($A32,LN_Surface!$C$74:$Y$78,LN_Surface!V$70,FALSE))","v":""},{"$f":"IF(ISERROR(VLOOKUP($A32,LN_Surface!$C$74:$Y$78,LN_Surface!W$70,FALSE)),\"\",VLOOKUP($A32,LN_Surface!$C$74:$Y$78,LN_Surface!W$70,FALSE))","v":""},{"$f":"IF(ISERROR(VLOOKUP($A32,LN_Surface!$C$74:$Y$78,LN_Surface!X$70,FALSE)),\"\",VLOOKUP($A32,LN_Surface!$C$74:$Y$78,LN_Surface!X$70,FALSE))","v":""},{"$f":"IF(ISERROR(VLOOKUP($A32,LN_Surface!$C$74:$Y$78,LN_Surface!Y$70,FALSE)),\"\",VLOOKUP($A32,LN_Surface!$C$74:$Y$78,LN_Surface!Y$70,FALSE))","v":""}]
[null,null,null,null,null,null,null,null,null,{"$f":"IF((IF(ISERROR(VLOOKUP($A32,LN_Surface!$C$74:$Y$78,LN_Surface!R$70,FALSE)),\"\",VLOOKUP($A32,LN_Surface!$C$74:$Y$78,LN_Surface!R$70,FALSE)))=0,\"Estándar\",IF(ISERROR(VLOOKUP($A32,LN_Surface!$C$74:$Y$78,LN_Surface!R$70,FALSE)),\"\",VLOOKUP($A32,LN_Surface!$C$74:$Y$78,LN_Surface!R$70,FALSE)))","v":""},{"$f":"IF(ISERROR(VLOOKUP($A32,LN_Surface!$C$74:$Y$78,LN_Surface!S$70,FALSE)),\"\",VLOOKUP($A32,LN_Surface!$C$74:$Y$78,LN_Surface!S$70,FALSE))","v":""},{"$f":"IF(ISERROR(VLOOKUP($A32,LN_Surface!$C$74:$Y$78,LN_Surface!T$70,FALSE)),\"\",VLOOKUP($A32,LN_Surface!$C$74:$Y$78,LN_Surface!T$70,FALSE))","v":""}]
[5,{"$f":"IF(ISERROR(VLOOKUP($A34,LN_Surface!$C$74:$Y$78,LN_Surface!I$70,FALSE)),\"\",VLOOKUP($A34,LN_Surface!$C$74:$Y$78,LN_Surface!I$70,FALSE))","v":""},null,null,{"$f":"IF(ISERROR(VLOOKUP($A34,LN_Surface!$C$74:$Y$78,LN_Surface!J$70,FALSE)),\"\",VLOOKUP($A34,LN_Surface!$C$74:$Y$78,LN_Surface!J$70,FALSE))","v":""},{"$f":"IF(ISERROR(VLOOKUP($A34,LN_Surface!$C$74:$Y$78,LN_Surface!K$70,FALSE)),\"\",VLOOKUP($A34,LN_Surface!$C$74:$Y$78,LN_Surface!K$70,FALSE))","v":""},{"$f":"IF(ISERROR(VLOOKUP($A34,LN_Surface!$C$74:$Y$78,LN_Surface!L$70,FALSE)),\"\",VLOOKUP($A34,LN_Surface!$C$74:$Y$78,LN_Surface!L$70,FALSE))","v":""},{"$f":"IF(ISERROR(VLOOKUP($A34,LN_Surface!$C$74:$Y$78,LN_Surface!M$70,FALSE)),\"\",VLOOKUP($A34,LN_Surface!$C$74:$Y$78,LN_Surface!M$70,FALSE))","v":""},{"$f":"IF(ISERROR(VLOOKUP($A34,LN_Surface!$C$74:$Y$78,LN_Surface!N$70,FALSE)),\"\",VLOOKUP($A34,LN_Surface!$C$74:$Y$78,LN_Surface!N$70,FALSE))","v":""},{"$f":"IF(ISERROR(VLOOKUP($A34,LN_Surface!$C$74:$Y$78,LN_Surface!O$70,FALSE)),\"\",VLOOKUP($A34,LN_Surface!$C$74:$Y$78,LN_Surface!O$70,FALSE))","v":""},{"$f":"IF(ISERROR(VLOOKUP($A34,LN_Surface!$C$74:$Y$78,LN_Surface!P$70,FALSE)),\"\",VLOOKUP($A34,LN_Surface!$C$74:$Y$78,LN_Surface!P$70,FALSE))","v":""},{"$f":"IF(ISERROR(VLOOKUP($A34,LN_Surface!$C$74:$Y$78,LN_Surface!Q$70,FALSE)),\"\",VLOOKUP($A34,LN_Surface!$C$74:$Y$78,LN_Surface!Q$70,FALSE))","v":""},{"$f":"IF(ISERROR(VLOOKUP($A34,LN_Surface!$C$74:$Y$78,LN_Surface!U$70,FALSE)),\"\",VLOOKUP($A34,LN_Surface!$C$74:$Y$78,LN_Surface!U$70,FALSE))","v":""},{"$f":"IF(ISERROR(VLOOKUP($A34,LN_Surface!$C$74:$Y$78,LN_Surface!V$70,FALSE)),\"\",VLOOKUP($A34,LN_Surface!$C$74:$Y$78,LN_Surface!V$70,FALSE))","v":""},{"$f":"IF(ISERROR(VLOOKUP($A34,LN_Surface!$C$74:$Y$78,LN_Surface!W$70,FALSE)),\"\",VLOOKUP($A34,LN_Surface!$C$74:$Y$78,LN_Surface!W$70,FALSE))","v":""},{"$f":"IF(ISERROR(VLOOKUP($A34,LN_Surface!$C$74:$Y$78,LN_Surface!X$70,FALSE)),\"\",VLOOKUP($A34,LN_Surface!$C$74:$Y$78,LN_Surface!X$70,FALSE))","v":""},{"$f":"IF(ISERROR(VLOOKUP($A34,LN_Surface!$C$74:$Y$78,LN_Surface!Y$70,FALSE)),\"\",VLOOKUP($A34,LN_Surface!$C$74:$Y$78,LN_Surface!Y$70,FALSE))","v":""}]
[null,null,null,null,null,null,null,null,null,{"$f":"IF((IF(ISERROR(VLOOKUP($A34,LN_Surface!$C$74:$Y$78,LN_Surface!R$70,FALSE)),\"\",VLOOKUP($A34,LN_Surface!$C$74:$Y$78,LN_Surface!R$70,FALSE)))=0,\"Estándar\",IF(ISERROR(VLOOKUP($A34,LN_Surface!$C$74:$Y$78,LN_Surface!R$70,FALSE)),\"\",VLOOKUP($A34,LN_Surface!$C$74:$Y$78,LN_Surface!R$70,FALSE)))","v":""},{"$f":"IF(ISERROR(VLOOKUP($A34,LN_Surface!$C$74:$Y$78,LN_Surface!S$70,FALSE)),\"\",VLOOKUP($A34,LN_Surface!$C$74:$Y$78,LN_Surface!S$70,FALSE))","v":""},{"$f":"IF(ISERROR(VLOOKUP($A34,LN_Surface!$C$74:$Y$78,LN_Surface!T$70,FALSE)),\"\",VLOOKUP($A34,LN_Surface!$C$74:$Y$78,LN_Surface!T$70,FALSE))","v":""}]
[null,{"$f":"CONCATENATE(\"Los precios indicados son PVPs recomendados por Microsoft y no incluyen impuestos indirectos (IVA, IGIC, etc.). Todos los descuentos son ofertados por  \",Configurador!J7)","v":"Los precios indicados son PVPs recomendados por Microsoft y no incluyen impuestos indirectos (IVA, IGIC, etc.). Todos los descuentos son ofertados por  "}]
[]
[]
[null,null,null,null,null,null,null,null,null,null,null,null,null,null,null,null,{"$f":"Impresion!E18","v":""}]

{"sheet":"SurfaceGo_E","index":18,"n_rows":39,"n_cols":17,"rows_kept":39,"cut":false,"hidden":false,"merged":[[27,16,28,16],[27,15,28,15],[5,1,5,16],[24,1,24,3],[25,1,26,3],[25,4,26,4],[25,5,26,5],[25,6,26,6],[25,7,26,7],[25,8,26,8],[25,12,26,12],[25,13,26,13],[25,14,26,14],[25,15,26,15],[25,16,26,16],[27,8,28,8],[27,12,28,12],[27,13,28,13],[27,14,28,14],[29,1,30,3],[29,4,30,4],[29,5,30,5],[29,6,30,6],[29,7,30,7],[27,7,28,7],[27,1,28,3],[27,4,28,4],[27,5,28,5],[27,6,28,6],[31,1,32,3],[31,4,32,4],[31,5,32,5],[31,6,32,6],[31,7,32,7],[31,15,32,15],[31,16,32,16],[29,12,30,12],[29,13,30,13],[29,14,30,14],[29,15,30,15],[29,16,30,16],[31,8,32,8],[31,12,32,12],[31,13,32,13],[31,14,32,14],[29,8,30,8],[33,12,34,12],[33,13,34,13],[33,14,34,14],[33,15,34,15],[33,16,34,16],[33,8,34,8],[33,1,34,3],[33,4,34,4],[33,5,34,5],[33,6,34,6],[33,7,34,7]]}
[]
[]
[null,"Dispositivos Surface Go para:"]
[null,{"$f":"Configurador!C7","v":0}]
[]
[null,"Surface Go: un equipo ultramóvil 2 en 1 de tamaño reducido orientado a trabajadores de primera línea para llevar consigo a todas partes"]
[]
[]
[]
[null,null,null,null,null,null,null,null,null,null,{"$f":"IF(AND(K8=0,K9=0),\"Te recomendamos Enterprise Mobility and Security\",\"Enterprise Mobility and Security\")","v":"Te recomendamos Enterprise Mobility and Security"}]
[]
[]
[]
[]
[]
[]
[]
[]
[]
[]
[]
[]
[]
[]
[null,"Pantalla/Procesador/ Memoria/Disco duro/LTE",null,null,"Tipo de pago","Precio en pago único","Precio en cuota mensual","Dcto.","Nº Equipos","Accesorios -\nGarantía","Precio unitario","Dcto.","Total pago inicial","Total mensual","Total primer año","Total años sucesivos","Total dto. primer año"]
[1,{"$f":"IF(ISERROR(VLOOKUP($A26,LN_Surface!$C$86:$Y$90,LN_Surface!I$70,FALSE)),\"\",VLOOKUP($A26,LN_Surface!$C$86:$Y$90,LN_Surface!I$70,FALSE))","v":""},null,null,{"$f":"IF(ISERROR(VLOOKUP($A26,LN_Surface!$C$86:$Y$90,LN_Surface!J$70,FALSE)),\"\",VLOOKUP($A26,LN_Surface!$C$86:$Y$90,LN_Surface!J$70,FALSE))","v":""},{"$f":"IF(ISERROR(VLOOKUP($A26,LN_Surface!$C$86:$Y$90,LN_Surface!K$70,FALSE)),\"\",VLOOKUP($A26,LN_Surface!$C$86:$Y$90,LN_Surface!K$70,FALSE))","v":""},{"$f":"IF(ISERROR(VLOOKUP($A26,LN_Surface!$C$86:$Y$90,LN_Surface!L$70,FALSE)),\"\",VLOOKUP($A26,LN_Surface!$C$86:$Y$90,LN_Surface!L$70,FALSE))","v":""},{"$f":"IF(ISERROR(VLOOKUP($A26,LN_Surface!$C$86:$Y$90,LN_Surface!M$70,FALSE)),\"\",VLOOKUP($A26,LN_Surface!$C$86:$Y$90,LN_Surface!M$70,FALSE))","v":""},{"$f":"IF(ISERROR(VLOOKUP($A26,LN_Surface!$C$86:$Y$90,LN_Surface!N$70,FALSE)),\"\",VLOOKUP($A26,LN_Surface!$C$86:$Y$90,LN_Surface!N$70,FALSE))","v":""},{"$f":"IF(ISERROR(VLOOKUP($A26,LN_Surface!$C$86:$Y$90,LN_Surface!O$70,FALSE)),\"\",VLOOKUP($A26,LN_Surface!$C$86:$Y$90,LN_Surface!O$70,FALSE))","v":""},{"$f":"IF(ISERROR(VLOOKUP($A26,LN_Surface!$C$86:$Y$90,LN_Surface!P$70,FALSE)),\"\",VLOOKUP($A26,LN_Surface!$C$86:$Y$90,LN_Surface!P$70,FALSE))","v":""},{"$f":"IF(ISERROR(VLOOKUP($A26,LN_Surface!$C$86:$Y$90,LN_Surface!Q$70,FALSE)),\"\",VLOOKUP($A26,LN_Surface!$C$86:$Y$90,LN_Surface!Q$70,FALSE))","v":""},{"$f":"IF(ISERROR(VLOOKUP($A26,LN_Surface!$C$86:$Y$90,LN_Surface!U$70,FALSE)),\"\",VLOOKUP($A26,LN_Surface!$C$86:$Y$90,LN_Surface!U$70,FALSE))","v":""},{"$f":"IF(ISERROR(VLOOKUP($A26,LN_Surface!$C$86:$Y$90,LN_Surface!V$70,FALSE)),\"\",VLOOKUP($A26,LN_Surface!$C$86:$Y$90,LN_Surface!V$70,FALSE))","v":""},{"$f":"IF(ISERROR(VLOOKUP($A26,LN_Surface!$C$86:$Y$90,LN_Surface!W$70,FALSE)),\"\",VLOOKUP($A26,LN_Surface!$C$86:$Y$90,LN_Surface!W$70,FALSE))","v":""},{"$f":"IF(ISERROR(VLOOKUP($A26,LN_Surface!$C$86:$Y$90,LN_Surface!X$70,FALSE)),\"\",VLOOKUP($A26,LN_Surface!$C$86:$Y$90,LN_Surface!X$70,FALSE))","v":""},{"$f":"IF(ISERROR(VLOOKUP($A26,LN_Surface!$C$86:$Y$90,LN_Surface!Y$70,FALSE)),\"\",VLOOKUP($A26,LN_Surface!$C$86:$Y$90,LN_Surface!Y$70,FALSE))","v":""}]
[null,null,null,null,null,null,null,null,null,{"$f":"IF((IF(ISERROR(VLOOKUP($A26,LN_Surface!$C$86:$Y$90,LN_Surface!R$70,FALSE)),\"\",VLOOKUP($A26,LN_Surface!$C$86:$Y$90,LN_Surface!R$70,FALSE)))=0,\"Estándar\",IF(ISERROR(VLOOKUP($A26,LN_Surface!$C$86:$Y$90,LN_Surface!R$70,FALSE)),\"\",VLOOKUP($A26,LN_Surface!$C$86:$Y$90,LN_Surface!R$70,FALSE)))","v":""},{"$f":"IF(ISERROR(VLOOKUP($A26,LN_Surface!$C$86:$Y$90,LN_Surface!S$70,FALSE)),\"\",VLOOKUP($A26,LN_Surface!$C$86:$Y$90,LN_Surface!S$70,FALSE))","v":""},{"$f":"IF(ISERROR(VLOOKUP($A26,LN_Surface!$C$86:$Y$90,LN_Surface!T$70,FALSE)),\"\",VLOOKUP($A26,LN_Surface!$C$86:$Y$90,LN_Surface!T$70,FALSE))","v":""}]
[2,{"$f":"IF(ISERROR(VLOOKUP($A28,LN_Surface!$C$86:$Y$90,LN_Surface!I$70,FALSE)),\"\",VLOOKUP($A28,LN_Surface!$C$86:$Y$90,LN_Surface!I$70,FALSE))","v":""},null,null,{"$f":"IF(ISERROR(VLOOKUP($A28,LN_Surface!$C$86:$Y$90,LN_Surface!J$70,FALSE)),\"\",VLOOKUP($A28,LN_Surface!$C$86:$Y$90,LN_Surface!J$70,FALSE))","v":""},{"$f":"IF(ISERROR(VLOOKUP($A28,LN_Surface!$C$86:$Y$90,LN_Surface!K$70,FALSE)),\"\",VLOOKUP($A28,LN_Surface!$C$86:$Y$90,LN_Surface!K$70,FALSE))","v":""},{"$f":"IF(ISERROR(VLOOKUP($A28,LN_Surface!$C$86:$Y$90,LN_Surface!L$70,FALSE)),\"\",VLOOKUP($A28,LN_Surface!$C$86:$Y$90,LN_Surface!L$70,FALSE))","v":""},{"$f":"IF(ISERROR(VLOOKUP($A28,LN_Surface!$C$86:$Y$90,LN_Surface!M$70,FALSE)),\"\",VLOOKUP($A28,LN_Surface!$C$86:$Y$90,LN_Surface!M$70,FALSE))","v":""},{"$f":"IF(ISERROR(VLOOKUP($A28,LN_Surface!$C$86:$Y$90,LN_Surface!N$70,FALSE)),\"\",VLOOKUP($A28,LN_Surface!$C$86:$Y$90,LN_Surface!N$70,FALSE))","v":""},{"$f":"IF(ISERROR(VLOOKUP($A28,LN_Surface!$C$86:$Y$90,LN_Surface!O$70,FALSE)),\"\",VLOOKUP($A28,LN_Surface!$C$86:$Y$90,LN_Surface!O$70,FALSE))","v":""},{"$f":"IF(ISERROR(VLOOKUP($A28,LN_Surface!$C$86:$Y$90,LN_Surface!P$70,FALSE)),\"\",VLOOKUP($A28,LN_Surface!$C$86:$Y$90,LN_Surface!P$70,FALSE))","v":""},{"$f":"IF(ISERROR(VLOOKUP($A28,LN_Surface!$C$86:$Y$90,LN_Surface!Q$70,FALSE)),\"\",VLOOKUP($A28,LN_Surface!$C$86:$Y$90,LN_Surface!Q$70,FALSE))","v":""},{"$f":"IF(ISERROR(VLOOKUP($A28,LN_Surface!$C$86:$Y$90,LN_Surface!U$70,FALSE)),\"\",VLOOKUP($A28,LN_Surface!$C$86:$Y$90,LN_Surface!U$70,FALSE))","v":""},{"$f":"IF(ISERROR(VLOOKUP($A28,LN_Surface!$C$86:$Y$90,LN_Surface!V$70,FALSE)),\"\",VLOOKUP($A28,LN_Surface!$C$86:$Y$90,LN_Surface!V$70,FALSE))","v":""},{"$f":"IF(ISERROR(VLOOKUP($A28,LN_Surface!$C$86:$Y$90,LN_Surface!W$70,FALSE)),\"\",VLOOKUP($A28,LN_Surface!$C$86:$Y$90,LN_Surface!W$70,FALSE))","v":""},{"$f":"IF(ISERROR(VLOOKUP($A28,LN_Surface!$C$86:$Y$90,LN_Surface!X$70,FALSE)),\"\",VLOOKUP($A28,LN_Surface!$C$86:$Y$90,LN_Surface!X$70,FALSE))","v":""},{"$f":"IF(ISERROR(VLOOKUP($A28,LN_Surface!$C$86:$Y$90,LN_Surface!Y$70,FALSE)),\"\",VLOOKUP($A28,LN_Surface!$C$86:$Y$90,LN_Surface!Y$70,FALSE))","v":""}]
[null,null,null,null,null,null,null,null,null,{"$f":"IF((IF(ISERROR(VLOOKUP($A28,LN_Surface!$C$86:$Y$90,LN_Surface!R$70,FALSE)),\"\",VLOOKUP($A28,LN_Surface!$C$86:$Y$90,LN_Surface!R$70,FALSE)))=0,\"Estándar\",IF(ISERROR(VLOOKUP($A28,LN_Surface!$C$86:$Y$90,LN_Surface!R$70,FALSE)),\"\",VLOOKUP($A28,LN_Surface!$C$86:$Y$90,LN_Surface!R$70,FALSE)))","v":""},{"$f":"IF(ISERROR(VLOOKUP($A28,LN_Surface!$C$86:$Y$90,LN_Surface!S$70,FALSE)),\"\",VLOOKUP($A28,LN_Surface!$C$86:$Y$90,LN_Surface!S$70,FALSE))","v":""},{"$f":"IF(ISERROR(VLOOKUP($A28,LN_Surface!$C$86:$Y$90,LN_Surface!T$70,FALSE)),\"\",VLOOKUP($A28,LN_Surface!$C$86:$Y$90,LN_Surface!T$70,FALSE))","v":""}]
[3,{"$f":"IF(ISERROR(VLOOKUP($A30,LN_Surface!$C$86:$Y$90,LN_Surface!I$70,FALSE)),\"\",VLOOKUP($A30,LN_Surface!$C$86:$Y$90,LN_Surface!I$70,FALSE))","v":""},null,null,{"$f":"IF(ISERROR(VLOOKUP($A30,LN_Surface!$C$86:$Y$90,LN_Surface!J$70,FALSE)),\"\",VLOOKUP($A30,LN_Surface!$C$86:$Y$90,LN_Surface!J$70,FALSE))","v":""},{"$f":"IF(ISERROR(VLOOKUP($A30,LN_Surface!$C$86:$Y$90,LN_Surface!K$70,FALSE)),\"\",VLOOKUP($A30,LN_Surface!$C$86:$Y$90,LN_Surface!K$70,FALSE))","v":""},{"$f":"IF(ISERROR(VLOOKUP($A30,LN_Surface!$C$86:$Y$90,LN_Surface!L$70,FALSE)),\"\",VLOOKUP($A30,LN_Surface!$C$86:$Y$90,LN_Surface!L$70,FALSE))","v":""},{"$f":"IF(ISERROR(VLOOKUP($A30,LN_Surface!$C$86:$Y$90,LN_Surface!M$70,FALSE)),\"\",VLOOKUP($A30,LN_Surface!$C$86:$Y$90,LN_Surface!M$70,FALSE))","v":""},{"$f":"IF(ISERROR(VLOOKUP($A30,LN_Surface!$C$86:$Y$90,LN_Surface!N$70,FALSE)),\"\",VLOOKUP($A30,LN_Surface!$C$86:$Y$90,LN_Surface!N$70,FALSE))","v":""},{"$f":"IF(ISERROR(VLOOKUP($A30,LN_Surface!$C$86:$Y$90,LN_Surface!O$70,FALSE)),\"\",VLOOKUP($A30,LN_Surface!$C$86:$Y$90,LN_Surface!O$70,FALSE))","v":""},{"$f":"IF(ISERROR(VLOOKUP($A30,LN_Surface!$C$86:$Y$90,LN_Surface!P$70,FALSE)),\"\",VLOOKUP($A30,LN_Surface!$C$86:$Y$90,LN_Surface!P$70,FALSE))","v":""},{"$f":"IF(ISERROR(VLOOKUP($A30,LN_Surface!$C$86:$Y$90,LN_Surface!Q$70,FALSE)),\"\",VLOOKUP($A30,LN_Surface!$C$86:$Y$90,LN_Surface!Q$70,FALSE))","v":""},{"$f":"IF(ISERROR(VLOOKUP($A30,LN_Surface!$C$86:$Y$90,LN_Surface!U$70,FALSE)),\"\",VLOOKUP($A30,LN_Surface!$C$86:$Y$90,LN_Surface!U$70,FALSE))","v":""},{"$f":"IF(ISERROR(VLOOKUP($A30,LN_Surface!$C$86:$Y$90,LN_Surface!V$70,FALSE)),\"\",VLOOKUP($A30,LN_Surface!$C$86:$Y$90,LN_Surface!V$70,FALSE))","v":""},{"$f":"IF(ISERROR(VLOOKUP($A30,LN_Surface!$C$86:$Y$90,LN_Surface!W$70,FALSE)),\"\",VLOOKUP($A30,LN_Surface!$C$86:$Y$90,LN_Surface!W$70,FALSE))","v":""},{"$f":"IF(ISERROR(VLOOKUP($A30,LN_Surface!$C$86:$Y$90,LN_Surface!X$70,FALSE)),\"\",VLOOKUP($A30,LN_Surface!$C$86:$Y$90,LN_Surface!X$70,FALSE))","v":""},{"$f":"IF(ISERROR(VLOOKUP($A30,LN_Surface!$C$86:$Y$90,LN_Surface!Y$70,FALSE)),\"\",VLOOKUP($A30,LN_Surface!$C$86:$Y$90,LN_Surface!Y$70,FALSE))","v":""}]
[null,null,null,null,null,null,null,null,null,{"$f":"IF((IF(ISERROR(VLOOKUP($A30,LN_Surface!$C$86:$Y$90,LN_Surface!R$70,FALSE)),\"\",VLOOKUP($A30,LN_Surface!$C$86:$Y$90,LN_Surface!R$70,FALSE)))=0,\"Estándar\",IF(ISERROR(VLOOKUP($A30,LN_Surface!$C$86:$Y$90,LN_Surface!R$70,FALSE)),\"\",VLOOKUP($A30,LN_Surface!$C$86:$Y$90,LN_Surface!R$70,FALSE)))","v":""},{"$f":"IF(ISERROR(VLOOKUP($A30,LN_Surface!$C$86:$Y$90,LN_Surface!S$70,FALSE)),\"\",VLOOKUP($A30,LN_Surface!$C$86:$Y$90,LN_Surface!S$70,FALSE))","v":""},{"$f":"IF(ISERROR(VLOOKUP($A30,LN_Surface!$C$86:$Y$90,LN_Surface!T$70,FALSE)),\"\",VLOOKUP($A30,LN_Surface!$C$86:$Y$90,LN_Surface!T$70,FALSE))","v":""}]
[4,{"$f":"IF(ISERROR(VLOOKUP($A32,LN_Surface!$C$86:$Y$90,LN_Surface!I$70,FALSE)),\"\",VLOOKUP($A32,LN_Surface!$C$86:$Y$90,LN_Surface!I$70,FALSE))","v":""},null,null,{"$f":"IF(ISERROR(VLOOKUP($A32,LN_Surface!$C$86:$Y$90,LN_Surface!J$70,FALSE)),\"\",VLOOKUP($A32,LN_Surface!$C$86:$Y$90,LN_Surface!J$70,FALSE))","v":""},{"$f":"IF(ISERROR(VLOOKUP($A32,LN_Surface!$C$86:$Y$90,LN_Surface!K$70,FALSE)),\"\",VLOOKUP($A32,LN_Surface!$C$86:$Y$90,LN_Surface!K$70,FALSE))","v":""},{"$f":"IF(ISERROR(VLOOKUP($A32,LN_Surface!$C$86:$Y$90,LN_Surface!L$70,FALSE)),\"\",VLOOKUP($A32,LN_Surface!$C$86:$Y$90,LN_Surface!L$70,FALSE))","v":""},{"$f":"IF(ISERROR(VLOOKUP($A32,LN_Surface!$C$86:$Y$90,LN_Surface!M$70,FALSE)),\"\",VLOOKUP($A32,LN_Surface!$C$86:$Y$90,LN_Surface!M$70,FALSE))","v":""},{"$f":"IF(ISERROR(VLOOKUP($A32,LN_Surface!$C$86:$Y$90,LN_Surface!N$70,FALSE)),\"\",VLOOKUP($A32,LN_Surface!$C$86:$Y$90,LN_Surface!N$70,FALSE))","v":""},{"$f":"IF(ISERROR(VLOOKUP($A32,LN_Surface!$C$86:$Y$90,LN_Surface!O$70,FALSE)),\"\",VLOOKUP($A32,LN_Surface!$C$86:$Y$90,LN_Surface!O$70,FALSE))","v":""},{"$f":"IF(ISERROR(VLOOKUP($A32,LN_Surface!$C$86:$Y$90,LN_Surface!P$70,FALSE)),\"\",VLOOKUP($A32,LN_Surface!$C$86:$Y$90,LN_Surface!P$70,FALSE))","v":""},{"$f":"IF(ISERROR(VLOOKUP($A32,LN_Surface!$C$86:$Y$90,LN_Surface!Q$70,FALSE)),\"\",VLOOKUP($A32,LN_Surface!$C$86:$Y$90,LN_Surface!Q$70,FALSE))","v":""},{"$f":"IF(ISERROR(VLOOKUP($A32,LN_Surface!$C$86:$Y$90,LN_Surface!U$70,FALSE)),\"\",VLOOKUP($A32,LN_Surface!$C$86:$Y$90,LN_Surface!U$70,FALSE))","v":""},{"$f":"IF(ISERROR(VLOOKUP($A32,LN_Surface!$C$86:$Y$90,LN_Surface!V$70,FALSE)),\"\",VLOOKUP($A32,LN_Surface!$C$86:$Y$90,LN_Surface!V$70,FALSE))","v":""},{"$f":"IF(ISERROR(VLOOKUP($A32,LN_Surface!$C$86:$Y$90,LN_Surface!W$70,FALSE)),\"\",VLOOKUP($A32,LN_Surface!$C$86:$Y$90,LN_Surface!W$70,FALSE))","v":""},{"$f":"IF(ISERROR(VLOOKUP($A32,LN_Surface!$C$86:$Y$90,LN_Surface!X$70,FALSE)),\"\",VLOOKUP($A32,LN_Surface!$C$86:$Y$90,LN_Surface!X$70,FALSE))","v":""},{"$f":"IF(ISERROR(VLOOKUP($A32,LN_Surface!$C$86:$Y$90,LN_Surface!Y$70,FALSE)),\"\",VLOOKUP($A32,LN_Surface!$C$86:$Y$90,LN_Surface!Y$70,FALSE))","v":""}]
[null,null,null,null,null,null,null,null,null,{"$f":"IF((IF(ISERROR(VLOOKUP($A32,LN_Surface!$C$86:$Y$90,LN_Surface!R$70,FALSE)),\"\",VLOOKUP($A32,LN_Surface!$C$86:$Y$90,LN_Surface!R$70,FALSE)))=0,\"Estándar\",IF(ISERROR(VLOOKUP($A32,LN_Surface!$C$86:$Y$90,LN_Surface!R$70,FALSE)),\"\",VLOOKUP($A32,LN_Surface!$C$86:$Y$90,LN_Surface!R$70,FALSE)))","v":""},{"$f":"IF(ISERROR(VLOOKUP($A32,LN_Surface!$C$86:$Y$90,LN_Surface!S$70,FALSE)),\"\",VLOOKUP($A32,LN_Surface!$C$86:$Y$90,LN_Surface!S$70,FALSE))","v":""},{"$f":"IF(ISERROR(VLOOKUP($A32,LN_Surface!$C$86:$Y$90,LN_Surface!T$70,FALSE)),\"\",VLOOKUP($A32,LN_Surface!$C$86:$Y$90,LN_Surface!T$70,FALSE))","v":""}]
[5,{"$f":"IF(ISERROR(VLOOKUP($A34,LN_Surface!$C$86:$Y$90,LN_Surface!I$70,FALSE)),\"\",VLOOKUP($A34,LN_Surface!$C$86:$Y$90,LN_Surface!I$70,FALSE))","v":""},null,null,{"$f":"IF(ISERROR(VLOOKUP($A34,LN_Surface!$C$86:$Y$90,LN_Surface!J$70,FALSE)),\"\",VLOOKUP($A34,LN_Surface!$C$86:$Y$90,LN_Surface!J$70,FALSE))","v":""},{"$f":"IF(ISERROR(VLOOKUP($A34,LN_Surface!$C$86:$Y$90,LN_Surface!K$70,FALSE)),\"\",VLOOKUP($A34,LN_Surface!$C$86:$Y$90,LN_Surface!K$70,FALSE))","v":""},{"$f":"IF(ISERROR(VLOOKUP($A34,LN_Surface!$C$86:$Y$90,LN_Surface!L$70,FALSE)),\"\",VLOOKUP($A34,LN_Surface!$C$86:$Y$90,LN_Surface!L$70,FALSE))","v":""},{"$f":"IF(ISERROR(VLOOKUP($A34,LN_Surface!$C$86:$Y$90,LN_Surface!M$70,FALSE)),\"\",VLOOKUP($A34,LN_Surface!$C$86:$Y$90,LN_Surface!M$70,FALSE))","v":""},{"$f":"IF(ISERROR(VLOOKUP($A34,LN_Surface!$C$86:$Y$90,LN_Surface!N$70,FALSE)),\"\",VLOOKUP($A34,LN_Surface!$C$86:$Y$90,LN_Surface!N$70,FALSE))","v":""},{"$f":"IF(ISERROR(VLOOKUP($A34,LN_Surface!$C$86:$Y$90,LN_Surface!O$70,FALSE)),\"\",VLOOKUP($A34,LN_Surface!$C$86:$Y$90,LN_Surface!O$70,FALSE))","v":""},{"$f":"IF(ISERROR(VLOOKUP($A34,LN_Surface!$C$86:$Y$90,LN_Surface!P$70,FALSE)),\"\",VLOOKUP($A34,LN_Surface!$C$86:$Y$90,LN_Surface!P$70,FALSE))","v":""},{"$f":"IF(ISERROR(VLOOKUP($A34,LN_Surface!$C$86:$Y$90,LN_Surface!Q$70,FALSE)),\"\",VLOOKUP($A34,LN_Surface!$C$86:$Y$90,LN_Surface!Q$70,FALSE))","v":""},{"$f":"IF(ISERROR(VLOOKUP($A34,LN_Surface!$C$86:$Y$90,LN_Surface!U$70,FALSE)),\"\",VLOOKUP($A34,LN_Surface!$C$86:$Y$90,LN_Surface!U$70,FALSE))","v":""},{"$f":"IF(ISERROR(VLOOKUP($A34,LN_Surface!$C$86:$Y$90,LN_Surface!V$70,FALSE)),\"\",VLOOKUP($A34,LN_Surface!$C$86:$Y$90,LN_Surface!V$70,FALSE))","v":""},{"$f":"IF(ISERROR(VLOOKUP($A34,LN_Surface!$C$86:$Y$90,LN_Surface!W$70,FALSE)),\"\",VLOOKUP($A34,LN_Surface!$C$86:$Y$90,LN_Surface!W$70,FALSE))","v":""},{"$f":"IF(ISERROR(VLOOKUP($A34,LN_Surface!$C$86:$Y$90,LN_Surface!X$70,FALSE)),\"\",VLOOKUP($A34,LN_Surface!$C$86:$Y$90,LN_Surface!X$70,FALSE))","v":""},{"$f":"IF(ISERROR(VLOOKUP($A34,LN_Surface!$C$86:$Y$90,LN_Surface!Y$70,FALSE)),\"\",VLOOKUP($A34,LN_Surface!$C$86:$Y$90,LN_Surface!Y$70,FALSE))","v":""}]
[null,null,null,null,null,null,null,null,null,{"$f":"IF((IF(ISERROR(VLOOKUP($A34,LN_Surface!$C$86:$Y$90,LN_Surface!R$70,FALSE)),\"\",VLOOKUP($A34,LN_Surface!$C$86:$Y$90,LN_Surface!R$70,FALSE)))=0,\"Estándar\",IF(ISERROR(VLOOKUP($A34,LN_Surface!$C$86:$Y$90,LN_Surface!R$70,FALSE)),\"\",VLOOKUP($A34,LN_Surface!$C$86:$Y$90,LN_Surface!R$70,FALSE)))","v":""},{"$f":"IF(ISERROR(VLOOKUP($A34,LN_Surface!$C$86:$Y$90,LN_Surface!S$70,FALSE)),\"\",VLOOKUP($A34,LN_Surface!$C$86:$Y$90,LN_Surface!S$70,FALSE))","v":""},{"$f":"IF(ISERROR(VLOOKUP($A34,LN_Surface!$C$86:$Y$90,LN_Surface!T$70,FALSE)),\"\",VLOOKUP($A34,LN_Surface!$C$86:$Y$90,LN_Surface!T$70,FALSE))","v":""}]
[null,{"$f":"CONCATENATE(\"Los precios indicados son PVPs recomendados por Microsoft y no incluyen impuestos indirectos (IVA, IGIC, etc.). Todos los descuentos son ofertados por  \",Configurador!J7)","v":"Los precios indicados son PVPs recomendados por Microsoft y no incluyen impuestos indirectos (IVA, IGIC, etc.). Todos los descuentos son ofertados por  "}]
[]
[]
[null,null,null,null,null,null,null,null,null,null,null,null,null,null,null,null,{"$f":"Impresion!E19","v":""}]

{"sheet":"SurfaceLaptop_E","index":19,"n_rows":37,"n_cols":17,"rows_kept":37,"cut":false,"hidden":false,"merged":[[33,8,34,8],[33,1,34,3],[33,4,34,4],[33,5,34,5],[33,6,34,6],[33,7,34,7],[33,12,34,12],[33,13,34,13],[33,14,34,14],[33,15,34,15],[33,16,34,16],[31,8,32,8],[31,12,32,12],[31,13,32,13],[31,14,32,14],[29,8,30,8],[31,15,32,15],[31,16,32,16],[29,12,30,12],[29,13,30,13],[29,14,30,14],[29,15,30,15],[29,16,30,16],[31,1,32,3],[31,4,32,4],[31,5,32,5],[31,6,32,6],[31,7,32,7],[27,12,28,12],[27,13,28,13],[27,14,28,14],[29,1,30,3],[29,4,30,4],[29,5,30,5],[29,6,30,6],[29,7,30,7],[27,7,28,7],[27,1,28,3],[27,4,28,4],[27,5,28,5],[27,6,28,6],[27,16,28,16],[27,15,28,15],[5,1,5,16],[24,1,24,3],[25,1,26,3],[25,4,26,4],[25,5,26,5],[25,6,26,6],[25,7,26,7],[25,8,26,8],[25,12,26,12],[25,13,26,13],[25,14,26,14],[25,15,26,15],[25,16,26,16],[27,8,28,8]]}
[]
[]
[null,"Dispositivos Surface Laptop para:"]
[null,{"$f":"Configurador!C7","v":0}]
[]
[null,"Surface Laptop: un equipo ultraligero y potente, apto para cualquier puesto, que combina ligereza, diseño y potencia"]
[]
[]
[]
[null,null,null,null,null,null,null,null,null,null,{"$f":"IF(AND(K8=0,K9=0),\"Te recomendamos Enterprise Mobility and Security\",\"Enterprise Mobility and Security\")","v":"Te recomendamos Enterprise Mobility and Security"}]
[]
[]
[]
[]
[]
[]
[]
[]
[]
[]
[]
[]
[]
[]
[null,"Pantalla/Procesador/ Memoria/Disco duro/LTE",null,null,"Tipo de pago","Precio en pago único","Precio en cuota mensual","Dcto.","Nº Equipos","Accesorios -\nGarantía","Precio unitario","Dcto.","Total pago inicial","Total mensual","Total primer año","Total años sucesivos","Total dto. primer año"]
[1,{"$f":"IF(ISERROR(VLOOKUP($A26,LN_Surface!$C$98:$Y$102,LN_Surface!I$70,FALSE)),\"\",VLOOKUP($A26,LN_Surface!$C$98:$Y$102,LN_Surface!I$70,FALSE))","v":""},null,null,{"$f":"IF(ISERROR(VLOOKUP($A26,LN_Surface!$C$98:$Y$102,LN_Surface!J$70,FALSE)),\"\",VLOOKUP($A26,LN_Surface!$C$98:$Y$102,LN_Surface!J$70,FALSE))","v":""},{"$f":"IF(ISERROR(VLOOKUP($A26,LN_Surface!$C$98:$Y$102,LN_Surface!K$70,FALSE)),\"\",VLOOKUP($A26,LN_Surface!$C$98:$Y$102,LN_Surface!K$70,FALSE))","v":""},{"$f":"IF(ISERROR(VLOOKUP($A26,LN_Surface!$C$98:$Y$102,LN_Surface!L$70,FALSE)),\"\",VLOOKUP($A26,LN_Surface!$C$98:$Y$102,LN_Surface!L$70,FALSE))","v":""},{"$f":"IF(ISERROR(VLOOKUP($A26,LN_Surface!$C$98:$Y$102,LN_Surface!M$70,FALSE)),\"\",VLOOKUP($A26,LN_Surface!$C$98:$Y$102,LN_Surface!M$70,FALSE))","v":""},{"$f":"IF(ISERROR(VLOOKUP($A26,LN_Surface!$C$98:$Y$102,LN_Surface!N$70,FALSE)),\"\",VLOOKUP($A26,LN_Surface!$C$98:$Y$102,LN_Surface!N$70,FALSE))","v":""},{"$f":"IF(ISERROR(VLOOKUP($A26,LN_Surface!$C$98:$Y$102,LN_Surface!O$70,FALSE)),\"\",VLOOKUP($A26,LN_Surface!$C$98:$Y$102,LN_Surface!O$70,FALSE))","v":""},{"$f":"IF(ISERROR(VLOOKUP($A26,LN_Surface!$C$98:$Y$102,LN_Surface!P$70,FALSE)),\"\",VLOOKUP($A26,LN_Surface!$C$98:$Y$102,LN_Surface!P$70,FALSE))","v":""},{"$f":"IF(ISERROR(VLOOKUP($A26,LN_Surface!$C$98:$Y$102,LN_Surface!Q$70,FALSE)),\"\",VLOOKUP($A26,LN_Surface!$C$98:$Y$102,LN_Surface!Q$70,FALSE))","v":""},{"$f":"IF(ISERROR(VLOOKUP($A26,LN_Surface!$C$98:$Y$102,LN_Surface!U$70,FALSE)),\"\",VLOOKUP($A26,LN_Surface!$C$98:$Y$102,LN_Surface!U$70,FALSE))","v":""},{"$f":"IF(ISERROR(VLOOKUP($A26,LN_Surface!$C$98:$Y$102,LN_Surface!V$70,FALSE)),\"\",VLOOKUP($A26,LN_Surface!$C$98:$Y$102,LN_Surface!V$70,FALSE))","v":""},{"$f":"IF(ISERROR(VLOOKUP($A26,LN_Surface!$C$98:$Y$102,LN_Surface!W$70,FALSE)),\"\",VLOOKUP($A26,LN_Surface!$C$98:$Y$102,LN_Surface!W$70,FALSE))","v":""},{"$f":"IF(ISERROR(VLOOKUP($A26,LN_Surface!$C$98:$Y$102,LN_Surface!X$70,FALSE)),\"\",VLOOKUP($A26,LN_Surface!$C$98:$Y$102,LN_Surface!X$70,FALSE))","v":""},{"$f":"IF(ISERROR(VLOOKUP($A26,LN_Surface!$C$98:$Y$102,LN_Surface!Y$70,FALSE)),\"\",VLOOKUP($A26,LN_Surface!$C$98:$Y$102,LN_Surface!Y$70,FALSE))","v":""}]
[null,null,null,null,null,null,null,null,null,{"$f":"IF((IF(ISERROR(VLOOKUP($A26,LN_Surface!$C$98:$Y$102,LN_Surface!R$70,FALSE)),\"\",VLOOKUP($A26,LN_Surface!$C$98:$Y$102,LN_Surface!R$70,FALSE)))=0,\"Estándar\",IF(ISERROR(VLOOKUP($A26,LN_Surface!$C$98:$Y$102,LN_Surface!R$70,FALSE)),\"\",VLOOKUP($A26,LN_Surface!$C$98:$Y$102,LN_Surface!R$70,FALSE)))","v":""},{"$f":"IF(ISERROR(VLOOKUP($A26,LN_Surface!$C$98:$Y$102,LN_Surface!S$70,FALSE)),\"\",VLOOKUP($A26,LN_Surface!$C$98:$Y$102,LN_Surface!S$70,FALSE))","v":""},{"$f":"IF(ISERROR(VLOOKUP($A26,LN_Surface!$C$98:$Y$102,LN_Surface!T$70,FALSE)),\"\",VLOOKUP($A26,LN_Surface!$C$98:$Y$102,LN_Surface!T$70,FALSE))","v":""}]
[2,{"$f":"IF(ISERROR(VLOOKUP($A28,LN_Surface!$C$98:$Y$102,LN_Surface!I$70,FALSE)),\"\",VLOOKUP($A28,LN_Surface!$C$98:$Y$102,LN_Surface!I$70,FALSE))","v":""},null,null,{"$f":"IF(ISERROR(VLOOKUP($A28,LN_Surface!$C$98:$Y$102,LN_Surface!J$70,FALSE)),\"\",VLOOKUP($A28,LN_Surface!$C$98:$Y$102,LN_Surface!J$70,FALSE))","v":""},{"$f":"IF(ISERROR(VLOOKUP($A28,LN_Surface!$C$98:$Y$102,LN_Surface!K$70,FALSE)),\"\",VLOOKUP($A28,LN_Surface!$C$98:$Y$102,LN_Surface!K$70,FALSE))","v":""},{"$f":"IF(ISERROR(VLOOKUP($A28,LN_Surface!$C$98:$Y$102,LN_Surface!L$70,FALSE)),\"\",VLOOKUP($A28,LN_Surface!$C$98:$Y$102,LN_Surface!L$70,FALSE))","v":""},{"$f":"IF(ISERROR(VLOOKUP($A28,LN_Surface!$C$98:$Y$102,LN_Surface!M$70,FALSE)),\"\",VLOOKUP($A28,LN_Surface!$C$98:$Y$102,LN_Surface!M$70,FALSE))","v":""},{"$f":"IF(ISERROR(VLOOKUP($A28,LN_Surface!$C$98:$Y$102,LN_Surface!N$70,FALSE)),\"\",VLOOKUP($A28,LN_Surface!$C$98:$Y$102,LN_Surface!N$70,FALSE))","v":""},{"$f":"IF(ISERROR(VLOOKUP($A28,LN_Surface!$C$98:$Y$102,LN_Surface!O$70,FALSE)),\"\",VLOOKUP($A28,LN_Surface!$C$98:$Y$102,LN_Surface!O$70,FALSE))","v":""},{"$f":"IF(ISERROR(VLOOKUP($A28,LN_Surface!$C$98:$Y$102,LN_Surface!P$70,FALSE)),\"\",VLOOKUP($A28,LN_Surface!$C$98:$Y$102,LN_Surface!P$70,FALSE))","v":""},{"$f":"IF(ISERROR(VLOOKUP($A28,LN_Surface!$C$98:$Y$102,LN_Surface!Q$70,FALSE)),\"\",VLOOKUP($A28,LN_Surface!$C$98:$Y$102,LN_Surface!Q$70,FALSE))","v":""},{"$f":"IF(ISERROR(VLOOKUP($A28,LN_Surface!$C$98:$Y$102,LN_Surface!U$70,FALSE)),\"\",VLOOKUP($A28,LN_Surface!$C$98:$Y$102,LN_Surface!U$70,FALSE))","v":""},{"$f":"IF(ISERROR(VLOOKUP($A28,LN_Surface!$C$98:$Y$102,LN_Surface!V$70,FALSE)),\"\",VLOOKUP($A28,LN_Surface!$C$98:$Y$102,LN_Surface!V$70,FALSE))","v":""},{"$f":"IF(ISERROR(VLOOKUP($A28,LN_Surface!$C$98:$Y$102,LN_Surface!W$70,FALSE)),\"\",VLOOKUP($A28,LN_Surface!$C$98:$Y$102,LN_Surface!W$70,FALSE))","v":""},{"$f":"IF(ISERROR(VLOOKUP($A28,LN_Surface!$C$98:$Y$102,LN_Surface!X$70,FALSE)),\"\",VLOOKUP($A28,LN_Surface!$C$98:$Y$102,LN_Surface!X$70,FALSE))","v":""},{"$f":"IF(ISERROR(VLOOKUP($A28,LN_Surface!$C$98:$Y$102,LN_Surface!Y$70,FALSE)),\"\",VLOOKUP($A28,LN_Surface!$C$98:$Y$102,LN_Surface!Y$70,FALSE))","v":""}]
[null,null,null,null,null,null,null,null,null,{"$f":"IF((IF(ISERROR(VLOOKUP($A28,LN_Surface!$C$98:$Y$102,LN_Surface!R$70,FALSE)),\"\",VLOOKUP($A28,LN_Surface!$C$98:$Y$102,LN_Surface!R$70,FALSE)))=0,\"Estándar\",IF(ISERROR(VLOOKUP($A28,LN_Surface!$C$98:$Y$102,LN_Surface!R$70,FALSE)),\"\",VLOOKUP($A28,LN_Surface!$C$98:$Y$102,LN_Surface!R$70,FALSE)))","v":""},{"$f":"IF(ISERROR(VLOOKUP($A28,LN_Surface!$C$98:$Y$102,LN_Surface!S$70,FALSE)),\"\",VLOOKUP($A28,LN_Surface!$C$98:$Y$102,LN_Surface!S$70,FALSE))","v":""},{"$f":"IF(ISERROR(VLOOKUP($A28,LN_Surface!$C$98:$Y$102,LN_Surface!T$70,FALSE)),\"\",VLOOKUP($A28,LN_Surface!$C$98:$Y$102,LN_Surface!T$70,FALSE))","v":""}]
[3,{"$f":"IF(ISERROR(VLOOKUP($A30,LN_Surface!$C$98:$Y$102,LN_Surface!I$70,FALSE)),\"\",VLOOKUP($A30,LN_Surface!$C$98:$Y$102,LN_Surface!I$70,FALSE))","v":""},null,null,{"$f":"IF(ISERROR(VLOOKUP($A30,LN_Surface!$C$98:$Y$102,LN_Surface!J$70,FALSE)),\"\",VLOOKUP($A30,LN_Surface!$C$98:$Y$102,LN_Surface!J$70,FALSE))","v":""},{"$f":"IF(ISERROR(VLOOKUP($A30,LN_Surface!$C$98:$Y$102,LN_Surface!K$70,FALSE)),\"\",VLOOKUP($A30,LN_Surface!$C$98:$Y$102,LN_Surface!K$70,FALSE))","v":""},{"$f":"IF(ISERROR(VLOOKUP($A30,LN_Surface!$C$98:$Y$102,LN_Surface!L$70,FALSE)),\"\",VLOOKUP($A30,LN_Surface!$C$98:$Y$102,LN_Surface!L$70,FALSE))","v":""},{"$f":"IF(ISERROR(VLOOKUP($A30,LN_Surface!$C$98:$Y$102,LN_Surface!M$70,FALSE)),\"\",VLOOKUP($A30,LN_Surface!$C$98:$Y$102,LN_Surface!M$70,FALSE))","v":""},{"$f":"IF(ISERROR(VLOOKUP($A30,LN_Surface!$C$98:$Y$102,LN_Surface!N$70,FALSE)),\"\",VLOOKUP($A30,LN_Surface!$C$98:$Y$102,LN_Surface!N$70,FALSE))","v":""},{"$f":"IF(ISERROR(VLOOKUP($A30,LN_Surface!$C$98:$Y$102,LN_Surface!O$70,FALSE)),\"\",VLOOKUP($A30,LN_Surface!$C$98:$Y$102,LN_Surface!O$70,FALSE))","v":""},{"$f":"IF(ISERROR(VLOOKUP($A30,LN_Surface!$C$98:$Y$102,LN_Surface!P$70,FALSE)),\"\",VLOOKUP($A30,LN_Surface!$C$98:$Y$102,LN_Surface!P$70,FALSE))","v":""},{"$f":"IF(ISERROR(VLOOKUP($A30,LN_Surface!$C$98:$Y$102,LN_Surface!Q$70,FALSE)),\"\",VLOOKUP($A30,LN_Surface!$C$98:$Y$102,LN_Surface!Q$70,FALSE))","v":""},{"$f":"IF(ISERROR(VLOOKUP($A30,LN_Surface!$C$98:$Y$102,LN_Surface!U$70,FALSE)),\"\",VLOOKUP($A30,LN_Surface!$C$98:$Y$102,LN_Surface!U$70,FALSE))","v":""},{"$f":"IF(ISERROR(VLOOKUP($A30,LN_Surface!$C$98:$Y$102,LN_Surface!V$70,FALSE)),\"\",VLOOKUP($A30,LN_Surface!$C$98:$Y$102,LN_Surface!V$70,FALSE))","v":""},{"$f":"IF(ISERROR(VLOOKUP($A30,LN_Surface!$C$98:$Y$102,LN_Surface!W$70,FALSE)),\"\",VLOOKUP($A30,LN_Surface!$C$98:$Y$102,LN_Surface!W$70,FALSE))","v":""},{"$f":"IF(ISERROR(VLOOKUP($A30,LN_Surface!$C$98:$Y$102,LN_Surface!X$70,FALSE)),\"\",VLOOKUP($A30,LN_Surface!$C$98:$Y$102,LN_Surface!X$70,FALSE))","v":""},{"$f":"IF(ISERROR(VLOOKUP($A30,LN_Surface!$C$98:$Y$102,LN_Surface!Y$70,FALSE)),\"\",VLOOKUP($A30,LN_Surface!$C$98:$Y$102,LN_Surface!Y$70,FALSE))","v":""}]
[null,null,null,null,null,null,null,null,null,{"$f":"IF((IF(ISERROR(VLOOKUP($A30,LN_Surface!$C$98:$Y$102,LN_Surface!R$70,FALSE)),\"\",VLOOKUP($A30,LN_Surface!$C$98:$Y$102,LN_Surface!R$70,FALSE)))=0,\"Estándar\",IF(ISERROR(VLOOKUP($A30,LN_Surface!$C$98:$Y$102,LN_Surface!R$70,FALSE)),\"\",VLOOKUP($A30,LN_Surface!$C$98:$Y$102,LN_Surface!R$70,FALSE)))","v":""},{"$f":"IF(ISERROR(VLOOKUP($A30,LN_Surface!$C$98:$Y$102,LN_Surface!S$70,FALSE)),\"\",VLOOKUP($A30,LN_Surface!$C$98:$Y$102,LN_Surface!S$70,FALSE))","v":""},{"$f":"IF(ISERROR(VLOOKUP($A30,LN_Surface!$C$98:$Y$102,LN_Surface!T$70,FALSE)),\"\",VLOOKUP($A30,LN_Surface!$C$98:$Y$102,LN_Surface!T$70,FALSE))","v":""}]
[4,{"$f":"IF(ISERROR(VLOOKUP($A32,LN_Surface!$C$98:$Y$102,LN_Surface!I$70,FALSE)),\"\",VLOOKUP($A32,LN_Surface!$C$98:$Y$102,LN_Surface!I$70,FALSE))","v":""},null,null,{"$f":"IF(ISERROR(VLOOKUP($A32,LN_Surface!$C$98:$Y$102,LN_Surface!J$70,FALSE)),\"\",VLOOKUP($A32,LN_Surface!$C$98:$Y$102,LN_Surface!J$70,FALSE))","v":""},{"$f":"IF(ISERROR(VLOOKUP($A32,LN_Surface!$C$98:$Y$102,LN_Surface!K$70,FALSE)),\"\",VLOOKUP($A32,LN_Surface!$C$98:$Y$102,LN_Surface!K$70,FALSE))","v":""},{"$f":"IF(ISERROR(VLOOKUP($A32,LN_Surface!$C$98:$Y$102,LN_Surface!L$70,FALSE)),\"\",VLOOKUP($A32,LN_Surface!$C$98:$Y$102,LN_Surface!L$70,FALSE))","v":""},{"$f":"IF(ISERROR(VLOOKUP($A32,LN_Surface!$C$98:$Y$102,LN_Surface!M$70,FALSE)),\"\",VLOOKUP($A32,LN_Surface!$C$98:$Y$102,LN_Surface!M$70,FALSE))","v":""},{"$f":"IF(ISERROR(VLOOKUP($A32,LN_Surface!$C$98:$Y$102,LN_Surface!N$70,FALSE)),\"\",VLOOKUP($A32,LN_Surface!$C$98:$Y$102,LN_Surface!N$70,FALSE))","v":""},{"$f":"IF(ISERROR(VLOOKUP($A32,LN_Surface!$C$98:$Y$102,LN_Surface!O$70,FALSE)),\"\",VLOOKUP($A32,LN_Surface!$C$98:$Y$102,LN_Surface!O$70,FALSE))","v":""},{"$f":"IF(ISERROR(VLOOKUP($A32,LN_Surface!$C$98:$Y$102,LN_Surface!P$70,FALSE)),\"\",VLOOKUP($A32,LN_Surface!$C$98:$Y$102,LN_Surface!P$70,FALSE))","v":""},{"$f":"IF(ISERROR(VLOOKUP($A32,LN_Surface!$C$98:$Y$102,LN_Surface!Q$70,FALSE)),\"\",VLOOKUP($A32,LN_Surface!$C$98:$Y$102,LN_Surface!Q$70,FALSE))","v":""},{"$f":"IF(ISERROR(VLOOKUP($A32,LN_Surface!$C$98:$Y$102,LN_Surface!U$70,FALSE)),\"\",VLOOKUP($A32,LN_Surface!$C$98:$Y$102,LN_Surface!U$70,FALSE))","v":""},{"$f":"IF(ISERROR(VLOOKUP($A32,LN_Surface!$C$98:$Y$102,LN_Surface!V$70,FALSE)),\"\",VLOOKUP($A32,LN_Surface!$C$98:$Y$102,LN_Surface!V$70,FALSE))","v":""},{"$f":"IF(ISERROR(VLOOKUP($A32,LN_Surface!$C$98:$Y$102,LN_Surface!W$70,FALSE)),\"\",VLOOKUP($A32,LN_Surface!$C$98:$Y$102,LN_Surface!W$70,FALSE))","v":""},{"$f":"IF(ISERROR(VLOOKUP($A32,LN_Surface!$C$98:$Y$102,LN_Surface!X$70,FALSE)),\"\",VLOOKUP($A32,LN_Surface!$C$98:$Y$102,LN_Surface!X$70,FALSE))","v":""},{"$f":"IF(ISERROR(VLOOKUP($A32,LN_Surface!$C$98:$Y$102,LN_Surface!Y$70,FALSE)),\"\",VLOOKUP($A32,LN_Surface!$C$98:$Y$102,LN_Surface!Y$70,FALSE))","v":""}]
[null,null,null,null,null,null,null,null,null,{"$f":"IF((IF(ISERROR(VLOOKUP($A32,LN_Surface!$C$98:$Y$102,LN_Surface!R$70,FALSE)),\"\",VLOOKUP($A32,LN_Surface!$C$98:$Y$102,LN_Surface!R$70,FALSE)))=0,\"Estándar\",IF(ISERROR(VLOOKUP($A32,LN_Surface!$C$98:$Y$102,LN_Surface!R$70,FALSE)),\"\",VLOOKUP($A32,LN_Surface!$C$98:$Y$102,LN_Surface!R$70,FALSE)))","v":""},{"$f":"IF(ISERROR(VLOOKUP($A32,LN_Surface!$C$98:$Y$102,LN_Surface!S$70,FALSE)),\"\",VLOOKUP($A32,LN_Surface!$C$98:$Y$102,LN_Surface!S$70,FALSE))","v":""},{"$f":"IF(ISERROR(VLOOKUP($A32,LN_Surface!$C$98:$Y$102,LN_Surface!T$70,FALSE)),\"\",VLOOKUP($A32,LN_Surface!$C$98:$Y$102,LN_Surface!T$70,FALSE))","v":""}]
[5,{"$f":"IF(ISERROR(VLOOKUP($A34,LN_Surface!$C$98:$Y$102,LN_Surface!I$70,FALSE)),\"\",VLOOKUP($A34,LN_Surface!$C$98:$Y$102,LN_Surface!I$70,FALSE))","v":""},null,null,{"$f":"IF(ISERROR(VLOOKUP($A34,LN_Surface!$C$98:$Y$102,LN_Surface!J$70,FALSE)),\"\",VLOOKUP($A34,LN_Surface!$C$98:$Y$102,LN_Surface!J$70,FALSE))","v":""},{"$f":"IF(ISERROR(VLOOKUP($A34,LN_Surface!$C$98:$Y$102,LN_Surface!K$70,FALSE)),\"\",VLOOKUP($A34,LN_Surface!$C$98:$Y$102,LN_Surface!K$70,FALSE))","v":""},{"$f":"IF(ISERROR(VLOOKUP($A34,LN_Surface!$C$98:$Y$102,LN_Surface!L$70,FALSE)),\"\",VLOOKUP($A34,LN_Surface!$C$98:$Y$102,LN_Surface!L$70,FALSE))","v":""},{"$f":"IF(ISERROR(VLOOKUP($A34,LN_Surface!$C$98:$Y$102,LN_Surface!M$70,FALSE)),\"\",VLOOKUP($A34,LN_Surface!$C$98:$Y$102,LN_Surface!M$70,FALSE))","v":""},{"$f":"IF(ISERROR(VLOOKUP($A34,LN_Surface!$C$98:$Y$102,LN_Surface!N$70,FALSE)),\"\",VLOOKUP($A34,LN_Surface!$C$98:$Y$102,LN_Surface!N$70,FALSE))","v":""},{"$f":"IF(ISERROR(VLOOKUP($A34,LN_Surface!$C$98:$Y$102,LN_Surface!O$70,FALSE)),\"\",VLOOKUP($A34,LN_Surface!$C$98:$Y$102,LN_Surface!O$70,FALSE))","v":""},{"$f":"IF(ISERROR(VLOOKUP($A34,LN_Surface!$C$98:$Y$102,LN_Surface!P$70,FALSE)),\"\",VLOOKUP($A34,LN_Surface!$C$98:$Y$102,LN_Surface!P$70,FALSE))","v":""},{"$f":"IF(ISERROR(VLOOKUP($A34,LN_Surface!$C$98:$Y$102,LN_Surface!Q$70,FALSE)),\"\",VLOOKUP($A34,LN_Surface!$C$98:$Y$102,LN_Surface!Q$70,FALSE))","v":""},{"$f":"IF(ISERROR(VLOOKUP($A34,LN_Surface!$C$98:$Y$102,LN_Surface!U$70,FALSE)),\"\",VLOOKUP($A34,LN_Surface!$C$98:$Y$102,LN_Surface!U$70,FALSE))","v":""},{"$f":"IF(ISERROR(VLOOKUP($A34,LN_Surface!$C$98:$Y$102,LN_Surface!V$70,FALSE)),\"\",VLOOKUP($A34,LN_Surface!$C$98:$Y$102,LN_Surface!V$70,FALSE))","v":""},{"$f":"IF(ISERROR(VLOOKUP($A34,LN_Surface!$C$98:$Y$102,LN_Surface!W$70,FALSE)),\"\",VLOOKUP($A34,LN_Surface!$C$98:$Y$102,LN_Surface!W$70,FALSE))","v":""},{"$f":"IF(ISERROR(VLOOKUP($A34,LN_Surface!$C$98:$Y$102,LN_Surface!X$70,FALSE)),\"\",VLOOKUP($A34,LN_Surface!$C$98:$Y$102,LN_Surface!X$70,FALSE))","v":""},{"$f":"IF(ISERROR(VLOOKUP($A34,LN_Surface!$C$98:$Y$102,LN_Surface!Y$70,FALSE)),\"\",VLOOKUP($A34,LN_Surface!$C$98:$Y$102,LN_Surface!Y$70,FALSE))","v":""}]
[null,null,null,null,null,null,null,null,null,{"$f":"IF((IF(ISERROR(VLOOKUP($A34,LN_Surface!$C$98:$Y$102,LN_Surface!R$70,FALSE)),\"\",VLOOKUP($A34,LN_Surface!$C$98:$Y$102,LN_Surface!R$70,FALSE)))=0,\"Estándar\",IF(ISERROR(VLOOKUP($A34,LN_Surface!$C$98:$Y$102,LN_Surface!R$70,FALSE)),\"\",VLOOKUP($A34,LN_Surface!$C$98:$Y$102,LN_Surface!R$70,FALSE)))","v":""},{"$f":"IF(ISERROR(VLOOKUP($A34,LN_Surface!$C$98:$Y$102,LN_Surface!S$70,FALSE)),\"\",VLOOKUP($A34,LN_Surface!$C$98:$Y$102,LN_Surface!S$70,FALSE))","v":""},{"$f":"IF(ISERROR(VLOOKUP($A34,LN_Surface!$C$98:$Y$102,LN_Surface!T$70,FALSE)),\"\",VLOOKUP($A34,LN_Surface!$C$98:$Y$102,LN_Surface!T$70,FALSE))","v":""}]
[null,{"$f":"CONCATENATE(\"Los precios indicados son PVPs recomendados por Microsoft y no incluyen impuestos indirectos (IVA, IGIC, etc.). Todos los descuentos son ofertados por  \",Configurador!J7)","v":"Los precios indicados son PVPs recomendados por Microsoft y no incluyen impuestos indirectos (IVA, IGIC, etc.). Todos los descuentos son ofertados por  "}]
[null,null,null,null,null,null,null,null,null,null,null,null,null,null,null,null,{"$f":"Impresion!E20","v":""}]

{"sheet":"Accesorios_E","index":20,"n_rows":34,"n_cols":15,"rows_kept":34,"cut":false,"hidden":false,"merged":[[5,1,5,14],[31,11,31,12],[32,5,32,12],[30,5,30,6],[29,5,29,6],[28,5,28,6],[27,11,27,12],[26,5,26,12],[28,11,28,12],[29,11,29,12],[30,11,30,12],[27,5,27,6]]}
[]
[]
[null,"Accesorios para los dispositivos Surface para:"]
[null,{"$f":"Configurador!C7","v":0}]
[]
[null,"Accesorios de máxima calidad que hacen más flexibles a todos los dispositivos Surface"]
[]
[]
[null,null,null,null,null,null,null,null,null,null,null,{"$f":"IF(AND(#REF!=0,L8=0),\"Te recomendamos Enterprise Mobility and Security\",\"Enterprise Mobility and Security\")","v":{"$error":"#REF!"}}]
[]
[]
[]
[]
[]
[]
[]
[]
[]
[]
[]
[]
[]
[]
[]
[]
[]
[null,null,null,null,null,"Accesorios Surface"]
[null,null,null,null,null,"Accesorio",null,"Unidades","Precio unitario","Descuento","Precio total","Descuento"]
[null,null,null,null,null,{"$f":"Configurador!B112","v":"Surface Pen Stylus"},null,{"$f":"Configurador!C112","v":0},{"$f":"Configurador!D112","v":88.7},{"$f":"Configurador!E112","v":0},{"$f":"Configurador!F112","v":0},{"$f":"Configurador!H112","v":0}]
[null,null,null,null,null,{"$f":"Configurador!B113","v":"Surface Arc Mouse Bluetooth"},null,{"$f":"Configurador!C113","v":0},{"$f":"Configurador!D113","v":71.989999999999995},{"$f":"Configurador!E113","v":0},{"$f":"Configurador!F113","v":0},{"$f":"Configurador!H113","v":0}]
[null,null,null,null,null,{"$f":"Configurador!B114","v":"Surface Docking"},null,{"$f":"Configurador!C114","v":0},{"$f":"Configurador!D114","v":189.48},{"$f":"Configurador!E114","v":0},{"$f":"Configurador!F114","v":0},{"$f":"Configurador!H114","v":0}]
[null,null,null,null,null,null,null,{"$f":"SUM(H29:H31)","v":0},null,null,{"$f":"SUM(K29:K31)","v":0},{"$f":"SUM(L29:L31)","v":0}]
[null,null,null,null,null,{"$f":"CONCATENATE(\"Los precios indicados son PVPs recomendados por Microsoft y no incluyen impuestos indirectos (IVA, IGIC, etc.). Todos los descuentos son ofertados por  \",Configurador!J7)","v":"Los precios indicados son PVPs recomendados por Microsoft y no incluyen impuestos indirectos (IVA, IGIC, etc.). Todos los descuentos son ofertados por  "}]
[null,null,null,null,null,null,null,null,null,null,null,null,null,null,{"$f":"Impresion!E21","v":""}]

{"sheet":"HardwareOEM_E","index":21,"n_rows":18,"n_cols":17,"rows_kept":18,"cut":false,"hidden":false,"merged":[[5,1,5,16],[7,1,7,2]]}
[]
[]
[null,"Equipos con Sistema Operativo Windows:"]
[null,{"$f":"Configurador!C7","v":0}]
[]
[null,"Equipos con Sistema Operativo Windows"]
[]
[null,"Equipo",null,"Especificaciones","Beneficios","Tipo de pago","Precio pago único","Precio mensual","Descuento","Equipos","Monitor","Precio pago único","Descuento","Total pago único","Cuotas mensuales año 1","Total año 1","Total descuento año 1"]
[null,{"$f":"IF(OR(Configurador!D119=\"\",Configurador!D119=0),\"b\",CONCATENATE(Configurador!I119,\": \",Configurador!D119))","v":"b"},null,{"$f":"IF(OR(Configurador!J119=\"\",Configurador!J119=0),\"\",Configurador!J119)","v":""},{"$f":"IF(ISERROR(VLOOKUP(Configurador!D119,LN_OEM!$D$4:$O$26,LN_OEM!$O$1,FALSE)),\"\",VLOOKUP(Configurador!D119,LN_OEM!$D$4:$O$26,LN_OEM!$O$1,FALSE))","v":""},{"$f":"IF(OR(Configurador!L119=\"\",Configurador!L119=0),\"\",Configurador!L119)","v":""},{"$f":"IF(OR(Configurador!M119=\"\",Configurador!M119=0),\"\",Configurador!M119)","v":""},{"$f":"IF(OR(Configurador!N119=\"\",Configurador!N119=0),\"\",Configurador!N119)","v":""},{"$f":"IF(OR(Configurador!P119=\"\",Configurador!P119=0),\"\",Configurador!P119)","v":""},{"$f":"IF(OR(Configurador!Q119=\"\",Configurador!Q119=0),\"\",Configurador!Q119)","v":""},{"$f":"IF(OR(Configurador!R119=\"\",Configurador!R119=0),\"\",Configurador!R119)","v":""},{"$f":"IF(OR(Configurador!T119=\"\",Configurador!T119=0),\"\",Configurador!T119)","v":""},{"$f":"IF(OR(Configurador!U119=\"\",Configurador!U119=0),\"\",Configurador!U119)","v":""},{"$f":"IF(OR(Configurador!V119=\"\",Configurador!V119=0),\"\",Configurador!V119)","v":""},{"$f":"IF(OR(Configurador!W119=\"\",Configurador!W119=0),\"\",Configurador!W119)","v":""},{"$f":"IF(OR(Configurador!X119=\"\",Configurador!X119=0),\"\",Configurador!X119)","v":""},{"$f":"IF(OR(Configurador!Y119=\"\",Configurador!Y119=0),\"\",Configurador!Y119)","v":""}]
[null,{"$f":"IF(OR(Configurador!D120=\"\",Configurador!D120=0),\"b\",CONCATENATE(Configurador!I120,\": \",Configurador!D120))","v":"b"},null,{"$f":"IF(OR(Configurador!J120=\"\",Configurador!J120=0),\"\",Configurador!J120)","v":""},{"$f":"IF(ISERROR(VLOOKUP(Configurador!D120,LN_OEM!$D$4:$O$26,LN_OEM!$O$1,FALSE)),\"\",VLOOKUP(Configurador!D120,LN_OEM!$D$4:$O$26,LN_OEM!$O$1,FALSE))","v":""},{"$f":"IF(OR(Configurador!L120=\"\",Configurador!L120=0),\"\",Configurador!L120)","v":""},{"$f":"IF(OR(Configurador!M120=\"\",Configurador!M120=0),\"\",Configurador!M120)","v":""},{"$f":"IF(OR(Configurador!N120=\"\",Configurador!N120=0),\"\",Configurador!N120)","v":""},{"$f":"IF(OR(Configurador!P120=\"\",Configurador!P120=0),\"\",Configurador!P120)","v":""},{"$f":"IF(OR(Configurador!Q120=\"\",Configurador!Q120=0),\"\",Configurador!Q120)","v":""},{"$f":"IF(OR(Configurador!R120=\"\",Configurador!R120=0),\"\",Configurador!R120)","v":""},{"$f":"IF(OR(Configurador!T120=\"\",Configurador!T120=0),\"\",Configurador!T120)","v":""},{"$f":"IF(OR(Configurador!U120=\"\",Configurador!U120=0),\"\",Configurador!U120)","v":""},{"$f":"IF(OR(Configurador!V120=\"\",Configurador!V120=0),\"\",Configurador!V120)","v":""},{"$f":"IF(OR(Configurador!W120=\"\",Configurador!W120=0),\"\",Configurador!W120)","v":""},{"$f":"IF(OR(Configurador!X120=\"\",Configurador!X120=0),\"\",Configurador!X120)","v":""},{"$f":"IF(OR(Configurador!Y120=\"\",Configurador!Y120=0),\"\",Configurador!Y120)","v":""}]
[null,{"$f":"IF(OR(Configurador!D121=\"\",Configurador!D121=0),\"b\",CONCATENATE(Configurador!I121,\": \",Configurador!D121))","v":"b"},null,{"$f":"IF(OR(Configurador!J121=\"\",Configurador!J121=0),\"\",Configurador!J121)","v":""},{"$f":"IF(ISERROR(VLOOKUP(Configurador!D121,LN_OEM!$D$4:$O$26,LN_OEM!$O$1,FALSE)),\"\",VLOOKUP(Configurador!D121,LN_OEM!$D$4:$O$26,LN_OEM!$O$1,FALSE))","v":""},{"$f":"IF(OR(Configurador!L121=\"\",Configurador!L121=0),\"\",Configurador!L121)","v":""},{"$f":"IF(OR(Configurador!M121=\"\",Configurador!M121=0),\"\",Configurador!M121)","v":""},{"$f":"IF(OR(Configurador!N121=\"\",Configurador!N121=0),\"\",Configurador!N121)","v":""},{"$f":"IF(OR(Configurador!P121=\"\",Configurador!P121=0),\"\",Configurador!P121)","v":""},{"$f":"IF(OR(Configurador!Q121=\"\",Configurador!Q121=0),\"\",Configurador!Q121)","v":""},{"$f":"IF(OR(Configurador!R121=\"\",Configurador!R121=0),\"\",Configurador!R121)","v":""},{"$f":"IF(OR(Configurador!T121=\"\",Configurador!T121=0),\"\",Configurador!T121)","v":""},{"$f":"IF(OR(Configurador!U121=\"\",Configurador!U121=0),\"\",Configurador!U121)","v":""},{"$f":"IF(OR(Configurador!V121=\"\",Configurador!V121=0),\"\",Configurador!V121)","v":""},{"$f":"IF(OR(Configurador!W121=\"\",Configurador!W121=0),\"\",Configurador!W121)","v":""},{"$f":"IF(OR(Configurador!X121=\"\",Configurador!X121=0),\"\",Configurador!X121)","v":""},{"$f":"IF(OR(Configurador!Y121=\"\",Configurador!Y121=0),\"\",Configurador!Y121)","v":""}]
[null,{"$f":"IF(OR(Configurador!D122=\"\",Configurador!D122=0),\"b\",CONCATENATE(Configurador!I122,\": \",Configurador!D122))","v":"b"},null,{"$f":"IF(OR(Configurador!J122=\"\",Configurador!J122=0),\"\",Configurador!J122)","v":""},{"$f":"IF(ISERROR(VLOOKUP(Configurador!D122,LN_OEM!$D$4:$O$26,LN_OEM!$O$1,FALSE)),\"\",VLOOKUP(Configurador!D122,LN_OEM!$D$4:$O$26,LN_OEM!$O$1,FALSE))","v":""},{"$f":"IF(OR(Configurador!L122=\"\",Configurador!L122=0),\"\",Configurador!L122)","v":""},{"$f":"IF(OR(Configurador!M122=\"\",Configurador!M122=0),\"\",Configurador!M122)","v":""},{"$f":"IF(OR(Configurador!N122=\"\",Configurador!N122=0),\"\",Configurador!N122)","v":""},{"$f":"IF(OR(Configurador!P122=\"\",Configurador!P122=0),\"\",Configurador!P122)","v":""},{"$f":"IF(OR(Configurador!Q122=\"\",Configurador!Q122=0),\"\",Configurador!Q122)","v":""},{"$f":"IF(OR(Configurador!R122=\"\",Configurador!R122=0),\"\",Configurador!R122)","v":""},{"$f":"IF(OR(Configurador!T122=\"\",Configurador!T122=0),\"\",Configurador!T122)","v":""},{"$f":"IF(OR(Configurador!U122=\"\",Configurador!U122=0),\"\",Configurador!U122)","v":""},{"$f":"IF(OR(Configurador!V122=\"\",Configurador!V122=0),\"\",Configurador!V122)","v":""},{"$f":"IF(OR(Configurador!W122=\"\",Configurador!W122=0),\"\",Configurador!W122)","v":""},{"$f":"IF(OR(Configurador!X122=\"\",Configurador!X122=0),\"\",Configurador!X122)","v":""},{"$f":"IF(OR(Configurador!Y122=\"\",Configurador!Y122=0),\"\",Configurador!Y122)","v":""}]
[null,{"$f":"IF(OR(Configurador!D123=\"\",Configurador!D123=0),\"b\",CONCATENATE(Configurador!I123,\": \",Configurador!D123))","v":"b"},null,{"$f":"IF(OR(Configurador!J123=\"\",Configurador!J123=0),\"\",Configurador!J123)","v":""},{"$f":"IF(ISERROR(VLOOKUP(Configurador!D123,LN_OEM!$D$4:$O$26,LN_OEM!$O$1,FALSE)),\"\",VLOOKUP(Configurador!D123,LN_OEM!$D$4:$O$26,LN_OEM!$O$1,FALSE))","v":""},{"$f":"IF(OR(Configurador!L123=\"\",Configurador!L123=0),\"\",Configurador!L123)","v":""},{"$f":"IF(OR(Configurador!M123=\"\",Configurador!M123=0),\"\",Configurador!M123)","v":""},{"$f":"IF(OR(Configurador!N123=\"\",Configurador!N123=0),\"\",Configurador!N123)","v":""},{"$f":"IF(OR(Configurador!P123=\"\",Configurador!P123=0),\"\",Configurador!P123)","v":""},{"$f":"IF(OR(Configurador!Q123=\"\",Configurador!Q123=0),\"\",Configurador!Q123)","v":""},{"$f":"IF(OR(Configurador!R123=\"\",Configurador!R123=0),\"\",Configurador!R123)","v":""},{"$f":"IF(OR(Configurador!T123=\"\",Configurador!T123=0),\"\",Configurador!T123)","v":""},{"$f":"IF(OR(Configurador!U123=\"\",Configurador!U123=0),\"\",Configurador!U123)","v":""},{"$f":"IF(OR(Configurador!V123=\"\",Configurador!V123=0),\"\",Configurador!V123)","v":""},{"$f":"IF(OR(Configurador!W123=\"\",Configurador!W123=0),\"\",Configurador!W123)","v":""},{"$f":"IF(OR(Configurador!X123=\"\",Configurador!X123=0),\"\",Configurador!X123)","v":""},{"$f":"IF(OR(Configurador!Y123=\"\",Configurador!Y123=0),\"\",Configurador!Y123)","v":""}]
[null,null,null,null,null,null,null,null,null,{"$f":"Configurador!Q124","v":0},null,null,null,{"$f":"Configurador!V124","v":0},{"$f":"Configurador!W124","v":0},{"$f":"Configurador!X124","v":0},{"$f":"Configurador!Y124","v":0}]
[]
[]
[]
[null,null,null,null,null,null,null,null,null,null,null,null,null,null,null,null,{"$f":"Impresion!E22","v":""}]

{"sheet":"PartnerPM_E","index":22,"n_rows":19,"n_cols":8,"rows_kept":19,"cut":false,"hidden":false,"merged":[]}
[]
[]
[null,"Servicios profesionales de puesta en marcha IT para:"]
[null,{"$f":"Configurador!C7","v":0}]
[]
[null,"Los servicios profesionales de puesta en marcha que posibilitan empezar a usar las soluciones de forma óptima"]
[]
[null,"Servicio",{"$f":"Configurador!D129","v":"Descripción"},{"$f":"Configurador!N129","v":"Pago único"},"Servicios","Descuento",{"$f":"Configurador!R129","v":"Total"},"Total descuento"]
[1,{"$f":"IF(ISERROR(VLOOKUP(A9,LN_Partner!$C$4:$J$12,2,FALSE)),\"\",VLOOKUP(A9,LN_Partner!$C$4:$J$12,2,FALSE))","v":""},{"$f":"IF(ISERROR(VLOOKUP(A9,LN_Partner!$C$4:$J$12,3,FALSE)),\"\",VLOOKUP(A9,LN_Partner!$C$4:$J$12,3,FALSE))","v":""},{"$f":"IF(ISERROR(VLOOKUP(A9,LN_Partner!$C$4:$J$12,4,FALSE)),\"\",VLOOKUP(A9,LN_Partner!$C$4:$J$12,4,FALSE))","v":""},{"$f":"IF(ISERROR(VLOOKUP(A9,LN_Partner!$C$4:$J$12,5,FALSE)),\"\",VLOOKUP(A9,LN_Partner!$C$4:$J$12,5,FALSE))","v":""},{"$f":"IF(ISERROR(VLOOKUP(A9,LN_Partner!$C$4:$J$12,6,FALSE)),\"\",VLOOKUP(A9,LN_Partner!$C$4:$J$12,6,FALSE))","v":""},{"$f":"IF(ISERROR(VLOOKUP(A9,LN_Partner!$C$4:$J$12,7,FALSE)),\"\",VLOOKUP(A9,LN_Partner!$C$4:$J$12,7,FALSE))","v":""},{"$f":"IF(ISERROR(VLOOKUP(A9,LN_Partner!$C$4:$J$12,8,FALSE)),\"\",VLOOKUP(A9,LN_Partner!$C$4:$J$12,8,FALSE))","v":""}]
[2,{"$f":"IF(ISERROR(VLOOKUP(A10,LN_Partner!$C$4:$J$12,2,FALSE)),\"\",VLOOKUP(A10,LN_Partner!$C$4:$J$12,2,FALSE))","v":""},{"$f":"IF(ISERROR(VLOOKUP(A10,LN_Partner!$C$4:$J$12,3,FALSE)),\"\",VLOOKUP(A10,LN_Partner!$C$4:$J$12,3,FALSE))","v":""},{"$f":"IF(ISERROR(VLOOKUP(A10,LN_Partner!$C$4:$J$12,4,FALSE)),\"\",VLOOKUP(A10,LN_Partner!$C$4:$J$12,4,FALSE))","v":""},{"$f":"IF(ISERROR(VLOOKUP(A10,LN_Partner!$C$4:$J$12,5,FALSE)),\"\",VLOOKUP(A10,LN_Partner!$C$4:$J$12,5,FALSE))","v":""},{"$f":"IF(ISERROR(VLOOKUP(A10,LN_Partner!$C$4:$J$12,6,FALSE)),\"\",VLOOKUP(A10,LN_Partner!$C$4:$J$12,6,FALSE))","v":""},{"$f":"IF(ISERROR(VLOOKUP(A10,LN_Partner!$C$4:$J$12,7,FALSE)),\"\",VLOOKUP(A10,LN_Partner!$C$4:$J$12,7,FALSE))","v":""},{"$f":"IF(ISERROR(VLOOKUP(A10,LN_Partner!$C$4:$J$12,8,FALSE)),\"\",VLOOKUP(A10,LN_Partner!$C$4:$J$12,8,FALSE))","v":""}]
[3,{"$f":"IF(ISERROR(VLOOKUP(A11,LN_Partner!$C$4:$J$12,2,FALSE)),\"\",VLOOKUP(A11,LN_Partner!$C$4:$J$12,2,FALSE))","v":""},{"$f":"IF(ISERROR(VLOOKUP(A11,LN_Partner!$C$4:$J$12,3,FALSE)),\"\",VLOOKUP(A11,LN_Partner!$C$4:$J$12,3,FALSE))","v":""},{"$f":"IF(ISERROR(VLOOKUP(A11,LN_Partner!$C$4:$J$12,4,FALSE)),\"\",VLOOKUP(A11,LN_Partner!$C$4:$J$12,4,FALSE))","v":""},{"$f":"IF(ISERROR(VLOOKUP(A11,LN_Partner!$C$4:$J$12,5,FALSE)),\"\",VLOOKUP(A11,LN_Partner!$C$4:$J$12,5,FALSE))","v":""},{"$f":"IF(ISERROR(VLOOKUP(A11,LN_Partner!$C$4:$J$12,6,FALSE)),\"\",VLOOKUP(A11,LN_Partner!$C$4:$J$12,6,FALSE))","v":""},{"$f":"IF(ISERROR(VLOOKUP(A11,LN_Partner!$C$4:$J$12,7,FALSE)),\"\",VLOOKUP(A11,LN_Partner!$C$4:$J$12,7,FALSE))","v":""},{"$f":"IF(ISERROR(VLOOKUP(A11,LN_Partner!$C$4:$J$12,8,FALSE)),\"\",VLOOKUP(A11,LN_Partner!$C$4:$J$12,8,FALSE))","v":""}]
[4,{"$f":"IF(ISERROR(VLOOKUP(A12,LN_Partner!$C$4:$J$12,2,FALSE)),\"\",VLOOKUP(A12,LN_Partner!$C$4:$J$12,2,FALSE))","v":""},{"$f":"IF(ISERROR(VLOOKUP(A12,LN_Partner!$C$4:$J$12,3,FALSE)),\"\",VLOOKUP(A12,LN_Partner!$C$4:$J$12,3,FALSE))","v":""},{"$f":"IF(ISERROR(VLOOKUP(A12,LN_Partner!$C$4:$J$12,4,FALSE)),\"\",VLOOKUP(A12,LN_Partner!$C$4:$J$12,4,FALSE))","v":""},{"$f":"IF(ISERROR(VLOOKUP(A12,LN_Partner!$C$4:$J$12,5,FALSE)),\"\",VLOOKUP(A12,LN_Partner!$C$4:$J$12,5,FALSE))","v":""},{"$f":"IF(ISERROR(VLOOKUP(A12,LN_Partner!$C$4:$J$12,6,FALSE)),\"\",VLOOKUP(A12,LN_Partner!$C$4:$J$12,6,FALSE))","v":""},{"$f":"IF(ISERROR(VLOOKUP(A12,LN_Partner!$C$4:$J$12,7,FALSE)),\"\",VLOOKUP(A12,LN_Partner!$C$4:$J$12,7,FALSE))","v":""},{"$f":"IF(ISERROR(VLOOKUP(A12,LN_Partner!$C$4:$J$12,8,FALSE)),\"\",VLOOKUP(A12,LN_Partner!$C$4:$J$12,8,FALSE))","v":""}]
[5,{"$f":"IF(ISERROR(VLOOKUP(A13,LN_Partner!$C$4:$J$12,2,FALSE)),\"\",VLOOKUP(A13,LN_Partner!$C$4:$J$12,2,FALSE))","v":""},{"$f":"IF(ISERROR(VLOOKUP(A13,LN_Partner!$C$4:$J$12,3,FALSE)),\"\",VLOOKUP(A13,LN_Partner!$C$4:$J$12,3,FALSE))","v":""},{"$f":"IF(ISERROR(VLOOKUP(A13,LN_Partner!$C$4:$J$12,4,FALSE)),\"\",VLOOKUP(A13,LN_Partner!$C$4:$J$12,4,FALSE))","v":""},{"$f":"IF(ISERROR(VLOOKUP(A13,LN_Partner!$C$4:$J$12,5,FALSE)),\"\",VLOOKUP(A13,LN_Partner!$C$4:$J$12,5,FALSE))","v":""},{"$f":"IF(ISERROR(VLOOKUP(A13,LN_Partner!$C$4:$J$12,6,FALSE)),\"\",VLOOKUP(A13,LN_Partner!$C$4:$J$12,6,FALSE))","v":""},{"$f":"IF(ISERROR(VLOOKUP(A13,LN_Partner!$C$4:$J$12,7,FALSE)),\"\",VLOOKUP(A13,LN_Partner!$C$4:$J$12,7,FALSE))","v":""},{"$f":"IF(ISERROR(VLOOKUP(A13,LN_Partner!$C$4:$J$12,8,FALSE)),\"\",VLOOKUP(A13,LN_Partner!$C$4:$J$12,8,FALSE))","v":""}]
[6,{"$f":"IF(ISERROR(VLOOKUP(A14,LN_Partner!$C$4:$J$12,2,FALSE)),\"\",VLOOKUP(A14,LN_Partner!$C$4:$J$12,2,FALSE))","v":""},{"$f":"IF(ISERROR(VLOOKUP(A14,LN_Partner!$C$4:$J$12,3,FALSE)),\"\",VLOOKUP(A14,LN_Partner!$C$4:$J$12,3,FALSE))","v":""},{"$f":"IF(ISERROR(VLOOKUP(A14,LN_Partner!$C$4:$J$12,4,FALSE)),\"\",VLOOKUP(A14,LN_Partner!$C$4:$J$12,4,FALSE))","v":""},{"$f":"IF(ISERROR(VLOOKUP(A14,LN_Partner!$C$4:$J$12,5,FALSE)),\"\",VLOOKUP(A14,LN_Partner!$C$4:$J$12,5,FALSE))","v":""},{"$f":"IF(ISERROR(VLOOKUP(A14,LN_Partner!$C$4:$J$12,6,FALSE)),\"\",VLOOKUP(A14,LN_Partner!$C$4:$J$12,6,FALSE))","v":""},{"$f":"IF(ISERROR(VLOOKUP(A14,LN_Partner!$C$4:$J$12,7,FALSE)),\"\",VLOOKUP(A14,LN_Partner!$C$4:$J$12,7,FALSE))","v":""},{"$f":"IF(ISERROR(VLOOKUP(A14,LN_Partner!$C$4:$J$12,8,FALSE)),\"\",VLOOKUP(A14,LN_Partner!$C$4:$J$12,8,FALSE))","v":""}]
[7,{"$f":"IF(ISERROR(VLOOKUP(A15,LN_Partner!$C$4:$J$12,2,FALSE)),\"\",VLOOKUP(A15,LN_Partner!$C$4:$J$12,2,FALSE))","v":""},{"$f":"IF(ISERROR(VLOOKUP(A15,LN_Partner!$C$4:$J$12,3,FALSE)),\"\",VLOOKUP(A15,LN_Partner!$C$4:$J$12,3,FALSE))","v":""},{"$f":"IF(ISERROR(VLOOKUP(A15,LN_Partner!$C$4:$J$12,4,FALSE)),\"\",VLOOKUP(A15,LN_Partner!$C$4:$J$12,4,FALSE))","v":""},{"$f":"IF(ISERROR(VLOOKUP(A15,LN_Partner!$C$4:$J$12,5,FALSE)),\"\",VLOOKUP(A15,LN_Partner!$C$4:$J$12,5,FALSE))","v":""},{"$f":"IF(ISERROR(VLOOKUP(A15,LN_Partner!$C$4:$J$12,6,FALSE)),\"\",VLOOKUP(A15,LN_Partner!$C$4:$J$12,6,FALSE))","v":""},{"$f":"IF(ISERROR(VLOOKUP(A15,LN_Partner!$C$4:$J$12,7,FALSE)),\"\",VLOOKUP(A15,LN_Partner!$C$4:$J$12,7,FALSE))","v":""},{"$f":"IF(ISERROR(VLOOKUP(A15,LN_Partner!$C$4:$J$12,8,FALSE)),\"\",VLOOKUP(A15,LN_Partner!$C$4:$J$12,8,FALSE))","v":""}]
[8,{"$f":"IF(ISERROR(VLOOKUP(A16,LN_Partner!$C$4:$J$12,2,FALSE)),\"\",VLOOKUP(A16,LN_Partner!$C$4:$J$12,2,FALSE))","v":""},{"$f":"IF(ISERROR(VLOOKUP(A16,LN_Partner!$C$4:$J$12,3,FALSE)),\"\",VLOOKUP(A16,LN_Partner!$C$4:$J$12,3,FALSE))","v":""},{"$f":"IF(ISERROR(VLOOKUP(A16,LN_Partner!$C$4:$J$12,4,FALSE)),\"\",VLOOKUP(A16,LN_Partner!$C$4:$J$12,4,FALSE))","v":""},{"$f":"IF(ISERROR(VLOOKUP(A16,LN_Partner!$C$4:$J$12,5,FALSE)),\"\",VLOOKUP(A16,LN_Partner!$C$4:$J$12,5,FALSE))","v":""},{"$f":"IF(ISERROR(VLOOKUP(A16,LN_Partner!$C$4:$J$12,6,FALSE)),\"\",VLOOKUP(A16,LN_Partner!$C$4:$J$12,6,FALSE))","v":""},{"$f":"IF(ISERROR(VLOOKUP(A16,LN_Partner!$C$4:$J$12,7,FALSE)),\"\",VLOOKUP(A16,LN_Partner!$C$4:$J$12,7,FALSE))","v":""},{"$f":"IF(ISERROR(VLOOKUP(A16,LN_Partner!$C$4:$J$12,8,FALSE)),\"\",VLOOKUP(A16,LN_Partner!$C$4:$J$12,8,FALSE))","v":""}]
[9,{"$f":"IF(ISERROR(VLOOKUP(A17,LN_Partner!$C$4:$J$12,2,FALSE)),\"\",VLOOKUP(A17,LN_Partner!$C$4:$J$12,2,FALSE))","v":""},{"$f":"IF(ISERROR(VLOOKUP(A17,LN_Partner!$C$4:$J$12,3,FALSE)),\"\",VLOOKUP(A17,LN_Partner!$C$4:$J$12,3,FALSE))","v":""},{"$f":"IF(ISERROR(VLOOKUP(A17,LN_Partner!$C$4:$J$12,4,FALSE)),\"\",VLOOKUP(A17,LN_Partner!$C$4:$J$12,4,FALSE))","v":""},{"$f":"IF(ISERROR(VLOOKUP(A17,LN_Partner!$C$4:$J$12,5,FALSE)),\"\",VLOOKUP(A17,LN_Partner!$C$4:$J$12,5,FALSE))","v":""},{"$f":"IF(ISERROR(VLOOKUP(A17,LN_Partner!$C$4:$J$12,6,FALSE)),\"\",VLOOKUP(A17,LN_Partner!$C$4:$J$12,6,FALSE))","v":""},{"$f":"IF(ISERROR(VLOOKUP(A17,LN_Partner!$C$4:$J$12,7,FALSE)),\"\",VLOOKUP(A17,LN_Partner!$C$4:$J$12,7,FALSE))","v":""},{"$f":"IF(ISERROR(VLOOKUP(A17,LN_Partner!$C$4:$J$12,8,FALSE)),\"\",VLOOKUP(A17,LN_Partner!$C$4:$J$12,8,FALSE))","v":""}]
[null,"Los precios indicados no incluyen impuestos indirectos (IVA, IGIC, etc.)"]
[null,null,null,null,null,null,null,{"$f":"Impresion!E23","v":""}]

{"sheet":"PartnerSG_E","index":23,"n_rows":20,"n_cols":9,"rows_kept":20,"cut":false,"hidden":false,"merged":[[5,1,5,8]]}
[]
[]
[null,"Servicios profesionales de gestión IT para:"]
[null,{"$f":"Configurador!C7","v":0}]
[]
[null,"Los servicios profesionales gestionados posibilitan el uso en el día a día de las soluciones IT con el mínimo de impacto y dedicación de recursos propios"]
[]
[null,{"$f":"Configurador!B141","v":"Servicios gestionados"},{"$f":"Configurador!D141","v":"Descripción"},{"$f":"Configurador!N141","v":"Cuota mensual"},"Servicios","Descuento",{"$f":"Configurador!R141","v":"Total mensual"},{"$f":"Configurador!S141","v":"Total anual"},{"$f":"Configurador!T141","v":"Total descuento"}]
[1,{"$f":"IF(ISERROR(VLOOKUP(A9,LN_Partner!$C$17:$J$26,2,FALSE)),\"\",VLOOKUP(A9,LN_Partner!$C$17:$J$26,2,FALSE))","v":""},{"$f":"IF(ISERROR(VLOOKUP(A9,LN_Partner!$C$17:$K$26,3,FALSE)),\"\",VLOOKUP(A9,LN_Partner!$C$17:$K$26,3,FALSE))","v":""},{"$f":"IF(ISERROR(VLOOKUP(A9,LN_Partner!$C$17:$J$26,4,FALSE)),\"\",VLOOKUP(A9,LN_Partner!$C$17:$J$26,4,FALSE))","v":""},{"$f":"IF(ISERROR(VLOOKUP(A9,LN_Partner!$C$17:$K$26,5,FALSE)),\"\",VLOOKUP(A9,LN_Partner!$C$17:$K$26,5,FALSE))","v":""},{"$f":"IF(ISERROR(VLOOKUP(A9,LN_Partner!$C$17:$K$26,6,FALSE)),\"\",VLOOKUP(A9,LN_Partner!$C$17:$K$26,6,FALSE))","v":""},{"$f":"IF(ISERROR(VLOOKUP(A9,LN_Partner!$C$17:$K$26,7,FALSE)),\"\",VLOOKUP(A9,LN_Partner!$C$17:$K$26,7,FALSE))","v":""},{"$f":"IF(ISERROR(VLOOKUP(A9,LN_Partner!$C$17:$K$26,8,FALSE)),\"\",VLOOKUP(A9,LN_Partner!$C$17:$K$26,8,FALSE))","v":""},{"$f":"IF(ISERROR(VLOOKUP(A9,LN_Partner!$C$17:$K$26,9,FALSE)),\"\",VLOOKUP(A9,LN_Partner!$C$17:$K$26,9,FALSE))","v":""}]
[2,{"$f":"IF(ISERROR(VLOOKUP(A10,LN_Partner!$C$17:$J$26,2,FALSE)),\"\",VLOOKUP(A10,LN_Partner!$C$17:$J$26,2,FALSE))","v":""},{"$f":"IF(ISERROR(VLOOKUP(A10,LN_Partner!$C$17:$K$26,3,FALSE)),\"\",VLOOKUP(A10,LN_Partner!$C$17:$K$26,3,FALSE))","v":""},{"$f":"IF(ISERROR(VLOOKUP(A10,LN_Partner!$C$17:$J$26,4,FALSE)),\"\",VLOOKUP(A10,LN_Partner!$C$17:$J$26,4,FALSE))","v":""},{"$f":"IF(ISERROR(VLOOKUP(A10,LN_Partner!$C$17:$K$26,5,FALSE)),\"\",VLOOKUP(A10,LN_Partner!$C$17:$K$26,5,FALSE))","v":""},{"$f":"IF(ISERROR(VLOOKUP(A10,LN_Partner!$C$17:$K$26,6,FALSE)),\"\",VLOOKUP(A10,LN_Partner!$C$17:$K$26,6,FALSE))","v":""},{"$f":"IF(ISERROR(VLOOKUP(A10,LN_Partner!$C$17:$K$26,7,FALSE)),\"\",VLOOKUP(A10,LN_Partner!$C$17:$K$26,7,FALSE))","v":""},{"$f":"IF(ISERROR(VLOOKUP(A10,LN_Partner!$C$17:$K$26,8,FALSE)),\"\",VLOOKUP(A10,LN_Partner!$C$17:$K$26,8,FALSE))","v":""},{"$f":"IF(ISERROR(VLOOKUP(A10,LN_Partner!$C$17:$K$26,9,FALSE)),\"\",VLOOKUP(A10,LN_Partner!$C$17:$K$26,9,FALSE))","v":""}]
[3,{"$f":"IF(ISERROR(VLOOKUP(A11,LN_Partner!$C$17:$J$26,2,FALSE)),\"\",VLOOKUP(A11,LN_Partner!$C$17:$J$26,2,FALSE))","v":""},{"$f":"IF(ISERROR(VLOOKUP(A11,LN_Partner!$C$17:$J$26,3,FALSE)),\"\",VLOOKUP(A11,LN_Partner!$C$17:$J$26,3,FALSE))","v":""},{"$f":"IF(ISERROR(VLOOKUP(A11,LN_Partner!$C$17:$J$26,4,FALSE)),\"\",VLOOKUP(A11,LN_Partner!$C$17:$J$26,4,FALSE))","v":""},{"$f":"IF(ISERROR(VLOOKUP(A11,LN_Partner!$C$17:$K$26,5,FALSE)),\"\",VLOOKUP(A11,LN_Partner!$C$17:$K$26,5,FALSE))","v":""},{"$f":"IF(ISERROR(VLOOKUP(A11,LN_Partner!$C$17:$K$26,6,FALSE)),\"\",VLOOKUP(A11,LN_Partner!$C$17:$K$26,6,FALSE))","v":""},{"$f":"IF(ISERROR(VLOOKUP(A11,LN_Partner!$C$17:$K$26,7,FALSE)),\"\",VLOOKUP(A11,LN_Partner!$C$17:$K$26,7,FALSE))","v":""},{"$f":"IF(ISERROR(VLOOKUP(A11,LN_Partner!$C$17:$K$26,8,FALSE)),\"\",VLOOKUP(A11,LN_Partner!$C$17:$K$26,8,FALSE))","v":""},{"$f":"IF(ISERROR(VLOOKUP(A11,LN_Partner!$C$17:$K$26,9,FALSE)),\"\",VLOOKUP(A11,LN_Partner!$C$17:$K$26,9,FALSE))","v":""}]
[4,{"$f":"IF(ISERROR(VLOOKUP(A12,LN_Partner!$C$17:$J$26,2,FALSE)),\"\",VLOOKUP(A12,LN_Partner!$C$17:$J$26,2,FALSE))","v":""},{"$f":"IF(ISERROR(VLOOKUP(A12,LN_Partner!$C$17:$J$26,3,FALSE)),\"\",VLOOKUP(A12,LN_Partner!$C$17:$J$26,3,FALSE))","v":""},{"$f":"IF(ISERROR(VLOOKUP(A12,LN_Partner!$C$17:$J$26,4,FALSE)),\"\",VLOOKUP(A12,LN_Partner!$C$17:$J$26,4,FALSE))","v":""},{"$f":"IF(ISERROR(VLOOKUP(A12,LN_Partner!$C$17:$K$26,5,FALSE)),\"\",VLOOKUP(A12,LN_Partner!$C$17:$K$26,5,FALSE))","v":""},{"$f":"IF(ISERROR(VLOOKUP(A12,LN_Partner!$C$17:$K$26,6,FALSE)),\"\",VLOOKUP(A12,LN_Partner!$C$17:$K$26,6,FALSE))","v":""},{"$f":"IF(ISERROR(VLOOKUP(A12,LN_Partner!$C$17:$K$26,7,FALSE)),\"\",VLOOKUP(A12,LN_Partner!$C$17:$K$26,7,FALSE))","v":""},{"$f":"IF(ISERROR(VLOOKUP(A12,LN_Partner!$C$17:$K$26,8,FALSE)),\"\",VLOOKUP(A12,LN_Partner!$C$17:$K$26,8,FALSE))","v":""},{"$f":"IF(ISERROR(VLOOKUP(A12,LN_Partner!$C$17:$K$26,9,FALSE)),\"\",VLOOKUP(A12,LN_Partner!$C$17:$K$26,9,FALSE))","v":""}]
[5,{"$f":"IF(ISERROR(VLOOKUP(A13,LN_Partner!$C$17:$J$26,2,FALSE)),\"\",VLOOKUP(A13,LN_Partner!$C$17:$J$26,2,FALSE))","v":""},{"$f":"IF(ISERROR(VLOOKUP(A13,LN_Partner!$C$17:$J$26,3,FALSE)),\"\",VLOOKUP(A13,LN_Partner!$C$17:$J$26,3,FALSE))","v":""},{"$f":"IF(ISERROR(VLOOKUP(A13,LN_Partner!$C$17:$J$26,4,FALSE)),\"\",VLOOKUP(A13,LN_Partner!$C$17:$J$26,4,FALSE))","v":""},{"$f":"IF(ISERROR(VLOOKUP(A13,LN_Partner!$C$17:$K$26,5,FALSE)),\"\",VLOOKUP(A13,LN_Partner!$C$17:$K$26,5,FALSE))","v":""},{"$f":"IF(ISERROR(VLOOKUP(A13,LN_Partner!$C$17:$K$26,6,FALSE)),\"\",VLOOKUP(A13,LN_Partner!$C$17:$K$26,6,FALSE))","v":""},{"$f":"IF(ISERROR(VLOOKUP(A13,LN_Partner!$C$17:$K$26,7,FALSE)),\"\",VLOOKUP(A13,LN_Partner!$C$17:$K$26,7,FALSE))","v":""},{"$f":"IF(ISERROR(VLOOKUP(A13,LN_Partner!$C$17:$K$26,8,FALSE)),\"\",VLOOKUP(A13,LN_Partner!$C$17:$K$26,8,FALSE))","v":""},{"$f":"IF(ISERROR(VLOOKUP(A13,LN_Partner!$C$17:$K$26,9,FALSE)),\"\",VLOOKUP(A13,LN_Partner!$C$17:$K$26,9,FALSE))","v":""}]
[6,{"$f":"IF(ISERROR(VLOOKUP(A14,LN_Partner!$C$17:$J$26,2,FALSE)),\"\",VLOOKUP(A14,LN_Partner!$C$17:$J$26,2,FALSE))","v":""},{"$f":"IF(ISERROR(VLOOKUP(A14,LN_Partner!$C$17:$J$26,3,FALSE)),\"\",VLOOKUP(A14,LN_Partner!$C$17:$J$26,3,FALSE))","v":""},{"$f":"IF(ISERROR(VLOOKUP(A14,LN_Partner!$C$17:$J$26,4,FALSE)),\"\",VLOOKUP(A14,LN_Partner!$C$17:$J$26,4,FALSE))","v":""},{"$f":"IF(ISERROR(VLOOKUP(A14,LN_Partner!$C$17:$K$26,5,FALSE)),\"\",VLOOKUP(A14,LN_Partner!$C$17:$K$26,5,FALSE))","v":""},{"$f":"IF(ISERROR(VLOOKUP(A14,LN_Partner!$C$17:$K$26,6,FALSE)),\"\",VLOOKUP(A14,LN_Partner!$C$17:$K$26,6,FALSE))","v":""},{"$f":"IF(ISERROR(VLOOKUP(A14,LN_Partner!$C$17:$K$26,7,FALSE)),\"\",VLOOKUP(A14,LN_Partner!$C$17:$K$26,7,FALSE))","v":""},{"$f":"IF(ISERROR(VLOOKUP(A14,LN_Partner!$C$17:$K$26,8,FALSE)),\"\",VLOOKUP(A14,LN_Partner!$C$17:$K$26,8,FALSE))","v":""},{"$f":"IF(ISERROR(VLOOKUP(A14,LN_Partner!$C$17:$K$26,9,FALSE)),\"\",VLOOKUP(A14,LN_Partner!$C$17:$K$26,9,FALSE))","v":""}]
[7,{"$f":"IF(ISERROR(VLOOKUP(A15,LN_Partner!$C$17:$J$26,2,FALSE)),\"\",VLOOKUP(A15,LN_Partner!$C$17:$J$26,2,FALSE))","v":""},{"$f":"IF(ISERROR(VLOOKUP(A15,LN_Partner!$C$17:$J$26,3,FALSE)),\"\",VLOOKUP(A15,LN_Partner!$C$17:$J$26,3,FALSE))","v":""},{"$f":"IF(ISERROR(VLOOKUP(A15,LN_Partner!$C$17:$J$26,4,FALSE)),\"\",VLOOKUP(A15,LN_Partner!$C$17:$J$26,4,FALSE))","v":""},{"$f":"IF(ISERROR(VLOOKUP(A15,LN_Partner!$C$17:$K$26,5,FALSE)),\"\",VLOOKUP(A15,LN_Partner!$C$17:$K$26,5,FALSE))","v":""},{"$f":"IF(ISERROR(VLOOKUP(A15,LN_Partner!$C$17:$K$26,6,FALSE)),\"\",VLOOKUP(A15,LN_Partner!$C$17:$K$26,6,FALSE))","v":""},{"$f":"IF(ISERROR(VLOOKUP(A15,LN_Partner!$C$17:$K$26,7,FALSE)),\"\",VLOOKUP(A15,LN_Partner!$C$17:$K$26,7,FALSE))","v":""},{"$f":"IF(ISERROR(VLOOKUP(A15,LN_Partner!$C$17:$K$26,8,FALSE)),\"\",VLOOKUP(A15,LN_Partner!$C$17:$K$26,8,FALSE))","v":""},{"$f":"IF(ISERROR(VLOOKUP(A15,LN_Partner!$C$17:$K$26,9,FALSE)),\"\",VLOOKUP(A15,LN_Partner!$C$17:$K$26,9,FALSE))","v":""}]
[8,{"$f":"IF(ISERROR(VLOOKUP(A16,LN_Partner!$C$17:$J$26,2,FALSE)),\"\",VLOOKUP(A16,LN_Partner!$C$17:$J$26,2,FALSE))","v":""},{"$f":"IF(ISERROR(VLOOKUP(A16,LN_Partner!$C$17:$J$26,3,FALSE)),\"\",VLOOKUP(A16,LN_Partner!$C$17:$J$26,3,FALSE))","v":""},{"$f":"IF(ISERROR(VLOOKUP(A16,LN_Partner!$C$17:$J$26,4,FALSE)),\"\",VLOOKUP(A16,LN_Partner!$C$17:$J$26,4,FALSE))","v":""},{"$f":"IF(ISERROR(VLOOKUP(A16,LN_Partner!$C$17:$K$26,5,FALSE)),\"\",VLOOKUP(A16,LN_Partner!$C$17:$K$26,5,FALSE))","v":""},{"$f":"IF(ISERROR(VLOOKUP(A16,LN_Partner!$C$17:$K$26,6,FALSE)),\"\",VLOOKUP(A16,LN_Partner!$C$17:$K$26,6,FALSE))","v":""},{"$f":"IF(ISERROR(VLOOKUP(A16,LN_Partner!$C$17:$K$26,7,FALSE)),\"\",VLOOKUP(A16,LN_Partner!$C$17:$K$26,7,FALSE))","v":""},{"$f":"IF(ISERROR(VLOOKUP(A16,LN_Partner!$C$17:$K$26,8,FALSE)),\"\",VLOOKUP(A16,LN_Partner!$C$17:$K$26,8,FALSE))","v":""},{"$f":"IF(ISERROR(VLOOKUP(A16,LN_Partner!$C$17:$K$26,9,FALSE)),\"\",VLOOKUP(A16,LN_Partner!$C$17:$K$26,9,FALSE))","v":""}]
[9,{"$f":"IF(ISERROR(VLOOKUP(A17,LN_Partner!$C$17:$J$26,2,FALSE)),\"\",VLOOKUP(A17,LN_Partner!$C$17:$J$26,2,FALSE))","v":""},{"$f":"IF(ISERROR(VLOOKUP(A17,LN_Partner!$C$17:$J$26,3,FALSE)),\"\",VLOOKUP(A17,LN_Partner!$C$17:$J$26,3,FALSE))","v":""},{"$f":"IF(ISERROR(VLOOKUP(A17,LN_Partner!$C$17:$J$26,4,FALSE)),\"\",VLOOKUP(A17,LN_Partner!$C$17:$J$26,4,FALSE))","v":""},{"$f":"IF(ISERROR(VLOOKUP(A17,LN_Partner!$C$17:$K$26,5,FALSE)),\"\",VLOOKUP(A17,LN_Partner!$C$17:$K$26,5,FALSE))","v":""},{"$f":"IF(ISERROR(VLOOKUP(A17,LN_Partner!$C$17:$K$26,6,FALSE)),\"\",VLOOKUP(A17,LN_Partner!$C$17:$K$26,6,FALSE))","v":""},{"$f":"IF(ISERROR(VLOOKUP(A17,LN_Partner!$C$17:$K$26,7,FALSE)),\"\",VLOOKUP(A17,LN_Partner!$C$17:$K$26,7,FALSE))","v":""},{"$f":"IF(ISERROR(VLOOKUP(A17,LN_Partner!$C$17:$K$26,8,FALSE)),\"\",VLOOKUP(A17,LN_Partner!$C$17:$K$26,8,FALSE))","v":""},{"$f":"IF(ISERROR(VLOOKUP(A17,LN_Partner!$C$17:$K$26,9,FALSE)),\"\",VLOOKUP(A17,LN_Partner!$C$17:$K$26,9,FALSE))","v":""}]
[10,{"$f":"IF(ISERROR(VLOOKUP(A18,LN_Partner!$C$17:$J$26,2,FALSE)),\"\",VLOOKUP(A18,LN_Partner!$C$17:$J$26,2,FALSE))","v":""},{"$f":"IF(ISERROR(VLOOKUP(A18,LN_Partner!$C$17:$J$26,3,FALSE)),\"\",VLOOKUP(A18,LN_Partner!$C$17:$J$26,3,FALSE))","v":""},{"$f":"IF(ISERROR(VLOOKUP(A18,LN_Partner!$C$17:$J$26,4,FALSE)),\"\",VLOOKUP(A18,LN_Partner!$C$17:$J$26,4,FALSE))","v":""},{"$f":"IF(ISERROR(VLOOKUP(A18,LN_Partner!$C$17:$K$26,5,FALSE)),\"\",VLOOKUP(A18,LN_Partner!$C$17:$K$26,5,FALSE))","v":""},{"$f":"IF(ISERROR(VLOOKUP(A18,LN_Partner!$C$17:$K$26,6,FALSE)),\"\",VLOOKUP(A18,LN_Partner!$C$17:$K$26,6,FALSE))","v":""},{"$f":"IF(ISERROR(VLOOKUP(A18,LN_Partner!$C$17:$K$26,7,FALSE)),\"\",VLOOKUP(A18,LN_Partner!$C$17:$K$26,7,FALSE))","v":""},{"$f":"IF(ISERROR(VLOOKUP(A18,LN_Partner!$C$17:$K$26,8,FALSE)),\"\",VLOOKUP(A18,LN_Partner!$C$17:$K$26,8,FALSE))","v":""},{"$f":"IF(ISERROR(VLOOKUP(A18,LN_Partner!$C$17:$K$26,9,FALSE)),\"\",VLOOKUP(A18,LN_Partner!$C$17:$K$26,9,FALSE))","v":""}]
[null,"Los precios indicados no incluyen impuestos indirectos (IVA, IGIC, etc.)"]
[null,null,null,null,null,null,null,null,{"$f":"Impresion!E23","v":""}]

{"sheet":"Resumen_E","index":24,"n_rows":51,"n_cols":17,"rows_kept":51,"cut":false,"hidden":false,"merged":[[36,1,36,16],[26,1,26,4],[28,1,28,4],[29,1,29,4],[27,1,27,4],[27,5,27,9],[31,1,31,4],[32,1,32,4],[33,1,33,4],[30,5,30,9],[30,1,30,4],[29,5,29,9],[31,5,31,9],[32,5,32,9],[33,5,33,9],[5,1,5,13],[25,5,25,9],[26,5,26,9],[28,5,28,9],[24,1,24,4],[24,5,24,9],[25,1,25,4]]}
[]
[]
[null,"Resumen de productos y servicios para:"]
[null,{"$f":"Configurador!C7","v":0}]
[]
[null,"Todo lo que su empresa necesita para trabajar de forma eficiente y segura"]
[]
[]
[]
[]
[]
[]
[]
[]
[]
[]
[]
[]
[]
[]
[]
[]
[]
[]
[null,{"$f":"Configurador!B156","v":"Categoría de producto o servicio"},null,null,null,{"$f":"Configurador!E156","v":"Número de productos o servicios"},null,null,null,null,{"$f":"Configurador!J156","v":"Pago (*)  inicial"},{"$f":"Configurador!K156","v":"Pago (*)   mensual"},{"$f":"Configurador!L156","v":"Descuento (**)\nPago inicial"},{"$f":"Configurador!M156","v":"Descuento (**)\nPago mensual"},{"$f":"Configurador!N156","v":"Neto (**)\nPago inicial"},{"$f":"Configurador!P156","v":"Neto (**)\nPago mensual"},{"$f":"Configurador!Q156","v":"Neto   (**/***)\nPago anualizado"}]
[null,{"$f":"Configurador!B157","v":"Modernización del puesto de trabajo"},null,null,null,{"$f":"Configurador!E157","v":"No contrata"},null,null,{"$f":"Configurador!Q104","v":0},{"$f":"Configurador!R104","v":0},{"$f":"Configurador!J157","v":0},{"$f":"Configurador!K157","v":0},{"$f":"Configurador!L157","v":0},{"$f":"Configurador!M157","v":0},{"$f":"Configurador!N157","v":0},{"$f":"Configurador!P157","v":0},{"$f":"Configurador!Q157","v":0}]
[null,{"$f":"Configurador!B158","v":"Modernización de servidores en cloud"},null,null,null,{"$f":"Configurador!E158","v":"No contrata"},null,null,{"$f":"Configurador!T104","v":0},{"$f":"Configurador!U104","v":0},{"$f":"Configurador!J158","v":0},{"$f":"Configurador!K158","v":0},{"$f":"Configurador!L158","v":0},{"$f":"Configurador!M158","v":0},{"$f":"Configurador!N158","v":0},{"$f":"Configurador!P158","v":0},{"$f":"Configurador!Q158","v":0}]
[null,{"$f":"Configurador!B159","v":"Windows y SQL Server"},null,null,null,{"$f":"Configurador!E159","v":"No contrata"},null,null,{"$f":"Configurador!T105","v":0},{"$f":"Configurador!U105","v":0},{"$f":"Configurador!J159","v":0},{"$f":"Configurador!K159","v":0},{"$f":"Configurador!L159","v":0},{"$f":"Configurador!M159","v":0},{"$f":"Configurador!N159","v":0},{"$f":"Configurador!P159","v":0},{"$f":"Configurador!Q159","v":0}]
[null,{"$f":"Configurador!B160","v":"Aplicaciones de negocio"},null,null,{"$f":"IF(Configurador!L105=\"\",\"\",Configurador!L105)","v":""},{"$f":"Configurador!E160","v":"No contrata"},null,null,null,{"$f":"Configurador!R105","v":0},{"$f":"Configurador!J160","v":0},{"$f":"Configurador!K160","v":0},{"$f":"Configurador!L160","v":0},{"$f":"Configurador!M160","v":0},{"$f":"Configurador!N160","v":0},{"$f":"Configurador!P160","v":0},{"$f":"Configurador!Q160","v":0}]
[null,{"$f":"Configurador!B161","v":"Surface"},null,null,null,{"$f":"Configurador!E161","v":"No contrata"},null,null,{"$f":"Configurador!T105","v":0},{"$f":"Configurador!U105","v":0},{"$f":"Configurador!J161","v":0},{"$f":"Configurador!K161","v":0},{"$f":"Configurador!L161","v":0},{"$f":"Configurador!M161","v":0},{"$f":"Configurador!N161","v":0},{"$f":"Configurador!P161","v":0},{"$f":"Configurador!Q161","v":0}]
[null,{"$f":"Configurador!B162","v":"Accesorios Surface"},null,null,null,{"$f":"Configurador!E162","v":"No contrata"},null,null,null,null,{"$f":"Configurador!J162","v":0},{"$f":"Configurador!K162","v":0},{"$f":"Configurador!L162","v":0},{"$f":"Configurador!M162","v":0},{"$f":"Configurador!N162","v":0},{"$f":"Configurador!P162","v":0},{"$f":"Configurador!Q162","v":0}]
[null,{"$f":"Configurador!B163","v":"Otros equipos Windows 10 PRO"},null,null,null,{"$f":"Configurador!E163","v":"No contrata"},null,null,{"$f":"Configurador!T106","v":0},{"$f":"Configurador!U106","v":0},{"$f":"Configurador!J163","v":0},{"$f":"Configurador!K163","v":0},{"$f":"Configurador!L163","v":0},{"$f":"Configurador!M163","v":0},{"$f":"Configurador!N163","v":0},{"$f":"Configurador!P163","v":0},{"$f":"Configurador!Q163","v":0}]
[null,{"$f":"Configurador!B164","v":"Servicios de puesta en marcha"},null,null,{"$f":"IF(Configurador!L107=\"\",\"\",Configurador!L107)","v":""},{"$f":"Configurador!E164","v":"No contrata"},null,null,{"$f":"Configurador!Q107","v":0},{"$f":"Configurador!R107","v":0},{"$f":"Configurador!J164","v":0},{"$f":"Configurador!K164","v":0},{"$f":"Configurador!L164","v":0},{"$f":"Configurador!M164","v":0},{"$f":"Configurador!N164","v":0},{"$f":"Configurador!P164","v":0},{"$f":"Configurador!Q164","v":0}]
[null,{"$f":"Configurador!B165","v":"Servicios gestionados"},null,null,null,{"$f":"Configurador!E165","v":"No contrata"},null,null,{"$f":"Configurador!T107","v":0},{"$f":"Configurador!U107","v":0},{"$f":"Configurador!J165","v":0},{"$f":"Configurador!K165","v":0},{"$f":"Configurador!L165","v":0},{"$f":"Configurador!M165","v":0},{"$f":"Configurador!N165","v":0},{"$f":"Configurador!P165","v":0},{"$f":"Configurador!Q165","v":0}]
[null,null,null,null,null,null,null,null,null,null,{"$f":"Configurador!J166","v":0},{"$f":"Configurador!K166","v":0},{"$f":"Configurador!L166","v":0},{"$f":"Configurador!M166","v":0},{"$f":"Configurador!N166","v":0},{"$f":"Configurador!P166","v":0},{"$f":"Configurador!Q166","v":0}]
[]
[null,{"$f":"Configurador!B168","v":"    * Los precios indicados son PVPs recomendados por Microsoft y no incluyen impuestos indirectos (IVA, IGIC, etc.)"}]
[null,{"$f":"Configurador!B169","v":"  ** Los descuentos y precios netos son ofertados por "}]
[null,{"$f":"Configurador!B170","v":"*** El valor Neto Pago anualizado del apartado Windows y SQL Server corresponde con el pago anual o trienal en función del modelo de suscripción por 1 ó 3 años."}]
[]
[]
[]
[]
[]
[]
[]
[]
[]
[]
[]
[null,null,null,null,null,null,null,null,null,null,null,null,null,null,null,null,{"$f":"Impresion!E25","v":"Página 6 de 7"}]

{"sheet":"Legales_E","index":25,"n_rows":39,"n_cols":14,"rows_kept":39,"cut":false,"hidden":false,"merged":[[13,1,13,16],[5,1,5,16],[11,1,11,16],[16,1,16,16],[7,1,7,16],[9,1,9,16],[28,1,28,16],[30,1,30,6],[26,1,26,16],[19,2,19,13],[21,2,23,13]]}
[]
[]
[null,"Condiciones legales de productos y servicios"]
[null,"Firma de la propuesta comercial"]
[]
[null,"Condiciones legales de productos y servicios Microsoft"]
[]
[null,"Las condiciones legales de los productos de Microsoft incluidos en la presente propuesta pueden ser consultadas y descargadas en https://download.microsoft.com/download/2/C/8/2C8CAC17-FCE7-4F51-9556-4D77C7022DF5/MCA2017Agr_EMEA_EU-EFTA_ENG_Sep20172_CR.pdf "]
[]
[null,"Los acuerdos de nivel de servicio de los servicios online de Microsoft pueden ser consultados y descargados en  http://www.microsoftvolumelicensing.com/DocumentSearch.aspx?Mode=3&DocumentTypeId=37"]
[]
[null,"Condiciones respecto a precios de productos y servicios Microsoft"]
[]
[null,{"$f":"CONCATENATE(\"La presente propuesta ha sido elaborada mediante un configurador que utiliza precios de referencia de forma predeterminada. Los precios finales ofertados son responsabilidad de \",Configurador!J7,\", que decide los precios aplicables y, en su caso, será responsable de su facturación y cobro.\")","v":"La presente propuesta ha sido elaborada mediante un configurador que utiliza precios de referencia de forma predeterminada. Los precios finales ofertados son responsabilidad de , que decide los precios aplicables y, en su caso, será responsable de su facturación y cobro."}]
[]
[]
[null,"Forma de Pago"]
[]
[]
[null,"Facturación:",{"$f":"IF(OR(Configurador!E175=\"\",Configurador!E175=0),\"\",Configurador!E175)","v":""}]
[]
[null,"Forma de Pago:",{"$f":"IF(OR(Configurador!E177=\"\",Configurador!E177=0),\"\",Configurador!E177)","v":""}]
[]
[]
[]
[]
[null,"Firma de la propuesta comercial"]
[]
[null,{"$f":"CONCATENATE(\"Los representantes legales de \",Configurador!C7,\" y \",Configurador!J7,\" declaran haber leído y aceptado las condiciones comerciales y económicas de todas las páginas que conforman esta propuesta,\",\" y en consecuencia acuerdan firmar, de común acuerdo, la presente propuesta comercial en las condiciones indicadas a\",\" lo largo de este documento, estampando para este propósito sus correspondientes firmas.\")","v":"Los representantes legales de  y  declaran haber leído y aceptado las condiciones comerciales y económicas de todas las páginas que conforman esta propuesta, y en consecuencia acuerdan firmar, de común acuerdo, la presente propuesta comercial en las condiciones indicadas a lo largo de este documento, estampando para este propósito sus correspondientes firmas."}]
[]
[null,{"$f":"CONCATENATE(\"Por \",Configurador!C7,\":\")","v":"Por :"},null,null,null,null,null,null,null,{"$f":"CONCATENATE(\"Por \",Configurador!J7,\":\")","v":"Por :"}]
[]
[]
[]
[]
[]
[]
[null,null,null,null,null,null,{"$f":"IF(AND(Configurador!R13<>\"\", Configurador!R11<>\"\"),CONCATENATE(\"En \",Configurador!R13,\", a \",DAY(Configurador!R11),\" del \",MONTH(Configurador!R11),\" de \",YEAR(Configurador!R11)),\"\")","v":""}]
[null,null,null,null,null,null,null,null,null,null,null,null,null,{"$f":"Impresion!E26","v":"Página 7 de 7"}]

{"sheet":"LN_Surface","index":26,"n_rows":106,"n_cols":25,"rows_kept":106,"cut":false,"hidden":false,"merged":[]}
[null,"Equipos","BENEFICIO","Código","SP","SP_123","SP_123_i5","SP_123_i7","SP_123_m3","SP_123_i5_4","SP_123_i5_8","SP_123_i5_16","SP_123_i7_8","SP_123_i7_16","SP_123_m3_4","SP_123_i5_4_128","SP_123_i5_8_256","SP_123_i5_16_256","SP_123_i7_8_256","SP_123_i7_16_512","SP_123_i7_16_1024","SP_123_m3_4_128"]
[null,"Surface Pro","Versatilidad","SP",12.3,"i5",4,8,4,128,256,256,256,512,128,"Sí","Sí","No","No","No","No","No"]
[null,"Surface Book 2","Potencia","SB",null,"i7",8,16,null,null,null,null,null,1024,null,"No","No"]
[null,"Surface Go","Ultramovilidad","SG",null,"m3",16]
[null,"Surface Laptop Win10Pro","Ultraligero","SL"]
[null,null,null,null,"SB","SB_135","SB_150","SB_135_i5","SB_135_i7","SB_150_i7","SB_135_i5_8","SB_135_i7_8","SB_135_i7_16","SB_150_i7_16","SB_135_i5_8_256","SB_135_i7_8_256","SB_135_i7_16_256","SB_135_i7_16_1024","SB_150_i7_16_256","SB_150_i7_16_512","SB_150_i7_16_1024"]
[null,null,null,null,13.5,"i5","i7",8,8,16,256,256,256,256,"No","No","No","No","No","No","No"]
[null,null,null,null,15,"i7",null,null,16,null,null,null,1024,512]
[null,null,null,null,null,null,null,null,null,null,null,null,null,1024]
[]
[null,null,null,null,"SG","SG_100","SG_100_Pentium Gold 4415Y","SG_100_Pentium Gold 4415Y_4","SG_100_Pentium Gold 4415Y_6","SG_100_Pentium Gold 4415Y_8","SG_100_Pentium Gold 4415Y_4_64","SG_100_Pentium Gold 4415Y_6_256","SG_100_Pentium Gold 4415Y_8_128"]
[null,null,null,null,10,"Pentium Gold 4415Y",4,64,256,128,"No","Sí","Sí"]
[null,null,null,null,null,null,6,null,null,null,null,null,"No"]
[null,null,null,null,null,null,8]
[]
[null,null,null,null,"SL","SL_135","SL_135_i5","SL_135_i7","SL_135_i5_8","SL_135_i7_8","SL_135_i7_16","SL_135_i5_8_128","SL_135_i5_8_256","SL_135_i7_8_256","SL_135_i7_16_512","SL_135_i7_16_1024"]
[null,null,null,null,13.5,"i5",8,8,128,256,512,"No","No","No","No","No"]
[null,null,null,null,null,"i7",null,16,256,null,1024]
[]
[]
[null,null,"Modelo","Pantalla Pulgadas","Processor Intel","RAM","SSD","LTE","MSRP Neto",null,"ACCESORIOS",null,null,"ND"]
["SP","Surface Pro",{"$f":"CONCATENATE(A22,\"_\",D22*10,\"_\",E22,\"_\",F22,\"_\",G22,\"_\",H22)","v":"SP_123_i5_4_128_No"},12.3,"i5",4,128,"No",935.41,null,"Surface Pro Signature Cover",145.15,null,"No disponible"]
["SP","Surface Pro",{"$f":"CONCATENATE(A23,\"_\",D23*10,\"_\",E23,\"_\",F23,\"_\",G23,\"_\",H23)","v":"SP_123_i5_4_128_Sí"},12.3,"i5",4,128,"Sí",1081.75,null,"Surface Pro Cover",120.96]
["SP","Surface Pro","SP_123_i5_8_128_No",12.3,"i5",8,128,"No",939.17,null,"Surface Go Signature Cover",104.8]
["SP","Surface Pro","SP_123_i5_8_256_No",12.3,"i5",8,256,"No",1187.3699999999999,null,"Surface Go Cover",80.489999999999995]
["SP","Surface Pro","SP_123_i5_8_256_Sí",12.3,"i5",8,256,"Sí",1338.17,null,"Surface Pen Stylus",88.7]
["SP","Surface Pro","SP_123_i5_16_256_No",12.3,"i5",16,256,"No",1375.87,null,"Surface Arc Mouse Bluetooth",71.989999999999995]
["SP","Surface Pro","SP_123_i7_8_256_No",12.3,"i7",8,256,"No",1452.11,null,"Surface Docking",189.48]
["SP","Surface Pro","SP_123_i7_16_1024_No",12.3,"i7",16,1024,"No",2497.4299999999998]
["SP","Surface Pro","SP_123_i7_16_512_No",12.3,"i7",16,512,"No",2033.21]
["SP","Surface Pro","SP_123_m3_4_128_No",12.3,"m3",4,128,"No",726.11]
["SB","Surface Book 2","SB_135_i5_8_256_No",13.5,"i5",8,256,"No",1371.7]
["SB","Surface Book 2","SB_135_i7_16_1024_No",13.5,"i7",16,1024,"No",2636.72]
["SB","Surface Book 2","SB_135_i7_16_256_No",13.5,"i7",16,256,"No",2209.37]
["SB","Surface Book 2","SB_135_i7_8_256_No",13.5,"i7",8,256,"No",1793.1]
["SB","Surface Book 2","SB_150_i7_16_1024_No",15,"i7",16,1024,"No",2922.89]
["SB","Surface Book 2","SB_150_i7_16_256_No",15,"i7",16,256,"No",2194.63]
["SB","Surface Book 2","SB_150_i7_16_512_No",15,"i7",16,512,"No",2563.7399999999998]
["SG","Surface Go",{"$f":"CONCATENATE(A39,\"_\",D39*10,\"_\",\"Pentium_Gold_4415Y\",\"_\",F39,\"_\",G39,\"_\",H39)","v":"SG_100_Pentium_Gold_4415Y_4_64_No"},10,"Pentium Gold 4415Y",4,64,"No",394.83]
["SG","Surface Go",{"$f":"CONCATENATE(A40,\"_\",D40*10,\"_\",\"Pentium_Gold_4415Y\",\"_\",F40,\"_\",G40,\"_\",H40)","v":"SG_100_Pentium_Gold_4415Y_8_128_No"},10,"Pentium Gold 4415Y",8,128,"No",516.42999999999995]
["SG","Surface Go",{"$f":"CONCATENATE(A41,\"_\",D41*10,\"_\",\"Pentium_Gold_4415Y\",\"_\",F41,\"_\",G41,\"_\",H41)","v":"SG_100_Pentium_Gold_4415Y_8_128_Sí"},10,"Pentium Gold 4415Y",8,128,"Sí",635.62]
["SG","Surface Go",{"$f":"CONCATENATE(A42,\"_\",D42*10,\"_\",\"Pentium_Gold_4415Y\",\"_\",F42,\"_\",G42,\"_\",H42)","v":"SG_100_Pentium_Gold_4415Y_6_256_Sí"},10,"Pentium Gold 4415Y",6,256,"Sí",688.74]
["SL","Surface Laptop Win10Pro","SL_135_i5_8_128_No",13.5,"i5",8,128,"No",1116.93]
["SL","Surface Laptop Win10Pro","SL_135_i5_8_256_No",13.5,"i5",8,256,"No",1242.6199999999999]
["SL","Surface Laptop Win10Pro","SL_135_i7_16_1024_No",13.5,"i7",16,1024,"No",2566.73]
["SL","Surface Laptop Win10Pro","SL_135_i7_16_512_No",13.5,"i7",16,512,"No",2096.5100000000002]
["SL","Surface Laptop Win10Pro","SL_135_i7_8_256_No",13.5,"i7",8,256,"No",1521.62]
[null,null,null,null,null,null,null,null,null,null,"GARANTIAS","GARANTIA_SP","GARANTIA_SB","GARANTIA_SG","GARANTIA_SL"]
[null,null,null,null,null,null,null,null,null,null,"3 años",56.1,164.46,48.76,57.02]
[null,null,null,null,null,null,null,null,null,null,"4 años",113.01,197.52,106.61,114.88]
[null,null,null,null,null,null,null,null,null,null,"Completa 3 años",199.2,288.43,139.66999999999999,205.79]
[null,null,null,null,null,null,null,null,null,null,"Completa 4 años",294.5,321.49,189.26,304.95999999999998]
[]
[]
[]
[]
[]
["GENERACIÓN DE TABLAS DINÁMICAS PARA LAS PROPUESTAS"]
[]
["Surface Pro",null,"soporte para buscarv",4,{"$f":"D60+1","v":5},{"$f":"E60+1","v":6},{"$f":"F60+1","v":7},9,null,{"$f":"H60+1","v":10},{"$f":"J60+1","v":11},{"$f":"K60+1","v":12},{"$f":"L60+1","v":13},{"$f":"M60+1","v":14},16,{"$f":"O60+1","v":17},18,19,20,21,22,23,24,25,26]
[null,"Posiciones en configurador","Posiciones que debe ocupar en la propuesta"]
[1,{"$f":"IF(Configurador!$B$104=$B$2,1,0)","v":0},{"$f":"IF(B62=1,1,0)","v":0},{"$f":"IF($C62>0,VLOOKUP($A62,Configurador!$A$104:$Z$108,D$60),\"\")","v":""},{"$f":"IF($C$62>0,VLOOKUP($A62,Configurador!$A$104:$Z$108,E60),\"\")","v":""},{"$f":"IF($C$62>0,VLOOKUP($A62,Configurador!$A$104:$Z$108,F60),\"\")","v":""},{"$f":"IF($C$62>0,VLOOKUP($A62,Configurador!$A$104:$Z$108,G60),\"\")","v":""},{"$f":"IF($C$62>0,VLOOKUP($A62,Configurador!$A$104:$Z$108,H60),\"\")","v":""},{"$f":"IF(D62<>\"\",CONCATENATE(D62,\"'' / \",E62,\" / \",F62,\"MB / \",G62,\"GB / \",H62),\"\")","v":""},{"$f":"IF($C$62>0,VLOOKUP($A62,Configurador!$A$104:$Z$108,J60),\"\")","v":""},{"$f":"IF($C$62>0,VLOOKUP($A62,Configurador!$A$104:$Z$108,K60),\"\")","v":""},{"$f":"IF($C$62>0,VLOOKUP($A62,Configurador!$A$104:$Z$108,L60),\"\")","v":""},{"$f":"IF($C$62>0,VLOOKUP($A62,Configurador!$A$104:$Z$108,M60),\"\")","v":""},{"$f":"IF($C$62>0,VLOOKUP($A62,Configurador!$A$104:$Z$108,N60),\"\")","v":""},{"$f":"IF($C$62>0,VLOOKUP($A62,Configurador!$A$104:$Z$108,O60),\"\")","v":""},{"$f":"IF($C$62>0,VLOOKUP($A62,Configurador!$A$104:$Z$108,P60),\"\")","v":""},{"$f":"IF($C$62>0,VLOOKUP($A62,Configurador!$A$104:$Z$108,Q60),\"\")","v":""},{"$f":"IF($C$62>0,VLOOKUP($A62,Configurador!$A$104:$Z$108,R60),\"\")","v":""},{"$f":"IF($C$62>0,VLOOKUP($A62,Configurador!$A$104:$Z$108,S60),\"\")","v":""},{"$f":"IF($C$62>0,VLOOKUP($A62,Configurador!$A$104:$Z$108,T60),\"\")","v":""},{"$f":"IF($C$62>0,VLOOKUP($A62,Configurador!$A$104:$Z$108,U60),\"\")","v":""},{"$f":"IF($C$62>0,VLOOKUP($A62,Configurador!$A$104:$Z$108,V60),\"\")","v":""},{"$f":"IF($C$62>0,VLOOKUP($A62,Configurador!$A$104:$Z$108,W60),\"\")","v":""},{"$f":"IF($C$62>0,VLOOKUP($A62,Configurador!$A$104:$Z$108,X60),\"\")","v":""},{"$f":"IF($C$62>0,VLOOKUP($A62,Configurador!$A$104:$Z$108,Y60),\"\")","v":""}]
[2,{"$f":"IF(Configurador!$B$105=B2,1,0)","v":0},{"$f":"IF(AND(B63=1,C62<=($B$69-1)),C62+1,0)","v":0},{"$f":"IF($C63>0,VLOOKUP($A63,Configurador!$A$104:$Z$108,D$60),\"\")","v":""},{"$f":"IF($C63>0,VLOOKUP($A63,Configurador!$A$104:$Z$108,E$60),\"\")","v":""},{"$f":"IF($C63>0,VLOOKUP($A63,Configurador!$A$104:$Z$108,F$60),\"\")","v":""},{"$f":"IF($C63>0,VLOOKUP($A63,Configurador!$A$104:$Z$108,G$60),\"\")","v":""},{"$f":"IF($C63>0,VLOOKUP($A63,Configurador!$A$104:$Z$108,H$60),\"\")","v":""},{"$f":"IF(D63<>\"\",CONCATENATE(D63,\"'' / \",E63,\" / \",F63,\"MB / \",G63,\"GB / \",H63),\"\")","v":""},{"$f":"IF($C63>0,VLOOKUP($A63,Configurador!$A$104:$Z$108,J$60),\"\")","v":""},{"$f":"IF($C63>0,VLOOKUP($A63,Configurador!$A$104:$Z$108,K$60),\"\")","v":""},{"$f":"IF($C63>0,VLOOKUP($A63,Configurador!$A$104:$Z$108,L$60),\"\")","v":""},{"$f":"IF($C63>0,VLOOKUP($A63,Configurador!$A$104:$Z$108,M$60),\"\")","v":""},{"$f":"IF($C63>0,VLOOKUP($A63,Configurador!$A$104:$Z$108,N$60),\"\")","v":""},{"$f":"IF($C63>0,VLOOKUP($A63,Configurador!$A$104:$Z$108,O$60),\"\")","v":""},{"$f":"IF($C63>0,VLOOKUP($A63,Configurador!$A$104:$Z$108,P$60),\"\")","v":""},{"$f":"IF($C63>0,VLOOKUP($A63,Configurador!$A$104:$Z$108,Q$60),\"\")","v":""},{"$f":"IF($C63>0,VLOOKUP($A63,Configurador!$A$104:$Z$108,R$60),\"\")","v":""},{"$f":"IF($C63>0,VLOOKUP($A63,Configurador!$A$104:$Z$108,S$60),\"\")","v":""},{"$f":"IF($C63>0,VLOOKUP($A63,Configurador!$A$104:$Z$108,T$60),\"\")","v":""},{"$f":"IF($C63>0,VLOOKUP($A63,Configurador!$A$104:$Z$108,U$60),\"\")","v":""},{"$f":"IF($C63>0,VLOOKUP($A63,Configurador!$A$104:$Z$108,V$60),\"\")","v":""},{"$f":"IF($C63>0,VLOOKUP($A63,Configurador!$A$104:$Z$108,W$60),\"\")","v":""},{"$f":"IF($C63>0,VLOOKUP($A63,Configurador!$A$104:$Z$108,X$60),\"\")","v":""},{"$f":"IF($C63>0,VLOOKUP($A63,Configurador!$A$104:$Z$108,Y$60),\"\")","v":""}]
[3,{"$f":"IF(Configurador!$B$106=B2,1,0)","v":0},{"$f":"IF(AND(B64=1,MAX($C$62:C63)<=($B$69-1)),MAX($C$62:C63)+1,0)","v":0},{"$f":"IF($C64>0,VLOOKUP($A64,Configurador!$A$104:$Z$108,D$60),\"\")","v":""},{"$f":"IF($C64>0,VLOOKUP($A64,Configurador!$A$104:$Z$108,E$60),\"\")","v":""},{"$f":"IF($C64>0,VLOOKUP($A64,Configurador!$A$104:$Z$108,F$60),\"\")","v":""},{"$f":"IF($C64>0,VLOOKUP($A64,Configurador!$A$104:$Z$108,G$60),\"\")","v":""},{"$f":"IF($C64>0,VLOOKUP($A64,Configurador!$A$104:$Z$108,H$60),\"\")","v":""},{"$f":"IF(D64<>\"\",CONCATENATE(D64,\"'' / \",E64,\" / \",F64,\"MB / \",G64,\"GB / \",H64),\"\")","v":""},{"$f":"IF($C64>0,VLOOKUP($A64,Configurador!$A$104:$Z$108,J$60),\"\")","v":""},{"$f":"IF($C64>0,VLOOKUP($A64,Configurador!$A$104:$Z$108,K$60),\"\")","v":""},{"$f":"IF($C64>0,VLOOKUP($A64,Configurador!$A$104:$Z$108,L$60),\"\")","v":""},{"$f":"IF($C64>0,VLOOKUP($A64,Configurador!$A$104:$Z$108,M$60),\"\")","v":""},{"$f":"IF($C64>0,VLOOKUP($A64,Configurador!$A$104:$Z$108,N$60),\"\")","v":""},{"$f":"IF($C64>0,VLOOKUP($A64,Configurador!$A$104:$Z$108,O$60),\"\")","v":""},{"$f":"IF($C64>0,VLOOKUP($A64,Configurador!$A$104:$Z$108,P$60),\"\")","v":""},{"$f":"IF($C64>0,VLOOKUP($A64,Configurador!$A$104:$Z$108,Q$60),\"\")","v":""},{"$f":"IF($C64>0,VLOOKUP($A64,Configurador!$A$104:$Z$108,R$60),\"\")","v":""},{"$f":"IF($C64>0,VLOOKUP($A64,Configurador!$A$104:$Z$108,S$60),\"\")","v":""},{"$f":"IF($C64>0,VLOOKUP($A64,Configurador!$A$104:$Z$108,T$60),\"\")","v":""},{"$f":"IF($C64>0,VLOOKUP($A64,Configurador!$A$104:$Z$108,U$60),\"\")","v":""},{"$f":"IF($C64>0,VLOOKUP($A64,Configurador!$A$104:$Z$108,V$60),\"\")","v":""},{"$f":"IF($C64>0,VLOOKUP($A64,Configurador!$A$104:$Z$108,W$60),\"\")","v":""},{"$f":"IF($C64>0,VLOOKUP($A64,Configurador!$A$104:$Z$108,X$60),\"\")","v":""},{"$f":"IF($C64>0,VLOOKUP($A64,Configurador!$A$104:$Z$108,Y$60),\"\")","v":""}]
[4,{"$f":"IF(Configurador!$B$107=B2,1,0)","v":0},{"$f":"IF(AND(B65=1,MAX($C$62:C64)<=($B$69-1)),MAX($C$62:C64)+1,0)","v":0},{"$f":"IF($C65>0,VLOOKUP($A65,Configurador!$A$104:$Z$108,D$60),\"\")","v":""},{"$f":"IF($C65>0,VLOOKUP($A65,Configurador!$A$104:$Z$108,E$60),\"\")","v":""},{"$f":"IF($C65>0,VLOOKUP($A65,Configurador!$A$104:$Z$108,F$60),\"\")","v":""},{"$f":"IF($C65>0,VLOOKUP($A65,Configurador!$A$104:$Z$108,G$60),\"\")","v":""},{"$f":"IF($C65>0,VLOOKUP($A65,Configurador!$A$104:$Z$108,H$60),\"\")","v":""},{"$f":"IF(D65<>\"\",CONCATENATE(D65,\"'' / \",E65,\" / \",F65,\"MB / \",G65,\"GB / \",H65),\"\")","v":""},{"$f":"IF($C65>0,VLOOKUP($A65,Configurador!$A$104:$Z$108,J$60),\"\")","v":""},{"$f":"IF($C65>0,VLOOKUP($A65,Configurador!$A$104:$Z$108,K$60),\"\")","v":""},{"$f":"IF($C65>0,VLOOKUP($A65,Configurador!$A$104:$Z$108,L$60),\"\")","v":""},{"$f":"IF($C65>0,VLOOKUP($A65,Configurador!$A$104:$Z$108,M$60),\"\")","v":""},{"$f":"IF($C65>0,VLOOKUP($A65,Configurador!$A$104:$Z$108,N$60),\"\")","v":""},{"$f":"IF($C65>0,VLOOKUP($A65,Configurador!$A$104:$Z$108,O$60),\"\")","v":""},{"$f":"IF($C65>0,VLOOKUP($A65,Configurador!$A$104:$Z$108,P$60),\"\")","v":""},{"$f":"IF($C65>0,VLOOKUP($A65,Configurador!$A$104:$Z$108,Q$60),\"\")","v":""},{"$f":"IF($C65>0,VLOOKUP($A65,Configurador!$A$104:$Z$108,R$60),\"\")","v":""},{"$f":"IF($C65>0,VLOOKUP($A65,Configurador!$A$104:$Z$108,S$60),\"\")","v":""},{"$f":"IF($C65>0,VLOOKUP($A65,Configurador!$A$104:$Z$108,T$60),\"\")","v":""},{"$f":"IF($C65>0,VLOOKUP($A65,Configurador!$A$104:$Z$108,U$60),\"\")","v":""},{"$f":"IF($C65>0,VLOOKUP($A65,Configurador!$A$104:$Z$108,V$60),\"\")","v":""},{"$f":"IF($C65>0,VLOOKUP($A65,Configurador!$A$104:$Z$108,W$60),\"\")","v":""},{"$f":"IF($C65>0,VLOOKUP($A65,Configurador!$A$104:$Z$108,X$60),\"\")","v":""},{"$f":"IF($C65>0,VLOOKUP($A65,Configurador!$A$104:$Z$108,Y$60),\"\")","v":""}]
[5,{"$f":"IF(Configurador!$B$108=B2,1,0)","v":0},{"$f":"IF(AND(B66=1,MAX($C$62:C65)<=($B$69-1)),MAX($C$62:C65)+1,0)","v":0},{"$f":"IF($C66>0,VLOOKUP($A66,Configurador!$A$104:$Z$108,D$60),\"\")","v":""},{"$f":"IF($C66>0,VLOOKUP($A66,Configurador!$A$104:$Z$108,E$60),\"\")","v":""},{"$f":"IF($C66>0,VLOOKUP($A66,Configurador!$A$104:$Z$108,F$60),\"\")","v":""},{"$f":"IF($C66>0,VLOOKUP($A66,Configurador!$A$104:$Z$108,G$60),\"\")","v":""},{"$f":"IF($C66>0,VLOOKUP($A66,Configurador!$A$104:$Z$108,H$60),\"\")","v":""},{"$f":"IF(D66<>\"\",CONCATENATE(D66,\"'' / \",E66,\" / \",F66,\"MB / \",G66,\"GB / \",H66),\"\")","v":""},{"$f":"IF($C66>0,VLOOKUP($A66,Configurador!$A$104:$Z$108,J$60),\"\")","v":""},{"$f":"IF($C66>0,VLOOKUP($A66,Configurador!$A$104:$Z$108,K$60),\"\")","v":""},{"$f":"IF($C66>0,VLOOKUP($A66,Configurador!$A$104:$Z$108,L$60),\"\")","v":""},{"$f":"IF($C66>0,VLOOKUP($A66,Configurador!$A$104:$Z$108,M$60),\"\")","v":""},{"$f":"IF($C66>0,VLOOKUP($A66,Configurador!$A$104:$Z$108,N$60),\"\")","v":""},{"$f":"IF($C66>0,VLOOKUP($A66,Configurador!$A$104:$Z$108,O$60),\"\")","v":""},{"$f":"IF($C66>0,VLOOKUP($A66,Configurador!$A$104:$Z$108,P$60),\"\")","v":""},{"$f":"IF($C66>0,VLOOKUP($A66,Configurador!$A$104:$Z$108,Q$60),\"\")","v":""},{"$f":"IF($C66>0,VLOOKUP($A66,Configurador!$A$104:$Z$108,R$60),\"\")","v":""},{"$f":"IF($C66>0,VLOOKUP($A66,Configurador!$A$104:$Z$108,S$60),\"\")","v":""},{"$f":"IF($C66>0,VLOOKUP($A66,Configurador!$A$104:$Z$108,T$60),\"\")","v":""},{"$f":"IF($C66>0,VLOOKUP($A66,Configurador!$A$104:$Z$108,U$60),\"\")","v":""},{"$f":"IF($C66>0,VLOOKUP($A66,Configurador!$A$104:$Z$108,V$60),\"\")","v":""},{"$f":"IF($C66>0,VLOOKUP($A66,Configurador!$A$104:$Z$108,W$60),\"\")","v":""},{"$f":"IF($C66>0,VLOOKUP($A66,Configurador!$A$104:$Z$108,X$60),\"\")","v":""},{"$f":"IF($C66>0,VLOOKUP($A66,Configurador!$A$104:$Z$108,Y$60),\"\")","v":""}]
[]
[null,"cuántos"]
[null,{"$f":"COUNTIF(B62:B66,\">0\")","v":0}]
[null,"soporte para buscar v en la propuesta",1,{"$f":"C70+1","v":2},{"$f":"D70+1","v":3},4,5,6,7,8,9,10,11,12,13,14,15,16,17,18,19,20,21,22,23]
[]
["Surface Book 2",null,"soporte para buscarv",4,{"$f":"D72+1","v":5},{"$f":"E72+1","v":6},{"$f":"F72+1","v":7},9,null,{"$f":"H72+1","v":10},{"$f":"J72+1","v":11},{"$f":"K72+1","v":12},{"$f":"L72+1","v":13},{"$f":"M72+1","v":14},16,{"$f":"O72+1","v":17},18,19,20,21,22,23,24,25,26]
[null,"Posiciones en configurador","Posiciones que debe ocupar en la propuesta"]
[1,{"$f":"IF(Configurador!$B$104=B3,1,0)","v":0},{"$f":"IF(B74=1,1,0)","v":0},{"$f":"IF($C74>0,VLOOKUP($A74,Configurador!$A$104:$Z$108,D$60),\"\")","v":""},{"$f":"IF($C$74>0,VLOOKUP($A74,Configurador!$A$104:$Z$108,E72),\"\")","v":""},{"$f":"IF($C$74>0,VLOOKUP($A74,Configurador!$A$104:$Z$108,F72),\"\")","v":""},{"$f":"IF(C74>0,VLOOKUP($A74,Configurador!$A$104:$Z$108,G72),\"\")","v":""},{"$f":"IF(C74>0,VLOOKUP($A74,Configurador!$A$104:$Z$108,H72),\"\")","v":""},{"$f":"IF(D74<>\"\",CONCATENATE(D74,\"'' / \",E74,\" / \",F74,\"MB / \",G74,\"GB / \",H74),\"\")","v":""},{"$f":"IF(C74>0,VLOOKUP($A74,Configurador!$A$104:$Z$108,J72),\"\")","v":""},{"$f":"IF(C74>0,VLOOKUP($A74,Configurador!$A$104:$Z$108,K72),\"\")","v":""},{"$f":"IF(C74>0,VLOOKUP($A74,Configurador!$A$104:$Z$108,L72),\"\")","v":""},{"$f":"IF(C74>0,VLOOKUP($A74,Configurador!$A$104:$Z$108,M72),\"\")","v":""},{"$f":"IF(C74>0,VLOOKUP($A74,Configurador!$A$104:$Z$108,N72),\"\")","v":""},{"$f":"IF(C74>0,VLOOKUP($A74,Configurador!$A$104:$Z$108,O72),\"\")","v":""},{"$f":"IF(C74>0,VLOOKUP($A74,Configurador!$A$104:$Z$108,P72),\"\")","v":""},{"$f":"IF(C74>0,VLOOKUP($A74,Configurador!$A$104:$Z$108,Q72),\"\")","v":""},{"$f":"IF(C74>0,VLOOKUP($A74,Configurador!$A$104:$Z$108,R72),\"\")","v":""},{"$f":"IF(C74>0,VLOOKUP($A74,Configurador!$A$104:$Z$108,S72),\"\")","v":""},{"$f":"IF(C74>0,VLOOKUP($A74,Configurador!$A$104:$Z$108,T72),\"\")","v":""},{"$f":"IF(C74>0,VLOOKUP($A74,Configurador!$A$104:$Z$108,U72),\"\")","v":""},{"$f":"IF(C74>0,VLOOKUP($A74,Configurador!$A$104:$Z$108,V72),\"\")","v":""},{"$f":"IF(C74>0,VLOOKUP($A74,Configurador!$A$104:$Z$108,W72),\"\")","v":""},{"$f":"IF(C74>0,VLOOKUP($A74,Configurador!$A$104:$Z$108,X72),\"\")","v":""},{"$f":"IF(C74>0,VLOOKUP($A74,Configurador!$A$104:$Z$108,Y72),\"\")","v":""}]
[2,{"$f":"IF(Configurador!$B$105=B3,1,0)","v":0},{"$f":"IF(AND(B75=1,C74<=($B$81-1)),C74+1,0)","v":0},{"$f":"IF($C75>0,VLOOKUP($A75,Configurador!$A$104:$Z$108,D$60),\"\")","v":""},{"$f":"IF($C75>0,VLOOKUP($A75,Configurador!$A$104:$Z$108,E$60),\"\")","v":""},{"$f":"IF($C75>0,VLOOKUP($A75,Configurador!$A$104:$Z$108,F$60),\"\")","v":""},{"$f":"IF($C75>0,VLOOKUP($A75,Configurador!$A$104:$Z$108,G$60),\"\")","v":""},{"$f":"IF($C75>0,VLOOKUP($A75,Configurador!$A$104:$Z$108,H$60),\"\")","v":""},{"$f":"IF(D75<>\"\",CONCATENATE(D75,\"'' / \",E75,\" / \",F75,\"MB / \",G75,\"GB / \",H75),\"\")","v":""},{"$f":"IF($C75>0,VLOOKUP($A75,Configurador!$A$104:$Z$108,J$60),\"\")","v":""},{"$f":"IF($C75>0,VLOOKUP($A75,Configurador!$A$104:$Z$108,K$60),\"\")","v":""},{"$f":"IF($C75>0,VLOOKUP($A75,Configurador!$A$104:$Z$108,L$60),\"\")","v":""},{"$f":"IF($C75>0,VLOOKUP($A75,Configurador!$A$104:$Z$108,M$60),\"\")","v":""},{"$f":"IF($C75>0,VLOOKUP($A75,Configurador!$A$104:$Z$108,N$60),\"\")","v":""},{"$f":"IF($C75>0,VLOOKUP($A75,Configurador!$A$104:$Z$108,O$60),\"\")","v":""},{"$f":"IF($C75>0,VLOOKUP($A75,Configurador!$A$104:$Z$108,P$60),\"\")","v":""},{"$f":"IF($C75>0,VLOOKUP($A75,Configurador!$A$104:$Z$108,Q$60),\"\")","v":""},{"$f":"IF($C75>0,VLOOKUP($A75,Configurador!$A$104:$Z$108,R$60),\"\")","v":""},{"$f":"IF($C75>0,VLOOKUP($A75,Configurador!$A$104:$Z$108,S$60),\"\")","v":""},{"$f":"IF($C75>0,VLOOKUP($A75,Configurador!$A$104:$Z$108,T$60),\"\")","v":""},{"$f":"IF($C75>0,VLOOKUP($A75,Configurador!$A$104:$Z$108,U$60),\"\")","v":""},{"$f":"IF($C75>0,VLOOKUP($A75,Configurador!$A$104:$Z$108,V$60),\"\")","v":""},{"$f":"IF($C75>0,VLOOKUP($A75,Configurador!$A$104:$Z$108,W$60),\"\")","v":""},{"$f":"IF($C75>0,VLOOKUP($A75,Configurador!$A$104:$Z$108,X$60),\"\")","v":""},{"$f":"IF($C75>0,VLOOKUP($A75,Configurador!$A$104:$Z$108,Y$60),\"\")","v":""}]
[3,{"$f":"IF(Configurador!$B$106=B3,1,0)","v":0},{"$f":"IF(AND(B76=1,MAX($C$74:C75)<=($B$81-1)),MAX($C$74:C75)+1,0)","v":0},{"$f":"IF($C76>0,VLOOKUP($A76,Configurador!$A$104:$Z$108,D$60),\"\")","v":""},{"$f":"IF($C76>0,VLOOKUP($A76,Configurador!$A$104:$Z$108,E$60),\"\")","v":""},{"$f":"IF($C76>0,VLOOKUP($A76,Configurador!$A$104:$Z$108,F$60),\"\")","v":""},{"$f":"IF($C76>0,VLOOKUP($A76,Configurador!$A$104:$Z$108,G$60),\"\")","v":""},{"$f":"IF($C76>0,VLOOKUP($A76,Configurador!$A$104:$Z$108,H$60),\"\")","v":""},{"$f":"IF(D76<>\"\",CONCATENATE(D76,\"'' / \",E76,\" / \",F76,\"MB / \",G76,\"GB / \",H76),\"\")","v":""},{"$f":"IF($C76>0,VLOOKUP($A76,Configurador!$A$104:$Z$108,J$60),\"\")","v":""},{"$f":"IF($C76>0,VLOOKUP($A76,Configurador!$A$104:$Z$108,K$60),\"\")","v":""},{"$f":"IF($C76>0,VLOOKUP($A76,Configurador!$A$104:$Z$108,L$60),\"\")","v":""},{"$f":"IF($C76>0,VLOOKUP($A76,Configurador!$A$104:$Z$108,M$60),\"\")","v":""},{"$f":"IF($C76>0,VLOOKUP($A76,Configurador!$A$104:$Z$108,N$60),\"\")","v":""},{"$f":"IF($C76>0,VLOOKUP($A76,Configurador!$A$104:$Z$108,O$60),\"\")","v":""},{"$f":"IF($C76>0,VLOOKUP($A76,Configurador!$A$104:$Z$108,P$60),\"\")","v":""},{"$f":"IF($C76>0,VLOOKUP($A76,Configurador!$A$104:$Z$108,Q$60),\"\")","v":""},{"$f":"IF($C76>0,VLOOKUP($A76,Configurador!$A$104:$Z$108,R$60),\"\")","v":""},{"$f":"IF($C76>0,VLOOKUP($A76,Configurador!$A$104:$Z$108,S$60),\"\")","v":""},{"$f":"IF($C76>0,VLOOKUP($A76,Configurador!$A$104:$Z$108,T$60),\"\")","v":""},{"$f":"IF($C76>0,VLOOKUP($A76,Configurador!$A$104:$Z$108,U$60),\"\")","v":""},{"$f":"IF($C76>0,VLOOKUP($A76,Configurador!$A$104:$Z$108,V$60),\"\")","v":""},{"$f":"IF($C76>0,VLOOKUP($A76,Configurador!$A$104:$Z$108,W$60),\"\")","v":""},{"$f":"IF($C76>0,VLOOKUP($A76,Configurador!$A$104:$Z$108,X$60),\"\")","v":""},{"$f":"IF($C76>0,VLOOKUP($A76,Configurador!$A$104:$Z$108,Y$60),\"\")","v":""}]
[4,{"$f":"IF(Configurador!$B$107=B3,1,0)","v":0},{"$f":"IF(AND(B77=1,MAX($C$74:C76)<=($B$81-1)),MAX($C$74:C76)+1,0)","v":0},{"$f":"IF($C77>0,VLOOKUP($A77,Configurador!$A$104:$Z$108,D$60),\"\")","v":""},{"$f":"IF($C77>0,VLOOKUP($A77,Configurador!$A$104:$Z$108,E$60),\"\")","v":""},{"$f":"IF($C77>0,VLOOKUP($A77,Configurador!$A$104:$Z$108,F$60),\"\")","v":""},{"$f":"IF($C77>0,VLOOKUP($A77,Configurador!$A$104:$Z$108,G$60),\"\")","v":""},{"$f":"IF($C77>0,VLOOKUP($A77,Configurador!$A$104:$Z$108,H$60),\"\")","v":""},{"$f":"IF(D77<>\"\",CONCATENATE(D77,\"'' / \",E77,\" / \",F77,\"MB / \",G77,\"GB / \",H77),\"\")","v":""},{"$f":"IF($C77>0,VLOOKUP($A77,Configurador!$A$104:$Z$108,J$60),\"\")","v":""},{"$f":"IF($C77>0,VLOOKUP($A77,Configurador!$A$104:$Z$108,K$60),\"\")","v":""},{"$f":"IF($C77>0,VLOOKUP($A77,Configurador!$A$104:$Z$108,L$60),\"\")","v":""},{"$f":"IF($C77>0,VLOOKUP($A77,Configurador!$A$104:$Z$108,M$60),\"\")","v":""},{"$f":"IF($C77>0,VLOOKUP($A77,Configurador!$A$104:$Z$108,N$60),\"\")","v":""},{"$f":"IF($C77>0,VLOOKUP($A77,Configurador!$A$104:$Z$108,O$60),\"\")","v":""},{"$f":"IF($C77>0,VLOOKUP($A77,Configurador!$A$104:$Z$108,P$60),\"\")","v":""},{"$f":"IF($C77>0,VLOOKUP($A77,Configurador!$A$104:$Z$108,Q$60),\"\")","v":""},{"$f":"IF($C77>0,VLOOKUP($A77,Configurador!$A$104:$Z$108,R$60),\"\")","v":""},{"$f":"IF($C77>0,VLOOKUP($A77,Configurador!$A$104:$Z$108,S$60),\"\")","v":""},{"$f":"IF($C77>0,VLOOKUP($A77,Configurador!$A$104:$Z$108,T$60),\"\")","v":""},{"$f":"IF($C77>0,VLOOKUP($A77,Configurador!$A$104:$Z$108,U$60),\"\")","v":""},{"$f":"IF($C77>0,VLOOKUP($A77,Configurador!$A$104:$Z$108,V$60),\"\")","v":""},{"$f":"IF($C77>0,VLOOKUP($A77,Configurador!$A$104:$Z$108,W$60),\"\")","v":""},{"$f":"IF($C77>0,VLOOKUP($A77,Configurador!$A$104:$Z$108,X$60),\"\")","v":""},{"$f":"IF($C77>0,VLOOKUP($A77,Configurador!$A$104:$Z$108,Y$60),\"\")","v":""}]
[5,{"$f":"IF(Configurador!$B$108=B3,1,0)","v":0},{"$f":"IF(AND(B78=1,MAX($C$74:C77)<=($B$81-1)),MAX($C$74:C77)+1,0)","v":0},{"$f":"IF($C78>0,VLOOKUP($A78,Configurador!$A$104:$Z$108,D$60),\"\")","v":""},{"$f":"IF($C78>0,VLOOKUP($A78,Configurador!$A$104:$Z$108,E$60),\"\")","v":""},{"$f":"IF($C78>0,VLOOKUP($A78,Configurador!$A$104:$Z$108,F$60),\"\")","v":""},{"$f":"IF($C78>0,VLOOKUP($A78,Configurador!$A$104:$Z$108,G$60),\"\")","v":""},{"$f":"IF($C78>0,VLOOKUP($A78,Configurador!$A$104:$Z$108,H$60),\"\")","v":""},{"$f":"IF(D78<>\"\",CONCATENATE(D78,\"'' / \",E78,\" / \",F78,\"MB / \",G78,\"GB / \",H78),\"\")","v":""},{"$f":"IF($C78>0,VLOOKUP($A78,Configurador!$A$104:$Z$108,J$60),\"\")","v":""},{"$f":"IF($C78>0,VLOOKUP($A78,Configurador!$A$104:$Z$108,K$60),\"\")","v":""},{"$f":"IF($C78>0,VLOOKUP($A78,Configurador!$A$104:$Z$108,L$60),\"\")","v":""},{"$f":"IF($C78>0,VLOOKUP($A78,Configurador!$A$104:$Z$108,M$60),\"\")","v":""},{"$f":"IF($C78>0,VLOOKUP($A78,Configurador!$A$104:$Z$108,N$60),\"\")","v":""},{"$f":"IF($C78>0,VLOOKUP($A78,Configurador!$A$104:$Z$108,O$60),\"\")","v":""},{"$f":"IF($C78>0,VLOOKUP($A78,Configurador!$A$104:$Z$108,P$60),\"\")","v":""},{"$f":"IF($C78>0,VLOOKUP($A78,Configurador!$A$104:$Z$108,Q$60),\"\")","v":""},{"$f":"IF($C78>0,VLOOKUP($A78,Configurador!$A$104:$Z$108,R$60),\"\")","v":""},{"$f":"IF($C78>0,VLOOKUP($A78,Configurador!$A$104:$Z$108,S$60),\"\")","v":""},{"$f":"IF($C78>0,VLOOKUP($A78,Configurador!$A$104:$Z$108,T$60),\"\")","v":""},{"$f":"IF($C78>0,VLOOKUP($A78,Configurador!$A$104:$Z$108,U$60),\"\")","v":""},{"$f":"IF($C78>0,VLOOKUP($A78,Configurador!$A$104:$Z$108,V$60),\"\")","v":""},{"$f":"IF($C78>0,VLOOKUP($A78,Configurador!$A$104:$Z$108,W$60),\"\")","v":""},{"$f":"IF($C78>0,VLOOKUP($A78,Configurador!$A$104:$Z$108,X$60),\"\")","v":""},{"$f":"IF($C78>0,VLOOKUP($A78,Configurador!$A$104:$Z$108,Y$60),\"\")","v":""}]
[]
[null,"cuántos"]
[null,{"$f":"COUNTIF(B74:B78,\">0\")","v":0}]
[null,"soporte para buscar v en la propuesta",1,{"$f":"C82+1","v":2},{"$f":"D82+1","v":3},4,5,6,7,8,9,10,11,12,13,14,15,16,17,18,19,20,21,22,23]
[]
["Surface Go",null,"soporte para buscarv",4,{"$f":"D84+1","v":5},{"$f":"E84+1","v":6},{"$f":"F84+1","v":7},9,null,{"$f":"H84+1","v":10},{"$f":"J84+1","v":11},{"$f":"K84+1","v":12},{"$f":"L84+1","v":13},{"$f":"M84+1","v":14},16,{"$f":"O84+1","v":17},18,19,20,21,22,23,24,25,26]
[null,"Posiciones en configurador","Posiciones que debe ocupar en la propuesta"]
[1,{"$f":"IF(Configurador!$B$104=B4,1,0)","v":0},{"$f":"IF(B86=1,1,0)","v":0},{"$f":"IF($C86>0,VLOOKUP($A86,Configurador!$A$104:$Z$108,D$60),\"\")","v":""},{"$f":"IF(C86>0,VLOOKUP($A86,Configurador!$A$104:$Z$108,E84),\"\")","v":""},{"$f":"IF(C86>0,VLOOKUP($A86,Configurador!$A$104:$Z$108,F84),\"\")","v":""},{"$f":"IF(C86>0,VLOOKUP($A86,Configurador!$A$104:$Z$108,G84),\"\")","v":""},{"$f":"IF(C86>0,VLOOKUP($A86,Configurador!$A$104:$Z$108,H84),\"\")","v":""},{"$f":"IF(D86<>\"\",CONCATENATE(D86,\"'' / \",E86,\" / \",F86,\"MB / \",G86,\"GB / \",H86),\"\")","v":""},{"$f":"IF(C86>0,VLOOKUP($A86,Configurador!$A$104:$Z$108,J84),\"\")","v":""},{"$f":"IF(C86>0,VLOOKUP($A86,Configurador!$A$104:$Z$108,K84),\"\")","v":""},{"$f":"IF(C86>0,VLOOKUP($A86,Configurador!$A$104:$Z$108,L84),\"\")","v":""},{"$f":"IF(C86>0,VLOOKUP($A86,Configurador!$A$104:$Z$108,M84),\"\")","v":""},{"$f":"IF(C86>0,VLOOKUP($A86,Configurador!$A$104:$Z$108,N84),\"\")","v":""},{"$f":"IF(C86>0,VLOOKUP($A86,Configurador!$A$104:$Z$108,O84),\"\")","v":""},{"$f":"IF(C86>0,VLOOKUP($A86,Configurador!$A$104:$Z$108,P84),\"\")","v":""},{"$f":"IF(C86>0,VLOOKUP($A86,Configurador!$A$104:$Z$108,Q84),\"\")","v":""},{"$f":"IF(C86>0,VLOOKUP($A86,Configurador!$A$104:$Z$108,R84),\"\")","v":""},{"$f":"IF(C86>0,VLOOKUP($A86,Configurador!$A$104:$Z$108,S84),\"\")","v":""},{"$f":"IF(C86>0,VLOOKUP($A86,Configurador!$A$104:$Z$108,T84),\"\")","v":""},{"$f":"IF(C86>0,VLOOKUP($A86,Configurador!$A$104:$Z$108,U84),\"\")","v":""},{"$f":"IF(C86>0,VLOOKUP($A86,Configurador!$A$104:$Z$108,V84),\"\")","v":""},{"$f":"IF(C86>0,VLOOKUP($A86,Configurador!$A$104:$Z$108,W84),\"\")","v":""},{"$f":"IF(C86>0,VLOOKUP($A86,Configurador!$A$104:$Z$108,X84),\"\")","v":""},{"$f":"IF(C86>0,VLOOKUP($A86,Configurador!$A$104:$Z$108,Y84),\"\")","v":""}]
[2,{"$f":"IF(Configurador!$B$105=B4,1,0)","v":0},{"$f":"IF(AND(B87=1,C86<=($B$93-1)),C86+1,0)","v":0},{"$f":"IF($C87>0,VLOOKUP($A87,Configurador!$A$104:$Z$108,D$60),\"\")","v":""},{"$f":"IF($C87>0,VLOOKUP($A87,Configurador!$A$104:$Z$108,E$60),\"\")","v":""},{"$f":"IF($C87>0,VLOOKUP($A87,Configurador!$A$104:$Z$108,F$60),\"\")","v":""},{"$f":"IF($C87>0,VLOOKUP($A87,Configurador!$A$104:$Z$108,G$60),\"\")","v":""},{"$f":"IF($C87>0,VLOOKUP($A87,Configurador!$A$104:$Z$108,H$60),\"\")","v":""},{"$f":"IF(D87<>\"\",CONCATENATE(D87,\"'' / \",E87,\" / \",F87,\"MB / \",G87,\"GB / \",H87),\"\")","v":""},{"$f":"IF($C87>0,VLOOKUP($A87,Configurador!$A$104:$Z$108,J$60),\"\")","v":""},{"$f":"IF($C87>0,VLOOKUP($A87,Configurador!$A$104:$Z$108,K$60),\"\")","v":""},{"$f":"IF($C87>0,VLOOKUP($A87,Configurador!$A$104:$Z$108,L$60),\"\")","v":""},{"$f":"IF($C87>0,VLOOKUP($A87,Configurador!$A$104:$Z$108,M$60),\"\")","v":""},{"$f":"IF($C87>0,VLOOKUP($A87,Configurador!$A$104:$Z$108,N$60),\"\")","v":""},{"$f":"IF($C87>0,VLOOKUP($A87,Configurador!$A$104:$Z$108,O$60),\"\")","v":""},{"$f":"IF($C87>0,VLOOKUP($A87,Configurador!$A$104:$Z$108,P$60),\"\")","v":""},{"$f":"IF($C87>0,VLOOKUP($A87,Configurador!$A$104:$Z$108,Q$60),\"\")","v":""},{"$f":"IF($C87>0,VLOOKUP($A87,Configurador!$A$104:$Z$108,R$60),\"\")","v":""},{"$f":"IF($C87>0,VLOOKUP($A87,Configurador!$A$104:$Z$108,S$60),\"\")","v":""},{"$f":"IF($C87>0,VLOOKUP($A87,Configurador!$A$104:$Z$108,T$60),\"\")","v":""},{"$f":"IF($C87>0,VLOOKUP($A87,Configurador!$A$104:$Z$108,U$60),\"\")","v":""},{"$f":"IF($C87>0,VLOOKUP($A87,Configurador!$A$104:$Z$108,V$60),\"\")","v":""},{"$f":"IF($C87>0,VLOOKUP($A87,Configurador!$A$104:$Z$108,W$60),\"\")","v":""},{"$f":"IF($C87>0,VLOOKUP($A87,Configurador!$A$104:$Z$108,X$60),\"\")","v":""},{"$f":"IF($C87>0,VLOOKUP($A87,Configurador!$A$104:$Z$108,Y$60),\"\")","v":""}]
[3,{"$f":"IF(Configurador!$B$106=B4,1,0)","v":0},{"$f":"IF(AND(B88=1,MAX($C$86:C87)<=($B$93-1)),MAX($C$86:C87)+1,0)","v":0},{"$f":"IF($C88>0,VLOOKUP($A88,Configurador!$A$104:$Z$108,D$60),\"\")","v":""},{"$f":"IF($C88>0,VLOOKUP($A88,Configurador!$A$104:$Z$108,E$60),\"\")","v":""},{"$f":"IF($C88>0,VLOOKUP($A88,Configurador!$A$104:$Z$108,F$60),\"\")","v":""},{"$f":"IF($C88>0,VLOOKUP($A88,Configurador!$A$104:$Z$108,G$60),\"\")","v":""},{"$f":"IF($C88>0,VLOOKUP($A88,Configurador!$A$104:$Z$108,H$60),\"\")","v":""},{"$f":"IF(D88<>\"\",CONCATENATE(D88,\"'' / \",E88,\" / \",F88,\"MB / \",G88,\"GB / \",H88),\"\")","v":""},{"$f":"IF($C88>0,VLOOKUP($A88,Configurador!$A$104:$Z$108,J$60),\"\")","v":""},{"$f":"IF($C88>0,VLOOKUP($A88,Configurador!$A$104:$Z$108,K$60),\"\")","v":""},{"$f":"IF($C88>0,VLOOKUP($A88,Configurador!$A$104:$Z$108,L$60),\"\")","v":""},{"$f":"IF($C88>0,VLOOKUP($A88,Configurador!$A$104:$Z$108,M$60),\"\")","v":""},{"$f":"IF($C88>0,VLOOKUP($A88,Configurador!$A$104:$Z$108,N$60),\"\")","v":""},{"$f":"IF($C88>0,VLOOKUP($A88,Configurador!$A$104:$Z$108,O$60),\"\")","v":""},{"$f":"IF($C88>0,VLOOKUP($A88,Configurador!$A$104:$Z$108,P$60),\"\")","v":""},{"$f":"IF($C88>0,VLOOKUP($A88,Configurador!$A$104:$Z$108,Q$60),\"\")","v":""},{"$f":"IF($C88>0,VLOOKUP($A88,Configurador!$A$104:$Z$108,R$60),\"\")","v":""},{"$f":"IF($C88>0,VLOOKUP($A88,Configurador!$A$104:$Z$108,S$60),\"\")","v":""},{"$f":"IF($C88>0,VLOOKUP($A88,Configurador!$A$104:$Z$108,T$60),\"\")","v":""},{"$f":"IF($C88>0,VLOOKUP($A88,Configurador!$A$104:$Z$108,U$60),\"\")","v":""},{"$f":"IF($C88>0,VLOOKUP($A88,Configurador!$A$104:$Z$108,V$60),\"\")","v":""},{"$f":"IF($C88>0,VLOOKUP($A88,Configurador!$A$104:$Z$108,W$60),\"\")","v":""},{"$f":"IF($C88>0,VLOOKUP($A88,Configurador!$A$104:$Z$108,X$60),\"\")","v":""},{"$f":"IF($C88>0,VLOOKUP($A88,Configurador!$A$104:$Z$108,Y$60),\"\")","v":""}]
[4,{"$f":"IF(Configurador!$B$107=B4,1,0)","v":0},{"$f":"IF(AND(B89=1,MAX($C$86:C88)<=($B$93-1)),MAX($C$86:C88)+1,0)","v":0},{"$f":"IF($C89>0,VLOOKUP($A89,Configurador!$A$104:$Z$108,D$60),\"\")","v":""},{"$f":"IF($C89>0,VLOOKUP($A89,Configurador!$A$104:$Z$108,E$60),\"\")","v":""},{"$f":"IF($C89>0,VLOOKUP($A89,Configurador!$A$104:$Z$108,F$60),\"\")","v":""},{"$f":"IF($C89>0,VLOOKUP($A89,Configurador!$A$104:$Z$108,G$60),\"\")","v":""},{"$f":"IF($C89>0,VLOOKUP($A89,Configurador!$A$104:$Z$108,H$60),\"\")","v":""},{"$f":"IF(D89<>\"\",CONCATENATE(D89,\"'' / \",E89,\" / \",F89,\"MB / \",G89,\"GB / \",H89),\"\")","v":""},{"$f":"IF($C89>0,VLOOKUP($A89,Configurador!$A$104:$Z$108,J$60),\"\")","v":""},{"$f":"IF($C89>0,VLOOKUP($A89,Configurador!$A$104:$Z$108,K$60),\"\")","v":""},{"$f":"IF($C89>0,VLOOKUP($A89,Configurador!$A$104:$Z$108,L$60),\"\")","v":""},{"$f":"IF($C89>0,VLOOKUP($A89,Configurador!$A$104:$Z$108,M$60),\"\")","v":""},{"$f":"IF($C89>0,VLOOKUP($A89,Configurador!$A$104:$Z$108,N$60),\"\")","v":""},{"$f":"IF($C89>0,VLOOKUP($A89,Configurador!$A$104:$Z$108,O$60),\"\")","v":""},{"$f":"IF($C89>0,VLOOKUP($A89,Configurador!$A$104:$Z$108,P$60),\"\")","v":""},{"$f":"IF($C89>0,VLOOKUP($A89,Configurador!$A$104:$Z$108,Q$60),\"\")","v":""},{"$f":"IF($C89>0,VLOOKUP($A89,Configurador!$A$104:$Z$108,R$60),\"\")","v":""},{"$f":"IF($C89>0,VLOOKUP($A89,Configurador!$A$104:$Z$108,S$60),\"\")","v":""},{"$f":"IF($C89>0,VLOOKUP($A89,Configurador!$A$104:$Z$108,T$60),\"\")","v":""},{"$f":"IF($C89>0,VLOOKUP($A89,Configurador!$A$104:$Z$108,U$60),\"\")","v":""},{"$f":"IF($C89>0,VLOOKUP($A89,Configurador!$A$104:$Z$108,V$60),\"\")","v":""},{"$f":"IF($C89>0,VLOOKUP($A89,Configurador!$A$104:$Z$108,W$60),\"\")","v":""},{"$f":"IF($C89>0,VLOOKUP($A89,Configurador!$A$104:$Z$108,X$60),\"\")","v":""},{"$f":"IF($C89>0,VLOOKUP($A89,Configurador!$A$104:$Z$108,Y$60),\"\")","v":""}]
[5,{"$f":"IF(Configurador!$B$108=B4,1,0)","v":0},{"$f":"IF(AND(B90=1,MAX($C$86:C89)<=($B$93-1)),MAX($C$86:C89)+1,0)","v":0},{"$f":"IF($C90>0,VLOOKUP($A90,Configurador!$A$104:$Z$108,D$60),\"\")","v":""},{"$f":"IF($C90>0,VLOOKUP($A90,Configurador!$A$104:$Z$108,E$60),\"\")","v":""},{"$f":"IF($C90>0,VLOOKUP($A90,Configurador!$A$104:$Z$108,F$60),\"\")","v":""},{"$f":"IF($C90>0,VLOOKUP($A90,Configurador!$A$104:$Z$108,G$60),\"\")","v":""},{"$f":"IF($C90>0,VLOOKUP($A90,Configurador!$A$104:$Z$108,H$60),\"\")","v":""},{"$f":"IF(D90<>\"\",CONCATENATE(D90,\"'' / \",E90,\" / \",F90,\"MB / \",G90,\"GB / \",H90),\"\")","v":""},{"$f":"IF($C90>0,VLOOKUP($A90,Configurador!$A$104:$Z$108,J$60),\"\")","v":""},{"$f":"IF($C90>0,VLOOKUP($A90,Configurador!$A$104:$Z$108,K$60),\"\")","v":""},{"$f":"IF($C90>0,VLOOKUP($A90,Configurador!$A$104:$Z$108,L$60),\"\")","v":""},{"$f":"IF($C90>0,VLOOKUP($A90,Configurador!$A$104:$Z$108,M$60),\"\")","v":""},{"$f":"IF($C90>0,VLOOKUP($A90,Configurador!$A$104:$Z$108,N$60),\"\")","v":""},{"$f":"IF($C90>0,VLOOKUP($A90,Configurador!$A$104:$Z$108,O$60),\"\")","v":""},{"$f":"IF($C90>0,VLOOKUP($A90,Configurador!$A$104:$Z$108,P$60),\"\")","v":""},{"$f":"IF($C90>0,VLOOKUP($A90,Configurador!$A$104:$Z$108,Q$60),\"\")","v":""},{"$f":"IF($C90>0,VLOOKUP($A90,Configurador!$A$104:$Z$108,R$60),\"\")","v":""},{"$f":"IF($C90>0,VLOOKUP($A90,Configurador!$A$104:$Z$108,S$60),\"\")","v":""},{"$f":"IF($C90>0,VLOOKUP($A90,Configurador!$A$104:$Z$108,T$60),\"\")","v":""},{"$f":"IF($C90>0,VLOOKUP($A90,Configurador!$A$104:$Z$108,U$60),\"\")","v":""},{"$f":"IF($C90>0,VLOOKUP($A90,Configurador!$A$104:$Z$108,V$60),\"\")","v":""},{"$f":"IF($C90>0,VLOOKUP($A90,Configurador!$A$104:$Z$108,W$60),\"\")","v":""},{"$f":"IF($C90>0,VLOOKUP($A90,Configurador!$A$104:$Z$108,X$60),\"\")","v":""},{"$f":"IF($C90>0,VLOOKUP($A90,Configurador!$A$104:$Z$108,Y$60),\"\")","v":""}]
[]
[null,"cuántos"]
[null,{"$f":"COUNTIF(B86:B90,\">0\")","v":0}]
[null,"soporte para buscar v en la propuesta",1,{"$f":"C94+1","v":2},{"$f":"D94+1","v":3},4,5,6,7,8,9,10,11,12,13,14,15,16,17,18,19,20,21,22,23]
[]
[{"$f":"B5","v":"Surface Laptop Win10Pro"},null,"soporte para buscarv",4,{"$f":"D96+1","v":5},{"$f":"E96+1","v":6},{"$f":"F96+1","v":7},9,null,{"$f":"H96+1","v":10},{"$f":"J96+1","v":11},{"$f":"K96+1","v":12},{"$f":"L96+1","v":13},{"$f":"M96+1","v":14},16,{"$f":"O96+1","v":17},18,19,20,21,22,23,24,25,26]
[null,"Posiciones en configurador","Posiciones que debe ocupar en la propuesta"]
[1,{"$f":"IF(Configurador!$B$104=B5,1,0)","v":0},{"$f":"IF(B98=1,1,0)","v":0},{"$f":"IF($C98>0,VLOOKUP($A98,Configurador!$A$104:$Z$108,D$60),\"\")","v":""},{"$f":"IF(C98>0,VLOOKUP($A98,Configurador!$A$104:$Z$108,E96),\"\")","v":""},{"$f":"IF(C98>0,VLOOKUP($A98,Configurador!$A$104:$Z$108,F96),\"\")","v":""},{"$f":"IF(C98>0,VLOOKUP($A98,Configurador!$A$104:$Z$108,G96),\"\")","v":""},{"$f":"IF(C98>0,VLOOKUP($A98,Configurador!$A$104:$Z$108,H96),\"\")","v":""},{"$f":"IF(D98<>\"\",CONCATENATE(D98,\"'' / \",E98,\" / \",F98,\"MB / \",G98,\"GB / \",H98),\"\")","v":""},{"$f":"IF(C98>0,VLOOKUP($A98,Configurador!$A$104:$Z$108,J96),\"\")","v":""},{"$f":"IF(C98>0,VLOOKUP($A98,Configurador!$A$104:$Z$108,K96),\"\")","v":""},{"$f":"IF(C98>0,VLOOKUP($A98,Configurador!$A$104:$Z$108,L96),\"\")","v":""},{"$f":"IF(C98>0,VLOOKUP($A98,Configurador!$A$104:$Z$108,M96),\"\")","v":""},{"$f":"IF(C98>0,VLOOKUP($A98,Configurador!$A$104:$Z$108,N96),\"\")","v":""},{"$f":"IF(C98>0,VLOOKUP($A98,Configurador!$A$104:$Z$108,O96),\"\")","v":""},{"$f":"IF(C98>0,VLOOKUP($A98,Configurador!$A$104:$Z$108,P96),\"\")","v":""},{"$f":"IF(C98>0,VLOOKUP($A98,Configurador!$A$104:$Z$108,Q96),\"\")","v":""},{"$f":"IF(C98>0,VLOOKUP($A98,Configurador!$A$104:$Z$108,R96),\"\")","v":""},{"$f":"IF(C98>0,VLOOKUP($A98,Configurador!$A$104:$Z$108,S96),\"\")","v":""},{"$f":"IF(C98>0,VLOOKUP($A98,Configurador!$A$104:$Z$108,T96),\"\")","v":""},{"$f":"IF(C98>0,VLOOKUP($A98,Configurador!$A$104:$Z$108,U96),\"\")","v":""},{"$f":"IF(C98>0,VLOOKUP($A98,Configurador!$A$104:$Z$108,V96),\"\")","v":""},{"$f":"IF(C98>0,VLOOKUP($A98,Configurador!$A$104:$Z$108,W96),\"\")","v":""},{"$f":"IF(C98>0,VLOOKUP($A98,Configurador!$A$104:$Z$108,X96),\"\")","v":""},{"$f":"IF(C98>0,VLOOKUP($A98,Configurador!$A$104:$Z$108,Y96),\"\")","v":""}]
[2,{"$f":"IF(Configurador!$B$105=B5,1,0)","v":0},{"$f":"IF(AND(B99=1,C98<=($B$105-1)),C98+1,0)","v":0},{"$f":"IF($C99>0,VLOOKUP($A99,Configurador!$A$104:$Z$108,D$60),\"\")","v":""},{"$f":"IF($C99>0,VLOOKUP($A99,Configurador!$A$104:$Z$108,E$60),\"\")","v":""},{"$f":"IF($C99>0,VLOOKUP($A99,Configurador!$A$104:$Z$108,F$60),\"\")","v":""},{"$f":"IF($C99>0,VLOOKUP($A99,Configurador!$A$104:$Z$108,G$60),\"\")","v":""},{"$f":"IF($C99>0,VLOOKUP($A99,Configurador!$A$104:$Z$108,H$60),\"\")","v":""},{"$f":"IF(D99<>\"\",CONCATENATE(D99,\"'' / \",E99,\" / \",F99,\"MB / \",G99,\"GB / \",H99),\"\")","v":""},{"$f":"IF($C99>0,VLOOKUP($A99,Configurador!$A$104:$Z$108,J$60),\"\")","v":""},{"$f":"IF($C99>0,VLOOKUP($A99,Configurador!$A$104:$Z$108,K$60),\"\")","v":""},{"$f":"IF($C99>0,VLOOKUP($A99,Configurador!$A$104:$Z$108,L$60),\"\")","v":""},{"$f":"IF($C99>0,VLOOKUP($A99,Configurador!$A$104:$Z$108,M$60),\"\")","v":""},{"$f":"IF($C99>0,VLOOKUP($A99,Configurador!$A$104:$Z$108,N$60),\"\")","v":""},{"$f":"IF($C99>0,VLOOKUP($A99,Configurador!$A$104:$Z$108,O$60),\"\")","v":""},{"$f":"IF($C99>0,VLOOKUP($A99,Configurador!$A$104:$Z$108,P$60),\"\")","v":""},{"$f":"IF($C99>0,VLOOKUP($A99,Configurador!$A$104:$Z$108,Q$60),\"\")","v":""},{"$f":"IF($C99>0,VLOOKUP($A99,Configurador!$A$104:$Z$108,R$60),\"\")","v":""},{"$f":"IF($C99>0,VLOOKUP($A99,Configurador!$A$104:$Z$108,S$60),\"\")","v":""},{"$f":"IF($C99>0,VLOOKUP($A99,Configurador!$A$104:$Z$108,T$60),\"\")","v":""},{"$f":"IF($C99>0,VLOOKUP($A99,Configurador!$A$104:$Z$108,U$60),\"\")","v":""},{"$f":"IF($C99>0,VLOOKUP($A99,Configurador!$A$104:$Z$108,V$60),\"\")","v":""},{"$f":"IF($C99>0,VLOOKUP($A99,Configurador!$A$104:$Z$108,W$60),\"\")","v":""},{"$f":"IF($C99>0,VLOOKUP($A99,Configurador!$A$104:$Z$108,X$60),\"\")","v":""},{"$f":"IF($C99>0,VLOOKUP($A99,Configurador!$A$104:$Z$108,Y$60),\"\")","v":""}]
[3,{"$f":"IF(Configurador!$B$106=B5,1,0)","v":0},{"$f":"IF(AND(B100=1,MAX($C$98:C99)<=($B$105-1)),MAX($C$98:C99)+1,0)","v":0},{"$f":"IF($C100>0,VLOOKUP($A100,Configurador!$A$104:$Z$108,D$60),\"\")","v":""},{"$f":"IF($C100>0,VLOOKUP($A100,Configurador!$A$104:$Z$108,E$60),\"\")","v":""},{"$f":"IF($C100>0,VLOOKUP($A100,Configurador!$A$104:$Z$108,F$60),\"\")","v":""},{"$f":"IF($C100>0,VLOOKUP($A100,Configurador!$A$104:$Z$108,G$60),\"\")","v":""},{"$f":"IF($C100>0,VLOOKUP($A100,Configurador!$A$104:$Z$108,H$60),\"\")","v":""},{"$f":"IF(D100<>\"\",CONCATENATE(D100,\"'' / \",E100,\" / \",F100,\"MB / \",G100,\"GB / \",H100),\"\")","v":""},{"$f":"IF($C100>0,VLOOKUP($A100,Configurador!$A$104:$Z$108,J$60),\"\")","v":""},{"$f":"IF($C100>0,VLOOKUP($A100,Configurador!$A$104:$Z$108,K$60),\"\")","v":""},{"$f":"IF($C100>0,VLOOKUP($A100,Configurador!$A$104:$Z$108,L$60),\"\")","v":""},{"$f":"IF($C100>0,VLOOKUP($A100,Configurador!$A$104:$Z$108,M$60),\"\")","v":""},{"$f":"IF($C100>0,VLOOKUP($A100,Configurador!$A$104:$Z$108,N$60),\"\")","v":""},{"$f":"IF($C100>0,VLOOKUP($A100,Configurador!$A$104:$Z$108,O$60),\"\")","v":""},{"$f":"IF($C100>0,VLOOKUP($A100,Configurador!$A$104:$Z$108,P$60),\"\")","v":""},{"$f":"IF($C100>0,VLOOKUP($A100,Configurador!$A$104:$Z$108,Q$60),\"\")","v":""},{"$f":"IF($C100>0,VLOOKUP($A100,Configurador!$A$104:$Z$108,R$60),\"\")","v":""},{"$f":"IF($C100>0,VLOOKUP($A100,Configurador!$A$104:$Z$108,S$60),\"\")","v":""},{"$f":"IF($C100>0,VLOOKUP($A100,Configurador!$A$104:$Z$108,T$60),\"\")","v":""},{"$f":"IF($C100>0,VLOOKUP($A100,Configurador!$A$104:$Z$108,U$60),\"\")","v":""},{"$f":"IF($C100>0,VLOOKUP($A100,Configurador!$A$104:$Z$108,V$60),\"\")","v":""},{"$f":"IF($C100>0,VLOOKUP($A100,Configurador!$A$104:$Z$108,W$60),\"\")","v":""},{"$f":"IF($C100>0,VLOOKUP($A100,Configurador!$A$104:$Z$108,X$60),\"\")","v":""},{"$f":"IF($C100>0,VLOOKUP($A100,Configurador!$A$104:$Z$108,Y$60),\"\")","v":""}]
[4,{"$f":"IF(Configurador!$B$107=B5,1,0)","v":0},{"$f":"IF(AND(B101=1,MAX($C$98:C100)<=($B$105-1)),MAX($C$98:C100)+1,0)","v":0},{"$f":"IF($C101>0,VLOOKUP($A101,Configurador!$A$104:$Z$108,D$60),\"\")","v":""},{"$f":"IF($C101>0,VLOOKUP($A101,Configurador!$A$104:$Z$108,E$60),\"\")","v":""},{"$f":"IF($C101>0,VLOOKUP($A101,Configurador!$A$104:$Z$108,F$60),\"\")","v":""},{"$f":"IF($C101>0,VLOOKUP($A101,Configurador!$A$104:$Z$108,G$60),\"\")","v":""},{"$f":"IF($C101>0,VLOOKUP($A101,Configurador!$A$104:$Z$108,H$60),\"\")","v":""},{"$f":"IF(D101<>\"\",CONCATENATE(D101,\"'' / \",E101,\" / \",F101,\"MB / \",G101,\"GB / \",H101),\"\")","v":""},{"$f":"IF($C101>0,VLOOKUP($A101,Configurador!$A$104:$Z$108,J$60),\"\")","v":""},{"$f":"IF($C101>0,VLOOKUP($A101,Configurador!$A$104:$Z$108,K$60),\"\")","v":""},{"$f":"IF($C101>0,VLOOKUP($A101,Configurador!$A$104:$Z$108,L$60),\"\")","v":""},{"$f":"IF($C101>0,VLOOKUP($A101,Configurador!$A$104:$Z$108,M$60),\"\")","v":""},{"$f":"IF($C101>0,VLOOKUP($A101,Configurador!$A$104:$Z$108,N$60),\"\")","v":""},{"$f":"IF($C101>0,VLOOKUP($A101,Configurador!$A$104:$Z$108,O$60),\"\")","v":""},{"$f":"IF($C101>0,VLOOKUP($A101,Configurador!$A$104:$Z$108,P$60),\"\")","v":""},{"$f":"IF($C101>0,VLOOKUP($A101,Configurador!$A$104:$Z$108,Q$60),\"\")","v":""},{"$f":"IF($C101>0,VLOOKUP($A101,Configurador!$A$104:$Z$108,R$60),\"\")","v":""},{"$f":"IF($C101>0,VLOOKUP($A101,Configurador!$A$104:$Z$108,S$60),\"\")","v":""},{"$f":"IF($C101>0,VLOOKUP($A101,Configurador!$A$104:$Z$108,T$60),\"\")","v":""},{"$f":"IF($C101>0,VLOOKUP($A101,Configurador!$A$104:$Z$108,U$60),\"\")","v":""},{"$f":"IF($C101>0,VLOOKUP($A101,Configurador!$A$104:$Z$108,V$60),\"\")","v":""},{"$f":"IF($C101>0,VLOOKUP($A101,Configurador!$A$104:$Z$108,W$60),\"\")","v":""},{"$f":"IF($C101>0,VLOOKUP($A101,Configurador!$A$104:$Z$108,X$60),\"\")","v":""},{"$f":"IF($C101>0,VLOOKUP($A101,Configurador!$A$104:$Z$108,Y$60),\"\")","v":""}]
[5,{"$f":"IF(Configurador!$B$108=B5,1,0)","v":0},{"$f":"IF(AND(B102=1,MAX($C$98:C101)<=($B$105-1)),MAX($C$98:C101)+1,0)","v":0},{"$f":"IF($C102>0,VLOOKUP($A102,Configurador!$A$104:$Z$108,D$60),\"\")","v":""},{"$f":"IF($C102>0,VLOOKUP($A102,Configurador!$A$104:$Z$108,E$60),\"\")","v":""},{"$f":"IF($C102>0,VLOOKUP($A102,Configurador!$A$104:$Z$108,F$60),\"\")","v":""},{"$f":"IF($C102>0,VLOOKUP($A102,Configurador!$A$104:$Z$108,G$60),\"\")","v":""},{"$f":"IF($C102>0,VLOOKUP($A102,Configurador!$A$104:$Z$108,H$60),\"\")","v":""},{"$f":"IF(D102<>\"\",CONCATENATE(D102,\"'' / \",E102,\" / \",F102,\"MB / \",G102,\"GB / \",H102),\"\")","v":""},{"$f":"IF($C102>0,VLOOKUP($A102,Configurador!$A$104:$Z$108,J$60),\"\")","v":""},{"$f":"IF($C102>0,VLOOKUP($A102,Configurador!$A$104:$Z$108,K$60),\"\")","v":""},{"$f":"IF($C102>0,VLOOKUP($A102,Configurador!$A$104:$Z$108,L$60),\"\")","v":""},{"$f":"IF($C102>0,VLOOKUP($A102,Configurador!$A$104:$Z$108,M$60),\"\")","v":""},{"$f":"IF($C102>0,VLOOKUP($A102,Configurador!$A$104:$Z$108,N$60),\"\")","v":""},{"$f":"IF($C102>0,VLOOKUP($A102,Configurador!$A$104:$Z$108,O$60),\"\")","v":""},{"$f":"IF($C102>0,VLOOKUP($A102,Configurador!$A$104:$Z$108,P$60),\"\")","v":""},{"$f":"IF($C102>0,VLOOKUP($A102,Configurador!$A$104:$Z$108,Q$60),\"\")","v":""},{"$f":"IF($C102>0,VLOOKUP($A102,Configurador!$A$104:$Z$108,R$60),\"\")","v":""},{"$f":"IF($C102>0,VLOOKUP($A102,Configurador!$A$104:$Z$108,S$60),\"\")","v":""},{"$f":"IF($C102>0,VLOOKUP($A102,Configurador!$A$104:$Z$108,T$60),\"\")","v":""},{"$f":"IF($C102>0,VLOOKUP($A102,Configurador!$A$104:$Z$108,U$60),\"\")","v":""},{"$f":"IF($C102>0,VLOOKUP($A102,Configurador!$A$104:$Z$108,V$60),\"\")","v":""},{"$f":"IF($C102>0,VLOOKUP($A102,Configurador!$A$104:$Z$108,W$60),\"\")","v":""},{"$f":"IF($C102>0,VLOOKUP($A102,Configurador!$A$104:$Z$108,X$60),\"\")","v":""},{"$f":"IF($C102>0,VLOOKUP($A102,Configurador!$A$104:$Z$108,Y$60),\"\")","v":""}]
[]
[null,"cuántos"]
[null,{"$f":"COUNTIF(B98:B102,\">0\")","v":0}]
[null,"soporte para buscar v en la propuesta",1,{"$f":"C106+1","v":2},{"$f":"D106+1","v":3},4,5,6,7,8,9,10,11,12,13,14,15,16,17,18,19,20,21,22,23]

{"sheet":"LN_Partner","index":27,"n_rows":27,"n_cols":11,"rows_kept":27,"cut":false,"hidden":false,"merged":[]}
[]
["Puesta en marcha"]
[null,null,null,2,4,14,16,17,18,20]
[1,{"$f":"IF(AND(Configurador!D130<>\"\",Configurador!P130>0),1,0)","v":0},{"$f":"IF(B4=1,1,0)","v":0},{"$f":"IF($C4>0,VLOOKUP($A4,Configurador!$A$130:$T$138,D$3,FALSE),\"\")","v":""},{"$f":"IF($C4>0,VLOOKUP($A4,Configurador!$A$130:$T$138,E$3,FALSE),\"\")","v":""},{"$f":"IF($C4>0,VLOOKUP($A4,Configurador!$A$130:$T$138,F$3,FALSE),\"\")","v":""},{"$f":"IF($C4>0,VLOOKUP($A4,Configurador!$A$130:$T$138,G$3,FALSE),\"\")","v":""},{"$f":"IF($C4>0,VLOOKUP($A4,Configurador!$A$130:$T$138,H$3,FALSE),\"\")","v":""},{"$f":"IF($C4>0,VLOOKUP($A4,Configurador!$A$130:$T$138,I$3,FALSE),\"\")","v":""},{"$f":"IF($C4>0,VLOOKUP($A4,Configurador!$A$130:$T$138,J$3,FALSE),\"\")","v":""}]
[2,{"$f":"IF(AND(Configurador!D131<>\"\",Configurador!P131>0),1,0)","v":0},{"$f":"IF(AND(B5=1,MAX($C$4:C4)<=($B$13-1)),MAX($C$4:C4)+1,0)","v":0},{"$f":"IF($C5>0,VLOOKUP($A5,Configurador!$A$130:$T$138,D$3,FALSE),\"\")","v":""},{"$f":"IF($C5>0,VLOOKUP($A5,Configurador!$A$130:$T$138,E$3,FALSE),\"\")","v":""},{"$f":"IF($C5>0,VLOOKUP($A5,Configurador!$A$130:$T$138,F$3,FALSE),\"\")","v":""},{"$f":"IF($C5>0,VLOOKUP($A5,Configurador!$A$130:$T$138,G$3,FALSE),\"\")","v":""},{"$f":"IF($C5>0,VLOOKUP($A5,Configurador!$A$130:$T$138,H$3,FALSE),\"\")","v":""},{"$f":"IF($C5>0,VLOOKUP($A5,Configurador!$A$130:$T$138,I$3,FALSE),\"\")","v":""},{"$f":"IF($C5>0,VLOOKUP($A5,Configurador!$A$130:$T$138,J$3,FALSE),\"\")","v":""}]
[3,{"$f":"IF(AND(Configurador!D132<>\"\",Configurador!P132>0),1,0)","v":0},{"$f":"IF(AND(B6=1,MAX($C$4:C5)<=($B$13-1)),MAX($C$4:C5)+1,0)","v":0},{"$f":"IF($C6>0,VLOOKUP($A6,Configurador!$A$130:$T$138,D$3,FALSE),\"\")","v":""},{"$f":"IF($C6>0,VLOOKUP($A6,Configurador!$A$130:$T$138,E$3,FALSE),\"\")","v":""},{"$f":"IF($C6>0,VLOOKUP($A6,Configurador!$A$130:$T$138,F$3,FALSE),\"\")","v":""},{"$f":"IF($C6>0,VLOOKUP($A6,Configurador!$A$130:$T$138,G$3,FALSE),\"\")","v":""},{"$f":"IF($C6>0,VLOOKUP($A6,Configurador!$A$130:$T$138,H$3,FALSE),\"\")","v":""},{"$f":"IF($C6>0,VLOOKUP($A6,Configurador!$A$130:$T$138,I$3,FALSE),\"\")","v":""},{"$f":"IF($C6>0,VLOOKUP($A6,Configurador!$A$130:$T$138,J$3,FALSE),\"\")","v":""}]
[4,{"$f":"IF(AND(Configurador!D133<>\"\",Configurador!P133>0),1,0)","v":0},{"$f":"IF(AND(B7=1,MAX($C$4:C6)<=($B$13-1)),MAX($C$4:C6)+1,0)","v":0},{"$f":"IF($C7>0,VLOOKUP($A7,Configurador!$A$130:$T$138,D$3,FALSE),\"\")","v":""},{"$f":"IF($C7>0,VLOOKUP($A7,Configurador!$A$130:$T$138,E$3,FALSE),\"\")","v":""},{"$f":"IF($C7>0,VLOOKUP($A7,Configurador!$A$130:$T$138,F$3,FALSE),\"\")","v":""},{"$f":"IF($C7>0,VLOOKUP($A7,Configurador!$A$130:$T$138,G$3,FALSE),\"\")","v":""},{"$f":"IF($C7>0,VLOOKUP($A7,Configurador!$A$130:$T$138,H$3,FALSE),\"\")","v":""},{"$f":"IF($C7>0,VLOOKUP($A7,Configurador!$A$130:$T$138,I$3,FALSE),\"\")","v":""},{"$f":"IF($C7>0,VLOOKUP($A7,Configurador!$A$130:$T$138,J$3,FALSE),\"\")","v":""}]
[5,{"$f":"IF(AND(Configurador!D134<>\"\",Configurador!P134>0),1,0)","v":0},{"$f":"IF(AND(B8=1,MAX($C$4:C7)<=($B$13-1)),MAX($C$4:C7)+1,0)","v":0},{"$f":"IF($C8>0,VLOOKUP($A8,Configurador!$A$130:$T$138,D$3,FALSE),\"\")","v":""},{"$f":"IF($C8>0,VLOOKUP($A8,Configurador!$A$130:$T$138,E$3,FALSE),\"\")","v":""},{"$f":"IF($C8>0,VLOOKUP($A8,Configurador!$A$130:$T$138,F$3,FALSE),\"\")","v":""},{"$f":"IF($C8>0,VLOOKUP($A8,Configurador!$A$130:$T$138,G$3,FALSE),\"\")","v":""},{"$f":"IF($C8>0,VLOOKUP($A8,Configurador!$A$130:$T$138,H$3,FALSE),\"\")","v":""},{"$f":"IF($C8>0,VLOOKUP($A8,Configurador!$A$130:$T$138,I$3,FALSE),\"\")","v":""},{"$f":"IF($C8>0,VLOOKUP($A8,Configurador!$A$130:$T$138,J$3,FALSE),\"\")","v":""}]
[6,{"$f":"IF(AND(Configurador!D135<>\"\",Configurador!P135>0),1,0)","v":0},{"$f":"IF(AND(B9=1,MAX($C$4:C8)<=($B$13-1)),MAX($C$4:C8)+1,0)","v":0},{"$f":"IF($C9>0,VLOOKUP($A9,Configurador!$A$130:$T$138,D$3,FALSE),\"\")","v":""},{"$f":"IF($C9>0,VLOOKUP($A9,Configurador!$A$130:$T$138,E$3,FALSE),\"\")","v":""},{"$f":"IF($C9>0,VLOOKUP($A9,Configurador!$A$130:$T$138,F$3,FALSE),\"\")","v":""},{"$f":"IF($C9>0,VLOOKUP($A9,Configurador!$A$130:$T$138,G$3,FALSE),\"\")","v":""},{"$f":"IF($C9>0,VLOOKUP($A9,Configurador!$A$130:$T$138,H$3,FALSE),\"\")","v":""},{"$f":"IF($C9>0,VLOOKUP($A9,Configurador!$A$130:$T$138,I$3,FALSE),\"\")","v":""},{"$f":"IF($C9>0,VLOOKUP($A9,Configurador!$A$130:$T$138,J$3,FALSE),\"\")","v":""}]
[7,{"$f":"IF(AND(Configurador!D136<>\"\",Configurador!P136>0),1,0)","v":0},{"$f":"IF(AND(B10=1,MAX($C$4:C9)<=($B$13-1)),MAX($C$4:C9)+1,0)","v":0},{"$f":"IF($C10>0,VLOOKUP($A10,Configurador!$A$130:$T$138,D$3,FALSE),\"\")","v":""},{"$f":"IF($C10>0,VLOOKUP($A10,Configurador!$A$130:$T$138,E$3,FALSE),\"\")","v":""},{"$f":"IF($C10>0,VLOOKUP($A10,Configurador!$A$130:$T$138,F$3,FALSE),\"\")","v":""},{"$f":"IF($C10>0,VLOOKUP($A10,Configurador!$A$130:$T$138,G$3,FALSE),\"\")","v":""},{"$f":"IF($C10>0,VLOOKUP($A10,Configurador!$A$130:$T$138,H$3,FALSE),\"\")","v":""},{"$f":"IF($C10>0,VLOOKUP($A10,Configurador!$A$130:$T$138,I$3,FALSE),\"\")","v":""},{"$f":"IF($C10>0,VLOOKUP($A10,Configurador!$A$130:$T$138,J$3,FALSE),\"\")","v":""}]
[8,{"$f":"IF(AND(Configurador!D137<>\"\",Configurador!P137>0),1,0)","v":0},{"$f":"IF(AND(B11=1,MAX($C$4:C10)<=($B$13-1)),MAX($C$4:C10)+1,0)","v":0},{"$f":"IF($C11>0,VLOOKUP($A11,Configurador!$A$130:$T$138,D$3,FALSE),\"\")","v":""},{"$f":"IF($C11>0,VLOOKUP($A11,Configurador!$A$130:$T$138,E$3,FALSE),\"\")","v":""},{"$f":"IF($C11>0,VLOOKUP($A11,Configurador!$A$130:$T$138,F$3,FALSE),\"\")","v":""},{"$f":"IF($C11>0,VLOOKUP($A11,Configurador!$A$130:$T$138,G$3,FALSE),\"\")","v":""},{"$f":"IF($C11>0,VLOOKUP($A11,Configurador!$A$130:$T$138,H$3,FALSE),\"\")","v":""},{"$f":"IF($C11>0,VLOOKUP($A11,Configurador!$A$130:$T$138,I$3,FALSE),\"\")","v":""},{"$f":"IF($C11>0,VLOOKUP($A11,Configurador!$A$130:$T$138,J$3,FALSE),\"\")","v":""}]
[9,{"$f":"IF(AND(Configurador!D138<>\"\",Configurador!P138>0),1,0)","v":0},{"$f":"IF(AND(B12=1,MAX($C$4:C11)<=($B$13-1)),MAX($C$4:C11)+1,0)","v":0},{"$f":"IF($C12>0,VLOOKUP($A12,Configurador!$A$130:$T$138,D$3,FALSE),\"\")","v":""},{"$f":"IF($C12>0,VLOOKUP($A12,Configurador!$A$130:$T$138,E$3,FALSE),\"\")","v":""},{"$f":"IF($C12>0,VLOOKUP($A12,Configurador!$A$130:$T$138,F$3,FALSE),\"\")","v":""},{"$f":"IF($C12>0,VLOOKUP($A12,Configurador!$A$130:$T$138,G$3,FALSE),\"\")","v":""},{"$f":"IF($C12>0,VLOOKUP($A12,Configurador!$A$130:$T$138,H$3,FALSE),\"\")","v":""},{"$f":"IF($C12>0,VLOOKUP($A12,Configurador!$A$130:$T$138,I$3,FALSE),\"\")","v":""},{"$f":"IF($C12>0,VLOOKUP($A12,Configurador!$A$130:$T$138,J$3,FALSE),\"\")","v":""}]
["Total",{"$f":"SUM(B4:B12)","v":0}]
[]
["Gestionados"]
[null,null,null,2,4,14,16,17,18,19,20]
[1,{"$f":"IF(AND(Configurador!D142<>\"\",Configurador!P142>0),1,0)","v":0},{"$f":"IF(B17=1,1,0)","v":0},{"$f":"IF($C17>0,VLOOKUP($A17,Configurador!$A$142:$T$151,D$16,FALSE),\"\")","v":""},{"$f":"IF($C17>0,VLOOKUP($A17,Configurador!$A$142:$T$151,E$16,FALSE),\"\")","v":""},{"$f":"IF($C17>0,VLOOKUP($A17,Configurador!$A$142:$T$151,F$16,FALSE),\"\")","v":""},{"$f":"IF($C17>0,VLOOKUP($A17,Configurador!$A$142:$T$151,G$16,FALSE),\"\")","v":""},{"$f":"IF($C17>0,VLOOKUP($A17,Configurador!$A$142:$T$151,H$16,FALSE),\"\")","v":""},{"$f":"IF($C17>0,VLOOKUP($A17,Configurador!$A$142:$T$151,I$16,FALSE),\"\")","v":""},{"$f":"IF($C17>0,VLOOKUP($A17,Configurador!$A$142:$T$151,J$16,FALSE),\"\")","v":""},{"$f":"IF($C17>0,VLOOKUP($A17,Configurador!$A$142:$T$151,K$16,FALSE),\"\")","v":""}]
[2,{"$f":"IF(AND(Configurador!D143<>\"\",Configurador!P143>0),1,0)","v":0},{"$f":"IF(AND(B18=1,MAX($C$17:C17)<=($B$27-1)),MAX($C$17:C17)+1,0)","v":0},{"$f":"IF($C18>0,VLOOKUP($A18,Configurador!$A$142:$T$151,D$16,FALSE),\"\")","v":""},{"$f":"IF($C18>0,VLOOKUP($A18,Configurador!$A$142:$T$151,E$16,FALSE),\"\")","v":""},{"$f":"IF($C18>0,VLOOKUP($A18,Configurador!$A$142:$T$151,F$16,FALSE),\"\")","v":""},{"$f":"IF($C18>0,VLOOKUP($A18,Configurador!$A$142:$T$151,G$16,FALSE),\"\")","v":""},{"$f":"IF($C18>0,VLOOKUP($A18,Configurador!$A$142:$T$151,H$16,FALSE),\"\")","v":""},{"$f":"IF($C18>0,VLOOKUP($A18,Configurador!$A$142:$T$151,I$16,FALSE),\"\")","v":""},{"$f":"IF($C18>0,VLOOKUP($A18,Configurador!$A$142:$T$151,J$16,FALSE),\"\")","v":""},{"$f":"IF($C18>0,VLOOKUP($A18,Configurador!$A$142:$T$151,K$16,FALSE),\"\")","v":""}]
[3,{"$f":"IF(AND(Configurador!D144<>\"\",Configurador!P144>0),1,0)","v":0},{"$f":"IF(AND(B19=1,MAX($C$17:C18)<=($B$27-1)),MAX($C$17:C18)+1,0)","v":0},{"$f":"IF($C19>0,VLOOKUP($A19,Configurador!$A$142:$T$151,D$16,FALSE),\"\")","v":""},{"$f":"IF($C19>0,VLOOKUP($A19,Configurador!$A$142:$T$151,E$16,FALSE),\"\")","v":""},{"$f":"IF($C19>0,VLOOKUP($A19,Configurador!$A$142:$T$151,F$16,FALSE),\"\")","v":""},{"$f":"IF($C19>0,VLOOKUP($A19,Configurador!$A$142:$T$151,G$16,FALSE),\"\")","v":""},{"$f":"IF($C19>0,VLOOKUP($A19,Configurador!$A$142:$T$151,H$16,FALSE),\"\")","v":""},{"$f":"IF($C19>0,VLOOKUP($A19,Configurador!$A$142:$T$151,I$16,FALSE),\"\")","v":""},{"$f":"IF($C19>0,VLOOKUP($A19,Configurador!$A$142:$T$151,J$16,FALSE),\"\")","v":""},{"$f":"IF($C19>0,VLOOKUP($A19,Configurador!$A$142:$T$151,K$16,FALSE),\"\")","v":""}]
[4,{"$f":"IF(AND(Configurador!D145<>\"\",Configurador!P145>0),1,0)","v":0},{"$f":"IF(AND(B20=1,MAX($C$17:C19)<=($B$27-1)),MAX($C$17:C19)+1,0)","v":0},{"$f":"IF($C20>0,VLOOKUP($A20,Configurador!$A$142:$T$151,D$16,FALSE),\"\")","v":""},{"$f":"IF($C20>0,VLOOKUP($A20,Configurador!$A$142:$T$151,E$16,FALSE),\"\")","v":""},{"$f":"IF($C20>0,VLOOKUP($A20,Configurador!$A$142:$T$151,F$16,FALSE),\"\")","v":""},{"$f":"IF($C20>0,VLOOKUP($A20,Configurador!$A$142:$T$151,G$16,FALSE),\"\")","v":""},{"$f":"IF($C20>0,VLOOKUP($A20,Configurador!$A$142:$T$151,H$16,FALSE),\"\")","v":""},{"$f":"IF($C20>0,VLOOKUP($A20,Configurador!$A$142:$T$151,I$16,FALSE),\"\")","v":""},{"$f":"IF($C20>0,VLOOKUP($A20,Configurador!$A$142:$T$151,J$16,FALSE),\"\")","v":""},{"$f":"IF($C20>0,VLOOKUP($A20,Configurador!$A$142:$T$151,K$16,FALSE),\"\")","v":""}]
[5,{"$f":"IF(AND(Configurador!D146<>\"\",Configurador!P146>0),1,0)","v":0},{"$f":"IF(AND(B21=1,MAX($C$17:C20)<=($B$27-1)),MAX($C$17:C20)+1,0)","v":0},{"$f":"IF($C21>0,VLOOKUP($A21,Configurador!$A$142:$T$151,D$16,FALSE),\"\")","v":""},{"$f":"IF($C21>0,VLOOKUP($A21,Configurador!$A$142:$T$151,E$16,FALSE),\"\")","v":""},{"$f":"IF($C21>0,VLOOKUP($A21,Configurador!$A$142:$T$151,F$16,FALSE),\"\")","v":""},{"$f":"IF($C21>0,VLOOKUP($A21,Configurador!$A$142:$T$151,G$16,FALSE),\"\")","v":""},{"$f":"IF($C21>0,VLOOKUP($A21,Configurador!$A$142:$T$151,H$16,FALSE),\"\")","v":""},{"$f":"IF($C21>0,VLOOKUP($A21,Configurador!$A$142:$T$151,I$16,FALSE),\"\")","v":""},{"$f":"IF($C21>0,VLOOKUP($A21,Configurador!$A$142:$T$151,J$16,FALSE),\"\")","v":""},{"$f":"IF($C21>0,VLOOKUP($A21,Configurador!$A$142:$T$151,K$16,FALSE),\"\")","v":""}]
[6,{"$f":"IF(AND(Configurador!D147<>\"\",Configurador!P147>0),1,0)","v":0},{"$f":"IF(AND(B22=1,MAX($C$17:C21)<=($B$27-1)),MAX($C$17:C21)+1,0)","v":0},{"$f":"IF($C22>0,VLOOKUP($A22,Configurador!$A$142:$T$151,D$16,FALSE),\"\")","v":""},{"$f":"IF($C22>0,VLOOKUP($A22,Configurador!$A$142:$T$151,E$16,FALSE),\"\")","v":""},{"$f":"IF($C22>0,VLOOKUP($A22,Configurador!$A$142:$T$151,F$16,FALSE),\"\")","v":""},{"$f":"IF($C22>0,VLOOKUP($A22,Configurador!$A$142:$T$151,G$16,FALSE),\"\")","v":""},{"$f":"IF($C22>0,VLOOKUP($A22,Configurador!$A$142:$T$151,H$16,FALSE),\"\")","v":""},{"$f":"IF($C22>0,VLOOKUP($A22,Configurador!$A$142:$T$151,I$16,FALSE),\"\")","v":""},{"$f":"IF($C22>0,VLOOKUP($A22,Configurador!$A$142:$T$151,J$16,FALSE),\"\")","v":""},{"$f":"IF($C22>0,VLOOKUP($A22,Configurador!$A$142:$T$151,K$16,FALSE),\"\")","v":""}]
[7,{"$f":"IF(AND(Configurador!D148<>\"\",Configurador!P148>0),1,0)","v":0},{"$f":"IF(AND(B23=1,MAX($C$17:C22)<=($B$27-1)),MAX($C$17:C22)+1,0)","v":0},{"$f":"IF($C23>0,VLOOKUP($A23,Configurador!$A$142:$T$151,D$16,FALSE),\"\")","v":""},{"$f":"IF($C23>0,VLOOKUP($A23,Configurador!$A$142:$T$151,E$16,FALSE),\"\")","v":""},{"$f":"IF($C23>0,VLOOKUP($A23,Configurador!$A$142:$T$151,F$16,FALSE),\"\")","v":""},{"$f":"IF($C23>0,VLOOKUP($A23,Configurador!$A$142:$T$151,G$16,FALSE),\"\")","v":""},{"$f":"IF($C23>0,VLOOKUP($A23,Configurador!$A$142:$T$151,H$16,FALSE),\"\")","v":""},{"$f":"IF($C23>0,VLOOKUP($A23,Configurador!$A$142:$T$151,I$16,FALSE),\"\")","v":""},{"$f":"IF($C23>0,VLOOKUP($A23,Configurador!$A$142:$T$151,J$16,FALSE),\"\")","v":""},{"$f":"IF($C23>0,VLOOKUP($A23,Configurador!$A$142:$T$151,K$16,FALSE),\"\")","v":""}]
[8,{"$f":"IF(AND(Configurador!D149<>\"\",Configurador!P149>0),1,0)","v":0},{"$f":"IF(AND(B24=1,MAX($C$17:C23)<=($B$27-1)),MAX($C$17:C23)+1,0)","v":0},{"$f":"IF($C24>0,VLOOKUP($A24,Configurador!$A$142:$T$151,D$16,FALSE),\"\")","v":""},{"$f":"IF($C24>0,VLOOKUP($A24,Configurador!$A$142:$T$151,E$16,FALSE),\"\")","v":""},{"$f":"IF($C24>0,VLOOKUP($A24,Configurador!$A$142:$T$151,F$16,FALSE),\"\")","v":""},{"$f":"IF($C24>0,VLOOKUP($A24,Configurador!$A$142:$T$151,G$16,FALSE),\"\")","v":""},{"$f":"IF($C24>0,VLOOKUP($A24,Configurador!$A$142:$T$151,H$16,FALSE),\"\")","v":""},{"$f":"IF($C24>0,VLOOKUP($A24,Configurador!$A$142:$T$151,I$16,FALSE),\"\")","v":""},{"$f":"IF($C24>0,VLOOKUP($A24,Configurador!$A$142:$T$151,J$16,FALSE),\"\")","v":""},{"$f":"IF($C24>0,VLOOKUP($A24,Configurador!$A$142:$T$151,K$16,FALSE),\"\")","v":""}]
[9,{"$f":"IF(AND(Configurador!D150<>\"\",Configurador!P150>0),1,0)","v":0},{"$f":"IF(AND(B25=1,MAX($C$17:C24)<=($B$27-1)),MAX($C$17:C24)+1,0)","v":0},{"$f":"IF($C25>0,VLOOKUP($A25,Configurador!$A$142:$T$151,D$16,FALSE),\"\")","v":""},{"$f":"IF($C25>0,VLOOKUP($A25,Configurador!$A$142:$T$151,E$16,FALSE),\"\")","v":""},{"$f":"IF($C25>0,VLOOKUP($A25,Configurador!$A$142:$T$151,F$16,FALSE),\"\")","v":""},{"$f":"IF($C25>0,VLOOKUP($A25,Configurador!$A$142:$T$151,G$16,FALSE),\"\")","v":""},{"$f":"IF($C25>0,VLOOKUP($A25,Configurador!$A$142:$T$151,H$16,FALSE),\"\")","v":""},{"$f":"IF($C25>0,VLOOKUP($A25,Configurador!$A$142:$T$151,I$16,FALSE),\"\")","v":""},{"$f":"IF($C25>0,VLOOKUP($A25,Configurador!$A$142:$T$151,J$16,FALSE),\"\")","v":""},{"$f":"IF($C25>0,VLOOKUP($A25,Configurador!$A$142:$T$151,K$16,FALSE),\"\")","v":""}]
[10,{"$f":"IF(AND(Configurador!D151<>\"\",Configurador!P151>0),1,0)","v":0},{"$f":"IF(AND(B26=1,MAX($C$17:C25)<=($B$27-1)),MAX($C$17:C25)+1,0)","v":0},{"$f":"IF($C26>0,VLOOKUP($A26,Configurador!$A$142:$T$151,D$16,FALSE),\"\")","v":""},{"$f":"IF($C26>0,VLOOKUP($A26,Configurador!$A$142:$T$151,E$16,FALSE),\"\")","v":""},{"$f":"IF($C26>0,VLOOKUP($A26,Configurador!$A$142:$T$151,F$16,FALSE),\"\")","v":""},{"$f":"IF($C26>0,VLOOKUP($A26,Configurador!$A$142:$T$151,G$16,FALSE),\"\")","v":""},{"$f":"IF($C26>0,VLOOKUP($A26,Configurador!$A$142:$T$151,H$16,FALSE),\"\")","v":""},{"$f":"IF($C26>0,VLOOKUP($A26,Configurador!$A$142:$T$151,I$16,FALSE),\"\")","v":""},{"$f":"IF($C26>0,VLOOKUP($A26,Configurador!$A$142:$T$151,J$16,FALSE),\"\")","v":""},{"$f":"IF($C26>0,VLOOKUP($A26,Configurador!$A$142:$T$151,K$16,FALSE),\"\")","v":""}]
["Total",{"$f":"SUM(B17:B26)","v":0}]

{"sheet":"LN_OEM","index":28,"n_rows":32,"n_cols":16,"rows_kept":32,"cut":false,"hidden":false,"merged":[[2,5,2,7],[1,8,1,10]]}
[null,null,"NO",1,2,3,4,5,6,7,8,9,10,11,12]
[null,null,"No Aplica",null,null,null,null,null,"PVPR"]
[null,null,null,null,null,"PRECIOS DE MAYORISTA",null,null,0.05,0.05,0.05]
[null,"FABRICANTES","TIPOS_USUARIO","ACER_Oficina","SKU","PAGO ÚNICO","RENTING","LEASING","PAGO ÚNICO","RENTING","LEASING","NECESIDAD","TIPO","ESPECIFICACIONES","DESCRIPCIÓN"]
[null,"ACER","Oficina","TRAVELMATE P2410 G2","NX.VGTEB.002 ",560,15.38,17.559999999999999,{"$f":"F5*(1+I$3)","v":588},16.149000000000001,18.437999999999999,"Oficina","Notebook","Core i5-8250U, 8GB, 256 SSD, Intel Graphics, 14\" FHD, Windows 10 Pro","Diseñado para trabajadores activos, aporta productividad, movilidad y conectividad para satisfacer las demandas de tu negocio.",{"$f":"CONCATENATE(M5,\": \",D5)","v":"Notebook: TRAVELMATE P2410 G2"}]
[null,"DELL","Movilidad","TRAVELMATE P238 G2","NX.VG7EB 014",599,16.45,18.78,628.95000000000005,17.272500000000001,19.719000000000001,"Oficina","Notebook","Core i5-7200U, 8GB, 256GB SSD, Intel Graphics, 13\" FHD, Windows 10 Pro","Diseñado para trabajadores activos,  aporta productividad, movilidad y conectividad para satisfacer las demandas de tu negocio.",{"$f":"CONCATENATE(M6,\": \",D6)","v":"Notebook: TRAVELMATE P238 G2"}]
[null,"HP",null,null,null,null,null,null,null,null,null,null,null,null,null,"b"]
[null,"LENOVO",null,"DELL_Oficina"]
[null,null,null,"DELL VOSTRO 3578","TC847",727,19.79,22.79,{"$f":"F9*(1+I$3)","v":763.35},20.779499999999999,23.929500000000001,"Oficina","Notebook","Core i5-8250U, 8GB, 256GB SSD, 15.6\" FHD, Windows 10 Pro","Ordenador portátil ideal para profesionales que confían en características de seguridad esenciales.\nRendimiento de confianza : procesadores Intel potentes, más memória y achivos a su alcance sin problemas.",{"$f":"CONCATENATE(M9,\": \",D9)","v":"Notebook: DELL VOSTRO 3578"}]
[null,null,null,"DELL VOSTRO 5568","JMCY8",763,20.77,23.92,801.15,21.808500000000002,25.116000000000003,"Oficina","Notebook","Core i5-7200U, 8GB, 256GB SSD, 15.6\" FHD, Windows 10 Pro","Compacto, ligero y preparado para ofrecer el nivel de productividad general que se precisa en las pequeñas empresas. Rendimiento, comodidad y opciones de seguridad.",{"$f":"CONCATENATE(M10,\": \",D10)","v":"Notebook: DELL VOSTRO 5568"}]
[]
[null,null,null,"HP_Oficina"]
[null,null,null,"HP EliteOne 800 G4 ","4KX03EA",1159,31.83,36.340000000000003,{"$f":"F13*(1+I$3)","v":1216.95},33.421500000000002,38.157000000000004,"Oficina","AiO","Intel Core i5-8500, 32GB, 256GB SSD, 23.8\" touch screen, Windows 10 Pro","Modernice cualquier espacio de trabajo con un PC AiO que causa una muy buena primera impresión. El HPE EliteOne AiO ofrece un serio rendimiento, colaboración atractiva, seguridad de diversos aspectos y una capacidad de gestión útil en un diseño de bisel de microborde en una increíble y elegante pantalla de 23,8\" en diagonal.",{"$f":"CONCATENATE(M13,\": \",D13)","v":"AiO: HP EliteOne 800 G4 "}]
[null,null,null,"HP Z4 G4 TWR","4RX31EA ",2999,82.37,94.03,3148.9500000000003,86.488500000000002,98.731500000000011,"Oficina","Dsk / Workstation","Intel Xeon W2125, 32GB, 512Gb SSD, Windows 10 Pro","La estación de trabajo más popular de HP ofrece un rendimiento revolucionario para un amplio espectro de aplicaciones, perfecta para ingeniería y visualización.",{"$f":"CONCATENATE(M14,\": \",D14)","v":"Dsk / Workstation: HP Z4 G4 TWR"}]
[null,null,null,"HP_Movilidad"]
[null,null,null,"HP EliteBook X360 G3","4QY58EA ",1999,54.91,62.68,{"$f":"F16*(1+I$3)","v":2098.9500000000003},{"$f":"G16*(1+J$3)","v":57.655499999999996},{"$f":"H16*(1+K$3)","v":65.814000000000007},"Movilidad","Convertible","Intel core i7, 16GB, 256GB SSD, 13\" touch screen","Cree y presente su visión del éxito en el HP EliteBook x360 con cuatro modos de uso para realizar el trabajo, compartir contenido y disfrutar en el tiempo libre.",{"$f":"CONCATENATE(M16,\": \",D16)","v":"Convertible: HP EliteBook X360 G3"}]
[]
[null,null,null,"LENOVO_Oficina"]
[null,null,null,"LENOVO V520S","10NM0020SP",366,10.050000000000001,11.48,{"$f":"F19*(1+I$3)","v":384.3},10.552500000000002,12.054,"Oficina","Desktop","Pentium G4560, 4GB, 500GB HDD, Intel Graphic, Windows 10 Pro","El V520s en formato pequeño aporta gran valor a tu empresa. Con su procesamiento potente, su memoria de alta velocidad y su tecnología de almacenamiento ultrarrápida, y además, soluciones de seguridad mejoradas, para que te puedas central en aquello que de verdad importa.",{"$f":"CONCATENATE(M19,\": \",D19)","v":"Desktop: LENOVO V520S"}]
[null,null,null,"LENOVO V520 Tower","10NK0021SP",410,11.26,12.86,430.5,11.823,13.503,"Oficina","Desktop","Core i3-7100, 4GB, 500GB HDD, Intel Graphics, Windows 10 Pro","El sistema de sobremesa de torre V520 aporta gran valor a tu empresa. Con su procesamiento potente, su memoria de alta velocidad y su tecnología de almacenamiento ultrarrápida, y además, soluciones de seguridad mejoradas, para que te puedas central en aquello que de verdad importa.",{"$f":"CONCATENATE(M20,\": \",D20)","v":"Desktop: LENOVO V520 Tower"}]
[null,null,null,"LENOVO E480","20KN0078SP",532,14.61,16.68,558.6,15.3405,17.513999999999999,"Oficina","Notebook","Core i3-8130U, 4GB, 1TB HDD, Intel Graphics, Windows 10 Pro","Maximiza la productividad con el portátil ThinkPad E480. La combinación de una gran potencia, durabilidad ThinkPad, numerosas funciones de seguridad, diseño elegante y conectividad estandarizada da a tu negocio lo que necesita para progresar.",{"$f":"CONCATENATE(M21,\": \",D21)","v":"Notebook: LENOVO E480"}]
[null,null,null,"LENOVO THINKSTATION P320 TOWER","30BH0003SP",888,24.39,27.84,932.40000000000009,25.609500000000001,29.231999999999999,"Oficina","Dsk / Workstation","Core i7-7700, 8GB, 1TB HDD, Intel Graphics, Windows 10 Pro","Rendimiento de una workstation, al precio de un ordenador de sobremesa. La workstation ThinkStation P320 de torre dispone de todas las funciones de productividad clave que necesitas.",{"$f":"CONCATENATE(M22,\": \",D22)","v":"Dsk / Workstation: LENOVO THINKSTATION P320 TOWER"}]
[null,null,null,"LENOVO_Movilidad"]
[null,null,null,"LENOVO L380 YOGA","20M7001BSP",888,24.39,27.84,{"$f":"F24*(1+I$3)","v":932.40000000000009},25.609500000000001,29.231999999999999,"Movilidad","Convertible","Intel core i5-8250U, 8GB, 256GB SSD, 13,3\" touch screen, Windows 10 Pro","Tiene la versatilidad, la potencia y la movilidad necesarias para mantener el ritmo y facilitarte el trabajo. Es ultraportátil, incorpora el procesador y la tarjeta gráfica más novedosos y puedes utilizarlo en cuatro modos diferentes: portátil, tablet, modo tienda o modo atril.",{"$f":"CONCATENATE(M24,\": \",D24)","v":"Convertible: LENOVO L380 YOGA"}]
[null,null,null,"LENOVO L380 NO YOGA","20M5003FSP",554,15.22,17.37,581.70000000000005,15.981000000000002,18.238500000000002,"Movilidad","Notebook","Intel core i3-8130U, 4GB, 128GB SSD, Windows 10 Pro, Intel Graphics, 13,3\"","Tiene la versatilidad, la potencia y la movilidad necesarias para mantener el ritmo y facilitarte el trabajo. Es ultraportátil, con el procesador y la tarjeta gráfica más novedosos, una memoria y una capacidad de almacenamiento excelente, y unas funciones de seguridad sólidas.",{"$f":"CONCATENATE(M25,\": \",D25)","v":"Notebook: LENOVO L380 NO YOGA"}]
[null,null,null,"LENOVO X1 CARBON (6th Gen)","20KH006DSP",1554,42.68,48.72,1631.7,44.814,51.155999999999999,"Movilidad","Notebook","Intel Core i5-8250U, 8GB, 256GB SSD, 14\" Intel Graphics, Windows 10 Pro","Ultraligero. Ultrapotente. Combina su elegante diseño con una capacidad de respuesta perfecta y su resistencia legendaria para ofrecer lo último en productividad móvil. ",{"$f":"CONCATENATE(M26,\": \",D26)","v":"Notebook: LENOVO X1 CARBON (6th Gen)"}]
[]
[null,"MONITORES PARA DESKTOP"]
[]
[null,null,"Dell",{"$f":"N30","v":"Dell E-Series E2216H (21,5\", Negro)"},"210-AFPP",91.25,null,null,{"$f":"F30*(1+I$3)","v":95.8125},null,null,null,"Monitor","Dell E-Series E2216H (21,5\", Negro)","Un monitor de 22\" confiable y accesible, con excelente calidad de la pantalla en múltiples ángulos con compatibilidad con montaje VESA y opciones de inclinación, así como también VGA y DisplayPorts.\n"]
[null,null,"Dell",{"$f":"N31","v":"Dell Professional P2419H (23.8\", Negro)"},"DELL-P2419H",149.74,null,null,{"$f":"F31*(1+I$3)","v":157.227},null,null,null,"Monitor","Dell Professional P2419H (23.8\", Negro)","Optimice su espacio de trabajo con este eficiente monitor de 23,8\" diseñado con una carcasa ultracompacta y características que previenen la vista cansada.\nDé un impulso a su productividad.\n"]
[null,null,"HP",{"$f":"N32","v":"HP LED V214a (20,7\")"},"1FR84AA",88.14,null,null,{"$f":"F32*(1+I$3)","v":92.547000000000011},null,null,null,"Monitor","HP LED V214a (20,7\")","Disfrute de unas impresionantes características de presentación Full HD con audio integrado en el monitor V214a de 52,57 cm (20,7 pulgadas). Su práctica conectividad, adaptabilidad y asequibilidad son ideales para entornos de oficina."]

{"sheet":"LN_Server","index":29,"n_rows":50,"n_cols":17,"rows_kept":50,"cut":false,"hidden":false,"merged":[]}
["Productos","Tipo de Licencia","Duración de contrato",null,"PVP",null,"SQL_SERVER","WS_SERVER","LICENCIA_SQL","LICENCIA_WS","LICENCIA_WS_STD",null,null,null,null,null,"LIC_SERVER"]
["SQL Server 2017 Enterprise Core","2 Core License Pack (100 usuarios)","3 años",{"$f":"CONCATENATE(A2,B2,C2)","v":"SQL Server 2017 Enterprise Core2 Core License Pack (100 usuarios)3 años"},17452,null,"SQL Server 2017 Enterprise Core","Servidor Windows","2 Core License Pack (100 usuarios)","Usuario","8 Core License Pack",null,null,null,null,null,2]
["SQL Server 2017 Enterprise Core","2 Core License Pack (100 usuarios)","1 año",{"$f":"CONCATENATE(A3,B3,C3)","v":"SQL Server 2017 Enterprise Core2 Core License Pack (100 usuarios)1 año"},6398,null,"SQL Server Standard Core (mínimo 4 cores)","Servidor Windows con escritorio remoto","2 Core License Pack (hasta 100 usuarios)","Dispositivo",null,null,null,null,null,null,{"$f":"Q2+1","v":3}]
["SQL Server 2017 Standard Core","2 Core License Pack (hasta 100 usuarios)","1 año","SQL Server 2017 Standard Core2 Core License Pack (hasta 100 usuarios)1 año",1669,null,null,"Servidor Windows con gestión de derechos",null,null,null,null,null,null,null,null,{"$f":"Q3+1","v":4}]
["SQL Server 2017 Standard Core","2 Core License Pack (hasta 100 usuarios)","3 años","SQL Server 2017 Standard Core2 Core License Pack (hasta 100 usuarios)3 años",4554,null,null,"Servidor Windows Standard",null,null,null,null,null,null,null,null,5]
["Servidor Windows","Usuario","3 años","Servidor WindowsUsuario3 años",38,"WS CAL",null,null,null,null,null,null,null,null,null,null,6]
["Servidor Windows","Dispositivo","3 años","Servidor WindowsDispositivo3 años",32,null,null,null,null,null,null,null,null,null,null,null,7]
["Servidor Windows","Usuario","1 año","Servidor WindowsUsuario1 año",12,"WS CAL",null,null,null,null,null,null,null,null,null,null,8]
["Servidor Windows","Dispositivo","1 año","Servidor WindowsDispositivo1 año",10,null,null,null,null,null,null,null,null,null,null,null,9]
["Servidor Windows con escritorio remoto","Usuario","1 año","Servidor Windows con escritorio remotoUsuario1 año",64,null,null,null,null,null,null,null,null,null,null,null,10]
["Servidor Windows con escritorio remoto","Usuario","3 años","Servidor Windows con escritorio remotoUsuario3 años",163,null,null,null,null,null,null,null,null,null,null,null,11]
["Servidor Windows con gestión de derechos","Dispositivo","1 año","Servidor Windows con gestión de derechosDispositivo1 año",18,null,null,null,null,null,null,null,null,null,null,null,12]
["Servidor Windows con gestión de derechos","Usuario","3 años","Servidor Windows con gestión de derechosUsuario3 años",163,"RDS CAL",null,null,null,null,null,null,null,null,null,null,13]
["Servidor Windows con gestión de derechos","Usuario","1 año","Servidor Windows con gestión de derechosUsuario1 año",64,"RDS CAL",null,null,null,null,null,null,null,null,null,null,14]
["Servidor Windows con gestión de derechos","Dispositivo","3 años","Servidor Windows con gestión de derechosDispositivo3 años",54,null,null,null,null,null,null,null,null,null,null,null,15]
["Servidor Windows Standard","8 Core License Pack","1 año","Servidor Windows Standard8 Core License Pack1 año",311,null,null,null,null,null,null,null,null,null,null,null,16]
["Servidor Windows Standard","8 Core License Pack","3 años","Servidor Windows Standard8 Core License Pack3 años",623,null,null,null,null,null,null,null,null,null,null,null,17]
[null,null,null,null,null,null,null,null,null,null,null,null,null,null,null,null,18]
[null,null,null,null,null,null,null,null,null,null,null,null,null,null,null,null,19]
[null,null,null,null,null,null,null,null,null,null,null,null,null,null,null,null,20]
[null,null,null,null,null,null,null,null,null,null,null,null,null,null,null,null,21]
[null,null,null,null,null,null,null,null,null,null,null,null,null,null,null,null,22]
[null,null,null,"Widndows SErver RMS Cal",null,"Publique sus aplicaciones o servicios en remoto a traves de RMS ( Remote management services)",null,null,null,null,null,null,null,null,null,null,23]
[null,null,null,null,null,null,null,null,null,null,null,null,null,null,null,null,24]
[null,null,null,null,null,null,null,null,null,null,null,null,null,null,null,null,25]
[null,null,null,null,null,null,null,null,null,null,null,null,null,null,null,null,26]
[null,null,null,null,null,null,null,null,null,null,null,null,null,null,null,null,27]
[null,null,null,null,null,null,null,null,null,null,null,null,null,null,null,null,28]
[null,null,null,null,null,null,null,null,null,null,null,null,null,null,null,null,29]
[null,null,null,null,null,null,null,null,null,null,null,null,null,null,null,null,30]
[null,null,null,null,null,null,null,null,null,null,null,null,null,null,null,null,31]
[null,null,null,null,null,null,null,null,null,null,null,null,null,null,null,null,32]
[null,null,null,null,null,null,null,null,null,null,null,null,null,null,null,null,33]
[null,null,null,null,null,null,null,null,null,null,null,null,null,null,null,null,34]
[null,null,null,null,null,null,null,null,null,null,null,null,null,null,null,null,35]
[null,null,null,null,null,null,null,null,null,null,null,null,null,null,null,null,36]
[null,null,null,null,null,null,null,null,null,null,null,null,null,null,null,null,37]
[null,null,null,null,null,null,null,null,null,null,null,null,null,null,null,null,38]
[null,null,null,null,null,null,null,null,null,null,null,null,null,null,null,null,39]
[null,null,null,null,null,null,null,null,null,null,null,null,null,null,null,null,40]
[null,null,null,null,null,null,null,null,null,null,null,null,null,null,null,null,41]
[null,null,null,null,null,null,null,null,null,null,null,null,null,null,null,null,42]
[null,null,null,null,null,null,null,null,null,null,null,null,null,null,null,null,43]
[null,null,null,null,null,null,null,null,null,null,null,null,null,null,null,null,44]
[null,null,null,null,null,null,null,null,null,null,null,null,null,null,null,null,45]
[null,null,null,null,null,null,null,null,null,null,null,null,null,null,null,null,46]
[null,null,null,null,null,null,null,null,null,null,null,null,null,null,null,null,47]
[null,null,null,null,null,null,null,null,null,null,null,null,null,null,null,null,48]
[null,null,null,null,null,null,null,null,null,null,null,null,null,null,null,null,49]
[null,null,null,null,null,null,null,null,null,null,null,null,null,null,null,null,50]

{"sheet":"Impresion","index":30,"n_rows":26,"n_cols":24,"rows_kept":26,"cut":false,"hidden":false,"merged":[[11,0,14,0],[15,0,21,0],[6,0,10,0],[2,0,5,0]]}
[null,null,"¿ha de salir?","Número de orden","Número de página en castellano","A imprimir",null,null,"Castellano","Inglés","Catalán","Euskera","Galego",null,null,"Campos obligatorios en la portada",{"$f":"Q12*S8*U9","v":0},null,null,null,null,null,"Ha metido servicios",{"$f":"IF(SUM(Configurador!J166:'Configurador'!Q166)=0,0,1)","v":0}]
[null,"Portada",1,{"$f":"C2","v":1},{"$f":"IF(D2=0,\"\",CONCATENATE(\"Página \",D2,\" de \",MAX($D$2:$D$26)))","v":"Página 1 de 7"},{"$f":"IF(Impresion!D2=0,\"\",IF(Configurador!$R$21=\"Castellano\",Impresion!I2,IF(Configurador!$R$21=\"English\",Impresion!J2,IF(Configurador!$R$21=\"Catalá\",Impresion!K2,IF(Configurador!$R$21=\"Euskara\",Impresion!L2,IF(Configurador!$R$21=\"Galego\",Impresion!M2,\"\"))))))","v":"Portada_E"},null,null,"Portada_E","Portada_I","Portada_C","Portada_K","Portada_G"]
["MWP","M365",{"$f":"IF(OR(Configurador!J30>0,AND(Configurador!J49>0,Configurador!J49=Configurador!J51),Configurador!J51=0),1,0)","v":1},{"$f":"IF(C3=1,MAX(D2)+1,0)","v":2},{"$f":"IF(D3=0,\"\",CONCATENATE(\"Página \",D3,\" de \",MAX($D$2:$D$26)))","v":"Página 2 de 7"},{"$f":"IF(Impresion!D3=0,\"\",IF(Configurador!$R$21=\"Castellano\",Impresion!I3,IF(Configurador!$R$21=\"English\",Impresion!J3,IF(Configurador!$R$21=\"Catalá\",Impresion!K3,IF(Configurador!$R$21=\"Euskara\",Impresion!L3,IF(Configurador!$R$21=\"Galego\",Impresion!M3,\"\"))))))","v":"O365_Empresa_E"},null,null,"O365_Empresa_E","O365_Impresa_I","O365_Cmpresa_C","O365_Kmpresa_K","O365_Gmpresa_G",null,null,"Cliente",null,"Partner",null,"Propuesta"]
[null,"O365 Premium",{"$f":"IF(OR(Configurador!J31>0,Configurador!J46>0,Configurador!J47>0,Configurador!J48>0),1,0)","v":0},{"$f":"IF(C4=1,MAX($D$2:D3)+1,0)","v":0},"",{"$f":"IF(Impresion!D4=0,\"\",IF(Configurador!$R$21=\"Castellano\",Impresion!I4,IF(Configurador!$R$21=\"English\",Impresion!J4,IF(Configurador!$R$21=\"Catalá\",Impresion!K4,IF(Configurador!$R$21=\"Euskara\",Impresion!L4,IF(Configurador!$R$21=\"Galego\",Impresion!M4,\"\"))))))","v":""},null,null,"O365_Premium_E","O365_Premium_I","O365_Premium_C","O365_Premium_K","O365_Premium_G",null,null,"Nombre",{"$f":"IF(Configurador!C7<>\"\",1,0)","v":0},"Nombre",{"$f":"IF(Configurador!J7<>\"\",1,0)","v":0},"Presentación",{"$f":"IF(Configurador!R7<>\"\",1,0)","v":0}]
[null,"O365 Essentials",{"$f":"IF(Configurador!J35>0,1,0)","v":0},{"$f":"IF(C5=1,MAX($D$2:D4)+1,0)","v":0},"",{"$f":"IF(Impresion!D5=0,\"\",IF(Configurador!$R$21=\"Castellano\",Impresion!I5,IF(Configurador!$R$21=\"English\",Impresion!J5,IF(Configurador!$R$21=\"Catalá\",Impresion!K5,IF(Configurador!$R$21=\"Euskara\",Impresion!L5,IF(Configurador!$R$21=\"Galego\",Impresion!M5,\"\"))))))","v":""},null,null,"O365_Essentials_E","O365_Issentials_I","O365_Cssentials_C","O365_Kssentials_K","O365_Gssentials_G",null,null,"CIF",{"$f":"IF(Configurador!C9<>\"\",1,0)","v":0},"Contacto",{"$f":"IF(Configurador!J17<>\"\",1,0)","v":0},"Validez",{"$f":"IF(Configurador!R9<>\"\",1,0)","v":0}]
[null,"Office 365 E1 -E3-E5",{"$f":"IF(OR(Configurador!J39>0,Configurador!J40>0,Configurador!J43>0),1,0)","v":0},{"$f":"IF(C6=1,MAX($D$2:D5)+1,0)","v":0},"",{"$f":"IF(Impresion!D6=0,\"\",IF(Configurador!$R$21=\"Castellano\",Impresion!I6,IF(Configurador!$R$21=\"English\",Impresion!J6,IF(Configurador!$R$21=\"Catalá\",Impresion!K6,IF(Configurador!$R$21=\"Euskara\",Impresion!L6,IF(Configurador!$R$21=\"Galego\",Impresion!M6,\"\"))))))","v":""},null,null,"O365_E1E3E5_E","O365_E1E3E5_ I","O365_E1E3E5_ C","O365_E1E3E5_ K","O365_E1E3E5_ G",null,null,"Direccion",{"$f":"IF(Configurador!C11<>\"\",1,0)","v":0},"Teléfono",{"$f":"IF(Configurador!J19<>\"\",1,0)","v":0},"Firma",1]
["Azure","Servidores -10 usrs",{"$f":"IF(OR(SUM(Configurador!P57:P62)>0,Configurador!P76=0),1,0)","v":1},{"$f":"IF(C7=1,MAX($D$2:D6)+1,0)","v":3},{"$f":"IF(D7=0,\"\",CONCATENATE(\"Página \",D7,\" de \",MAX($D$2:$D$26)))","v":"Página 3 de 7"},{"$f":"IF(Impresion!D7=0,\"\",IF(Configurador!$R$21=\"Castellano\",Impresion!I7,IF(Configurador!$R$21=\"English\",Impresion!J7,IF(Configurador!$R$21=\"Catalá\",Impresion!K7,IF(Configurador!$R$21=\"Euskara\",Impresion!L7,IF(Configurador!$R$21=\"Galego\",Impresion!M7,\"\"))))))","v":"Azure_10_E"},null,null,"Azure_10_E","Azure_10_I","Azure_10_C","Azure_10_K","Azure_10_G",null,null,"Ciudad",{"$f":"IF(Configurador!C13<>\"\",1,0)","v":0},"Email",{"$f":"IF(Configurador!J21<>\"\",1,0)","v":0},"Lugar",1]
[null,"Servidores -50 usrs",{"$f":"IF(SUM(Configurador!P63:P68)>0,1,0)","v":0},{"$f":"IF(C8=1,MAX($D$2:D7)+1,0)","v":0},"",{"$f":"IF(Impresion!D8=0,\"\",IF(Configurador!$R$21=\"Castellano\",Impresion!I8,IF(Configurador!$R$21=\"English\",Impresion!J8,IF(Configurador!$R$21=\"Catalá\",Impresion!K8,IF(Configurador!$R$21=\"Euskara\",Impresion!L8,IF(Configurador!$R$21=\"Galego\",Impresion!M8,\"\"))))))","v":""},null,null,"Azure_50_E","Azure_50_I","Azure_50_C","Azure_50_K","Azure_50_G",null,null,"Provincia",{"$f":"IF(Configurador!C15<>\"\",1,0)","v":0},null,{"$f":"IF(SUM(S4:S7)<>4,0,1)","v":0},"Idioma",{"$f":"IF(Configurador!R21<>\"\",1,0)","v":1}]
[null,"Servidores -100 usrs",{"$f":"IF(SUM(Configurador!P69:P74)>0,1,0)","v":0},{"$f":"IF(C9=1,MAX($D$2:D8)+1,0)","v":0},"",{"$f":"IF(Impresion!D9=0,\"\",IF(Configurador!$R$21=\"Castellano\",Impresion!I9,IF(Configurador!$R$21=\"English\",Impresion!J9,IF(Configurador!$R$21=\"Catalá\",Impresion!K9,IF(Configurador!$R$21=\"Euskara\",Impresion!L9,IF(Configurador!$R$21=\"Galego\",Impresion!M9,\"\"))))))","v":""},null,null,"Azure_100_E","Azure_100_I","Azure_100_C","Azure_100_K","Azure_100_G",null,null,"Apoderado",{"$f":"IF(Configurador!C17<>\"\",1,0)","v":0},null,null,null,{"$f":"IF(SUM(U4:U8)<>5,0,1)","v":0}]
[null,"A medida",{"$f":"IF(Configurador!P75>0,1,0)","v":0},{"$f":"IF(C10=1,MAX($D$2:D9)+1,0)","v":0},"",{"$f":"IF(Impresion!D10=0,\"\",IF(Configurador!$R$21=\"Castellano\",Impresion!I10,IF(Configurador!$R$21=\"English\",Impresion!J10,IF(Configurador!$R$21=\"Catalá\",Impresion!K10,IF(Configurador!$R$21=\"Euskara\",Impresion!L10,IF(Configurador!$R$21=\"Galego\",Impresion!M10,\"\"))))))","v":""},null,null,"Azure_Custom_E","Azure_Custom_I","Azure_Custom_C","Azure_Kustom_K","Azure_Gustom_G",null,null,"Teléfono",{"$f":"IF(Configurador!C19<>\"\",1,0)","v":0}]
[null,"Servers",{"$f":"IF(Configurador!S81>0,1,0)","v":0},{"$f":"IF(C11=1,MAX($D$2:D10)+1,0)","v":0},"",{"$f":"IF(Impresion!D11=0,\"\",IF(Configurador!$R$21=\"Castellano\",Impresion!I11,IF(Configurador!$R$21=\"English\",Impresion!J11,IF(Configurador!$R$21=\"Catalá\",Impresion!K11,IF(Configurador!$R$21=\"Euskara\",Impresion!L11,IF(Configurador!$R$21=\"Galego\",Impresion!M11,\"\"))))))","v":""},null,null,"Server_E","Server_I","Server_C","Server_K","Server_G",null,null,"Email",{"$f":"IF(Configurador!C21<>\"\",1,0)","v":0}]
["BusApps","Bus Apps Genérica",{"$f":"IF(SUM(Configurador!P87:P89)=0,1,0)","v":1},{"$f":"IF(C12=1,MAX($D$2:D11)+1,0)","v":4},"Página 4 de 7",{"$f":"IF(Impresion!D12=0,\"\",IF(Configurador!$R$21=\"Castellano\",Impresion!I12,IF(Configurador!$R$21=\"English\",Impresion!J12,IF(Configurador!$R$21=\"Catalá\",Impresion!K12,IF(Configurador!$R$21=\"Euskara\",Impresion!L12,IF(Configurador!$R$21=\"Galego\",Impresion!M12,\"\"))))))","v":"BusApps_Generica_E"},null,null,"BusApps_Generica_E","BusApps_Generica_I","BusApps_Generica_C","BusApps_Generica_K","BusApps_Generica_G",null,null,null,{"$f":"IF(SUM(Q4:Q11)<>8,0,1)","v":0}]
[null,"Dynamics Business Central",{"$f":"IF(SUM(Configurador!P87:P89)=0,0,1)","v":0},{"$f":"IF(C13=1,MAX($D$2:D12)+1,0)","v":0},"",{"$f":"IF(Impresion!D13=0,\"\",IF(Configurador!$R$21=\"Castellano\",Impresion!I13,IF(Configurador!$R$21=\"English\",Impresion!J13,IF(Configurador!$R$21=\"Catalá\",Impresion!K13,IF(Configurador!$R$21=\"Euskara\",Impresion!L13,IF(Configurador!$R$21=\"Galego\",Impresion!M13,\"\"))))))","v":""},null,null,"Dynamics_E","Dynamics_I","Dynamics_C","Dynamics_K","Dynamics_G"]
[null,"Dynamics Sales  & PBI & Apps",{"$f":"IF(SUM(Configurador!P90:P92)=0,0,1)","v":0},{"$f":"IF(C14=1,MAX($D$2:D13)+1,0)","v":0},"",{"$f":"IF(Impresion!D14=0,\"\",IF(Configurador!$R$21=\"Castellano\",Impresion!I14,IF(Configurador!$R$21=\"English\",Impresion!J14,IF(Configurador!$R$21=\"Catalá\",Impresion!K14,IF(Configurador!$R$21=\"Euskara\",Impresion!L14,IF(Configurador!$R$21=\"Galego\",Impresion!M14,\"\"))))))","v":""},null,null,"Dynamics_Sales_E","Dynamics_Sales_I","Dynamics_Sales_C","Dynamics_Sales_K","Dynamics_Sales_G"]
[null,"Add-ins Office",{"$f":"IF(SUM(Configurador!P93:P95)>0,1,0)","v":0},{"$f":"IF(C15=1,MAX($D$2:D14)+1,0)","v":0},"",{"$f":"IF(Impresion!D15=0,\"\",IF(Configurador!$R$21=\"Castellano\",Impresion!I15,IF(Configurador!$R$21=\"English\",Impresion!J15,IF(Configurador!$R$21=\"Catalá\",Impresion!K15,IF(Configurador!$R$21=\"Euskara\",Impresion!L15,IF(Configurador!$R$21=\"Galego\",Impresion!M15,\"\"))))))","v":""},null,null,"Add-in_E","Add-in_I","Add-in_C","Add-in_K","Add-in_G"]
["Hardware","Surface genérica",{"$f":"IF(SUM(C17:C20)=0,1,0)","v":1},{"$f":"IF(C16=1,MAX($D$2:D15)+1,0)","v":5},"Página 5 de 7",{"$f":"IF(Impresion!D16=0,\"\",IF(Configurador!$R$21=\"Castellano\",Impresion!I16,IF(Configurador!$R$21=\"English\",Impresion!J16,IF(Configurador!$R$21=\"Catalá\",Impresion!K16,IF(Configurador!$R$21=\"Euskara\",Impresion!L16,IF(Configurador!$R$21=\"Galego\",Impresion!M16,\"\"))))))","v":"Surface_Generica_E"},null,null,"Surface_Generica_E","Surface_Generica_I","Surface_Generica_C","Surface_Generica_K","Surface_Generica_G"]
[null,"Surface Pro",{"$f":"IF(LN_Surface!B69>0,1,0)","v":0},{"$f":"IF(C17=1,MAX($D$2:D16)+1,0)","v":0},"",{"$f":"IF(Impresion!D17=0,\"\",IF(Configurador!$R$21=\"Castellano\",Impresion!I17,IF(Configurador!$R$21=\"English\",Impresion!J17,IF(Configurador!$R$21=\"Catalá\",Impresion!K17,IF(Configurador!$R$21=\"Euskara\",Impresion!L17,IF(Configurador!$R$21=\"Galego\",Impresion!M17,\"\"))))))","v":""},null,null,"SurfacePro_E","SurfacePro_I","SurfacePro_C","SurfacePro_K","SurfacePro_G"]
[null,"Surface Book",{"$f":"IF(LN_Surface!B81>0,1,0)","v":0},{"$f":"IF(C18=1,MAX($D$2:D17)+1,0)","v":0},"",{"$f":"IF(Impresion!D18=0,\"\",IF(Configurador!$R$21=\"Castellano\",Impresion!I18,IF(Configurador!$R$21=\"English\",Impresion!J18,IF(Configurador!$R$21=\"Catalá\",Impresion!K18,IF(Configurador!$R$21=\"Euskara\",Impresion!L18,IF(Configurador!$R$21=\"Galego\",Impresion!M18,\"\"))))))","v":""},null,null,"SurfaceBook_E","SurfaceBook_I","SurfaceBook_C","SurfaceBook_K","SurfaceBook_G"]
[null,"Surface Go",{"$f":"IF(LN_Surface!B93>0,1,0)","v":0},{"$f":"IF(C19=1,MAX($D$2:D18)+1,0)","v":0},"",{"$f":"IF(Impresion!D19=0,\"\",IF(Configurador!$R$21=\"Castellano\",Impresion!I19,IF(Configurador!$R$21=\"English\",Impresion!J19,IF(Configurador!$R$21=\"Catalá\",Impresion!K19,IF(Configurador!$R$21=\"Euskara\",Impresion!L19,IF(Configurador!$R$21=\"Galego\",Impresion!M19,\"\"))))))","v":""},null,null,"SurfaceGo_E","SurfaceGo_I","SurfaceGo_C","SurfaceGo_K","SurfaceGo_G"]
[null,"Surface Laptop",{"$f":"IF(LN_Surface!B105>0,1,0)","v":0},{"$f":"IF(C20=1,MAX($D$2:D19)+1,0)","v":0},"",{"$f":"IF(Impresion!D20=0,\"\",IF(Configurador!$R$21=\"Castellano\",Impresion!I20,IF(Configurador!$R$21=\"English\",Impresion!J20,IF(Configurador!$R$21=\"Catalá\",Impresion!K20,IF(Configurador!$R$21=\"Euskara\",Impresion!L20,IF(Configurador!$R$21=\"Galego\",Impresion!M20,\"\"))))))","v":""},null,null,"SurfaceLaptop_E","SurfaceLaptop_I","SurfaceLaptop_C","SurfaceLaptop_K","SurfaceLaptop_G"]
[null,"Accesorios Surface",{"$f":"IF(Configurador!C115>0,1,0)","v":0},{"$f":"IF(C21=1,MAX($D$2:D20)+1,0)","v":0},"",{"$f":"IF(Impresion!D21=0,\"\",IF(Configurador!$R$21=\"Castellano\",Impresion!I21,IF(Configurador!$R$21=\"English\",Impresion!J21,IF(Configurador!$R$21=\"Catalá\",Impresion!K21,IF(Configurador!$R$21=\"Euskara\",Impresion!L21,IF(Configurador!$R$21=\"Galego\",Impresion!M21,\"\"))))))","v":""},null,null,"Accesorios_E","Accesorios_I","Accesorios_C","Accesorios_K","Accesorios_G"]
[null,"Equipos_terceros",{"$f":"IF(Configurador!Q124>0,1,0)","v":0},{"$f":"IF(C22=1,MAX($D$2:D21)+1,0)","v":0},"",{"$f":"IF(Impresion!D22=0,\"\",IF(Configurador!$R$21=\"Castellano\",Impresion!I22,IF(Configurador!$R$21=\"English\",Impresion!J22,IF(Configurador!$R$21=\"Catalá\",Impresion!K22,IF(Configurador!$R$21=\"Euskara\",Impresion!L22,IF(Configurador!$R$21=\"Galego\",Impresion!M22,\"\"))))))","v":""},null,null,"HardwareOEM_E","HardwareOEM_I","HardwareOEM_C","HardwareOEM_K","HardwareOEM_G"]
[null,"Partner puesta en marcha",{"$f":"IF(Configurador!P139>0,1,0)","v":0},{"$f":"IF(C23=1,MAX($D$2:D22)+1,0)","v":0},"",{"$f":"IF(Impresion!D23=0,\"\",IF(Configurador!$R$21=\"Castellano\",Impresion!I23,IF(Configurador!$R$21=\"English\",Impresion!J23,IF(Configurador!$R$21=\"Catalá\",Impresion!K23,IF(Configurador!$R$21=\"Euskara\",Impresion!L23,IF(Configurador!$R$21=\"Galego\",Impresion!M23,\"\"))))))","v":""},null,null,"PartnerPM_E","PartnerPM_I","PartnerPM_C","PartnerPM_K","PartnerPM_G"]
[null,"Partner gestionados",{"$f":"IF(Configurador!P152>0,1,0)","v":0},{"$f":"IF(C24=1,MAX($D$2:D23)+1,0)","v":0},{"$f":"IF(D24=0,\"\",CONCATENATE(\"Página \",D24,\" de \",MAX($D$2:$D$26)))","v":""},{"$f":"IF(Impresion!D24=0,\"\",IF(Configurador!$R$21=\"Castellano\",Impresion!I24,IF(Configurador!$R$21=\"English\",Impresion!J24,IF(Configurador!$R$21=\"Catalá\",Impresion!K24,IF(Configurador!$R$21=\"Euskara\",Impresion!L24,IF(Configurador!$R$21=\"Galego\",Impresion!M24,\"\"))))))","v":""},null,null,"PartnerSG_E","PartnerSG_I","PartnerSG_C","PartnerSG_K","PartnerSG_G"]
[null,"Resumen",1,{"$f":"IF(C25=1,MAX($D$2:D24)+1,0)","v":6},"Página 6 de 7",{"$f":"IF(Impresion!D25=0,\"\",IF(Configurador!$R$21=\"Castellano\",Impresion!I25,IF(Configurador!$R$21=\"English\",Impresion!J25,IF(Configurador!$R$21=\"Catalá\",Impresion!K25,IF(Configurador!$R$21=\"Euskara\",Impresion!L25,IF(Configurador!$R$21=\"Galego\",Impresion!M25,\"\"))))))","v":"Resumen_E"},null,null,"Resumen_E","Resumen_I","Resumen_C","Resumen_K","Resumen_G"]
[null,"Condiciones y firma",1,{"$f":"IF(C26=1,MAX($D$2:D25)+1,0)","v":7},"Página 7 de 7",{"$f":"IF(Impresion!D26=0,\"\",IF(Configurador!$R$21=\"Castellano\",Impresion!I26,IF(Configurador!$R$21=\"English\",Impresion!J26,IF(Configurador!$R$21=\"Catalá\",Impresion!K26,IF(Configurador!$R$21=\"Euskara\",Impresion!L26,IF(Configurador!$R$21=\"Galego\",Impresion!M26,\"\"))))))","v":"Legales_E"},null,null,"Legales_E","Legales_I","Legales_C","Legales_K","Legales_G"]

{"sheet":"Versiones","index":31,"n_rows":54,"n_cols":10,"rows_kept":54,"cut":false,"hidden":false,"merged":[]}
[]
[null,"Versión Origen","Acción Nº","En:","Cambio Solicitado",null,"Ejecutado","Implementado en Vx.x","Borrador Interno","Versión para Microsoft"]
[null,"v1.1  Marzo 2019",1,"Configurador","Marcar secciones obligatorias en entrada de datos:  Cliente, Partner, Oferta…",null,"Se indica mediante \"*\" los campos de datos del Cliente/Partner/Oferta, que son de obligada cumplimentación en el Configurador de la  ONE COMERCIAL TOOL","V1.2 Abril 2019"]
[null,"v1.1  Marzo 2019",2,"Configurador","Resaltar en letra pequeña en la herramienta los precios son PVP y no incluyen IVA.",null,"Se incluye el literal \"Los precios NO incluyen IVA\" en varias posiciones de la pégina inicial - Configurador-. \nEl todos los  documentos de propuesta que pueden entregarse al cliente, ya se indica que:\n \"Los precios indicados son PVPs recomendados por Microsoft y no incluyen impuestos indirectos (IVA, IGIC, etc.). Todos los descuentos son ofertados por \" ;Configurador!J7). J7 es el Nombre del Partner.","V1.2 Abril 2019"]
[null,"v1.1  Marzo 2019",3,"Configurador","Cambiar Equipos de terceros por \"Otros equipos Windows 10 PRO\"",null,"Edición, cambio literales","V1.2 Abril 2019"]
[null,null,4,null,null,null,null,"V1.2 Abril 2019"]
[null,"v1.1  Marzo 2019",5,"Aplicaciones empresariales","Añadir nueva sección incluyendo Power Apps",null,"Incluida nueva Pagína denominada Dymanics_Sales . Con textos pasados a confirmar y maquetado de los mismos una vez validados. Generar cuadro información númerica y reprogramar impresiones y otras macros.","V1.2 Abril 2019"]
[null,"v1.1  Marzo 2019",6,"Servicios del Partner","Generar espacios de libre configuración en  PartnerPM_E y PartnerSG_E ",null,"Modificamos las últimas referencias en cada hoja para que sean de libre cumplimentación. Adicionalmente se optimiza el espacio para el concepto descripción en ambas hojas.","V1.2 Abril 2019"]
[null,"v1.1  Marzo 2019",7,"Configurador","Cabecera",null,"Actualización Fecha Versión","V1.2 Abril 2019"]
[null,"v1.1  Marzo 2019",8,"Configurador","Datos de cliente, partner y oferta a presentar","Cliente","Se sustituye Nombre *  por  \"empresa\"","V1.2 Abril 2019"]
[null,"v1.1  Marzo 2019",9,"Configurador","Datos de cliente, partner y oferta a presentar","Partner","Se sustituye Nombre * por \"partner\"","V1.2 Abril 2019"]
[null,"v1.1  Marzo 2019",10,"BusApps_Generica_E","Texto inicial",null,"Se elimina duplicado de  …    \"para\" en  - Le recomendamos las aplicaciones de negocio de Microsoft para para simplificar y conectar los procesos empresariales, mejorar las interacciones con los clientes y facilitar el crecimiento","V1.2 Abril 2019"]
[null,"v1.1  Marzo 2019",11,"BusApps_Generica_E","Outlook Customer Manager",null,"Se corrige texto en   BusApps_Generica_E\n\"Realiza el seguimiento de la actividad con los clientesde forma eficiente y sencilla, desde el mismo programa con el que gestionas el trabajo en equipo, Microsoft Outlook","V1.2 Abril 2019"]
[null,"v1.1  Marzo 2019",12,"Dynamics_E","Dynamics 365 Business Central Premium",null,"Se corrige texto en Dynamics_E\n\"Operaciones: consigue niveles de producción óptimos y automtiza las órdenes de compra\"","V1.2 Abril 2019"]
[null,"v1.1  Marzo 2019",13,"BusApps_Generica_E","Bloques texto inferiores",null,"Corregir alineación","V1.2 Abril 2019"]
[null,"v1.1  Marzo 2019",14,"Dynamics_E","Bloques texto inferiores",null,"Corregir alineación","V1.2 Abril 2019"]
[null,"v1.1  Marzo 2019",15,"Add-in_E","Bloques texto inferiores",null,"Corregir alineación","V1.2 Abril 2019"]
[null,"v1.1  Marzo 2019",16,"Resumen_E","Software",null,"Editar/corregir texto?\nProblema de márgenes en maquetado. RESUELTO","V1.2 Abril 2019"]
[null,"v1.1  Marzo 2019",17,"O365_Premium_E","Te recomendamos Enterprise Mobility and ..",null,"Camibio  \"conductual\"  por \"de comportamiento\"","V1.2 Abril 2019"]
[null,"v1.1  Marzo 2019",18,"O365_Essentials_E","Te recomendamos Enterprise Mobility and ..",null,"Camibio  \"conductual\"  por \"de comportamiento\"","V1.2 Abril 2019"]
[null,"v1.1  Marzo 2019",19,"O365_Essentials_E","Office 365 Empresa Essentials",null,"Modificación de contenidos","V1.2 Abril 2019"]
[null,"v1.1  Marzo 2019",20,"O365_Empresa_E","Modernización del puesto de trabajo completa con Microsoft 365",null,"Edición de texto y formatos ","V1.2 Abril 2019"]
[null,"v1.1  Marzo 2019",21,"Configurador","Condiciones de Pago",null,"Se incluyen campos Facturación y Forma de Pago","V1.2 Abril 2019"]
[null,"v1.1  Marzo 2019",22,"Legales_E","Condiciones de Pago",null,"Se incluyen campos Facturación y Forma de Pago","V1.2 Abril 2019"]
[null,"v1.1  Marzo 2019",23,"Configurador","(primera tabla) Columna WS CAL y cuota/mes desaparecen , estas licencias ya vienen incluidas en la estructura nube",null,"Se eliminan de configurador en el apartado, de modernización de servidores. Esto implica eliminar los cuadros asociados en las hojas propuestas de Azure 10, 50 y 100. Se refleja en cuadros inferiores.","V1.2 Abril 2019"]
[null,"v1.1  Marzo 2019",24,"Azure_10_E","Se elimina el apartado inicial de las Licencias de usuario (WS CALs)",null,"Eliminar cuadros asociados y remaquetar página.","V1.2 Abril 2019"]
[null,"v1.1  Marzo 2019",25,"Azure_50_E","Eliminar el apartado inicial de las Licencias de usuario (WS CALs)",null,"Eliminar cuadros asociados y remaquetar página.","V1.2 Abril 2019"]
[null,"v1.1  Marzo 2019",26,"Azure_100_E","Eliminar el apartado inicial de las Licencias de usuario (WS CALs)",null,"Eliminar cuadros asociados y remaquetar página.","V1.2 Abril 2019"]
[null,"v1.1  Marzo 2019",27,"Azure_Custum_E","Eliminar el apartado inicial de las Licencias de usuario (WS CALs)",null,"Eliminar cuadros asociados y remaquetar página.","V1.2 Abril 2019"]
[null,"v1.1  Marzo 2019",28,"Azure_10_E","Modernización de servidores con infrestructura cloud dimensionada para hasta 10 usuarios",null,"Edición texto: elimina  \"para\" …. Dimensianada hasta …\nFormateado información de textos inferiores.","V1.2 Abril 2019"]
[null,"v1.1  Marzo 2019",29,"Azure_50_E","Modernización de servidores con infrestructura cloud dimensionada para hasta 50 usuarios",null,"Edición texto: elimina  \"para\" …. Dimensianada hasta …\nFormateado información de textos inferiores.","V1.2 Abril 2019"]
[null,"v1.1  Marzo 2019",30,"Azure_100_E","Modernización de servidores con infrestructura cloud dimensionada para hasta 100 usuarios",null,"Edición texto: elimina  \"para\" …. Dimensianada hasta …\nFormateado información de textos inferiores.","V1.2 Abril 2019"]
[null,"v1.1  Marzo 2019",31,"Configurador","Replanteamiento de la información del cuadro \"Resumen de productos y servicios\"",null,"Se adapta cuadro a lo remitido por Cristina en mail del 8 abril en Configurador y hoja resumen . (origen E.Iturmendi)","V1.2 Abril 2019"]
[null,"v1.1  Marzo 2019",32,"Varias","Actualización de LOGO  Office",null,"Se actualzan los logos de Office según informacion recibida. Manuales/logo","V1.2 Abril 2019"]
[null,"v1.1  Marzo 2019",33,"Portada","Ampliar con reducción de márgenes",null,"Superior, inferior y derecha","V1.2 Abril 2019"]
[null,"v1.1  Marzo 2019",34,"Configurador","Incluir una nueva fila en Modernización Puesto de Trabajo.",null,"Se incluye una segunda fila de libre configuración  y se modifica resumen general asociado al mismo","V1.2 Abril 2019"]
[null,"v1.1  Marzo 2019",35,"O365_Empresa_E","Parametrizar la segunda fila de libre Configuracción anterior",null,"Paremetrizar y reformular para la segunda fila de libre configuración ","V1.2 Abril 2019"]
[null,"v1.1  Marzo 2019",36,"Configurador","Incluir una nueva fila de libre configuración en  apartado Servicios del Partner - Puesta en Marcha",null,"Moficicar  Alineamientos de los textos","V1.2 Abril 2019"]
[null,"v1.1  Marzo 2019",38,"PartnerPM_E","Parametrización de las modificaciones anteriores",null,"Ensanchado del cuadro para poder disponer de mayor estpacio para texto. La configuración para poder cubrir todas las posibilidades no da opción de expandir el cuadro. Valorar otras alternativas de eliminar opciones a la mitad para disponer del doble de espacio.","V1.2 Abril 2019"]
[null,"v1.1  Marzo 2019",37,"Configurador","Incluir una nueva fila de libre configuración en  apartado Servicios del Partner --Servicios Gestionados",null,"Moficicar  Alineamientos de los textos","V1.2 Abril 2019"]
[null,"v1.1  Marzo 2019",39,"PartnerSG_E","Parametrización de las modificaciones anteriores",null,"Ensanchado del cuadro para poder disponer de mayor estpacio para texto. La configuración para poder cubrir todas las posibilidades no da opción de expandir el cuadro. Valorar otras alternativas de eliminar opciones a la mitad para disponer del doble de espacio.","V1.2 Abril 2019"]
[null,"v1.1  Marzo 2019",40,"Legales_E","Reparametrización de margenes",null,"Se parametrizar márgener a la izquierda y derecha.","V1.2 Abril 2019"]
[null,"v1.1  Marzo 2019",41,"Dynamics_Sales_E","Corrección y modificación de textos",null,"Se corrigen y modifcan texgos según corrección realizada (mail Cristina 24 abr)","V1.2 Abril 2019"]
[null,"v1.1  Marzo 2019",42,"PartnerPM_E","Reparametrización de Campos",null,"Reducción número de campos con ocultación y chivato de espacio disponnible","V1.2 Abril 2019"]
[null,"v1.1  Marzo 2019",43,"PartnerSG_E","Reparametrización de Campos",null,"Reducción número de campos con ocultación y chivato de espacio disponnible","V1.2 Abril 2019","PREVIA_One_Commercial_Tool_Microsoft_v1.2 CD-8.67 CON logo"]
[null,"V1.2 Mayo 2019",44,"O365_Empresa/Premium/Essentials","Generar llamada en Cuota por usuario (Modernización del Puesto de Trabajo)",null,"Modificar texto llammada actual a: *Los precios indicados en cuota por usuario son PVPs recomendados por Microsoft y no incluyen impuestos indirectos (IVA, IGIC, etc.). Todos los descuentos son ofertados por  Partner","V1.2 Abril 2019","PREVIA_One_Commercial_Tool_Microsoft_v1.2 CD-8.67 CON logo"]
[null,"V1.2 Mayo 2019",45,"Azure/10/50/100/Custom /Server","Generar llamada en Cuota por usuario (Modernización de Servidores)",null,"Modificar texto llammada actual a: *Los precios indicados en cuota por usuario son PVPs recomendados por Microsoft y no incluyen impuestos indirectos (IVA, IGIC, etc.). Todos los descuentos son ofertados por  Partner","V1.2 Abril 2019","PREVIA_One_Commercial_Tool_Microsoft_v1.2 CD-8.67 CON logo"]
[null,"V1.2 Mayo 2019",46,"Dynamics/E/Sales_E/Add-in_E","Generar llamada en Cuota por usuario (Aplicaciones de Negocio)",null,"Modificar texto llammada actual a: *Los precios indicados en cuota por usuario son PVPs recomendados por Microsoft y no incluyen impuestos indirectos (IVA, IGIC, etc.). Todos los descuentos son ofertados por  Partner","V1.2 Abril 2019","PREVIA_One_Commercial_Tool_Microsoft_v1.2 CD-8.67 CON logo"]
[null,"V1.2 Mayo 2019",47,"Legales_E","Modificación WWW donde consultar y descargar condiciones.",null,"En la hoja de aceptación:\nDonde pone: Las condiciones legales de los productos de Microsoft incluidos en la presente propuesta pueden ser consultadas y descargadas en https://www.microsoft.com/es-es/licensing/productlicensing/products\nTiene que poner: Las condiciones legales de los productos de Microsoft incluidos en la presente propuesta pueden ser consultadas y descargadas en https://download.microsoft.com/download/2/C/8/2C8CAC17-FCE7-4F51-9556-4D77C7022DF5/MCA2017Agr_EMEA_EU-EFTA_ENG_Sep20172_CR.pdf","V1.2 Abril 2019","PREVIA_One_Commercial_Tool_Microsoft_v1.2 CD-8.67 CON logo"]
[null,"V1.2 Mayo 2019",48,"Legales_E","Modificación WWW donde consultar y descargar acuerdos de nivel de servicio de los servicios online de Microsoft",null,"Donde Pone: Los acuerdos de nivel de servicio de los servicios online de Microsoft pueden ser consultados y descargados en https://www.microsoft.com/es-es/licensing/product-licensing/products\nTiene que poner: Los acuerdos de nivel de servicio de los servicios online de Microsoft pueden ser consultados y descargados en  http://www.microsoftvolumelicensing.com/DocumentSearch.aspx?Mode=3&DocumentTypeId=37","V1.2 Abril 2019"]
[null,"V1.2 Mayo 2019",49,"Configurador\nResumen_E","Incluir llamdas a referencias de precios….\nAdaptar llamada actual existente e identificarla como ***",null,"En la hoja Resumen y Configurador\nPonemos * en las cajas de Pago inicial  y Pago mensual También podemos ver el poner un (1) y un (2) pequeñitos\nPonemos ** en el resto\n\nDonde pone: Los precios indicados son PVPs recomendados por Microsoft y no incluyen impuestos indirectos (IVA, IGIC, etc.). Todos los descuentos son ofertados por  Partner\nTiene que poner: *Los precios indicados son PVPs recomendados por Microsoft y no incluyen impuestos indirectos (IVA, IGIC, etc.). **Los descuentos y los precios netos son ofertados por  Partner","V1.2 Abril 2019"]
[null,"V1.2 Mayo 2019",50,"Legales_E"," look&feel del cuadro \"Forma de Pago\"",null,"Por último en cuanto a look&feel:\n•\tAmpliar el alto del cuadro “Forma de Pago” e igualar con el resto\n•\tReducir el tamaño de letra e igualar con el resto de secciones.","V1.3 Mayo 2019","TRABAJANDO 20190513 v1.2 CD CL 8.87"]
[null,"V1.3 Mayo 2019",51,"O365_E1E3E5_E","Nueva pagina asociada a Modernización Puesto de Trabajo",null,"Generación de nueva hoja con modificación de Macros para presentación, impresión, inserciones de logo  repaginación de las propuestas.","V1.4 Octubre 2019"]
[null,"V1.3 Mayo  2019",52,"Configurador","Inclluir nuevo opcional AIP",null,"Implica modificación de la hoja configuración y del resto de Modernización del puesto de trabajo, al ser opción de todos los productos anteriores\nRedefinición con nuevas lógicas y parametrización de impresiones en las mismas. \nReformulación de cuadros sumatorios resultantes parciales y totales ","V1.4 Octubre 2019"]